Workbook

Sheet Read Me

Sheet Data Dictionary
A1: Term | B1: Who reports it? | C1: Definition
A2: Agency | B2: All | C2: The transit agency's name.
A3: City | B3: All | C3: The city in which the agency is headquartered.
A4: State | B4: All | C4: The state in which the agency is headquartered.
A5: Legacy NTD ID | B5: All | C5: A four-digit identifying number for each agency used in the legacy NTD system.
A6: NTD ID | B6: All | C6: A five-digit identifying number for each agency used in the current NTD system.
A7: Organization Type | B7: All | C7: Description of the agency's legal entity.
A8: Reporter Type | B8: All | C8: The type of NTD report that the agency completed this year.
A9: Primary UZA Population | B9: DOES NOT APPLY TO: Rural General Public Transit Sub-recipients, Intercity Bus Sub-recipients | C9: The population of the urbanized area primarily served by the agency.
A10: Agency VOMS | B10: DOES NOT APPLY TO: Building Reporters, Planning Reporters, Separate Service Reporters, Tribal Subsidy Reporters, Intercity Bus Sub-recipients | C10: The number of revenue vehicles operated across the whole agency to meet the annual maximum service requirement. This is the revenue vehicle count during the peak season of the year; on the week and day that maximum service is provided. Vehicles operated in maximum service (VOMS) exclude atypical days and one-time special events.
A11: Mode | B11: DOES NOT APPLY TO: Planning Reporters, Tribal Subsidy Reporters, Intercity Bus Sub-recipients | C11: A system for carrying transit passengers described by specific right-of-way (ROW), technology and operational features.
A12: Type of Service | B12: DOES NOT APPLY TO: Planning Reporters, Tribal Subsidy Reporters, Intercity Bus Sub-recipients | C12: Describes how public transportation services are provided by the transit agency: directly operated (DO) or purchased transportation (PT) services.
A13: Mode VOMS | B13: DOES NOT APPLY TO: Building Reporters, Planning Reporters, Separate Service Reporters, Tribal Subsidy Reporters, Intercity Bus Sub-recipients | C13: The number of revenue vehicles operated by the given mode and type of service to meet the annual maximum service requirement. This is the revenue vehicle count during the peak season of the year; on the week and day that maximum service is provided. Vehicles operated in maximum service (VOMS) exclude atypical days and one-time special events.
A14: Rural General Public Transit | C14: Reporter type for agencies that do not operate in an urban area and are not Tribes.
A15: Intercity Bus | C15: Reporter type for private bus lines providing non-transit service connecting wide-ranging areas.
A16: Building Reporter | C16: Reporter type for agencies that are building a new transit service but not yet operating it.
A17: Planning Reporter | C17: Reporter type for entities that expend funds in planning transit but do not operate service.
A18: Separate Service | C18: Reporter type for agencies that have a contractual relationship with another NTD reporter to provide service but do not report any service themselves.
A19: Tribal Subsidy | C19: Reporter type for Tribes that subsidize service but do not operate service or pay the full cost of service.
A20: Full Reporter | C20: Reporter type for agencies that operate urban service and complete the most detailed level of NTD report. Urban agencies that operate more than 30 vehicles or operate Fixed Guideway service are required to complete Full Reports; other urban agencies may do so if they wish.
A21: Reduced Reporter | C21: Reporter type for agencies that operate urban service but complete a simplified NTD report. Urban agencies that operate 30 or fewer vehicles and do not operate Fixed Guideway service are eligible to complete Reduced Reports. This is sometimes called a Small Systems Report.
A22: Urbanized Area (UZA) | C22: An area defined by the U. S. Census Bureau that includes: - One or more incorporated cities, villages, and towns (central place) - The adjacent densely settled surrounding territory (urban fringe) that together has a minimum of 50,000 persons The urban fringe generally consists of contiguous territory having a density of at least 1,000 persons per square mile. Urbanized areas do not conform to congressional districts or any other political boundaries.
A23: Alaska Railroad (AR) | C23: The passenger service portion of the Alaska Railroad Corporation. The service encompasses only car miles for passenger cars; car miles for freight cars are specifically excluded.
A24: Bus (MB) | C24: A transit mode comprised of rubber-tired passenger vehicles operating on fixed routes and schedules over roadways. Vehicles are powered by: - Diesel - Gasoline - Battery - Alternative fuel engines contained within the vehicle
A25: Bus Rapid Transit (RB) | C25: Fixed-route bus mode: - In which the majority of each line operates in a separated right-of-way dedicated for public transportation use during peak periods; and - That includes features that emulate the services provided by rail fixed guideway public transportation systems, including: o Defined stations o Traffic signal priority for public transportation vehicles o Short headway bidirectional services for a substantial part of weekdays and weekend days o Pre-board ticketing, platform level boarding, and separate branding This mode may include portions of service that are fixed-guideway and non-fixed-guideway.
A26: Cable Car (CC) | C26: A transit mode that is an electric railway with individually controlled transit vehicles attached to a moving cable located below the street surface and powered by engines or motors at a central location, not onboard the vehicle.
A27: Commuter Bus (CB) | C27: Fixed-route bus systems that are primarily connecting outlying areas with a central city through bus service that operates with at least five miles of continuous closed-door service. This service may operate motorcoaches (aka over-the-road buses), and usually features peak scheduling, multiple-trip tickets, and limited stops in the central city.
A28: Commuter Rail (CR) | C28: A transit mode that is an electric or diesel propelled railway for urban passenger train service consisting of local short distance travel operating between a central city and adjacent suburbs. Service must be operated on a regular basis by or under contract with a transit operator for the purpose of transporting passengers within urbanized areas (UZAs), or between urbanized areas and outlying areas. Such rail service, using either locomotive hauled or self-propelled railroad passenger cars, is generally characterized by: - Multi-trip tickets - Specific station to station fares - Railroad employment practices - Usually only one or two stations in the central business district It does not include: - Heavy rail (HR) rapid transit - Light rail (LR)/streetcar transit service Intercity rail service is excluded, except for that portion of such service that is operated by or under contract with a public transit agency for predominantly commuter services. Predominantly commuter service means that for any given trip segment (i.e., distance between any two stations), more than 50 percent of the average daily ridership makes a return trip on the same day. Only the predominantly commuter service portion of an intercity route is eligible for inclusion when determining commuter rail (CR) route miles.
A29: Demand Response (DR) | C29: A transit mode comprised of automobiles, vans or small buses operating in response to calls from passengers or their agents to the transit operator, who then dispatches a vehicle to pick up the passengers and transport them to their destinations. A demand response (DR) operation is characterized by the following: - The vehicles do not operate over a fixed route or on a fixed schedule except, perhaps, on a temporary basis to satisfy a special need; and - Typically, the vehicle may be dispatched to pick up several passengers at different pick-up points before taking them to their respective destinations and may even be interrupted en route to these destinations to pick up other passengers. The following types of operations fall under the above definitions provided they are not on a scheduled fixed route basis: - Many origins—many destinations - Many origins—one destination - One origin—many destinations - One origin—one destination
A30: Demand Response Taxi (DT) | C30: A special form of the demand response mode operated through taxicab providers. The mode is always purchased transportation type of service. In order to be reportable, there must be a system in place through which passengers can share rides.
A31: Ferryboat (FB) | C31: A transit mode comprised of vessels carrying passengers and/or vehicles over a body of water that are generally steam or diesel powered. Intercity ferryboat (FB) service is excluded, except for that portion of such service that is operated by or under contract with a public transit agency for predominantly commuter services. Predominantly commuter service means that for any given trip segment (i.e., distance between any two piers), more than 50 percent of the average daily ridership makes a return trip on the ferryboat on the same day. Only the predominantly commuter service portion of an intercity route is eligible for inclusion when determining ferryboat (FB) route miles.
A32: Heavy Rail (HR) | C32: A transit mode that is an electric railway with the capacity for a heavy volume of traffic. It is characterized by: - High speed and rapid acceleration passenger rail cars operating singly or in multi-car trains on fixed rails - Separate rights-of-way (ROW) from which all other vehicular and foot traffic are excluded - Sophisticated signaling - Raised platform loading
A33: Hybrid Rail (YR) | C33: Rail systems primarily operating routes on the National system of railroads, but not operating with the characteristics of commuter rail. This service typically operates light rail-type vehicles as diesel multipleunit trains (DMU’s). These trains do not meet Federal Railroad Administration standards, and so must operate with temporal separation from freight rail traffic.
A34: Inclined Plane (IP) | C34: A transit mode that is a railway operating over exclusive right-of-way (ROW) on steep grades (slopes) with powerless vehicles propelled by moving cables attached to the vehicles and powered by engines or motors at a central location not onboard the vehicle. The special tramway types of vehicles have passenger seats that remain horizontal while the undercarriage (truck) is angled parallel to the slope.
A35: Light Rail (LR) | C35: A transit mode that is typically an electric railway with a light volume traffic capacity compared to heavy rail (HR). It is characterized by: - Passenger rail cars operating singly (or in short, usually two car, trains) on fixed rails in shared or exclusive right-of-way (ROW) - Low or high platform loading - Vehicle power drawn from an overhead electric line via a trolley or a pantograph
A36: Monorail/Automated Guideway (MG) | C36: Monorail and Automated Guideway modes operate on exclusive guideway without using steel wheels on rails.
A37: Streetcar Rail (SR) | C37: This mode is for rail transit systems operating entire routes predominantly on streets in mixed-traffic. This service typically operates with single-car trains powered by overhead catenaries and with frequent stops.
A38: Trolleybus (TB) | C38: A transit mode comprised of electric rubber-tired passenger vehicles, manually steered and operating singly on city streets. Vehicles are propelled by a motor drawing current through overhead wires via trolleys, from a central power source not onboard the vehicle.
A39: Vanpool (VP) | C39: A transit mode comprised of vans, small buses and other vehicles operating as a ride sharing arrangement, providing transportation to a group of individuals traveling directly between their homes and a regular destination within the same geographical area.
A40: Jitney (JT) | C40: A transit mode comprising passenger cars or vans operating on fixed routes (sometimes with minor deviations) as demand warrants without fixed schedules or fixed stops.
A41: Aerial Tramway (TR) | C41: A transit mode that is an electric system of aerial cables with suspended powerless passenger vehicles. The vehicles are propelled by separate cables attached to the vehicle suspension system and powered by engines or motors at a central location not on-board the vehicle.
A42: Publico (PB) | C42: A transit mode comprised of passenger vans or small buses operating with fixed routes but no fixed schedules in Puerto Rico. Publicos (PB) are a privately owned and operated public transit service which is market oriented and unsubsidized, but regulated through a public service commission, state or local government. Publicos (PB) are operated under franchise agreements, fares are regulated by route and there are special insurance requirements. Vehicle capacity varies from 8 to 24, and the vehicles may be owned or leased by the operator.
A43: Questionable (Q) | C43: FTA marks a data point as Questionable when there is reason to believe it is incorrect, but the reporting agency has been unable to correct the data or offer an explanation for its anomalous appearance.
A44: Waived (W) | C44: FTA marks a data point as Waived when the reporting agency has not reported the data point according to NTD reporting requirements, but has received a waiver to report the data as-is for one year.
A45: Miles of Track/Roadway | B45: ONLY APPLIES TO: Full Reporters | C45: Miles of track/roadway are measured without regard to whether or not traffic can flow in both directions. Multiple tracks/lanes in the same right-of-way are counted individually. All track is counted, including yard track and sidings.
A46: At Grade: Restricted Right-of-Way Miles | B46: ONLY APPLIES TO: Full Reporters | C46: Ground-level track that does not share its right-of-way with non-rail modes of transport, except possibly at a discrete number of grade crossings.
A47: Street Running Miles | B47: ONLY APPLIES TO: Full Reporters | C47: Includes alignments where rail vehicles and rubber-tire vehicles travel in the same lanes and alignments where pedestrians may freely cross the tracks at any point.
A48: Elevated on Structure | B48: ONLY APPLIES TO: Full Reporters | C48: Rail transit way above surface level on structures (e.g. bridges, overpasses). Transition segments above surface level on structures are included.
A49: Elevated on Fill | B49: ONLY APPLIES TO: Full Reporters | C49: Rail transit way above surface level on fill (solid ground such as dirt or concrete). Transition segments above surface level on fill are included.
A50: Open Cut | B50: ONLY APPLIES TO: Full Reporters | C50: Rail transit way below surface level in an excavated cut that has not had a covering constructed over it. Transition segments to open cut or subway tunnel/tube segments are included.
A51: Subway | B51: ONLY APPLIES TO: Full Reporters | C51: Rail transit way below surface with a cover over the tunnel. Cut and cover, bored tunnel, underwater tubes, etc., are included.
A52: At Grade: Restricted Right-of-Way Crossings | B52: ONLY APPLIES TO: Full Reporters | C52: An intersection between a roadway and a rail restricted right-of-way that cross each other at the same level (at grade).
A53: Street Running Crossings | B53: ONLY APPLIES TO: Full Reporters | C53: For street-running operations, each street intersection is considered a grade crossing (this excludes driveways and parking lot entrances).
A54: Permanent Busway | B54: ONLY APPLIES TO: Full Reporters | C54: Lanes that are reserved for the exclusive use of public transportation at all times.
A55: Permanent HOV | B55: ONLY APPLIES TO: Full Reporters | C55: Lanes that are not open to general traffic at any time. This includes 24-hour High Occupancy Vehicle (HOV) or High Occupancy/Toll (HO/T) lanes, and lanes that are HOV or HO/T at some times and transit-exclusive at all other times.
A56: Part-Time Busway or HOV | B56: ONLY APPLIES TO: Full Reporters | C56: Lanes that are sometimes restricted to transit vehicles or High Occupancy Vehicles (HOVs), and sometimes open to general traffic.

Sheet Track by Mode
A1: Name | B1: City | C1: State | D1: Legacy NTD ID | E1: NTD ID | F1: Organization Type | G1: Reporter Type | H1: Primary UZA Population | I1: Agency VOMS | J1: Mode | K1: TOS | L1: Mode VOMS | M1: Miles of Track: | N1: At Grade: Restricted Right-of-Way | O1: At Grade: Restricted Right-of-Way Questionable | P1: Street Running | Q1: Street Running Questionable | R1: Elevated on Structure | S1: Elevated on Structure Questionable | T1: Elevated on Fill | U1: Elevated on Fill Questionable | V1: Open Cut | W1: Open Cut Questionable | X1: Subway | Y1: Subway Questionable | Z1: Total Miles | AA1: Total Miles Questionable | AB1: Number of Crossings: | AC1: At Grade: Restricted Right-of-Way Crossings | AD1: At Grade: Restricted Right-of-Way Questionable | AE1: Street Running Crossings | AF1: Street Running Questionable | AG1: Total Crossings | AH1: Total Crossings Questionable | AI1: Any data questionable? | AM1: =IF(AM4=1,1,0) -> 1
A2: MTA New York City Transit | B2: New York | C2: NY | D2: 2008 | E2: 20008 | F2: Subsidiary Unit of a Transit Agency, Reporting Separately | G2: Full Reporter | H2: 18351295 | I2: 11000 | J2: HR | K2: DO | L2: 5282 | N2: 137.3 | P2: 0 | R2: 196.3 | T2: 29 | V2: 29.5 | X2: 440.4 | Z2: 832.5 | AC2: 0 | AE2: 0 | AG2: 0 | AI2: =IF(OR(O2="Q",Q2="Q",S2="Q",U2="Q", W2="Q", Y2="Q",AA2="Q",AD2="Q", AF2="Q",AH2="Q"),"Yes","No") -> No | AM2: Hide questionable data tags
A3: New Jersey Transit Corporation | B3: Newark | C3: NJ | D3: 2080 | E3: 20080 | F3: Other Publicly-Owned or Privately Chartered Corporation | G3: Full Reporter | H3: 18351295 | I3: 4020 | J3: CR | K3: DO | L3: 1267 | N3: 812.6 | P3: 0 | R3: 10.4 | T3: 28.4 | V3: 8.6 | X3: 8 | Z3: 868 | AC3: 328 | AE3: 0 | AG3: 328 | AI3: =IF(OR(O3="Q",Q3="Q",S3="Q",U3="Q", W3="Q", Y3="Q",AA3="Q",AD3="Q", AF3="Q",AH3="Q"),"Yes","No") -> No | AM3: Show questionable data tags
A4: New Jersey Transit Corporation | B4: Newark | C4: NJ | D4: 2080 | E4: 20080 | F4: Other Publicly-Owned or Privately Chartered Corporation | G4: Full Reporter | H4: 18351295 | I4: 4020 | J4: LR | K4: PT | L4: 42 | N4: 31.3 | P4: 1.6 | R4: 2.7 | T4: 0.9 | V4: 0 | X4: 0 | Z4: 36.5 | AC4: 24 | AE4: 9 | AG4: 33 | AI4: No | AM4: 1
A5: New Jersey Transit Corporation | B5: Newark | C5: NJ | D5: 2080 | E5: 20080 | F5: Other Publicly-Owned or Privately Chartered Corporation | G5: Full Reporter | H5: 18351295 | I5: 4020 | J5: YR | K5: PT | L5: 16 | N5: 52.9 | P5: 3.8 | R5: 0 | T5: 0 | V5: 0 | X5: 0 | Z5: 56.7 | AC5: 59 | AE5: 13 | AG5: 72 | AI5: No
A6: New Jersey Transit Corporation | B6: Newark | C6: NJ | D6: 2080 | E6: 20080 | F6: Other Publicly-Owned or Privately Chartered Corporation | G6: Full Reporter | H6: 18351295 | I6: 4020 | J6: LR | K6: DO | L6: 14 | N6: 9.1 | P6: 1.5 | R6: 0 | T6: 0 | V6: 0 | X6: 3.3 | Z6: 13.9 | AC6: 5 | AE6: 10 | AG6: 15 | AI6: No
A7: Los Angeles County Metropolitan Transportation Authority dba: Metro | B7: Los Angeles | C7: CA | D7: 9154 | E7: 90154 | F7: Independent Public Agency or Authority of Transit Service | G7: Full Reporter | H7: 12150996 | I7: 3516 | J7: LR | K7: DO | L7: 144 | N7: 72 | P7: 0 | R7: 15.5 | T7: 26 | V7: 16.7 | X7: 5.6 | Z7: 135.8 | AC7: 152 | AE7: 0 | AG7: 152 | AI7: No
A8: Los Angeles County Metropolitan Transportation Authority dba: Metro | B8: Los Angeles | C8: CA | D8: 9154 | E8: 90154 | F8: Independent Public Agency or Authority of Transit Service | G8: Full Reporter | H8: 12150996 | I8: 3516 | J8: HR | K8: DO | L8: 70 | N8: 1.3 | P8: 0 | R8: 0 | T8: 0 | V8: 0.2 | X8: 32.6 | Z8: 34.1 | AC8: 0 | AE8: 0 | AG8: 0 | AI8: No
A9: Washington Metropolitan Area Transit Authority | B9: Washington | C9: DC | D9: 3030 | E9: 30030 | F9: Independent Public Agency or Authority of Transit Service | G9: Full Reporter | H9: 4586770 | I9: 3200 | J9: HR | K9: DO | L9: 954 | N9: 152.2 | P9: 0 | R9: 24.2 | T9: 0.5 | V9: 3.1 | X9: 112.3 | Z9: 292.3 | AC9: 0 | AE9: 0 | AG9: 0 | AI9: No
A10: King County Department of Transportation - Metro Transit Division | B10: Seattle | C10: WA | D10: 1 | E10: 1 | F10: City, County or Local Government Unit or Department of Transportation | G10: Full Reporter | H10: 3059393 | I10: 2875 | J10: SR | K10: DO | L10: 3 | N10: 0.1 | P10: 2.5 | R10: 0 | T10: 0 | V10: 0 | X10: 0 | Z10: 2.6 | AC10: 0 | AE10: 18 | AG10: 18 | AI10: No
A11: Chicago Transit Authority | B11: Chicago | C11: IL | D11: 5066 | E11: 50066 | F11: Independent Public Agency or Authority of Transit Service | G11: Full Reporter | H11: 8608208 | I11: 2728 | J11: HR | K11: DO | L11: 1134 | N11: 95.3 | P11: 0 | R11: 116.5 | T11: 49.8 | V11: 2.7 | X11: 23.5 | Z11: 287.8 | AC11: 25 | AE11: 0 | AG11: 25 | AI11: No
A12: Massachusetts Bay Transportation Authority | B12: Boston | C12: MA | D12: 1003 | E12: 10003 | F12: Independent Public Agency or Authority of Transit Service | G12: Full Reporter | H12: 4181019 | I12: 2344 | J12: CR | K12: PT | L12: 421 | N12: 709 | P12: 0 | R12: 0 | T12: 0 | V12: 0 | X12: 2.5 | Z12: 711.5 | AC12: 258 | AE12: 0 | AG12: 258 | AI12: No
A13: Massachusetts Bay Transportation Authority | B13: Boston | C13: MA | D13: 1003 | E13: 10003 | F13: Independent Public Agency or Authority of Transit Service | G13: Full Reporter | H13: 4181019 | I13: 2344 | J13: HR | K13: DO | L13: 336 | N13: 56 | P13: 0 | R13: 4 | T13: 0 | V13: 10 | X13: 38 | Z13: 108 | AC13: 0 | AE13: 0 | AG13: 0 | AI13: No
A14: Massachusetts Bay Transportation Authority | B14: Boston | C14: MA | D14: 1003 | E14: 10003 | F14: Independent Public Agency or Authority of Transit Service | G14: Full Reporter | H14: 4181019 | I14: 2344 | J14: LR | K14: DO | L14: 151 | N14: 58 | P14: 2 | R14: 4 | T14: 0 | V14: 0 | X14: 14 | Z14: 78 | AC14: 56 | AE14: 9 | AG14: 65 | AI14: No
A15: Southeastern Pennsylvania Transportation Authority | B15: Philadelphia | C15: PA | D15: 3019 | E15: 30019 | F15: Independent Public Agency or Authority of Transit Service | G15: Full Reporter | H15: 5441567 | I15: 2340 | J15: CR | K15: DO | L15: 339 | N15: 609.5 | P15: 0 | R15: 0 | T15: 0 | V15: 0 | X15: 6 | Z15: 615.5 | AC15: 287 | AE15: 0 | AG15: 287 | AI15: No
A16: Southeastern Pennsylvania Transportation Authority | B16: Philadelphia | C16: PA | D16: 3019 | E16: 30019 | F16: Independent Public Agency or Authority of Transit Service | G16: Full Reporter | H16: 5441567 | I16: 2340 | J16: HR | K16: DO | L16: 287 | N16: 39 | P16: 0 | R16: 17 | T16: 0 | V16: 0 | X16: 43.8 | Z16: 99.8 | AC16: 0 | AE16: 0 | AG16: 0 | AI16: No
A17: Southeastern Pennsylvania Transportation Authority | B17: Philadelphia | C17: PA | D17: 3019 | E17: 30019 | F17: Independent Public Agency or Authority of Transit Service | G17: Full Reporter | H17: 5441567 | I17: 2340 | J17: SR | K17: DO | L17: 124 | N17: 23.1 | P17: 189.2 | R17: 0 | T17: 0 | V17: 0 | X17: 5 | Z17: 217.3 | AC17: 49 | AE17: 646 | AG17: 695 | AI17: No
A18: Metropolitan Transit Authority of Harris County, Texas | B18: Houston | C18: TX | D18: 6008 | E18: 60008 | F18: Independent Public Agency or Authority of Transit Service | G18: Full Reporter | H18: 4944332 | I18: 2240 | J18: LR | K18: DO | L18: 51 | N18: 51 | P18: 4.6 | R18: 2.8 | T18: 0.4 | V18: 0 | X18: 0 | Z18: 58.8 | AC18: 127 | AE18: 34 | AG18: 161 | AI18: No
A19: San Francisco Municipal Railway | B19: San Francisco | C19: CA | D19: 9015 | E19: 90015 | F19: City, County or Local Government Unit or Department of Transportation | G19: Full Reporter | H19: 3281212 | I19: 1524 | J19: LR | K19: DO | L19: 131 | N19: 29.6 | P19: 23.5 | R19: 0 | T19: 0 | V19: 0.2 | X19: 14.9 | Z19: 68.2 | AC19: 77 | AE19: 258 | AG19: 335 | AI19: No
A20: San Francisco Municipal Railway | B20: San Francisco | C20: CA | D20: 9015 | E20: 90015 | F20: City, County or Local Government Unit or Department of Transportation | G20: Full Reporter | H20: 3281212 | I20: 1524 | J20: CC | K20: DO | L20: 27 | N20: 0 | P20: 8.8 | R20: 0 | T20: 0 | V20: 0 | X20: 0 | Z20: 8.8 | AC20: 0 | AE20: 77 | AG20: 77 | AI20: No
A21: San Francisco Municipal Railway | B21: San Francisco | C21: CA | D21: 9015 | E21: 90015 | F21: City, County or Local Government Unit or Department of Transportation | G21: Full Reporter | H21: 3281212 | I21: 1524 | J21: SR | K21: DO | L21: 24 | N21: 0 | P21: 21.7 | R21: 0 | T21: 0 | V21: 0 | X21: 0 | Z21: 21.7 | AC21: 0 | AE21: 82 | AG21: 82 | AI21: No
A22: Maryland Transit Administration | B22: Baltimore | C22: MD | D22: 3034 | E22: 30034 | F22: State Government Unit or Department of Transportation | G22: Full Reporter | H22: 2203663 | I22: 1491 | J22: CR | K22: PT | L22: 142 | N22: 471 | P22: 0 | R22: 0 | T22: 0 | V22: 0 | X22: 0 | Z22: 471 | AC22: 40 | AE22: 0 | AG22: 40 | AI22: No
A23: Maryland Transit Administration | B23: Baltimore | C23: MD | D23: 3034 | E23: 30034 | F23: State Government Unit or Department of Transportation | G23: Full Reporter | H23: 2203663 | I23: 1491 | J23: HR | K23: DO | L23: 54 | N23: 18 | P23: 0 | R23: 5 | T23: 0 | V23: 0 | X23: 11 | Z23: 34 | AC23: 0 | AE23: 0 | AG23: 0 | AI23: No
A24: Maryland Transit Administration | B24: Baltimore | C24: MD | D24: 3034 | E24: 30034 | F24: State Government Unit or Department of Transportation | G24: Full Reporter | H24: 2203663 | I24: 1491 | J24: LR | K24: DO | L24: 38 | N24: 49.7 | P24: 3 | R24: 4.9 | T24: 0 | V24: 0 | X24: 0 | Z24: 57.6 | AC24: 35 | AE24: 17 | AG24: 52 | AI24: No
A25: Denver Regional Transportation District | B25: Denver | C25: CO | D25: 8006 | E25: 80006 | F25: Independent Public Agency or Authority of Transit Service | G25: Full Reporter | H25: 2374203 | I25: 1395 | J25: LR | K25: DO | L25: 137 | N25: 63.3 | P25: 0 | R25: 7.9 | T25: 19.8 | V25: 2.4 | X25: 0.6 | Z25: 94 | AC25: 57 | AE25: 0 | AG25: 57 | AI25: No
A26: Metro-North Commuter Railroad Company, dba: MTA Metro-North Railroad | B26: New York | C26: NY | D26: 2078 | E26: 20078 | F26: Subsidiary Unit of a Transit Agency, Reporting Separately | G26: Full Reporter | H26: 18351295 | I26: 1199 | J26: CR | K26: DO | L26: 1188 | N26: 791.5 | P26: 0 | R26: 6.2 | T26: 0 | V26: 0 | X26: 10.3 | Z26: 808 | AC26: 157 | AE26: 0 | AG26: 157 | AI26: No
A27: Miami-Dade Transit | B27: Miami | C27: FL | D27: 4034 | E27: 40034 | F27: City, County or Local Government Unit or Department of Transportation | G27: Full Reporter | H27: 5502379 | I27: 1129 | J27: HR | K27: DO | L27: 80 | N27: 9.9 | P27: 0 | R27: 46.8 | T27: 1.6 | V27: 0 | X27: 0 | Z27: 58.3 | AC27: 0 | AE27: 0 | AG27: 0 | AI27: No
A28: Miami-Dade Transit | B28: Miami | C28: FL | D28: 4034 | E28: 40034 | F28: City, County or Local Government Unit or Department of Transportation | G28: Full Reporter | H28: 5502379 | I28: 1129 | J28: MG | K28: DO | L28: 23 | N28: 0 | P28: 0 | R28: 9.4 | T28: 0 | V28: 0 | X28: 0 | Z28: 9.4 | AC28: 0 | AE28: 0 | AG28: 0 | AI28: No
A29: Utah Transit Authority | B29: Salt Lake City | C29: UT | D29: 8001 | E29: 80001 | F29: Independent Public Agency or Authority of Transit Service | G29: Full Reporter | H29: 1021243 | I29: 1104 | J29: LR | K29: DO | L29: 91 | N29: 102.8 | P29: 1 | R29: 1.6 | T29: 2.7 | V29: 0 | X29: 0 | Z29: 108.1 | AC29: 68 | AE29: 76 | AG29: 144 | AI29: No
A30: Utah Transit Authority | B30: Salt Lake City | C30: UT | D30: 8001 | E30: 80001 | F30: Independent Public Agency or Authority of Transit Service | G30: Full Reporter | H30: 1021243 | I30: 1104 | J30: CR | K30: DO | L30: 36 | N30: 109.7 | P30: 0 | R30: 1.3 | T30: 6.9 | V30: 1.9 | X30: 0 | Z30: 119.8 | AC30: 65 | AE30: 0 | AG30: 65 | AI30: No
A31: Northeast Illinois Regional Commuter Railroad Corporation dba: Metra Rail | B31: Chicago | C31: IL | D31: 5118 | E31: 50118 | F31: Independent Public Agency or Authority of Transit Service | G31: Full Reporter | H31: 8608208 | I31: 1062 | J31: CR | K31: DO | L31: 1062 | N31: 846.2 | P31: 0 | R31: 0 | T31: 310.8 | V31: 48.9 | X31: 0 | Z31: 1205.9 | AC31: 568 | AE31: 0 | AG31: 568 | AI31: No
A32: Dallas Area Rapid Transit | B32: Dallas | C32: TX | D32: 6056 | E32: 60056 | F32: Independent Public Agency or Authority of Transit Service | G32: Full Reporter | H32: 5121892 | I32: 1042 | J32: LR | K32: DO | L32: 105 | N32: 122.6 | P32: 3.6 | R32: 68 | T32: 0 | V32: 2.2 | X32: 6.2 | Z32: 202.6 | AC32: 142 | AE32: 29 | AG32: 171 | AI32: No
A33: Dallas Area Rapid Transit | B33: Dallas | C33: TX | D33: 6056 | E33: 60056 | F33: Independent Public Agency or Authority of Transit Service | G33: Full Reporter | H33: 5121892 | I33: 1042 | J33: CR | K33: PT | L33: 23 | N33: 49.7 | P33: 0 | R33: 5.6 | T33: 0 | V33: 0 | X33: 0 | Z33: 55.3 | AC33: 44 | AE33: 0 | AG33: 44 | AI33: No
A34: Dallas Area Rapid Transit | B34: Dallas | C34: TX | D34: 6056 | E34: 60056 | F34: Independent Public Agency or Authority of Transit Service | G34: Full Reporter | H34: 5121892 | I34: 1042 | J34: SR | K34: DO | L34: 1 | N34: 2.4 | P34: 0 | R34: 0 | T34: 0 | V34: 0 | X34: 0 | Z34: 2.4 | AC34: 0 | AE34: 0 | AG34: 0 | AI34: No
A35: MTA Long Island Rail Road | B35: Jamaica | C35: NY | D35: 2100 | E35: 20100 | F35: Subsidiary Unit of a Transit Agency, Reporting Separately | G35: Full Reporter | H35: 18351295 | I35: 1019 | J35: CR | K35: DO | L35: 1019 | N35: 603 | P35: 0 | R35: 36.1 | T35: 24 | V35: 0 | X35: 7.2 | Z35: 670.3 | AC35: 334 | AE35: 0 | AG35: 334 | AI35: No
A36: Tri-County Metropolitan Transportation District of Oregon | B36: Portland | C36: OR | D36: 8 | E36: 8 | F36: Independent Public Agency or Authority of Transit Service | G36: Full Reporter | H36: 1849898 | I36: 918 | J36: LR | K36: DO | L36: 104 | N36: 78.6 | P36: 0 | R36: 4.8 | T36: 3.4 | V36: 10.9 | X36: 6.4 | Z36: 104.1 | AC36: 187 | AE36: 0 | AG36: 187 | AI36: No
A37: Tri-County Metropolitan Transportation District of Oregon | B37: Portland | C37: OR | D37: 8 | E37: 8 | F37: Independent Public Agency or Authority of Transit Service | G37: Full Reporter | H37: 1849898 | I37: 918 | J37: YR | K37: PT | L37: 4 | N37: 18.7 | P37: 0 | R37: 0.5 | T37: 0 | V37: 0 | X37: 0 | Z37: 19.2 | AC37: 27 | AE37: 0 | AG37: 27 | AI37: No
A38: Port Authority of Allegheny County | B38: Pittsburgh | C38: PA | D38: 3022 | E38: 30022 | F38: Independent Public Agency or Authority of Transit Service | G38: Full Reporter | H38: 1733853 | I38: 912 | J38: LR | K38: DO | L38: 56 | N38: 34.9 | P38: 6.7 | R38: 3 | T38: 0 | V38: 0 | X38: 6.6 | Z38: 51.2 | AC38: 37 | AE38: 5 | AG38: 42 | AI38: No
A39: Port Authority of Allegheny County | B39: Pittsburgh | C39: PA | D39: 3022 | E39: 30022 | F39: Independent Public Agency or Authority of Transit Service | G39: Full Reporter | H39: 1733853 | I39: 912 | J39: IP | K39: DO | L39: 2 | N39: 0.2 | P39: 0 | R39: 0 | T39: 0 | V39: 0 | X39: 0 | Z39: 0.2 | AC39: 0 | AE39: 0 | AG39: 0 | AI39: No
A40: Metro Transit | B40: Minneapolis | C40: MN | D40: 5027 | E40: 50027 | F40: Subsidiary Unit of a Transit Agency, Reporting Separately | G40: Full Reporter | H40: 2650890 | I40: 885 | J40: LR | K40: DO | L40: 72 | N40: 43.2 | P40: 0 | R40: 2.7 | T40: 0.9 | V40: 1 | X40: 3.5 | Z40: 51.3 | AC40: 104 | AE40: 0 | AG40: 104 | AI40: No
A41: Metro Transit | B41: Minneapolis | C41: MN | D41: 5027 | E41: 50027 | F41: Subsidiary Unit of a Transit Agency, Reporting Separately | G41: Full Reporter | H41: 2650890 | I41: 885 | J41: CR | K41: PT | L41: 20 | N41: 68.5 | P41: 0 | R41: 0.6 | T41: 0 | V41: 0 | X41: 0 | Z41: 69.1 | AC41: 36 | AE41: 0 | AG41: 36 | AI41: No
A42: Metropolitan Atlanta Rapid Transit Authority | B42: Atlanta | C42: GA | D42: 4022 | E42: 40022 | F42: Independent Public Agency or Authority of Transit Service | G42: Full Reporter | H42: 4515419 | I42: 838 | J42: HR | K42: DO | L42: 224 | N42: 58.2 | P42: 0 | R42: 24.4 | T42: 0 | V42: 0 | X42: 21.1 | Z42: 103.7 | AC42: 0 | AE42: 0 | AG42: 0 | AI42: No
A43: San Diego Metropolitan Transit System | B43: San Diego | C43: CA | D43: 9026 | E43: 90026 | F43: Independent Public Agency or Authority of Transit Service | G43: Full Reporter | H43: 2956746 | I43: 732 | J43: LR | K43: DO | L43: 97 | N43: 82.7 | P43: 6.6 | R43: 8.9 | T43: 1.8 | V43: 1.4 | X43: 1.2 | Z43: 102.6 | AC43: 70 | AE43: 26 | AG43: 96 | AI43: No
A44: Santa Clara Valley Transportation Authority | B44: San Jose | C44: CA | D44: 9013 | E44: 90013 | F44: Independent Public Agency or Authority of Transit Service | G44: Full Reporter | H44: 1664496 | I44: 679 | J44: LR | K44: DO | L44: 59 | N44: 67.1 | P44: 0 | R44: 2.9 | T44: 7.9 | V44: 1.4 | X44: 0.3 | Z44: 79.6 | AC44: 168 | AE44: 0 | AG44: 168 | AI44: No
A45: Capital Metropolitan Transportation Authority | B45: Austin | C45: TX | D45: 6048 | E45: 60048 | F45: Independent Public Agency or Authority of Transit Service | G45: Full Reporter | H45: 1362416 | I45: 674 | J45: YR | K45: PT | L45: 4 | N45: 63.6 | P45: 0 | R45: 1 | T45: 0 | V45: 0 | X45: 0 | Z45: 64.6 | AC45: 79 | AE45: 0 | AG45: 79 | AI45: No
A46: The Greater Cleveland Regional Transit Authority | B46: Cleveland | C46: OH | D46: 5015 | E46: 50015 | F46: Independent Public Agency or Authority of Transit Service | G46: Full Reporter | H46: 1780673 | I46: 547 | J46: HR | K46: DO | L46: 20 | N46: 37.5 | P46: 0 | R46: 1.9 | T46: 1.9 | V46: 0 | X46: 0.6 | Z46: 41.9 | AC46: 0 | AE46: 0 | AG46: 0 | AI46: No
A47: The Greater Cleveland Regional Transit Authority | B47: Cleveland | C47: OH | D47: 5015 | E47: 50015 | F47: Independent Public Agency or Authority of Transit Service | G47: Full Reporter | H47: 1780673 | I47: 547 | J47: LR | K47: DO | L47: 14 | N47: 27 | P47: 0 | R47: 0.9 | T47: 2 | V47: 3.1 | X47: 0 | Z47: 33 | AC47: 22 | AE47: 0 | AG47: 22 | AI47: No
A48: San Francisco Bay Area Rapid Transit District | B48: Oakland | C48: CA | D48: 9003 | E48: 90003 | F48: Independent Public Agency or Authority of Transit Service | G48: Full Reporter | H48: 3281212 | I48: 538 | J48: HR | K48: DO | L48: 534 | N48: 154.4 | P48: 0 | R48: 57.1 | T48: 0 | V48: 0 | X48: 56.1 | Z48: 267.6 | AC48: 0 | AE48: 0 | AG48: 0 | AI48: No
A49: San Francisco Bay Area Rapid Transit District | B49: Oakland | C49: CA | D49: 9003 | E49: 90003 | F49: Independent Public Agency or Authority of Transit Service | G49: Full Reporter | H49: 3281212 | I49: 538 | J49: MG | K49: PT | L49: 4 | N49: 0.3 | P49: 0 | R49: 2.5 | T49: 0 | V49: 0.3 | X49: 0 | Z49: 3.1 | AC49: 0 | AE49: 0 | AG49: 0 | AI49: No
A50: Bi-State Development Agency of the Missouri-Illinois Metropolitan District, d.b.a.(St. Louis) Metro | B50: St. Louis | C50: MO | D50: 7006 | E50: 70006 | F50: Independent Public Agency or Authority of Transit Service | G50: Full Reporter | H50: 2150706 | I50: 473 | J50: LR | K50: DO | L50: 58 | N50: 54.9 | P50: 0 | R50: 8.6 | T50: 12.4 | V50: 14.5 | X50: 5.9 | Z50: 96.3 | AC50: 25 | AE50: 0 | AG50: 25 | AI50: No
A51: Charlotte Area Transit System | B51: Charlotte | C51: NC | D51: 4008 | E51: 40008 | F51: City, County or Local Government Unit or Department of Transportation | G51: Full Reporter | H51: 1249442 | I51: 431 | J51: LR | K51: DO | L51: 14 | N51: 6.6 | P51: 0 | R51: 0.9 | T51: 1.8 | V51: 0 | X51: 0 | Z51: 9.3 | AC51: 20 | AE51: 0 | AG51: 20 | AI51: No
A52: Transportation District Commission of Hampton Roads | B52: Hampton | C52: VA | D52: 3083 | E52: 30083 | F52: Independent Public Agency or Authority of Transit Service | G52: Full Reporter | H52: 1439666 | I52: 368 | J52: LR | K52: DO | L52: 6 | N52: 4.2 | P52: 1.9 | R52: 1.3 | T52: 0 | V52: 0 | X52: 0 | Z52: 7.4 | AC52: 14 | AE52: 8 | AG52: 22 | AI52: No
A53: Niagara Frontier Transportation Authority | B53: Buffalo | C53: NY | D53: 2004 | E53: 20004 | F53: Independent Public Agency or Authority of Transit Service | G53: Full Reporter | H53: 935906 | I53: 351 | J53: LR | K53: DO | L53: 23 | N53: 3.3 | P53: 0.4 | R53: 0 | T53: 0 | V53: 0 | X53: 10.4 | Z53: 14.1 | AC53: 0 | AE53: 8 | AG53: 8 | AI53: No
A54: City of Tucson | B54: Tucson | C54: AZ | D54: 9033 | E54: 90033 | F54: City, County or Local Government Unit or Department of Transportation | G54: Full Reporter | H54: 843168 | I54: 338 | J54: SR | K54: DO | L54: 6 | N54: 0.2 | P54: 3.7 | R54: 0 | T54: 0 | V54: 0 | X54: 0 | Z54: 3.9 | AC54: 2 | AE54: 40 | AG54: 42 | AI54: No
A55: Central Puget Sound Regional Transit Authority | B55: Seattle | C55: WA | D55: 40 | E55: 40 | F55: Independent Public Agency or Authority of Transit Service | G55: Full Reporter | H55: 3059393 | I55: 336 | J55: CR | K55: PT | L55: 62 | N55: 155.2 | P55: 0 | R55: 0.7 | T55: 0 | V55: 0.6 | X55: 2.4 | Z55: 158.9 | AC55: 66 | AE55: 0 | AG55: 66 | AI55: No
A56: Central Puget Sound Regional Transit Authority | B56: Seattle | C56: WA | D56: 40 | E56: 40 | F56: Independent Public Agency or Authority of Transit Service | G56: Full Reporter | H56: 3059393 | I56: 336 | J56: LR | K56: DO | L56: 34 | N56: 20.7 | P56: 0 | R56: 12.7 | T56: 0 | V56: 0 | X56: 5.1 | Z56: 38.5 | AC56: 37 | AE56: 0 | AG56: 37 | AI56: No
A57: Central Puget Sound Regional Transit Authority | B57: Seattle | C57: WA | D57: 40 | E57: 40 | F57: Independent Public Agency or Authority of Transit Service | G57: Full Reporter | H57: 3059393 | I57: 336 | J57: SR | K57: DO | L57: 2 | N57: 1.7 | P57: 1 | R57: 0 | T57: 0 | V57: 0 | X57: 0 | Z57: 2.7 | AC57: 10 | AE57: 4 | AG57: 14 | AI57: No
A58: Port Authority Trans-Hudson Corporation | B58: Jersey City | C58: NJ | D58: 2098 | E58: 20098 | F58: Independent Public Agency or Authority of Transit Service | G58: Full Reporter | H58: 18351295 | I58: 304 | J58: HR | K58: DO | L58: 299 | N58: 12.7 | P58: 0 | R58: 3.3 | T58: 5 | V58: 5.2 | X58: 16.9 | Z58: 43.1 | AC58: 2 | AE58: 0 | AG58: 2 | AI58: No
A59: Jacksonville Transportation Authority | B59: Jacksonville | C59: FL | D59: 4040 | E59: 40040 | F59: Independent Public Agency or Authority of Transit Service | G59: Full Reporter | H59: 1065219 | I59: 246 | J59: MG | K59: DO | L59: 5 | N59: 0 | P59: 0 | R59: 5.4 | T59: 0 | V59: 0 | X59: 0 | Z59: 5.4 | AC59: 0 | AE59: 0 | AG59: 0 | AI59: No
A60: North County Transit District | B60: Oceanside | C60: CA | D60: 9030 | E60: 90030 | F60: Independent Public Agency or Authority of Transit Service | G60: Full Reporter | H60: 2956746 | I60: 230 | J60: CR | K60: PT | L60: 24 | N60: 97.6 | P60: 0 | R60: 1.8 | T60: 0 | V60: 1.6 | X60: 0 | Z60: 101 | AC60: 31 | AE60: 0 | AG60: 31 | AI60: No
A61: North County Transit District | B61: Oceanside | C61: CA | D61: 9030 | E61: 90030 | F61: Independent Public Agency or Authority of Transit Service | G61: Full Reporter | H61: 2956746 | I61: 230 | J61: YR | K61: PT | L61: 8 | N61: 31.7 | P61: 0 | R61: 0.8 | T61: 0 | V61: 0 | X61: 0 | Z61: 32.5 | AC61: 47 | AE61: 0 | AG61: 47 | AI61: No
A62: Sacramento Regional Transit District | B62: Sacramento | C62: CA | D62: 9019 | E62: 90019 | F62: Independent Public Agency or Authority of Transit Service | G62: Full Reporter | H62: 1723634 | I62: 222 | J62: LR | K62: DO | L62: 61 | N62: 62.6 | P62: 7.9 | R62: 2.6 | T62: 2 | V62: 0 | X62: 0 | Z62: 75.1 | AC62: 59 | AE62: 74 | AG62: 133 | AI62: No
A63: Hillsborough Area Regional Transit Authority | B63: Tampa | C63: FL | D63: 4041 | E63: 40041 | F63: Independent Public Agency or Authority of Transit Service | G63: Full Reporter | H63: 2441770 | I63: 201 | J63: SR | K63: DO | L63: 3 | N63: 3.5 | P63: 0 | R63: 0 | T63: 0 | V63: 0 | X63: 0 | Z63: 3.5 | AC63: 23 | AE63: 0 | AG63: 23 | AI63: No
A64: Southern California Regional Rail Authority dba: Metrolink | B64: Los Angeles | C64: CA | D64: 9151 | E64: 90151 | F64: Independent Public Agency or Authority of Transit Service | G64: Full Reporter | H64: 12150996 | I64: 192 | J64: CR | K64: PT | L64: 192 | N64: 653.1 | P64: 0 | R64: 2.4 | T64: 0.3 | V64: 0 | X64: 0 | Z64: 655.8 | AC64: 423 | AE64: 0 | AG64: 423 | AI64: No
A65: New Orleans Regional Transit Authority | B65: New Orleans | C65: LA | D65: 6032 | E65: 60032 | F65: Independent Public Agency or Authority of Transit Service | G65: Full Reporter | H65: 899703 | I65: 178 | J65: SR | K65: PT | L65: 27 | N65: 18.6 | P65: 0 | R65: 0 | T65: 0 | V65: 0 | X65: 0 | Z65: 18.6 | AC65: 247 | AE65: 0 | AG65: 247 | AI65: No
A66: Memphis Area Transit Authority | B66: Memphis | C66: TN | D66: 4003 | E66: 40003 | F66: City, County or Local Government Unit or Department of Transportation | G66: Full Reporter | H66: 1060061 | I66: 150 | J66: SR | K66: DO | L66: 0 | N66: 3.2 | P66: 7 | R66: 0.1 | T66: 0.2 | V66: 0 | X66: 0 | Z66: 10.5 | AC66: 0 | AE66: 0 | AG66: 0 | AI66: No
A67: Peninsula Corridor Joint Powers Board dba: Caltrain | B67: San Carlos | C67: CA | D67: 9134 | E67: 90134 | F67: Independent Public Agency or Authority of Transit Service | G67: Full Reporter | H67: 3281212 | I67: 134 | J67: CR | K67: PT | L67: 105 | N67: 127.7 | P67: 0 | R67: 4 | T67: 4 | V67: 1 | X67: 0 | Z67: 136.7 | AC67: 54 | AE67: 0 | AG67: 54 | AI67: =IF(OR(O67="Q",Q67="Q",S67="Q",U67="Q", W67="Q", Y67="Q",AA67="Q",AD67="Q", AF67="Q",AH67="Q"),"Yes","No") -> No
A68: Denton County Transportation Authority | B68: Lewisville | C68: TX | D68: 6101 | E68: 60101 | F68: Independent Public Agency or Authority of Transit Service | G68: Full Reporter | H68: 366174 | I68: 94 | J68: YR | K68: PT | L68: 8 | N68: 27.9 | P68: 0 | R68: 0.8 | T68: 0 | V68: 0 | X68: 0 | Z68: 28.7 | AC68: 43 | AE68: 0 | AG68: 43 | AI68: No
A69: Virginia Railway Express | B69: Alexandria | C69: VA | D69: 3073 | E69: 30073 | F69: Independent Public Agency or Authority of Transit Service | G69: Full Reporter | H69: 4586770 | I69: 90 | J69: CR | K69: PT | L69: 90 | N69: 171.4 | P69: 0 | R69: 2.2 | T69: 0 | V69: 0 | X69: 0.9 | Z69: 174.5 | AC69: 20 | AE69: 0 | AG69: 20 | AI69: No
A70: Rio Metro Regional Transit District | B70: Albuquerque | C70: NM | D70: 6111 | E70: 60111 | F70: Independent Public Agency or Authority of Transit Service | G70: Full Reporter | H70: 741318 | I70: 88 | J70: CR | K70: PT | L70: 25 | N70: 103 | P70: 0 | R70: 0.8 | T70: 7.1 | V70: 0.2 | X70: 0 | Z70: 111.1 | AC70: 86 | AE70: 0 | AG70: 86 | AI70: No
A71: Port Authority Transit Corporation | B71: Lindenwold | C71: NJ | D71: 2075 | E71: 20075 | F71: Independent Public Agency or Authority of Transit Service | G71: Full Reporter | H71: 5441567 | I71: 78 | J71: HR | K71: DO | L71: 78 | N71: 12.6 | P71: 0 | R71: 4.1 | T71: 13.6 | V71: 2.3 | X71: 5.8 | Z71: 38.4 | AC71: 0 | AE71: 0 | AG71: 0 | AI71: No
A72: Regional Transportation Authority | B72: Nashville | C72: TN | D72: 4159 | E72: 40159 | F72: Independent Public Agency or Authority of Transit Service | G72: Full Reporter | H72: 969587 | I72: 74 | J72: CR | K72: PT | L72: 7 | N72: 33 | P72: 0 | R72: 0 | T72: 0 | V72: 0 | X72: 0 | Z72: 33 | AC72: 35 | AE72: 0 | AG72: 35 | AI72: No
A73: Central Arkansas Transit Authority | B73: North Little Rock | C73: AR | D73: 6033 | E73: 60033 | F73: Independent Public Agency or Authority of Transit Service | G73: Full Reporter | H73: 431388 | I73: 72 | J73: SR | K73: DO | L73: 3 | N73: 0 | P73: 3 | R73: 0.5 | T73: 0 | V73: 0 | X73: 0 | Z73: 3.5 | AC73: 0 | AE73: 24 | AG73: 24 | AI73: No
A74: Chattanooga Area Regional Transportation Authority | B74: Chattanooga | C74: TN | D74: 4001 | E74: 40001 | F74: City, County or Local Government Unit or Department of Transportation | G74: Full Reporter | H74: 381112 | I74: 71 | J74: IP | K74: DO | L74: 2 | N74: 1 | P74: 0 | R74: 0 | T74: 0 | V74: 0 | X74: 0 | Z74: 1 | AC74: 0 | AE74: 0 | AG74: 0 | AI74: No
A75: Northern Indiana Commuter Transportation District | B75: Chesterton | C75: IN | D75: 5104 | E75: 50104 | F75: Independent Public Agency or Authority of Transit Service | G75: Full Reporter | H75: 8608208 | I75: 70 | J75: CR | K75: DO | L75: 70 | N75: 95.6 | P75: 2 | R75: 0 | T75: 32.8 | V75: 0 | X75: 0 | Z75: 130.4 | AC75: 85 | AE75: 32 | AG75: 117 | AI75: No
A76: South Florida Regional Transportation Authority | B76: Pompano Beach | C76: FL | D76: 4077 | E76: 40077 | F76: Independent Public Agency or Authority of Transit Service | G76: Full Reporter | H76: 5502379 | I76: 65 | J76: CR | K76: PT | L76: 42 | N76: 152.2 | P76: 0 | R76: 0 | T76: 0 | V76: 0 | X76: 0 | Z76: 152.2 | AC76: 73 | AE76: 0 | AG76: 73 | AI76: No
A77: West Virginia University - Morgantown Personal Rapid Transit | B77: Morgantown | C77: WV | D77: 3107 | E77: 30107 | F77: University | G77: Full Reporter | H77: 70350 | I77: 64 | J77: MG | K77: DO | L77: 64 | N77: 4 | P77: 0 | R77: 4.7 | T77: 0 | V77: 0 | X77: 0 | Z77: 8.7 | AC77: 0 | AE77: 0 | AG77: 0 | AI77: No
A78: Cambria County Transit Authority | B78: Johnstown | C78: PA | D78: 3012 | E78: 30012 | F78: Independent Public Agency or Authority of Transit Service | G78: Full Reporter | H78: 69014 | I78: 54 | J78: IP | K78: DO | L78: 2 | N78: 0.3 | P78: 0 | R78: 0 | T78: 0 | V78: 0 | X78: 0 | Z78: 0.3 | AC78: 0 | AE78: 0 | AG78: 0 | AI78: No
A79: Alternativa de Transporte Integrado -ATI | B79: San Juan | C79: PR | D79: 4094 | E79: 40094 | F79: State Government Unit or Department of Transportation | G79: Full Reporter | H79: 2148346 | I79: 53 | J79: HR | K79: PT | L79: 32 | N79: 10.2 | P79: 0 | R79: 12.2 | T79: 0 | V79: 1.4 | X79: 1.7 | Z79: 25.5 | AC79: 0 | AE79: 0 | AG79: 0 | AI79: No
A80: Las Vegas Monorail Company | B80: Las Vegas | C80: NV | D80: 9242 | E80: 90242 | F80: Private-Non-Profit Corporation | G80: Full Reporter | H80: 1886011 | I80: 48 | J80: MG | K80: DO | L80: 24 | N80: 0 | P80: 0 | R80: 7.7 | T80: 0 | V80: 0 | X80: 0 | Z80: 7.7 | AC80: 0 | AE80: 0 | AG80: 0 | AI80: No
A81: Las Vegas Monorail Company | B81: Las Vegas | C81: NV | D81: 9242 | E81: 90242 | F81: Private-Non-Profit Corporation | G81: Full Reporter | H81: 1886011 | I81: 48 | J81: MG | K81: PT | L81: 24 | N81: 0 | P81: 0 | R81: 7.7 | T81: 0 | V81: 0 | X81: 0 | Z81: 7.7 | AC81: 0 | AE81: 0 | AG81: 0 | AI81: No
A82: Kenosha Transit | B82: Kenosha | C82: WI | D82: 5003 | E82: 50003 | F82: City, County or Local Government Unit or Department of Transportation | G82: Full Reporter | H82: 124064 | I82: 47 | J82: SR | K82: DO | L82: 1 | N82: 2 | P82: 0 | R82: 0 | T82: 0 | V82: 0 | X82: 0 | Z82: 2 | AC82: 14 | AE82: 0 | AG82: 14 | AI82: No
A83: Staten Island Rapid Transit Operating Authority, dba: MTA Staten Island Railway | B83: Staten Island | C83: NY | D83: 2099 | E83: 20099 | F83: Independent Public Agency or Authority of Transit Service | G83: Full Reporter | H83: 18351295 | I83: 44 | J83: HR | K83: DO | L83: 44 | N83: 3 | P83: 0 | R83: 2 | T83: 12 | V83: 14.5 | X83: 0.2 | Z83: 31.7 | AC83: 0 | AE83: 0 | AG83: 0 | AI83: No
A84: Connecticut Department of Transportation | B84: Newington | C84: CT | D84: 1102 | E84: 10102 | F84: State Government Unit or Department of Transportation | G84: Full Reporter | H84: 924859 | I84: 43 | J84: CR | K84: PT | L84: 28 | N84: 50.7 | P84: 0 | R84: 3.2 | T84: 43.1 | V84: 11.1 | X84: 1 | Z84: 109.1 | AC84: 0 | AE84: 0 | AG84: 0 | AI84: No
A85: Pennsylvania Department of Transportation | B85: Harrisburg | C85: PA | D85: 3057 | E85: 30057 | F85: State Government Unit or Department of Transportation | G85: Full Reporter | H85: 5441567 | I85: 40 | J85: CR | K85: PT | L85: 40 | N85: 137.8 | P85: 0 | R85: 6.6 | T85: 0 | V85: 0 | X85: 0 | Z85: 144.4 | AC85: 1 | AE85: 0 | AG85: 1 | AI85: No
A86: Alaska Railroad Corporation | B86: Anchorage | C86: AK | D86: 41 | E86: 41 | F86: State Government Unit or Department of Transportation | G86: Full Reporter | H86: 251243 | I86: 39 | J86: AR | K86: DO | L86: 39 | N86: 676.1 | P86: 2.6 | R86: 0 | T86: 0 | V86: 0 | X86: 4.1 | Z86: 682.8 | AC86: 132 | AE86: 1 | AG86: 133 | AI86: No
A87: Central Florida Commuter Rail | B87: Sanford | C87: FL | D87: 4232 | E87: 40232 | F87: State Government Unit or Department of Transportation | G87: Full Reporter | H87: 1510516 | I87: 30 | J87: CR | K87: PT | L87: 30 | N87: 33.5 | P87: 0 | R87: 0.2 | T87: 0 | V87: 0 | X87: 0 | Z87: 33.7 | AC87: 91 | AE87: 0 | AG87: 91 | AI87: No
A88: Valley Metro Rail, Inc. | B88: Phoenix | C88: AZ | D88: 9209 | E88: 90209 | F88: Other Publicly-Owned or Privately Chartered Corporation | G88: Full Reporter | H88: 3629114 | I88: 28 | J88: LR | K88: PT | L88: 28 | N88: 42.2 | P88: 0.1 | R88: 0.7 | T88: 0 | V88: 0 | X88: 0 | Z88: 43 | AC88: 139 | AE88: 1 | AG88: 140 | AI88: No
A89: Altamont Corridor Express | B89: Stockton | C89: CA | D89: 9182 | E89: 90182 | F89: Independent Public Agency or Authority of Transit Service | G89: Full Reporter | H89: 370583 | I89: 26 | J89: CR | K89: PT | L89: 26 | N89: 77.5 | P89: 0 | R89: 0.5 | T89: 9.5 | V89: 2 | X89: 0.5 | Z89: 90 | AC89: 127 | AE89: 0 | AG89: 127 | AI89: No
A90: Northern New England Passenger Rail Authority | B90: Portland | C90: ME | D90: 1115 | E90: 10115 | F90: Independent Public Agency or Authority of Transit Service | G90: Full Reporter | H90: 203914 | I90: 20 | J90: CR | K90: PT | L90: 20 | N90: 142.6 | P90: 0 | R90: 0 | T90: 0 | V90: 0 | X90: 0 | Z90: 142.6 | AC90: 103 | AE90: 0 | AG90: 103 | AI90: No
A91: City of Portland | B91: Portland | C91: OR | D91: 58 | E91: 58 | F91: City, County or Local Government Unit or Department of Transportation | G91: Full Reporter | H91: 1849898 | I91: 14 | J91: SR | K91: PT | L91: 12 | N91: 0 | P91: 14.8 | R91: 0 | T91: 0 | V91: 0 | X91: 0 | Z91: 14.8 | AC91: 0 | AE91: 191 | AG91: 191 | AI91: No
A92: Detroit Transportation Corporation | B92: Detroit | C92: MI | D92: 5141 | E92: 50141 | F92: Independent Public Agency or Authority of Transit Service | G92: Full Reporter | H92: 3734090 | I92: 10 | J92: MG | K92: DO | L92: 10 | N92: 0 | P92: 0 | R92: 2.9 | T92: 0 | V92: 0 | X92: 0 | Z92: 2.9 | AC92: 0 | AE92: 0 | AG92: 0 | AI92: No
A93: City of Seattle - Seattle Center Monorail Transit | B93: Seattle | C93: WA | D93: 23 | E93: 23 | F93: City, County or Local Government Unit or Department of Transportation | G93: Full Reporter | H93: 3059393 | I93: 8 | J93: MG | K93: PT | L93: 8 | N93: 0 | P93: 0 | R93: 1.8 | T93: 0 | V93: 0 | X93: 0 | Z93: 1.8 | AC93: 0 | AE93: 0 | AG93: 0 | AI93: No
A94: City of Atlanta - Department of Public Works - Transit Division | B94: Atlanta | C94: GA | D94: 4230 | E94: 40230 | F94: City, County or Local Government Unit or Department of Transportation | G94: Full Reporter | H94: 4515419 | I94: 3 | J94: SR | K94: DO | L94: 3 | N94: 0.1 | P94: 2.6 | R94: 0 | T94: 0 | V94: 0 | X94: 0 | Z94: 2.7 | AC94: 0 | AE94: 33 | AG94: 33 | AI94: No
A95: McKinney Avenue Transit Authority | B95: Dallas | C95: TX | D95: 6133 | E95: 60133 | F95: Private-Non-Profit Corporation | G95: Full Reporter | H95: 5121892 | I95: 3 | J95: SR | K95: DO | L95: 3 | N95: 0 | P95: 4.5 | R95: 0 | T95: 0 | V95: 0 | X95: 0 | Z95: 4.5 | AC95: 0 | AE95: 55 | AG95: 55 | AI95: No

Sheet Roadway by Mode
A1: Name | B1: City | C1: State | D1: Legacy NTD ID | E1: NTD ID | F1: Organization Type | G1: Reporter Type | H1: Primary UZA Population | I1: Agency VOMS | J1: Mode | K1: TOS | L1: Mode VOMS | M1: Miles of Roadway: | N1: Permanent Busway | O1: Permanent Busway Questionable | P1: Permanent HOV | Q1: Permanent HOV Questionable | R1: Part-Time Busway or HOV | S1: Part-Time Busway or HOV Questionable | T1: Total Miles | U1: Total Miles Questionable | V1: Any data questionable? | Z1: =IF(Z4=1,1,0) -> 1
A2: MTA New York City Transit | B2: New York | C2: NY | D2: 2008 | E2: 20008 | F2: Subsidiary Unit of a Transit Agency, Reporting Separately | G2: Full Reporter | H2: 18351295 | I2: 11000 | J2: MB | K2: DO | L2: 3314 | N2: 24.3 | P2: 0 | R2: 62.4 | T2: 86.7 | V2: =IF(OR(O2="Q",Q2="Q",S2="Q",U2="Q"),"Yes","No") -> No | Z2: Hide questionable data tags
A3: MTA New York City Transit | B3: New York | C3: NY | D3: 2008 | E3: 20008 | F3: Subsidiary Unit of a Transit Agency, Reporting Separately | G3: Full Reporter | H3: 18351295 | I3: 11000 | J3: CB | K3: DO | L3: 456 | N3: 5.9 | P3: 9.6 | R3: 25.9 | T3: 41.4 | V3: No | Z3: Show questionable data tags
A4: MTA New York City Transit | B4: New York | C4: NY | D4: 2008 | E4: 20008 | F4: Subsidiary Unit of a Transit Agency, Reporting Separately | G4: Full Reporter | H4: 18351295 | I4: 11000 | J4: RB | K4: DO | L4: 108 | N4: 52.6 | P4: 0 | R4: 0 | T4: 52.6 | V4: No | Z4: 1
A5: New Jersey Transit Corporation | B5: Newark | C5: NJ | D5: 2080 | E5: 20080 | F5: Other Publicly-Owned or Privately Chartered Corporation | G5: Full Reporter | H5: 18351295 | I5: 4020 | J5: MB | K5: DO | L5: 1870 | N5: 0.5 | P5: 0 | R5: 35.8 | T5: 36.3 | V5: No
A6: New Jersey Transit Corporation | B6: Newark | C6: NJ | D6: 2080 | E6: 20080 | F6: Other Publicly-Owned or Privately Chartered Corporation | G6: Full Reporter | H6: 18351295 | I6: 4020 | J6: MB | K6: PT | L6: 181 | T6: 0 | V6: No
A7: Los Angeles County Metropolitan Transportation Authority dba: Metro | B7: Los Angeles | C7: CA | D7: 9154 | E7: 90154 | F7: Independent Public Agency or Authority of Transit Service | G7: Full Reporter | H7: 12150996 | I7: 3516 | J7: MB | K7: DO | L7: 1766 | N7: 2.5 | P7: 34.1 | R7: 0 | T7: 36.6 | V7: No
A8: Los Angeles County Metropolitan Transportation Authority dba: Metro | B8: Los Angeles | C8: CA | D8: 9154 | E8: 90154 | F8: Independent Public Agency or Authority of Transit Service | G8: Full Reporter | H8: 12150996 | I8: 3516 | J8: MB | K8: PT | L8: 125 | N8: 2.5 | P8: 38.4 | R8: 0 | T8: 40.9 | V8: No
A9: Los Angeles County Metropolitan Transportation Authority dba: Metro | B9: Los Angeles | C9: CA | D9: 9154 | E9: 90154 | F9: Independent Public Agency or Authority of Transit Service | G9: Full Reporter | H9: 12150996 | I9: 3516 | J9: RB | K9: DO | L9: 33 | N9: 35.4 | P9: 0 | R9: 0 | T9: 35.4 | V9: No
A10: Washington Metropolitan Area Transit Authority | B10: Washington | C10: DC | D10: 3030 | E10: 30030 | F10: Independent Public Agency or Authority of Transit Service | G10: Full Reporter | H10: 4586770 | I10: 3200 | J10: MB | K10: DO | L10: 1300 | N10: 1.3 | P10: 10.4 | R10: 61.8 | T10: 73.5 | V10: No
A11: Washington Metropolitan Area Transit Authority | B11: Washington | C11: DC | D11: 3030 | E11: 30030 | F11: Independent Public Agency or Authority of Transit Service | G11: Full Reporter | H11: 4586770 | I11: 3200 | J11: MB | K11: PT | L11: 44 | T11: 0 | V11: No
A12: King County Department of Transportation - Metro Transit Division | B12: Seattle | C12: WA | D12: 1 | E12: 1 | F12: City, County or Local Government Unit or Department of Transportation | G12: Full Reporter | H12: 3059393 | I12: 2875 | J12: MB | K12: DO | L12: 871 | N12: 8.7 | P12: 149.4 | R12: 97.4 | T12: 255.5 | V12: No
A13: King County Department of Transportation - Metro Transit Division | B13: Seattle | C13: WA | D13: 1 | E13: 1 | F13: City, County or Local Government Unit or Department of Transportation | G13: Full Reporter | H13: 3059393 | I13: 2875 | J13: TB | K13: DO | L13: 129 | N13: 116.9 | P13: 0 | R13: 0 | T13: 116.9 | V13: No
A14: King County Department of Transportation - Metro Transit Division | B14: Seattle | C14: WA | D14: 1 | E14: 1 | F14: City, County or Local Government Unit or Department of Transportation | G14: Full Reporter | H14: 3059393 | I14: 2875 | J14: MB | K14: PT | L14: 30 | T14: 0 | V14: No
A15: Chicago Transit Authority | B15: Chicago | C15: IL | D15: 5066 | E15: 50066 | F15: Independent Public Agency or Authority of Transit Service | G15: Full Reporter | H15: 8608208 | I15: 2728 | J15: MB | K15: DO | L15: 1594 | N15: 3.8 | P15: 0 | R15: 0 | T15: 3.8 | V15: No
A16: Massachusetts Bay Transportation Authority | B16: Boston | C16: MA | D16: 1003 | E16: 10003 | F16: Independent Public Agency or Authority of Transit Service | G16: Full Reporter | H16: 4181019 | I16: 2344 | J16: MB | K16: DO | L16: 790 | N16: 0.9 | P16: 0 | R16: 1.6 | T16: 2.5 | V16: No
A17: Massachusetts Bay Transportation Authority | B17: Boston | C17: MA | D17: 1003 | E17: 10003 | F17: Independent Public Agency or Authority of Transit Service | G17: Full Reporter | H17: 4181019 | I17: 2344 | J17: RB | K17: DO | L17: 30 | N17: 9.9 | P17: 0 | R17: 0 | T17: 9.9 | V17: No
A18: Massachusetts Bay Transportation Authority | B18: Boston | C18: MA | D18: 1003 | E18: 10003 | F18: Independent Public Agency or Authority of Transit Service | G18: Full Reporter | H18: 4181019 | I18: 2344 | J18: TB | K18: DO | L18: 10 | N18: 0.6 | P18: 0 | R18: 0 | T18: 0.6 | V18: No
A19: Massachusetts Bay Transportation Authority | B19: Boston | C19: MA | D19: 1003 | E19: 10003 | F19: Independent Public Agency or Authority of Transit Service | G19: Full Reporter | H19: 4181019 | I19: 2344 | J19: MB | K19: PT | L19: 8 | T19: 0 | V19: No
A20: Southeastern Pennsylvania Transportation Authority | B20: Philadelphia | C20: PA | D20: 3019 | E20: 30019 | F20: Independent Public Agency or Authority of Transit Service | G20: Full Reporter | H20: 5441567 | I20: 2340 | J20: MB | K20: DO | L20: 1172 | N20: 2.4 | P20: 0 | R20: 0 | T20: 2.4 | V20: No
A21: Southeastern Pennsylvania Transportation Authority | B21: Philadelphia | C21: PA | D21: 3019 | E21: 30019 | F21: Independent Public Agency or Authority of Transit Service | G21: Full Reporter | H21: 5441567 | I21: 2340 | J21: TB | K21: DO | L21: 30 | N21: 30.6 | P21: 0 | R21: 0 | T21: 30.6 | V21: No
A22: Metropolitan Transit Authority of Harris County, Texas | B22: Houston | C22: TX | D22: 6008 | E22: 60008 | F22: Independent Public Agency or Authority of Transit Service | G22: Full Reporter | H22: 4944332 | I22: 2240 | J22: MB | K22: DO | L22: 610 | N22: 0 | P22: 4.6 | R22: 21.1 | T22: 25.7 | V22: No
A23: Metropolitan Transit Authority of Harris County, Texas | B23: Houston | C23: TX | D23: 6008 | E23: 60008 | F23: Independent Public Agency or Authority of Transit Service | G23: Full Reporter | H23: 4944332 | I23: 2240 | J23: CB | K23: DO | L23: 232 | N23: 0 | P23: 17.8 | R23: 16 | T23: 33.8 | V23: No
A24: Metropolitan Transit Authority of Harris County, Texas | B24: Houston | C24: TX | D24: 6008 | E24: 60008 | F24: Independent Public Agency or Authority of Transit Service | G24: Full Reporter | H24: 4944332 | I24: 2240 | J24: MB | K24: PT | L24: 143 | N24: 0 | P24: 4.6 | R24: 19.6 | T24: 24.2 | V24: No
A25: Metropolitan Transit Authority of Harris County, Texas | B25: Houston | C25: TX | D25: 6008 | E25: 60008 | F25: Independent Public Agency or Authority of Transit Service | G25: Full Reporter | H25: 4944332 | I25: 2240 | J25: CB | K25: PT | L25: 60 | N25: 0 | P25: 30 | R25: 4.3 | T25: 34.3 | V25: No
A26: Pace - Suburban Bus Division | B26: Arlington Heights | C26: IL | D26: 5113 | E26: 50113 | F26: Independent Public Agency or Authority of Transit Service | G26: Full Reporter | H26: 8608208 | I26: 1638 | J26: MB | K26: DO | L26: 520 | T26: 0 | V26: No
A27: Pace - Suburban Bus Division | B27: Arlington Heights | C27: IL | D27: 5113 | E27: 50113 | F27: Independent Public Agency or Authority of Transit Service | G27: Full Reporter | H27: 8608208 | I27: 1638 | J27: MB | K27: PT | L27: 93 | T27: 0 | V27: No
A28: Orange County Transportation Authority | B28: Orange | C28: CA | D28: 9036 | E28: 90036 | F28: Independent Public Agency or Authority of Transit Service | G28: Full Reporter | H28: 12150996 | I28: 1528 | J28: MB | K28: DO | L28: 293 | N28: 0 | P28: 0 | R28: 21.9 | T28: 21.9 | V28: No
A29: Orange County Transportation Authority | B29: Orange | C29: CA | D29: 9036 | E29: 90036 | F29: Independent Public Agency or Authority of Transit Service | G29: Full Reporter | H29: 12150996 | I29: 1528 | J29: MB | K29: PT | L29: 158 | T29: 0 | V29: No
A30: Orange County Transportation Authority | B30: Orange | C30: CA | D30: 9036 | E30: 90036 | F30: Independent Public Agency or Authority of Transit Service | G30: Full Reporter | H30: 12150996 | I30: 1528 | J30: CB | K30: PT | L30: 23 | N30: 0 | P30: 0 | R30: 124.8 | T30: 124.8 | V30: No
A31: Orange County Transportation Authority | B31: Orange | C31: CA | D31: 9036 | E31: 90036 | F31: Independent Public Agency or Authority of Transit Service | G31: Full Reporter | H31: 12150996 | I31: 1528 | J31: CB | K31: DO | L31: 6 | N31: 0 | P31: 0 | R31: 83.9 | T31: 83.9 | V31: No
A32: San Francisco Municipal Railway | B32: San Francisco | C32: CA | D32: 9015 | E32: 90015 | F32: City, County or Local Government Unit or Department of Transportation | G32: Full Reporter | H32: 3281212 | I32: 1524 | J32: MB | K32: DO | L32: 430 | N32: 0.1 | P32: 12.6 | R32: 6.7 | T32: 19.4 | V32: No
A33: San Francisco Municipal Railway | B33: San Francisco | C33: CA | D33: 9015 | E33: 90015 | F33: City, County or Local Government Unit or Department of Transportation | G33: Full Reporter | H33: 3281212 | I33: 1524 | J33: TB | K33: DO | L33: 196 | N33: 163.3 | P33: 0 | R33: 0 | T33: 163.3 | V33: No
A34: Maryland Transit Administration | B34: Baltimore | C34: MD | D34: 3034 | E34: 30034 | F34: State Government Unit or Department of Transportation | G34: Full Reporter | H34: 2203663 | I34: 1491 | J34: MB | K34: DO | L34: 620 | T34: 0 | V34: No
A35: Maryland Transit Administration | B35: Baltimore | C35: MD | D35: 3034 | E35: 30034 | F35: State Government Unit or Department of Transportation | G35: Full Reporter | H35: 2203663 | I35: 1491 | J35: CB | K35: PT | L35: 192 | N35: 14.8 | P35: 0 | R35: 17 | T35: 31.8 | V35: No
A36: Denver Regional Transportation District | B36: Denver | C36: CO | D36: 8006 | E36: 80006 | F36: Independent Public Agency or Authority of Transit Service | G36: Full Reporter | H36: 2374203 | I36: 1395 | J36: MB | K36: DO | L36: 482 | N36: 1.9 | P36: 0 | R36: 25.3 | T36: 27.2 | V36: No
A37: Denver Regional Transportation District | B37: Denver | C37: CO | D37: 8006 | E37: 80006 | F37: Independent Public Agency or Authority of Transit Service | G37: Full Reporter | H37: 2374203 | I37: 1395 | J37: MB | K37: PT | L37: 372 | N37: 0 | P37: 0 | R37: 25.3 | T37: 25.3 | V37: No
A38: Metro-North Commuter Railroad Company, dba: MTA Metro-North Railroad | B38: New York | C38: NY | D38: 2078 | E38: 20078 | F38: Subsidiary Unit of a Transit Agency, Reporting Separately | G38: Full Reporter | H38: 18351295 | I38: 1199 | J38: MB | K38: PT | L38: 9 | T38: 0 | V38: No
A39: Miami-Dade Transit | B39: Miami | C39: FL | D39: 4034 | E39: 40034 | F39: City, County or Local Government Unit or Department of Transportation | G39: Full Reporter | H39: 5502379 | I39: 1129 | J39: MB | K39: DO | L39: 672 | N39: 39.8 | P39: 0 | R39: 52.4 | T39: 92.2 | V39: No
A40: Miami-Dade Transit | B40: Miami | C40: FL | D40: 4034 | E40: 40034 | F40: City, County or Local Government Unit or Department of Transportation | G40: Full Reporter | H40: 5502379 | I40: 1129 | J40: CB | K40: PT | L40: 7 | T40: 0 | V40: No
A41: Utah Transit Authority | B41: Salt Lake City | C41: UT | D41: 8001 | E41: 80001 | F41: Independent Public Agency or Authority of Transit Service | G41: Full Reporter | H41: 1021243 | I41: 1104 | J41: MB | K41: DO | L41: 401 | N41: 2.1 | P41: 12.7 | R41: 0 | T41: 14.8 | V41: No
A42: Utah Transit Authority | B42: Salt Lake City | C42: UT | D42: 8001 | E42: 80001 | F42: Independent Public Agency or Authority of Transit Service | G42: Full Reporter | H42: 1021243 | I42: 1104 | J42: CB | K42: DO | L42: 42 | T42: 0 | V42: No
A43: Utah Transit Authority | B43: Salt Lake City | C43: UT | D43: 8001 | E43: 80001 | F43: Independent Public Agency or Authority of Transit Service | G43: Full Reporter | H43: 1021243 | I43: 1104 | J43: MB | K43: PT | L43: 5 | T43: 0 | V43: No
A44: MTA Bus Company | B44: New York | C44: NY | D44: 2188 | E44: 20188 | F44: Subsidiary Unit of a Transit Agency, Reporting Separately | G44: Full Reporter | H44: 18351295 | I44: 1091 | J44: MB | K44: DO | L44: 1091 | N44: 0.3 | P44: 0 | R44: 14.6 | T44: 14.9 | V44: No
A45: Dallas Area Rapid Transit | B45: Dallas | C45: TX | D45: 6056 | E45: 60056 | F45: Independent Public Agency or Authority of Transit Service | G45: Full Reporter | H45: 5121892 | I45: 1042 | J45: MB | K45: DO | L45: 535 | N45: 0 | P45: 75.3 | R45: 46.9 | T45: 122.2 | V45: No
A46: Tri-County Metropolitan Transportation District of Oregon | B46: Portland | C46: OR | D46: 8 | E46: 8 | F46: Independent Public Agency or Authority of Transit Service | G46: Full Reporter | H46: 1849898 | I46: 918 | J46: MB | K46: DO | L46: 534 | N46: 3.3 | P46: 0 | R46: 0.6 | T46: 3.9 | V46: No
A47: Port Authority of Allegheny County | B47: Pittsburgh | C47: PA | D47: 3022 | E47: 30022 | F47: Independent Public Agency or Authority of Transit Service | G47: Full Reporter | H47: 1733853 | I47: 912 | J47: MB | K47: DO | L47: 575 | N47: 43.1 | P47: 13.4 | R47: 0 | T47: 56.5 | V47: No
A48: Metro Transit | B48: Minneapolis | C48: MN | D48: 5027 | E48: 50027 | F48: Subsidiary Unit of a Transit Agency, Reporting Separately | G48: Full Reporter | H48: 2650890 | I48: 885 | J48: MB | K48: DO | L48: 793 | N48: 10.1 | P48: 0 | R48: 0 | T48: 10.1 | V48: No
A49: Metropolitan Atlanta Rapid Transit Authority | B49: Atlanta | C49: GA | D49: 4022 | E49: 40022 | F49: Independent Public Agency or Authority of Transit Service | G49: Full Reporter | H49: 4515419 | I49: 838 | J49: MB | K49: DO | L49: 451 | N49: 0.2 | P49: 0 | R49: 13.5 | T49: 13.7 | V49: No
A50: City and County of Honolulu Department of Transportation Services | B50: Honolulu | C50: HI | D50: 9002 | E50: 90002 | F50: City, County or Local Government Unit or Department of Transportation | G50: Full Reporter | H50: 802459 | I50: 799 | J50: MB | K50: PT | L50: 442 | N50: 1.2 | P50: 0 | R50: 34.7 | T50: 35.9 | V50: No
A51: VIA Metropolitan Transit | B51: San Antonio | C51: TX | D51: 6011 | E51: 60011 | F51: Independent Public Agency or Authority of Transit Service | G51: Full Reporter | H51: 1758210 | I51: 786 | J51: MB | K51: DO | L51: 372 | T51: 0 | V51: No
A52: San Diego Metropolitan Transit System | B52: San Diego | C52: CA | D52: 9026 | E52: 90026 | F52: Independent Public Agency or Authority of Transit Service | G52: Full Reporter | H52: 2956746 | I52: 732 | J52: MB | K52: PT | L52: 255 | N52: 0.8 | P52: 0 | R52: 0 | T52: 0.8 | V52: No
A53: San Diego Metropolitan Transit System | B53: San Diego | C53: CA | D53: 9026 | E53: 90026 | F53: Independent Public Agency or Authority of Transit Service | G53: Full Reporter | H53: 2956746 | I53: 732 | J53: MB | K53: DO | L53: 215 | N53: 1.8 | P53: 15.4 | R53: 0 | T53: 17.2 | V53: No
A54: San Diego Metropolitan Transit System | B54: San Diego | C54: CA | D54: 9026 | E54: 90026 | F54: Independent Public Agency or Authority of Transit Service | G54: Full Reporter | H54: 2956746 | I54: 732 | J54: CB | K54: PT | L54: 18 | N54: 0.5 | P54: 15.4 | R54: 0 | T54: 15.9 | V54: No
A55: Santa Clara Valley Transportation Authority | B55: San Jose | C55: CA | D55: 9013 | E55: 90013 | F55: Independent Public Agency or Authority of Transit Service | G55: Full Reporter | H55: 1664496 | I55: 679 | J55: MB | K55: DO | L55: 384 | N55: 1.1 | P55: 214.7 | R55: 0 | T55: 215.8 | V55: No
A56: Santa Clara Valley Transportation Authority | B56: San Jose | C56: CA | D56: 9013 | E56: 90013 | F56: Independent Public Agency or Authority of Transit Service | G56: Full Reporter | H56: 1664496 | I56: 679 | J56: MB | K56: PT | L56: 11 | N56: 0 | P56: 33.1 | R56: 0 | T56: 33.1 | V56: No
A57: Capital Metropolitan Transportation Authority | B57: Austin | C57: TX | D57: 6048 | E57: 60048 | F57: Independent Public Agency or Authority of Transit Service | G57: Full Reporter | H57: 1362416 | I57: 674 | J57: MB | K57: PT | L57: 301 | T57: 0 | V57: No
A58: Capital Metropolitan Transportation Authority | B58: Austin | C58: TX | D58: 6048 | E58: 60048 | F58: Independent Public Agency or Authority of Transit Service | G58: Full Reporter | H58: 1362416 | I58: 674 | J58: CB | K58: PT | L58: 35 | T58: 0 | V58: No
A59: Alameda-Contra Costa Transit District | B59: Oakland | C59: CA | D59: 9014 | E59: 90014 | F59: Independent Public Agency or Authority of Transit Service | G59: Full Reporter | H59: 3281212 | I59: 667 | J59: MB | K59: DO | L59: 362 | N59: 0 | P59: 0.3 | R59: 0 | T59: 0.3 | V59: No
A60: Alameda-Contra Costa Transit District | B60: Oakland | C60: CA | D60: 9014 | E60: 90014 | F60: Independent Public Agency or Authority of Transit Service | G60: Full Reporter | H60: 3281212 | I60: 667 | J60: CB | K60: DO | L60: 104 | N60: 0 | P60: 53.9 | R60: 0 | T60: 53.9 | V60: No
A61: Alameda-Contra Costa Transit District | B61: Oakland | C61: CA | D61: 9014 | E61: 90014 | F61: Independent Public Agency or Authority of Transit Service | G61: Full Reporter | H61: 3281212 | I61: 667 | J61: MB | K61: PT | L61: 14 | T61: 0 | V61: No
A62: Regional Transportation Commission of Southern Nevada | B62: Las Vegas | C62: NV | D62: 9045 | E62: 90045 | F62: Independent Public Agency or Authority of Transit Service | G62: Full Reporter | H62: 1886011 | I62: 660 | J62: MB | K62: PT | L62: 300 | N62: 23.2 | P62: 0 | R62: 9.2 | T62: 32.4 | V62: No
A63: Regional Transportation Commission of Southern Nevada | B63: Las Vegas | C63: NV | D63: 9045 | E63: 90045 | F63: Independent Public Agency or Authority of Transit Service | G63: Full Reporter | H63: 1886011 | I63: 660 | J63: RB | K63: PT | L63: 33 | N63: 41.6 | P63: 0 | R63: 0 | T63: 41.6 | V63: No
A64: Snohomish County Public Transportation Benefit Area Corporation | B64: Everett | C64: WA | D64: 29 | E64: 29 | F64: Independent Public Agency or Authority of Transit Service | G64: Full Reporter | H64: 3059393 | I64: 608 | J64: MB | K64: DO | L64: 93 | N64: 0 | P64: 19.8 | R64: 2.7 | T64: 22.5 | V64: No
A65: Snohomish County Public Transportation Benefit Area Corporation | B65: Everett | C65: WA | D65: 29 | E65: 29 | F65: Independent Public Agency or Authority of Transit Service | G65: Full Reporter | H65: 3059393 | I65: 608 | J65: CB | K65: PT | L65: 53 | N65: 2 | P65: 51.7 | R65: 0.3 | T65: 54 | V65: No
A66: Snohomish County Public Transportation Benefit Area Corporation | B66: Everett | C66: WA | D66: 29 | E66: 29 | F66: Independent Public Agency or Authority of Transit Service | G66: Full Reporter | H66: 3059393 | I66: 608 | J66: CB | K66: DO | L66: 49 | N66: 2 | P66: 74.9 | R66: 0.9 | T66: 77.8 | V66: =IF(OR(O66="Q",Q66="Q",S66="Q",U66="Q"),"Yes","No") -> No
A67: City of Phoenix Public Transit Department dba Valley Metro | B67: Phoenix | C67: AZ | D67: 9032 | E67: 90032 | F67: City, County or Local Government Unit or Department of Transportation | G67: Full Reporter | H67: 3629114 | I67: 571 | J67: MB | K67: PT | L67: 447 | N67: 0 | P67: 0 | R67: 117.7 | T67: 117.7 | V67: No
A68: Central Florida Regional Transportation Authority | B68: Orlando | C68: FL | D68: 4035 | E68: 40035 | F68: Independent Public Agency or Authority of Transit Service | G68: Full Reporter | H68: 1510516 | I68: 560 | J68: MB | K68: DO | L68: 238 | N68: 0.7 | P68: 0 | R68: 0 | T68: 0.7 | V68: No
A69: Central Florida Regional Transportation Authority | B69: Orlando | C69: FL | D69: 4035 | E69: 40035 | F69: Independent Public Agency or Authority of Transit Service | G69: Full Reporter | H69: 1510516 | I69: 560 | J69: MB | K69: PT | L69: 15 | T69: 0 | V69: No
A70: Central Florida Regional Transportation Authority | B70: Orlando | C70: FL | D70: 4035 | E70: 40035 | F70: Independent Public Agency or Authority of Transit Service | G70: Full Reporter | H70: 1510516 | I70: 560 | J70: RB | K70: DO | L70: 12 | N70: 3.4 | P70: 0 | R70: 0 | T70: 3.4 | V70: No
A71: Central Florida Regional Transportation Authority | B71: Orlando | C71: FL | D71: 4035 | E71: 40035 | F71: Independent Public Agency or Authority of Transit Service | G71: Full Reporter | H71: 1510516 | I71: 560 | J71: CB | K71: PT | L71: 2 | T71: 0 | V71: No
A72: The Greater Cleveland Regional Transit Authority | B72: Cleveland | C72: OH | D72: 5015 | E72: 50015 | F72: Independent Public Agency or Authority of Transit Service | G72: Full Reporter | H72: 1780673 | I72: 547 | J72: MB | K72: DO | L72: 350 | N72: 3.2 | P72: 0 | R72: 0 | T72: 3.2 | V72: No
A73: The Greater Cleveland Regional Transit Authority | B73: Cleveland | C73: OH | D73: 5015 | E73: 50015 | F73: Independent Public Agency or Authority of Transit Service | G73: Full Reporter | H73: 1780673 | I73: 547 | J73: RB | K73: DO | L73: 16 | N73: 8.7 | P73: 0 | R73: 5.4 | T73: 14.1 | V73: No
A74: Pierce County Transportation Benefit Area Authority | B74: Tacoma | C74: WA | D74: 3 | E74: 3 | F74: Independent Public Agency or Authority of Transit Service | G74: Full Reporter | H74: 3059393 | I74: 507 | J74: MB | K74: DO | L74: 116 | N74: 0 | P74: 16.9 | R74: 0 | T74: 16.9 | V74: No
A75: Broward County Transit Division | B75: Plantation | C75: FL | D75: 4029 | E75: 40029 | F75: City, County or Local Government Unit or Department of Transportation | G75: Full Reporter | H75: 5502379 | I75: 474 | J75: MB | K75: DO | L75: 274 | N75: 0 | P75: 0 | R75: 24.6 | T75: 24.6 | V75: No
A76: Broward County Transit Division | B76: Plantation | C76: FL | D76: 4029 | E76: 40029 | F76: City, County or Local Government Unit or Department of Transportation | G76: Full Reporter | H76: 5502379 | I76: 474 | J76: MB | K76: PT | L76: 7 | T76: 0 | V76: No
A77: Bi-State Development Agency of the Missouri-Illinois Metropolitan District, d.b.a.(St. Louis) Metro | B77: St. Louis | C77: MO | D77: 7006 | E77: 70006 | F77: Independent Public Agency or Authority of Transit Service | G77: Full Reporter | H77: 2150706 | I77: 473 | J77: MB | K77: DO | L77: 317 | T77: 0 | V77: No
A78: Potomac and Rappahannock Transportation Commission | B78: Woodbridge | C78: VA | D78: 3070 | E78: 30070 | F78: Independent Public Agency or Authority of Transit Service | G78: Full Reporter | H78: 4586770 | I78: 473 | J78: CB | K78: PT | L78: 86 | N78: 0 | P78: 0 | R78: 63.4 | T78: 63.4 | V78: No
A79: Potomac and Rappahannock Transportation Commission | B79: Woodbridge | C79: VA | D79: 3070 | E79: 30070 | F79: Independent Public Agency or Authority of Transit Service | G79: Full Reporter | H79: 4586770 | I79: 473 | J79: MB | K79: PT | L79: 36 | N79: 0 | P79: 0 | R79: 59 | T79: 59 | V79: No
A80: LACMTA - Small Operators | B80: Los Angeles | C80: CA | D80: 9166 | E80: 90166 | F80: Other | G80: Full Reporter | H80: 12150996 | I80: 462 | J80: MB | K80: PT | L80: 195 | T80: 0 | V80: No
A81: City of Detroit Department of Transportation | B81: Detroit | C81: MI | D81: 5119 | E81: 50119 | F81: City, County or Local Government Unit or Department of Transportation | G81: Full Reporter | H81: 3734090 | I81: 454 | J81: MB | K81: DO | L81: 229 | T81: 0 | V81: No
A82: Board of County Commissioners, Palm Beach County, PalmTran, Inc. | B82: West Palm Beach | C82: FL | D82: 4037 | E82: 40037 | F82: City, County or Local Government Unit or Department of Transportation | G82: Full Reporter | H82: 5502379 | I82: 450 | J82: MB | K82: DO | L82: 131 | T82: 0 | V82: No
A83: Delaware Transit Corporation | B83: Dover | C83: DE | D83: 3075 | E83: 30075 | F83: Independent Public Agency or Authority of Transit Service | G83: Full Reporter | H83: 5441567 | I83: 445 | J83: MB | K83: DO | L83: 173 | T83: 0 | V83: No
A84: Delaware Transit Corporation | B84: Dover | C84: DE | D84: 3075 | E84: 30075 | F84: Independent Public Agency or Authority of Transit Service | G84: Full Reporter | H84: 5441567 | I84: 445 | J84: MB | K84: PT | L84: 23 | T84: 0 | V84: No
A85: Ben Franklin Transit | B85: Richland | C85: WA | D85: 18 | E85: 18 | F85: Independent Public Agency or Authority of Transit Service | G85: Full Reporter | H85: 210975 | I85: 440 | J85: MB | K85: DO | L85: 52 | T85: 0 | V85: No
A86: Milwaukee County Transit System | B86: Milwaukee | C86: WI | D86: 5008 | E86: 50008 | F86: City, County or Local Government Unit or Department of Transportation | G86: Full Reporter | H86: 1376476 | I86: 433 | J86: MB | K86: DO | L86: 343 | T86: 0 | V86: No
A87: Charlotte Area Transit System | B87: Charlotte | C87: NC | D87: 4008 | E87: 40008 | F87: City, County or Local Government Unit or Department of Transportation | G87: Full Reporter | H87: 1249442 | I87: 431 | J87: MB | K87: DO | L87: 196 | N87: 7.7 | P87: 14.4 | R87: 0 | T87: 22.1 | V87: No
A88: Charlotte Area Transit System | B88: Charlotte | C88: NC | D88: 4008 | E88: 40008 | F88: City, County or Local Government Unit or Department of Transportation | G88: Full Reporter | H88: 1249442 | I88: 431 | J88: CB | K88: DO | L88: 69 | N88: 7.7 | P88: 14.4 | R88: 0 | T88: 22.1 | V88: No
A89: Regional Public Transportation Authority, dba: Valley Metro | B89: Phoenix | C89: AZ | D89: 9136 | E89: 90136 | F89: Independent Public Agency or Authority of Transit Service | G89: Full Reporter | H89: 3629114 | I89: 403 | J89: MB | K89: PT | L89: 282 | N89: 0 | P89: 0 | R89: 227.4 | T89: 227.4 | V89: No
A90: City of Los Angeles Department of Transportation | B90: Los Angeles | C90: CA | D90: 9147 | E90: 90147 | F90: City, County or Local Government Unit or Department of Transportation | G90: Full Reporter | H90: 12150996 | I90: 369 | J90: MB | K90: PT | L90: 173 | T90: 0 | V90: No
A91: City of Los Angeles Department of Transportation | B91: Los Angeles | C91: CA | D91: 9147 | E91: 90147 | F91: City, County or Local Government Unit or Department of Transportation | G91: Full Reporter | H91: 12150996 | I91: 369 | J91: CB | K91: PT | L91: 93 | N91: 0 | P91: 35.1 | R91: 0 | T91: 35.1 | V91: No
A92: Transportation District Commission of Hampton Roads | B92: Hampton | C92: VA | D92: 3083 | E92: 30083 | F92: Independent Public Agency or Authority of Transit Service | G92: Full Reporter | H92: 1439666 | I92: 368 | J92: MB | K92: DO | L92: 236 | N92: 0 | P92: 0 | R92: 72.8 | T92: 72.8 | V92: No
A93: San Mateo County Transit District | B93: San Carlos | C93: CA | D93: 9009 | E93: 90009 | F93: Independent Public Agency or Authority of Transit Service | G93: Full Reporter | H93: 3281212 | I93: 363 | J93: MB | K93: DO | L93: 192 | T93: 0 | V93: No
A94: San Mateo County Transit District | B94: San Carlos | C94: CA | D94: 9009 | E94: 90009 | F94: Independent Public Agency or Authority of Transit Service | G94: Full Reporter | H94: 3281212 | I94: 363 | J94: MB | K94: PT | L94: 79 | T94: 0 | V94: No
A95: Central Ohio Transit Authority | B95: Columbus | C95: OH | D95: 5016 | E95: 50016 | F95: Independent Public Agency or Authority of Transit Service | G95: Full Reporter | H95: 1368035 | I95: 361 | J95: MB | K95: DO | L95: 284 | T95: 0 | V95: No
A96: Nassau Inter County Express | B96: Garden City | C96: NY | D96: 2206 | E96: 20206 | F96: City, County or Local Government Unit or Department of Transportation | G96: Full Reporter | H96: 18351295 | I96: 353 | J96: MB | K96: PT | L96: 255 | T96: 0 | V96: No
A97: Niagara Frontier Transportation Authority | B97: Buffalo | C97: NY | D97: 2004 | E97: 20004 | F97: Independent Public Agency or Authority of Transit Service | G97: Full Reporter | H97: 935906 | I97: 351 | J97: MB | K97: DO | L97: 264 | T97: 0 | V97: No
A98: Southwest Ohio Regional Transit Authority | B98: Cincinnati | C98: OH | D98: 5012 | E98: 50012 | F98: City, County or Local Government Unit or Department of Transportation | G98: Full Reporter | H98: 1624827 | I98: 346 | J98: MB | K98: DO | L98: 298 | N98: 0.1 | P98: 0 | R98: 0 | T98: 0.1 | V98: No
A99: Westchester County Bee-Line System | B99: Mount Vernon | C99: NY | D99: 2076 | E99: 20076 | F99: City, County or Local Government Unit or Department of Transportation | G99: Full Reporter | H99: 18351295 | I99: 343 | J99: MB | K99: PT | L99: 276 | T99: 0 | V99: No
A100: City of Tucson | B100: Tucson | C100: AZ | D100: 9033 | E100: 90033 | F100: City, County or Local Government Unit or Department of Transportation | G100: Full Reporter | H100: 843168 | I100: 338 | J100: MB | K100: DO | L100: 212 | T100: 0 | V100: No
A101: Central Puget Sound Regional Transit Authority | B101: Seattle | C101: WA | D101: 40 | E101: 40 | F101: Independent Public Agency or Authority of Transit Service | G101: Full Reporter | H101: 3059393 | I101: 336 | J101: CB | K101: DO | L101: 190 | N101: 4.1 | P101: 137 | R101: 57.7 | T101: 198.8 | V101: No
A102: Central Puget Sound Regional Transit Authority | B102: Seattle | C102: WA | D102: 40 | E102: 40 | F102: Independent Public Agency or Authority of Transit Service | G102: Full Reporter | H102: 3059393 | I102: 336 | J102: CB | K102: PT | L102: 48 | N102: 0 | P102: 44.6 | R102: 33.6 | T102: 78.2 | V102: No
A103: Cape Cod Regional Transit Authority | B103: Hyannis | C103: MA | D103: 1105 | E103: 10105 | F103: Independent Public Agency or Authority of Transit Service | G103: Full Reporter | H103: 246695 | I103: 335 | J103: MB | K103: PT | L103: 47 | T103: 0 | V103: No
A104: Cape Cod Regional Transit Authority | B104: Hyannis | C104: MA | D104: 1105 | E104: 10105 | F104: Independent Public Agency or Authority of Transit Service | G104: Full Reporter | H104: 246695 | I104: 335 | J104: CB | K104: PT | L104: 2 | T104: 0 | V104: No
A105: Greater Richmond Transit Company | B105: Richmond | C105: VA | D105: 3006 | E105: 30006 | F105: Other Publicly-Owned or Privately Chartered Corporation | G105: Full Reporter | H105: 953556 | I105: 328 | J105: MB | K105: DO | L105: 118 | T105: 0 | V105: No
A106: Lane Transit District | B106: Eugene | C106: OR | D106: 7 | E106: 7 | F106: Independent Public Agency or Authority of Transit Service | G106: Full Reporter | H106: 247421 | I106: 325 | J106: MB | K106: DO | L106: 71 | T106: 0 | V106: No
A107: Lane Transit District | B107: Eugene | C107: OR | D107: 7 | E107: 7 | F107: Independent Public Agency or Authority of Transit Service | G107: Full Reporter | H107: 247421 | I107: 325 | J107: RB | K107: DO | L107: 8 | N107: 10.1 | P107: 0 | R107: 0 | T107: 10.1 | V107: No
A108: Lane Transit District | B108: Eugene | C108: OR | D108: 7 | E108: 7 | F108: Independent Public Agency or Authority of Transit Service | G108: Full Reporter | H108: 247421 | I108: 325 | J108: MB | K108: PT | L108: 1 | T108: 0 | V108: No
A109: Suburban Mobility Authority for Regional Transportation | B109: Detroit | C109: MI | D109: 5031 | E109: 50031 | F109: Independent Public Agency or Authority of Transit Service | G109: Full Reporter | H109: 3734090 | I109: 317 | J109: MB | K109: DO | L109: 195 | T109: 0 | V109: No
A110: Suburban Mobility Authority for Regional Transportation | B110: Detroit | C110: MI | D110: 5031 | E110: 50031 | F110: Independent Public Agency or Authority of Transit Service | G110: Full Reporter | H110: 3734090 | I110: 317 | J110: MB | K110: PT | L110: 8 | T110: 0 | V110: No
A111: Transit Authority of River City | B111: Louisville | C111: KY | D111: 4018 | E111: 40018 | F111: Independent Public Agency or Authority of Transit Service | G111: Full Reporter | H111: 972546 | I111: 315 | J111: MB | K111: DO | L111: 173 | T111: 0 | V111: No
A112: Transit Authority of River City | B112: Louisville | C112: KY | D112: 4018 | E112: 40018 | F112: Independent Public Agency or Authority of Transit Service | G112: Full Reporter | H112: 972546 | I112: 315 | J112: MB | K112: PT | L112: 1 | T112: 0 | V112: No
A113: Spokane Transit Authority | B113: Spokane | C113: WA | D113: 2 | E113: 2 | F113: Independent Public Agency or Authority of Transit Service | G113: Full Reporter | H113: 387847 | I113: 311 | J113: MB | K113: DO | L113: 110 | T113: 0 | V113: No
A114: Intercity Transit | B114: Olympia | C114: WA | D114: 19 | E114: 19 | F114: Independent Public Agency or Authority of Transit Service | G114: Full Reporter | H114: 176617 | I114: 310 | J114: MB | K114: DO | L114: 50 | T114: 0 | V114: No
A115: Intercity Transit | B115: Olympia | C115: WA | D115: 19 | E115: 19 | F115: Independent Public Agency or Authority of Transit Service | G115: Full Reporter | H115: 176617 | I115: 310 | J115: CB | K115: DO | L115: 9 | T115: 0 | V115: No
A116: Pinellas Suncoast Transit Authority | B116: St. Petersburg | C116: FL | D116: 4027 | E116: 40027 | F116: Independent Public Agency or Authority of Transit Service | G116: Full Reporter | H116: 2441770 | I116: 308 | J116: MB | K116: DO | L116: 160 | T116: 0 | V116: No
A117: Pinellas Suncoast Transit Authority | B117: St. Petersburg | C117: FL | D117: 4027 | E117: 40027 | F117: Independent Public Agency or Authority of Transit Service | G117: Full Reporter | H117: 2441770 | I117: 308 | J117: MB | K117: PT | L117: 18 | T117: 0 | V117: No
A118: Pinellas Suncoast Transit Authority | B118: St. Petersburg | C118: FL | D118: 4027 | E118: 40027 | F118: Independent Public Agency or Authority of Transit Service | G118: Full Reporter | H118: 2441770 | I118: 308 | J118: CB | K118: DO | L118: 7 | N118: 0 | P118: 0 | R118: 1.1 | T118: 1.1 | V118: No
A119: Rhode Island Public Transit Authority | B119: Providence | C119: RI | D119: 1001 | E119: 10001 | F119: Independent Public Agency or Authority of Transit Service | G119: Full Reporter | H119: 1190956 | I119: 304 | J119: MB | K119: DO | L119: 196 | N119: 1.6 | P119: 0 | R119: 0 | T119: 1.6 | V119: No
A120: Capital Area Transit | B120: Raleigh | C120: NC | D120: 4007 | E120: 40007 | F120: City, County or Local Government Unit or Department of Transportation | G120: Full Reporter | H120: 884891 | I120: 298 | J120: MB | K120: DO | L120: 65 | T120: 0 | V120: No
A121: Kansas City Area Transportation Authority | B121: Kansas City | C121: MO | D121: 7005 | E121: 70005 | F121: Independent Public Agency or Authority of Transit Service | G121: Full Reporter | H121: 1519417 | I121: 295 | J121: MB | K121: DO | L121: 168 | N121: 0.5 | P121: 0 | R121: 3 | T121: 3.5 | V121: No
A122: Kansas City Area Transportation Authority | B122: Kansas City | C122: MO | D122: 7005 | E122: 70005 | F122: Independent Public Agency or Authority of Transit Service | G122: Full Reporter | H122: 1519417 | I122: 295 | J122: RB | K122: DO | L122: 11 | N122: 0.5 | P122: 0 | R122: 11.1 | T122: 11.6 | V122: No
A123: Suffolk County Department of Public Works - Transportation Division | B123: Yaphank | C123: NY | D123: 2072 | E123: 20072 | F123: City, County or Local Government Unit or Department of Transportation | G123: Full Reporter | H123: 18351295 | I123: 291 | J123: MB | K123: PT | L123: 128 | N123: 0 | P123: 0 | R123: 46.9 | T123: 46.9 | V123: No
A124: Ride-On Montgomery County Transit | B124: Rockville | C124: MD | D124: 3051 | E124: 30051 | F124: City, County or Local Government Unit or Department of Transportation | G124: Full Reporter | H124: 4586770 | I124: 282 | J124: MB | K124: DO | L124: 282 | T124: 0 | V124: No
A125: Foothill Transit | B125: West Covina | C125: CA | D125: 9146 | E125: 90146 | F125: Independent Public Agency or Authority of Transit Service | G125: Full Reporter | H125: 12150996 | I125: 278 | J125: MB | K125: PT | L125: 278 | N125: 1.5 | P125: 0 | R125: 62.3 | T125: 63.8 | V125: No
A126: Metropolitan Transit Authority | B126: Nashville | C126: TN | D126: 4004 | E126: 40004 | F126: Independent Public Agency or Authority of Transit Service | G126: Full Reporter | H126: 969587 | I126: 269 | J126: MB | K126: DO | L126: 120 | T126: 0 | V126: No
A127: Salem Area Mass Transit District | B127: Salem | C127: OR | D127: 25 | E127: 25 | F127: Independent Public Agency or Authority of Transit Service | G127: Full Reporter | H127: 236632 | I127: 269 | J127: MB | K127: DO | L127: 53 | T127: 0 | V127: No
A128: Metropolitan Transit Authority | B128: Nashville | C128: TN | D128: 4004 | E128: 40004 | F128: Independent Public Agency or Authority of Transit Service | G128: Full Reporter | H128: 969587 | I128: 269 | J128: CB | K128: DO | L128: 23 | T128: 0 | V128: No
A129: Kitsap Transit | B129: Bremerton | C129: WA | D129: 20 | E129: 20 | F129: Independent Public Agency or Authority of Transit Service | G129: Full Reporter | H129: 198979 | I129: 266 | J129: MB | K129: DO | L129: 89 | T129: 0 | V129: No
A130: Riverside Transit Agency | B130: Riverside | C130: CA | D130: 9031 | E130: 90031 | F130: Independent Public Agency or Authority of Transit Service | G130: Full Reporter | H130: 1932666 | I130: 260 | J130: MB | K130: DO | L130: 77 | T130: 0 | V130: =IF(OR(O130="Q",Q130="Q",S130="Q",U130="Q"),"Yes","No") -> No
A131: Riverside Transit Agency | B131: Riverside | C131: CA | D131: 9031 | E131: 90031 | F131: Independent Public Agency or Authority of Transit Service | G131: Full Reporter | H131: 1932666 | I131: 260 | J131: MB | K131: PT | L131: 51 | T131: 0 | V131: No
A132: Riverside Transit Agency | B132: Riverside | C132: CA | D132: 9031 | E132: 90031 | F132: Independent Public Agency or Authority of Transit Service | G132: Full Reporter | H132: 1932666 | I132: 260 | J132: CB | K132: PT | L132: 16 | T132: 0 | V132: No
A133: Riverside Transit Agency | B133: Riverside | C133: CA | D133: 9031 | E133: 90031 | F133: Independent Public Agency or Authority of Transit Service | G133: Full Reporter | H133: 1932666 | I133: 260 | J133: CB | K133: DO | L133: 15 | T133: 0 | V133: No
A134: Regional Transit Service, Inc. and Lift Line, Inc. | B134: Rochester | C134: NY | D134: 2113 | E134: 20113 | F134: Independent Public Agency or Authority of Transit Service | G134: Full Reporter | H134: 720572 | I134: 256 | J134: MB | K134: DO | L134: 217 | T134: 0 | V134: No
A135: Metro Transit System | B135: Madison | C135: WI | D135: 5005 | E135: 50005 | F135: City, County or Local Government Unit or Department of Transportation | G135: Full Reporter | H135: 401661 | I135: 254 | J135: MB | K135: DO | L135: 182 | N135: 12.5 | P135: 0 | R135: 0 | T135: 12.5 | V135: No
A136: Pioneer Valley Transit Authority | B136: Springfield | C136: MA | D136: 1008 | E136: 10008 | F136: Independent Public Agency or Authority of Transit Service | G136: Full Reporter | H136: 621300 | I136: 254 | J136: MB | K136: PT | L136: 147 | T136: 0 | V136: No
A137: Omnitrans | B137: San Bernardino | C137: CA | D137: 9029 | E137: 90029 | F137: Independent Public Agency or Authority of Transit Service | G137: Full Reporter | H137: 1932666 | I137: 248 | J137: MB | K137: DO | L137: 145 | N137: 5.4 | P137: 0 | R137: 0 | T137: 5.4 | V137: No
A138: Omnitrans | B138: San Bernardino | C138: CA | D138: 9029 | E138: 90029 | F138: Independent Public Agency or Authority of Transit Service | G138: Full Reporter | H138: 1932666 | I138: 248 | J138: MB | K138: PT | L138: 7 | T138: 0 | V138: No
A139: Jacksonville Transportation Authority | B139: Jacksonville | C139: FL | D139: 4040 | E139: 40040 | F139: Independent Public Agency or Authority of Transit Service | G139: Full Reporter | H139: 1065219 | I139: 246 | J139: MB | K139: DO | L139: 150 | T139: 0 | V139: No
A140: Interurban Transit Partnership | B140: Grand Rapids | C140: MI | D140: 5033 | E140: 50033 | F140: Independent Public Agency or Authority of Transit Service | G140: Full Reporter | H140: 569935 | I140: 246 | J140: MB | K140: DO | L140: 125 | T140: 0 | V140: No
A141: Interurban Transit Partnership | B141: Grand Rapids | C141: MI | D141: 5033 | E141: 50033 | F141: Independent Public Agency or Authority of Transit Service | G141: Full Reporter | H141: 569935 | I141: 246 | J141: RB | K141: DO | L141: 8 | N141: 9.5 | P141: 0 | R141: 0 | T141: 9.5 | V141: No
A142: Victor Valley Transit Authority | B142: Hesperia | C142: CA | D142: 9148 | E142: 90148 | F142: Independent Public Agency or Authority of Transit Service | G142: Full Reporter | H142: 328454 | I142: 245 | J142: MB | K142: PT | L142: 34 | T142: 0 | V142: No
A143: Victor Valley Transit Authority | B143: Hesperia | C143: CA | D143: 9148 | E143: 90148 | F143: Independent Public Agency or Authority of Transit Service | G143: Full Reporter | H143: 328454 | I143: 245 | J143: CB | K143: PT | L143: 7 | T143: 0 | V143: No
A144: Capital District Transportation Authority | B144: Albany | C144: NY | D144: 2002 | E144: 20002 | F144: Independent Public Agency or Authority of Transit Service | G144: Full Reporter | H144: 594962 | I144: 239 | J144: MB | K144: DO | L144: 170 | T144: 0 | V144: No
A145: Capital District Transportation Authority | B145: Albany | C145: NY | D145: 2002 | E145: 20002 | F145: Independent Public Agency or Authority of Transit Service | G145: Full Reporter | H145: 594962 | I145: 239 | J145: CB | K145: PT | L145: 10 | T145: 0 | V145: No
A146: Connecticut Department of Transportation - CTTRANSIT - Hartford Division | B146: Hartford | C146: CT | D146: 1048 | E146: 10048 | F146: State Government Unit or Department of Transportation | G146: Full Reporter | H146: 924859 | I146: 233 | J146: MB | K146: DO | L146: 224 | N146: 18.2 | P146: 28.8 | R146: 0 | T146: 47 | V146: No
A147: Connecticut Department of Transportation - CTTRANSIT - Hartford Division | B147: Hartford | C147: CT | D147: 1048 | E147: 10048 | F147: State Government Unit or Department of Transportation | G147: Full Reporter | H147: 924859 | I147: 233 | J147: RB | K147: DO | L147: 9 | N147: 18.2 | P147: 0 | R147: 0 | T147: 18.2 | V147: No
A148: Des Moines Area Regional Transit Authority | B148: Des Moines | C148: IA | D148: 7010 | E148: 70010 | F148: Independent Public Agency or Authority of Transit Service | G148: Full Reporter | H148: 450070 | I148: 231 | J148: MB | K148: DO | L148: 113 | T148: 0 | V148: No
A149: North County Transit District | B149: Oceanside | C149: CA | D149: 9030 | E149: 90030 | F149: Independent Public Agency or Authority of Transit Service | G149: Full Reporter | H149: 2956746 | I149: 230 | J149: MB | K149: PT | L149: 137 | T149: 0 | V149: No
A150: Academy Lines, Inc. | B150: Hoboken | C150: NJ | D150: 2122 | E150: 20122 | F150: Private-For-Profit Corporation | G150: Full Reporter | H150: 18351295 | I150: 225 | J150: CB | K150: DO | L150: 225 | N150: 0 | P150: 0 | R150: 2.9 | T150: 2.9 | V150: No
A151: Metropolitan Council | B151: St. Paul | C151: MN | D151: 5154 | E151: 50154 | F151: City, County or Local Government Unit or Department of Transportation | G151: Full Reporter | H151: 2650890 | I151: 223 | J151: MB | K151: PT | L151: 64 | N151: 1.4 | P151: 26.5 | R151: 17.6 | T151: 45.5 | V151: No
A152: Sacramento Regional Transit District | B152: Sacramento | C152: CA | D152: 9019 | E152: 90019 | F152: Independent Public Agency or Authority of Transit Service | G152: Full Reporter | H152: 1723634 | I152: 222 | J152: MB | K152: DO | L152: 159 | T152: 0 | V152: No
A153: Fairfax Connector Bus System | B153: Fairfax | C153: VA | D153: 3068 | E153: 30068 | F153: City, County or Local Government Unit or Department of Transportation | G153: Full Reporter | H153: 4586770 | I153: 221 | J153: MB | K153: PT | L153: 221 | N153: 0 | P153: 0 | R153: 69.5 | T153: 69.5 | V153: No
A154: METRO Regional Transit Authority | B154: Akron | C154: OH | D154: 5010 | E154: 50010 | F154: Independent Public Agency or Authority of Transit Service | G154: Full Reporter | H154: 569499 | I154: 209 | J154: MB | K154: DO | L154: 111 | T154: 0 | V154: No
A155: Blue Water Area Transportation Commission | B155: Port Huron | C155: MI | D155: 5148 | E155: 50148 | F155: Independent Public Agency or Authority of Transit Service | G155: Full Reporter | H155: 87106 | I155: 209 | J155: MB | K155: DO | L155: 9 | T155: 0 | V155: No
A156: METRO Regional Transit Authority | B156: Akron | C156: OH | D156: 5010 | E156: 50010 | F156: Independent Public Agency or Authority of Transit Service | G156: Full Reporter | H156: 569499 | I156: 209 | J156: CB | K156: DO | L156: 7 | T156: 0 | V156: No
A157: Blue Water Area Transportation Commission | B157: Port Huron | C157: MI | D157: 5148 | E157: 50148 | F157: Independent Public Agency or Authority of Transit Service | G157: Full Reporter | H157: 87106 | I157: 209 | J157: CB | K157: DO | L157: 3 | T157: 0 | V157: No
A158: Fort Worth Transportation Authority | B158: Fort Worth | C158: TX | D158: 6007 | E158: 60007 | F158: Independent Public Agency or Authority of Transit Service | G158: Full Reporter | H158: 5121892 | I158: 207 | J158: MB | K158: DO | L158: 118 | T158: 0 | V158: No
A159: Fort Worth Transportation Authority | B159: Fort Worth | C159: TX | D159: 6007 | E159: 60007 | F159: Independent Public Agency or Authority of Transit Service | G159: Full Reporter | H159: 5121892 | I159: 207 | J159: MB | K159: PT | L159: 4 | T159: 0 | V159: No
A160: Long Beach Transit | B160: Long Beach | C160: CA | D160: 9023 | E160: 90023 | F160: Other Publicly-Owned or Privately Chartered Corporation | G160: Full Reporter | H160: 12150996 | I160: 202 | J160: MB | K160: DO | L160: 187 | N160: 0.5 | P160: 0 | R160: 0 | T160: 0.5 | V160: No
A161: Hillsborough Area Regional Transit Authority | B161: Tampa | C161: FL | D161: 4041 | E161: 40041 | F161: Independent Public Agency or Authority of Transit Service | G161: Full Reporter | H161: 2441770 | I161: 201 | J161: MB | K161: DO | L161: 162 | N161: 0 | P161: 0 | R161: 1.1 | T161: 1.1 | V161: No
A162: Indianapolis and Marion County Public Transportation | B162: Indianapolis | C162: IN | D162: 5050 | E162: 50050 | F162: Independent Public Agency or Authority of Transit Service | G162: Full Reporter | H162: 1487483 | I162: 194 | J162: MB | K162: DO | L162: 133 | T162: 0 | V162: No
A163: City of Albuquerque Transit Department | B163: Albuquerque | C163: NM | D163: 6019 | E163: 60019 | F163: City, County or Local Government Unit or Department of Transportation | G163: Full Reporter | H163: 741318 | I163: 187 | J163: MB | K163: DO | L163: 131 | T163: 0 | V163: No
A164: Mass Transit Department - City of El Paso | B164: El Paso | C164: TX | D164: 6006 | E164: 60006 | F164: City, County or Local Government Unit or Department of Transportation | G164: Full Reporter | H164: 803086 | I164: 187 | J164: MB | K164: DO | L164: 124 | T164: 0 | V164: No
A165: Mass Transportation Authority | B165: Flint | C165: MI | D165: 5032 | E165: 50032 | F165: Independent Public Agency or Authority of Transit Service | G165: Full Reporter | H165: 356218 | I165: 185 | J165: MB | K165: DO | L165: 99 | T165: 0 | V165: No
A166: Regional Transportation Commission of Washoe County | B166: Reno | C166: NV | D166: 9001 | E166: 90001 | F166: Independent Public Agency or Authority of Transit Service | G166: Full Reporter | H166: 392141 | I166: 181 | J166: MB | K166: PT | L166: 54 | N166: 0.5 | P166: 0 | R166: 0 | T166: 0.5 | V166: No
A167: Regional Transportation Commission of Washoe County | B167: Reno | C167: NV | D167: 9001 | E167: 90001 | F167: Independent Public Agency or Authority of Transit Service | G167: Full Reporter | H167: 392141 | I167: 181 | J167: CB | K167: PT | L167: 3 | T167: 0 | V167: No
A168: New Orleans Regional Transit Authority | B168: New Orleans | C168: LA | D168: 6032 | E168: 60032 | F168: Independent Public Agency or Authority of Transit Service | G168: Full Reporter | H168: 899703 | I168: 178 | J168: MB | K168: PT | L168: 110 | N168: 0 | P168: 7 | R168: 0 | T168: 7 | V168: No
A169: Greater Dayton Regional Transit Authority | B169: Dayton | C169: OH | D169: 5017 | E169: 50017 | F169: Independent Public Agency or Authority of Transit Service | G169: Full Reporter | H169: 724091 | I169: 178 | J169: MB | K169: DO | L169: 96 | T169: 0 | V169: No
A170: Greater Dayton Regional Transit Authority | B170: Dayton | C170: OH | D170: 5017 | E170: 50017 | F170: Independent Public Agency or Authority of Transit Service | G170: Full Reporter | H170: 724091 | I170: 178 | J170: TB | K170: DO | L170: 26 | N170: 125.7 | P170: 0 | R170: 0 | T170: 125.7 | V170: No
A171: Toledo Area Regional Transit Authority | B171: Toledo | C171: OH | D171: 5022 | E171: 50022 | F171: Independent Public Agency or Authority of Transit Service | G171: Full Reporter | H171: 507643 | I171: 177 | J171: MB | K171: DO | L171: 100 | N171: 0 | P171: 0 | R171: 1 | T171: 1 | V171: No
A172: Capital Area Transportation Authority | B172: Lansing | C172: MI | D172: 5036 | E172: 50036 | F172: Independent Public Agency or Authority of Transit Service | G172: Full Reporter | H172: 313532 | I172: 172 | J172: MB | K172: DO | L172: 78 | T172: 0 | V172: No
A173: Clark County Public Transportation Benefit Area Authority | B173: Vancouver | C173: WA | D173: 24 | E173: 24 | F173: Independent Public Agency or Authority of Transit Service | G173: Full Reporter | H173: 1849898 | I173: 171 | J173: MB | K173: DO | L173: 54 | T173: 0 | V173: No
A174: Clark County Public Transportation Benefit Area Authority | B174: Vancouver | C174: WA | D174: 24 | E174: 24 | F174: Independent Public Agency or Authority of Transit Service | G174: Full Reporter | H174: 1849898 | I174: 171 | J174: CB | K174: DO | L174: 40 | N174: 0 | P174: 0 | R174: 3.4 | T174: 3.4 | V174: No
A175: Montachusett Regional Transit Authority | B175: Fitchburg | C175: MA | D175: 1061 | E175: 10061 | F175: Independent Public Agency or Authority of Transit Service | G175: Full Reporter | H175: 116960 | I175: 169 | J175: MB | K175: PT | L175: 19 | T175: 0 | V175: No
A176: Lehigh and Northampton Transportation Authority | B176: Allentown | C176: PA | D176: 3010 | E176: 30010 | F176: Independent Public Agency or Authority of Transit Service | G176: Full Reporter | H176: 664651 | I176: 165 | J176: MB | K176: DO | L176: 70 | T176: 0 | V176: No
A177: Research Triangle Regional Public Transportation Authority | B177: Research Triangle Park | C177: NC | D177: 4108 | E177: 40108 | F177: Independent Public Agency or Authority of Transit Service | G177: Full Reporter | H177: 347602 | I177: 164 | J177: MB | K177: DO | L177: 58 | T177: 0 | V177: No
A178: Research Triangle Regional Public Transportation Authority | B178: Research Triangle Park | C178: NC | D178: 4108 | E178: 40108 | F178: Independent Public Agency or Authority of Transit Service | G178: Full Reporter | H178: 347602 | I178: 164 | J178: MB | K178: PT | L178: 22 | T178: 0 | V178: No
A179: Santa Monica's Big Blue Bus | B179: Santa Monica | C179: CA | D179: 9008 | E179: 90008 | F179: City, County or Local Government Unit or Department of Transportation | G179: Full Reporter | H179: 12150996 | I179: 163 | J179: MB | K179: DO | L179: 157 | N179: 0.6 | P179: 0 | R179: 0 | T179: 0.6 | V179: No
A180: CNY Centro, Inc. | B180: Syracuse | C180: NY | D180: 2018 | E180: 20018 | F180: Subsidiary Unit of a Transit Agency, Reporting Separately | G180: Full Reporter | H180: 412317 | I180: 162 | J180: MB | K180: DO | L180: 121 | T180: 0 | V180: No
A181: Hudson Transit Lines, Inc. | B181: Mahwah | C181: NJ | D181: 2126 | E181: 20126 | F181: Private-For-Profit Corporation | G181: Full Reporter | H181: 18351295 | I181: 161 | J181: CB | K181: DO | L181: 161 | N181: 0 | P181: 0 | R181: 2.9 | T181: 2.9 | V181: No
A182: Mountain Metropolitan Transit | B182: Colorado Springs | C182: CO | D182: 8005 | E182: 80005 | F182: City, County or Local Government Unit or Department of Transportation | G182: Full Reporter | H182: 559409 | I182: 161 | J182: MB | K182: PT | L182: 35 | T182: 0 | V182: No
A183: Madison County Transit District | B183: Granite City | C183: IL | D183: 5146 | E183: 50146 | F183: Independent Public Agency or Authority of Transit Service | G183: Full Reporter | H183: 2150706 | I183: 157 | J183: MB | K183: PT | L183: 74 | T183: 0 | V183: No
A184: Wichita Transit | B184: Wichita | C184: KS | D184: 7015 | E184: 70015 | F184: City, County or Local Government Unit or Department of Transportation | G184: Full Reporter | H184: 472870 | I184: 156 | J184: MB | K184: DO | L184: 38 | T184: 0 | V184: No
A185: Ann Arbor Area Transportation Authority | B185: Ann Arbor | C185: MI | D185: 5040 | E185: 50040 | F185: Independent Public Agency or Authority of Transit Service | G185: Full Reporter | H185: 306022 | I185: 154 | J185: MB | K185: DO | L185: 69 | T185: 0 | V185: No
A186: Space Coast Area Transit | B186: Cocoa | C186: FL | D186: 4063 | E186: 40063 | F186: City, County or Local Government Unit or Department of Transportation | G186: Full Reporter | H186: 452791 | I186: 154 | J186: MB | K186: DO | L186: 29 | T186: 0 | V186: No
A187: Ann Arbor Area Transportation Authority | B187: Ann Arbor | C187: MI | D187: 5040 | E187: 50040 | F187: Independent Public Agency or Authority of Transit Service | G187: Full Reporter | H187: 306022 | I187: 154 | J187: CB | K187: DO | L187: 2 | T187: 0 | V187: No
A188: Ann Arbor Area Transportation Authority | B188: Ann Arbor | C188: MI | D188: 5040 | E188: 50040 | F188: Independent Public Agency or Authority of Transit Service | G188: Full Reporter | H188: 306022 | I188: 154 | J188: CB | K188: PT | L188: 2 | T188: 0 | V188: No
A189: Memphis Area Transit Authority | B189: Memphis | C189: TN | D189: 4003 | E189: 40003 | F189: City, County or Local Government Unit or Department of Transportation | G189: Full Reporter | H189: 1060061 | I189: 150 | J189: MB | K189: DO | L189: 108 | N189: 0 | P189: 0 | R189: 0 | T189: 0 | V189: No
A190: Central Contra Costa Transit Authority | B190: Concord | C190: CA | D190: 9078 | E190: 90078 | F190: Independent Public Agency or Authority of Transit Service | G190: Full Reporter | H190: 615968 | I190: 143 | J190: MB | K190: DO | L190: 93 | T190: 0 | V190: No
A191: Gainesville Regional Transit System | B191: Gainesville | C191: FL | D191: 4030 | E191: 40030 | F191: City, County or Local Government Unit or Department of Transportation | G191: Full Reporter | H191: 187781 | I191: 142 | J191: MB | K191: DO | L191: 107 | T191: 0 | V191: No
A192: Golden Gate Bridge, Highway and Transportation District | B192: San Francisco | C192: CA | D192: 9016 | E192: 90016 | F192: Independent Public Agency or Authority of Transit Service | G192: Full Reporter | H192: 3281212 | I192: 141 | J192: MB | K192: DO | L192: 127 | N192: 0 | P192: 0 | R192: 58.1 | T192: 58.1 | V192: No
A193: York County Transportation Authority | B193: York | C193: PA | D193: 3027 | E193: 30027 | F193: Independent Public Agency or Authority of Transit Service | G193: Full Reporter | H193: 232045 | I193: 135 | J193: MB | K193: DO | L193: 44 | T193: 0 | V193: No
A194: York County Transportation Authority | B194: York | C194: PA | D194: 3027 | E194: 30027 | F194: Independent Public Agency or Authority of Transit Service | G194: Full Reporter | H194: 232045 | I194: 135 | J194: CB | K194: DO | L194: 9 | T194: 0 | V194: =IF(OR(O194="Q",Q194="Q",S194="Q",U194="Q"),"Yes","No") -> No
A195: Peninsula Corridor Joint Powers Board dba: Caltrain | B195: San Carlos | C195: CA | D195: 9134 | E195: 90134 | F195: Independent Public Agency or Authority of Transit Service | G195: Full Reporter | H195: 3281212 | I195: 134 | J195: MB | K195: PT | L195: 29 | T195: 0 | V195: No
A196: Fresno Area Express | B196: Fresno | C196: CA | D196: 9027 | E196: 90027 | F196: City, County or Local Government Unit or Department of Transportation | G196: Full Reporter | H196: 654628 | I196: 130 | J196: MB | K196: DO | L196: 80 | T196: 0 | V196: No
A197: Minnesota Valley Transit Authority | B197: Burnsville | C197: MN | D197: 5222 | E197: 50519 | F197: Independent Public Agency or Authority of Transit Service | G197: Full Reporter | H197: 2650890 | I197: 127 | J197: MB | K197: PT | L197: 127 | N197: 2.5 | P197: 43 | R197: 45 | T197: 90.5 | V197: No
A198: Transit Authority of Omaha | B198: Omaha | C198: NE | D198: 7002 | E198: 70002 | F198: Independent Public Agency or Authority of Transit Service | G198: Full Reporter | H198: 725008 | I198: 125 | J198: MB | K198: DO | L198: 98 | T198: 0 | V198: No
A199: Metropolitan Bus Authority | B199: San Juan | C199: PR | D199: 4086 | E199: 40086 | F199: Independent Public Agency or Authority of Transit Service | G199: Full Reporter | H199: 2148346 | I199: 125 | J199: MB | K199: DO | L199: 97 | N199: 17.1 | P199: 0 | R199: 0 | T199: 17.1 | V199: No
A200: County of Volusia, dba: VOTRAN | B200: South Daytona | C200: FL | D200: 4032 | E200: 40032 | F200: City, County or Local Government Unit or Department of Transportation | G200: Full Reporter | H200: 349064 | I200: 125 | J200: MB | K200: DO | L200: 51 | T200: 0 | V200: No
... 390 more rows

Sheet Track and Roadway by Agency
A1: Name | B1: City | C1: State | D1: Legacy NTD ID | E1: NTD ID | F1: Organization Type | G1: Reporter Type | H1: Primary UZA Population | I1: VOMS | J1: Miles of Track: | K1: At Grade: Restricted Right-of-Way | L1: At Grade: Restricted Right-of-Way Questionable | M1: Street Running | N1: Street Running Questionable | O1: Elevated on Structure | P1: Elevated on Structure Questionable | Q1: Elevated on Fill | R1: Elevated on Fill Questionable | S1: Open Cut | T1: Open Cut Questionable | U1: Subway | V1: Subway Questionable | W1: Total Track Miles | X1: Total Track Miles Questionable | Y1: Number of Crossings: | Z1: At Grade: Restricted Right-of-Way Crossings | AA1: At Grade: Restricted Right-of-Way Questionable | AB1: Street Running Crossings | AC1: Street Running Questionable | AD1: Total Crossings | AE1: Total Crossings Questionable | AF1: Miles of Roadway: | AG1: Permanent Busway | AH1: Permanent Busway Questionable | AI1: Permanent HOV | AJ1: Permanent HOV Questionable | AK1: Part-Time Busway or HOV | AL1: Part-Time Busway or HOV Questionable | AM1: Total Roadway Miles | AN1: Total Roadway Miles Questionable | AO1: Any data questionable? | AS1: =IF(AS4=1,1,0) -> 1
A2: MTA New York City Transit | B2: New York | C2: NY | D2: 2008 | E2: 20008 | F2: Subsidiary Unit of a Transit Agency, Reporting Separately | G2: Full Reporter | H2: 18351295 | I2: 11000 | K2: 137.3 | M2: 0 | O2: 196.3 | Q2: 29 | S2: 29.5 | U2: 440.4 | W2: 832.5 | Z2: 0 | AB2: 0 | AD2: 0 | AG2: 82.8 | AI2: 9.6 | AK2: 88.3 | AM2: 180.7 | AO2: =IF(OR(L2="Q",N2="Q",P2="Q",R2="Q",T2="Q",V2="Q",X2="Q",AA2="Q",AC2="Q",AE2="Q",AH2="Q",AJ2="Q",AL2="Q",AN2="Q"),"Yes","No") -> No | AS2: Hide questionable data tags
A3: New Jersey Transit Corporation | B3: Newark | C3: NJ | D3: 2080 | E3: 20080 | F3: Other Publicly-Owned or Privately Chartered Corporation | G3: Full Reporter | H3: 18351295 | I3: 4020 | K3: 905.9 | M3: 6.9 | O3: 13.1 | Q3: 29.3 | S3: 8.6 | U3: 11.3 | W3: 975.1 | Z3: 416 | AB3: 32 | AD3: 448 | AG3: 0.5 | AI3: 0 | AK3: 35.8 | AM3: 36.3 | AO3: No | AS3: Show questionable data tags
A4: Los Angeles County Metropolitan Transportation Authority dba: Metro | B4: Los Angeles | C4: CA | D4: 9154 | E4: 90154 | F4: Independent Public Agency or Authority of Transit Service | G4: Full Reporter | H4: 12150996 | I4: 3516 | K4: 73.3 | M4: 0 | O4: 15.5 | Q4: 26 | S4: 16.9 | U4: 38.2 | W4: 169.9 | Z4: 152 | AB4: 0 | AD4: 152 | AG4: 40.4 | AI4: 72.5 | AK4: 0 | AM4: 112.9 | AO4: No | AS4: 1
A5: Washington Metropolitan Area Transit Authority | B5: Washington | C5: DC | D5: 3030 | E5: 30030 | F5: Independent Public Agency or Authority of Transit Service | G5: Full Reporter | H5: 4586770 | I5: 3200 | K5: 152.2 | M5: 0 | O5: 24.2 | Q5: 0.5 | S5: 3.1 | U5: 112.3 | W5: 292.3 | Z5: 0 | AB5: 0 | AD5: 0 | AG5: 1.3 | AI5: 10.4 | AK5: 61.8 | AM5: 73.5 | AO5: No
A6: King County Department of Transportation - Metro Transit Division | B6: Seattle | C6: WA | D6: 1 | E6: 1 | F6: City, County or Local Government Unit or Department of Transportation | G6: Full Reporter | H6: 3059393 | I6: 2875 | K6: 0.1 | M6: 2.5 | O6: 0 | Q6: 0 | S6: 0 | U6: 0 | W6: 2.6 | Z6: 0 | AB6: 18 | AD6: 18 | AG6: 125.6 | AI6: 149.4 | AK6: 97.4 | AM6: 372.4 | AO6: No
A7: Chicago Transit Authority | B7: Chicago | C7: IL | D7: 5066 | E7: 50066 | F7: Independent Public Agency or Authority of Transit Service | G7: Full Reporter | H7: 8608208 | I7: 2728 | K7: 95.3 | M7: 0 | O7: 116.5 | Q7: 49.8 | S7: 2.7 | U7: 23.5 | W7: 287.8 | Z7: 25 | AB7: 0 | AD7: 25 | AG7: 3.8 | AI7: 0 | AK7: 0 | AM7: 3.8 | AO7: No
A8: Massachusetts Bay Transportation Authority | B8: Boston | C8: MA | D8: 1003 | E8: 10003 | F8: Independent Public Agency or Authority of Transit Service | G8: Full Reporter | H8: 4181019 | I8: 2344 | K8: 823 | M8: 2 | O8: 8 | Q8: 0 | S8: 10 | U8: 54.5 | W8: 897.5 | Z8: 314 | AB8: 9 | AD8: 323 | AG8: 11.4 | AI8: 0 | AK8: 1.6 | AM8: 13 | AO8: No
A9: Southeastern Pennsylvania Transportation Authority | B9: Philadelphia | C9: PA | D9: 3019 | E9: 30019 | F9: Independent Public Agency or Authority of Transit Service | G9: Full Reporter | H9: 5441567 | I9: 2340 | K9: 671.6 | M9: 189.2 | O9: 17 | Q9: 0 | S9: 0 | U9: 54.8 | W9: 932.6 | Z9: 336 | AB9: 646 | AD9: 982 | AG9: 33 | AI9: 0 | AK9: 0 | AM9: 33 | AO9: No
A10: Metropolitan Transit Authority of Harris County, Texas | B10: Houston | C10: TX | D10: 6008 | E10: 60008 | F10: Independent Public Agency or Authority of Transit Service | G10: Full Reporter | H10: 4944332 | I10: 2240 | K10: 51 | M10: 4.6 | O10: 2.8 | Q10: 0.4 | S10: 0 | U10: 0 | W10: 58.8 | Z10: 127 | AB10: 34 | AD10: 161 | AG10: 0 | AI10: 57 | AK10: 61 | AM10: 118 | AO10: No
A11: Puerto Rico Highway and Transportation Authority | B11: San Juan | C11: PR | D11: 4105 | E11: 40105 | F11: State Government Unit or Department of Transportation | G11: Full Reporter | H11: 2148346 | I11: 1800 | K11: 0 | M11: 0 | O11: 0 | Q11: 0 | S11: 0 | U11: 0 | W11: 0 | Z11: 0 | AB11: 0 | AD11: 0 | AG11: 0 | AI11: 0 | AK11: 0 | AM11: 0 | AO11: No
A12: Pace - Suburban Bus Division | B12: Arlington Heights | C12: IL | D12: 5113 | E12: 50113 | F12: Independent Public Agency or Authority of Transit Service | G12: Full Reporter | H12: 8608208 | I12: 1638 | K12: 0 | M12: 0 | O12: 0 | Q12: 0 | S12: 0 | U12: 0 | W12: 0 | Z12: 0 | AB12: 0 | AD12: 0 | AG12: 0 | AI12: 0 | AK12: 0 | AM12: 0 | AO12: No
A13: Orange County Transportation Authority | B13: Orange | C13: CA | D13: 9036 | E13: 90036 | F13: Independent Public Agency or Authority of Transit Service | G13: Full Reporter | H13: 12150996 | I13: 1528 | K13: 0 | M13: 0 | O13: 0 | Q13: 0 | S13: 0 | U13: 0 | W13: 0 | Z13: 0 | AB13: 0 | AD13: 0 | AG13: 0 | AI13: 0 | AK13: 230.6 | AM13: 230.6 | AO13: No
A14: San Francisco Municipal Railway | B14: San Francisco | C14: CA | D14: 9015 | E14: 90015 | F14: City, County or Local Government Unit or Department of Transportation | G14: Full Reporter | H14: 3281212 | I14: 1524 | K14: 29.6 | M14: 54 | O14: 0 | Q14: 0 | S14: 0.2 | U14: 14.9 | W14: 98.7 | Z14: 77 | AB14: 417 | AD14: 494 | AG14: 163.4 | AI14: 12.6 | AK14: 6.7 | AM14: 182.7 | AO14: No
A15: Maryland Transit Administration | B15: Baltimore | C15: MD | D15: 3034 | E15: 30034 | F15: State Government Unit or Department of Transportation | G15: Full Reporter | H15: 2203663 | I15: 1491 | K15: 538.7 | M15: 3 | O15: 9.9 | Q15: 0 | S15: 0 | U15: 11 | W15: 562.6 | Z15: 75 | AB15: 17 | AD15: 92 | AG15: 14.8 | AI15: 0 | AK15: 17 | AM15: 31.8 | AO15: No
A16: Denver Regional Transportation District | B16: Denver | C16: CO | D16: 8006 | E16: 80006 | F16: Independent Public Agency or Authority of Transit Service | G16: Full Reporter | H16: 2374203 | I16: 1395 | K16: 63.3 | M16: 0 | O16: 7.9 | Q16: 19.8 | S16: 2.4 | U16: 0.6 | W16: 94 | Z16: 57 | AB16: 0 | AD16: 57 | AG16: 1.9 | AI16: 0 | AK16: 50.6 | AM16: 52.5 | AO16: No
A17: Metro-North Commuter Railroad Company, dba: MTA Metro-North Railroad | B17: New York | C17: NY | D17: 2078 | E17: 20078 | F17: Subsidiary Unit of a Transit Agency, Reporting Separately | G17: Full Reporter | H17: 18351295 | I17: 1199 | K17: 791.5 | M17: 0 | O17: 6.2 | Q17: 0 | S17: 0 | U17: 10.3 | W17: 808 | Z17: 157 | AB17: 0 | AD17: 157 | AG17: 0 | AI17: 0 | AK17: 0 | AM17: 0 | AO17: No
A18: Miami-Dade Transit | B18: Miami | C18: FL | D18: 4034 | E18: 40034 | F18: City, County or Local Government Unit or Department of Transportation | G18: Full Reporter | H18: 5502379 | I18: 1129 | K18: 9.9 | M18: 0 | O18: 56.2 | Q18: 1.6 | S18: 0 | U18: 0 | W18: 67.7 | Z18: 0 | AB18: 0 | AD18: 0 | AG18: 39.8 | AI18: 0 | AK18: 52.4 | AM18: 92.2 | AO18: No
A19: Utah Transit Authority | B19: Salt Lake City | C19: UT | D19: 8001 | E19: 80001 | F19: Independent Public Agency or Authority of Transit Service | G19: Full Reporter | H19: 1021243 | I19: 1104 | K19: 212.5 | M19: 1 | O19: 2.9 | Q19: 9.6 | S19: 1.9 | U19: 0 | W19: 227.9 | Z19: 133 | AB19: 76 | AD19: 209 | AG19: 2.1 | AI19: 12.7 | AK19: 0 | AM19: 14.8 | AO19: No
A20: MTA Bus Company | B20: New York | C20: NY | D20: 2188 | E20: 20188 | F20: Subsidiary Unit of a Transit Agency, Reporting Separately | G20: Full Reporter | H20: 18351295 | I20: 1091 | K20: 0 | M20: 0 | O20: 0 | Q20: 0 | S20: 0 | U20: 0 | W20: 0 | Z20: 0 | AB20: 0 | AD20: 0 | AG20: 0.3 | AI20: 0 | AK20: 14.6 | AM20: 14.9 | AO20: No
A21: Northeast Illinois Regional Commuter Railroad Corporation dba: Metra Rail | B21: Chicago | C21: IL | D21: 5118 | E21: 50118 | F21: Independent Public Agency or Authority of Transit Service | G21: Full Reporter | H21: 8608208 | I21: 1062 | K21: 846.2 | M21: 0 | O21: 0 | Q21: 310.8 | S21: 48.9 | U21: 0 | W21: 1205.9 | Z21: 568 | AB21: 0 | AD21: 568 | AG21: 0 | AI21: 0 | AK21: 0 | AM21: 0 | AO21: No
A22: Dallas Area Rapid Transit | B22: Dallas | C22: TX | D22: 6056 | E22: 60056 | F22: Independent Public Agency or Authority of Transit Service | G22: Full Reporter | H22: 5121892 | I22: 1042 | K22: 174.7 | M22: 3.6 | O22: 73.6 | Q22: 0 | S22: 2.2 | U22: 6.2 | W22: 260.3 | Z22: 186 | AB22: 29 | AD22: 215 | AG22: 0 | AI22: 75.3 | AK22: 46.9 | AM22: 122.2 | AO22: No
A23: MTA Long Island Rail Road | B23: Jamaica | C23: NY | D23: 2100 | E23: 20100 | F23: Subsidiary Unit of a Transit Agency, Reporting Separately | G23: Full Reporter | H23: 18351295 | I23: 1019 | K23: 603 | M23: 0 | O23: 36.1 | Q23: 24 | S23: 0 | U23: 7.2 | W23: 670.3 | Z23: 334 | AB23: 0 | AD23: 334 | AG23: 0 | AI23: 0 | AK23: 0 | AM23: 0 | AO23: No
A24: Tri-County Metropolitan Transportation District of Oregon | B24: Portland | C24: OR | D24: 8 | E24: 8 | F24: Independent Public Agency or Authority of Transit Service | G24: Full Reporter | H24: 1849898 | I24: 918 | K24: 97.3 | M24: 0 | O24: 5.3 | Q24: 3.4 | S24: 10.9 | U24: 6.4 | W24: 123.3 | Z24: 214 | AB24: 0 | AD24: 214 | AG24: 3.3 | AI24: 0 | AK24: 0.6 | AM24: 3.9 | AO24: No
A25: Port Authority of Allegheny County | B25: Pittsburgh | C25: PA | D25: 3022 | E25: 30022 | F25: Independent Public Agency or Authority of Transit Service | G25: Full Reporter | H25: 1733853 | I25: 912 | K25: 35.1 | M25: 6.7 | O25: 3 | Q25: 0 | S25: 0 | U25: 6.6 | W25: 51.4 | Z25: 37 | AB25: 5 | AD25: 42 | AG25: 43.1 | AI25: 13.4 | AK25: 0 | AM25: 56.5 | AO25: No
A26: Metro Transit | B26: Minneapolis | C26: MN | D26: 5027 | E26: 50027 | F26: Subsidiary Unit of a Transit Agency, Reporting Separately | G26: Full Reporter | H26: 2650890 | I26: 885 | K26: 111.7 | M26: 0 | O26: 3.3 | Q26: 0.9 | S26: 1 | U26: 3.5 | W26: 120.4 | Z26: 140 | AB26: 0 | AD26: 140 | AG26: 10.1 | AI26: 0 | AK26: 0 | AM26: 10.1 | AO26: No
A27: Pace-Suburban Bus Division, ADA Paratransit Services | B27: Arlington Heights | C27: IL | D27: 5182 | E27: 50182 | F27: Independent Public Agency or Authority of Transit Service | G27: Full Reporter | H27: 8608208 | I27: 873 | K27: 0 | M27: 0 | O27: 0 | Q27: 0 | S27: 0 | U27: 0 | W27: 0 | Z27: 0 | AB27: 0 | AD27: 0 | AG27: 0 | AI27: 0 | AK27: 0 | AM27: 0 | AO27: No
A28: Metropolitan Atlanta Rapid Transit Authority | B28: Atlanta | C28: GA | D28: 4022 | E28: 40022 | F28: Independent Public Agency or Authority of Transit Service | G28: Full Reporter | H28: 4515419 | I28: 838 | K28: 58.2 | M28: 0 | O28: 24.4 | Q28: 0 | S28: 0 | U28: 21.1 | W28: 103.7 | Z28: 0 | AB28: 0 | AD28: 0 | AG28: 0.2 | AI28: 0 | AK28: 13.5 | AM28: 13.7 | AO28: No
A29: City and County of Honolulu Department of Transportation Services | B29: Honolulu | C29: HI | D29: 9002 | E29: 90002 | F29: City, County or Local Government Unit or Department of Transportation | G29: Full Reporter | H29: 802459 | I29: 799 | K29: 0 | M29: 0 | O29: 0 | Q29: 0 | S29: 0 | U29: 0 | W29: 0 | Z29: 0 | AB29: 0 | AD29: 0 | AG29: 1.2 | AI29: 0 | AK29: 34.7 | AM29: 35.9 | AO29: No
A30: VIA Metropolitan Transit | B30: San Antonio | C30: TX | D30: 6011 | E30: 60011 | F30: Independent Public Agency or Authority of Transit Service | G30: Full Reporter | H30: 1758210 | I30: 786 | K30: 0 | M30: 0 | O30: 0 | Q30: 0 | S30: 0 | U30: 0 | W30: 0 | Z30: 0 | AB30: 0 | AD30: 0 | AG30: 0 | AI30: 0 | AK30: 0 | AM30: 0 | AO30: No
A31: San Diego Metropolitan Transit System | B31: San Diego | C31: CA | D31: 9026 | E31: 90026 | F31: Independent Public Agency or Authority of Transit Service | G31: Full Reporter | H31: 2956746 | I31: 732 | K31: 82.7 | M31: 6.6 | O31: 8.9 | Q31: 1.8 | S31: 1.4 | U31: 1.2 | W31: 102.6 | Z31: 70 | AB31: 26 | AD31: 96 | AG31: 3.1 | AI31: 30.8 | AK31: 0 | AM31: 33.9 | AO31: No
A32: San Diego Association of Governments | B32: San Diego | C32: CA | D32: 9095 | E32: 90095 | F32: MPO, COG or Other Planning Agency | G32: Full Reporter | H32: 2956746 | I32: 714 | K32: 0 | M32: 0 | O32: 0 | Q32: 0 | S32: 0 | U32: 0 | W32: 0 | Z32: 0 | AB32: 0 | AD32: 0 | AG32: 0 | AI32: 0 | AK32: 0 | AM32: 0 | AO32: No
A33: Access Services | B33: El Monte | C33: CA | D33: 9157 | E33: 90157 | F33: Independent Public Agency or Authority of Transit Service | G33: Full Reporter | H33: 12150996 | I33: 709 | K33: 0 | M33: 0 | O33: 0 | Q33: 0 | S33: 0 | U33: 0 | W33: 0 | Z33: 0 | AB33: 0 | AD33: 0 | AG33: 0 | AI33: 0 | AK33: 0 | AM33: 0 | AO33: No
A34: Santa Clara Valley Transportation Authority | B34: San Jose | C34: CA | D34: 9013 | E34: 90013 | F34: Independent Public Agency or Authority of Transit Service | G34: Full Reporter | H34: 1664496 | I34: 679 | K34: 67.1 | M34: 0 | O34: 2.9 | Q34: 7.9 | S34: 1.4 | U34: 0.3 | W34: 79.6 | Z34: 168 | AB34: 0 | AD34: 168 | AG34: 1.1 | AI34: 247.8 | AK34: 0 | AM34: 248.9 | AO34: No
A35: Capital Metropolitan Transportation Authority | B35: Austin | C35: TX | D35: 6048 | E35: 60048 | F35: Independent Public Agency or Authority of Transit Service | G35: Full Reporter | H35: 1362416 | I35: 674 | K35: 63.6 | M35: 0 | O35: 1 | Q35: 0 | S35: 0 | U35: 0 | W35: 64.6 | Z35: 79 | AB35: 0 | AD35: 79 | AG35: 0 | AI35: 0 | AK35: 0 | AM35: 0 | AO35: No
A36: Alameda-Contra Costa Transit District | B36: Oakland | C36: CA | D36: 9014 | E36: 90014 | F36: Independent Public Agency or Authority of Transit Service | G36: Full Reporter | H36: 3281212 | I36: 667 | K36: 0 | M36: 0 | O36: 0 | Q36: 0 | S36: 0 | U36: 0 | W36: 0 | Z36: 0 | AB36: 0 | AD36: 0 | AG36: 0 | AI36: 54.2 | AK36: 0 | AM36: 54.2 | AO36: No
A37: Regional Transportation Commission of Southern Nevada | B37: Las Vegas | C37: NV | D37: 9045 | E37: 90045 | F37: Independent Public Agency or Authority of Transit Service | G37: Full Reporter | H37: 1886011 | I37: 660 | K37: 0 | M37: 0 | O37: 0 | Q37: 0 | S37: 0 | U37: 0 | W37: 0 | Z37: 0 | AB37: 0 | AD37: 0 | AG37: 64.8 | AI37: 0 | AK37: 9.2 | AM37: 74 | AO37: No
A38: Snohomish County Public Transportation Benefit Area Corporation | B38: Everett | C38: WA | D38: 29 | E38: 29 | F38: Independent Public Agency or Authority of Transit Service | G38: Full Reporter | H38: 3059393 | I38: 608 | K38: 0 | M38: 0 | O38: 0 | Q38: 0 | S38: 0 | U38: 0 | W38: 0 | Z38: 0 | AB38: 0 | AD38: 0 | AG38: 4 | AI38: 146.4 | AK38: 3.9 | AM38: 154.3 | AO38: No
A39: City of Phoenix Public Transit Department dba Valley Metro | B39: Phoenix | C39: AZ | D39: 9032 | E39: 90032 | F39: City, County or Local Government Unit or Department of Transportation | G39: Full Reporter | H39: 3629114 | I39: 571 | K39: 0 | M39: 0 | O39: 0 | Q39: 0 | S39: 0 | U39: 0 | W39: 0 | Z39: 0 | AB39: 0 | AD39: 0 | AG39: 0 | AI39: 0 | AK39: 117.7 | AM39: 117.7 | AO39: No
A40: Central Florida Regional Transportation Authority | B40: Orlando | C40: FL | D40: 4035 | E40: 40035 | F40: Independent Public Agency or Authority of Transit Service | G40: Full Reporter | H40: 1510516 | I40: 560 | K40: 0 | M40: 0 | O40: 0 | Q40: 0 | S40: 0 | U40: 0 | W40: 0 | Z40: 0 | AB40: 0 | AD40: 0 | AG40: 4.1 | AI40: 0 | AK40: 0 | AM40: 4.1 | AO40: No
A41: The Greater Cleveland Regional Transit Authority | B41: Cleveland | C41: OH | D41: 5015 | E41: 50015 | F41: Independent Public Agency or Authority of Transit Service | G41: Full Reporter | H41: 1780673 | I41: 547 | K41: 64.5 | M41: 0 | O41: 2.8 | Q41: 3.9 | S41: 3.1 | U41: 0.6 | W41: 74.9 | Z41: 22 | AB41: 0 | AD41: 22 | AG41: 11.9 | AI41: 0 | AK41: 5.4 | AM41: 17.3 | AO41: No
A42: VRide, Inc. - Michigan | B42: Farmington Hills | C42: MI | D42: 5193 | E42: 50193 | F42: Private Provider Reporting on Behalf of a Public Entity | G42: Full Reporter | H42: 3734090 | I42: 539 | K42: 0 | M42: 0 | O42: 0 | Q42: 0 | S42: 0 | U42: 0 | W42: 0 | Z42: 0 | AB42: 0 | AD42: 0 | AG42: 0 | AI42: 0 | AK42: 0 | AM42: 0 | AO42: No
A43: San Francisco Bay Area Rapid Transit District | B43: Oakland | C43: CA | D43: 9003 | E43: 90003 | F43: Independent Public Agency or Authority of Transit Service | G43: Full Reporter | H43: 3281212 | I43: 538 | K43: 154.7 | M43: 0 | O43: 59.6 | Q43: 0 | S43: 0.3 | U43: 56.1 | W43: 270.7 | Z43: 0 | AB43: 0 | AD43: 0 | AG43: 0 | AI43: 0 | AK43: 0 | AM43: 0 | AO43: No
A44: Pierce County Transportation Benefit Area Authority | B44: Tacoma | C44: WA | D44: 3 | E44: 3 | F44: Independent Public Agency or Authority of Transit Service | G44: Full Reporter | H44: 3059393 | I44: 507 | K44: 0 | M44: 0 | O44: 0 | Q44: 0 | S44: 0 | U44: 0 | W44: 0 | Z44: 0 | AB44: 0 | AD44: 0 | AG44: 0 | AI44: 16.9 | AK44: 0 | AM44: 16.9 | AO44: No
A45: California Vanpool Authority | B45: Hanford | C45: CA | D45: 9230 | E45: 90230 | F45: City, County or Local Government Unit or Department of Transportation | G45: Full Reporter | H45: 87941 | I45: 505 | K45: 0 | M45: 0 | O45: 0 | Q45: 0 | S45: 0 | U45: 0 | W45: 0 | Z45: 0 | AB45: 0 | AD45: 0 | AG45: 0 | AI45: 0 | AK45: 0 | AM45: 0 | AO45: No
A46: Broward County Transit Division | B46: Plantation | C46: FL | D46: 4029 | E46: 40029 | F46: City, County or Local Government Unit or Department of Transportation | G46: Full Reporter | H46: 5502379 | I46: 474 | K46: 0 | M46: 0 | O46: 0 | Q46: 0 | S46: 0 | U46: 0 | W46: 0 | Z46: 0 | AB46: 0 | AD46: 0 | AG46: 0 | AI46: 0 | AK46: 24.6 | AM46: 24.6 | AO46: No
A47: Potomac and Rappahannock Transportation Commission | B47: Woodbridge | C47: VA | D47: 3070 | E47: 30070 | F47: Independent Public Agency or Authority of Transit Service | G47: Full Reporter | H47: 4586770 | I47: 473 | K47: 0 | M47: 0 | O47: 0 | Q47: 0 | S47: 0 | U47: 0 | W47: 0 | Z47: 0 | AB47: 0 | AD47: 0 | AG47: 0 | AI47: 0 | AK47: 122.4 | AM47: 122.4 | AO47: No
A48: Bi-State Development Agency of the Missouri-Illinois Metropolitan District, d.b.a.(St. Louis) Metro | B48: St. Louis | C48: MO | D48: 7006 | E48: 70006 | F48: Independent Public Agency or Authority of Transit Service | G48: Full Reporter | H48: 2150706 | I48: 473 | K48: 54.9 | M48: 0 | O48: 8.6 | Q48: 12.4 | S48: 14.5 | U48: 5.9 | W48: 96.3 | Z48: 25 | AB48: 0 | AD48: 25 | AG48: 0 | AI48: 0 | AK48: 0 | AM48: 0 | AO48: No
A49: LACMTA - Small Operators | B49: Los Angeles | C49: CA | D49: 9166 | E49: 90166 | F49: Other | G49: Full Reporter | H49: 12150996 | I49: 462 | K49: 0 | M49: 0 | O49: 0 | Q49: 0 | S49: 0 | U49: 0 | W49: 0 | Z49: 0 | AB49: 0 | AD49: 0 | AG49: 0 | AI49: 0 | AK49: 0 | AM49: 0 | AO49: No
A50: City of Detroit Department of Transportation | B50: Detroit | C50: MI | D50: 5119 | E50: 50119 | F50: City, County or Local Government Unit or Department of Transportation | G50: Full Reporter | H50: 3734090 | I50: 454 | K50: 0 | M50: 0 | O50: 0 | Q50: 0 | S50: 0 | U50: 0 | W50: 0 | Z50: 0 | AB50: 0 | AD50: 0 | AG50: 0 | AI50: 0 | AK50: 0 | AM50: 0 | AO50: No
A51: Board of County Commissioners, Palm Beach County, PalmTran, Inc. | B51: West Palm Beach | C51: FL | D51: 4037 | E51: 40037 | F51: City, County or Local Government Unit or Department of Transportation | G51: Full Reporter | H51: 5502379 | I51: 450 | K51: 0 | M51: 0 | O51: 0 | Q51: 0 | S51: 0 | U51: 0 | W51: 0 | Z51: 0 | AB51: 0 | AD51: 0 | AG51: 0 | AI51: 0 | AK51: 0 | AM51: 0 | AO51: No
A52: Metro Mobility | B52: St. Paul | C52: MN | D52: 5155 | E52: 50155 | F52: Subsidiary Unit of a Transit Agency, Reporting Separately | G52: Full Reporter | H52: 2650890 | I52: 446 | K52: 0 | M52: 0 | O52: 0 | Q52: 0 | S52: 0 | U52: 0 | W52: 0 | Z52: 0 | AB52: 0 | AD52: 0 | AG52: 0 | AI52: 0 | AK52: 0 | AM52: 0 | AO52: No
A53: Delaware Transit Corporation | B53: Dover | C53: DE | D53: 3075 | E53: 30075 | F53: Independent Public Agency or Authority of Transit Service | G53: Full Reporter | H53: 5441567 | I53: 445 | K53: 0 | M53: 0 | O53: 0 | Q53: 0 | S53: 0 | U53: 0 | W53: 0 | Z53: 0 | AB53: 0 | AD53: 0 | AG53: 0 | AI53: 0 | AK53: 0 | AM53: 0 | AO53: No
A54: Ben Franklin Transit | B54: Richland | C54: WA | D54: 18 | E54: 18 | F54: Independent Public Agency or Authority of Transit Service | G54: Full Reporter | H54: 210975 | I54: 440 | K54: 0 | M54: 0 | O54: 0 | Q54: 0 | S54: 0 | U54: 0 | W54: 0 | Z54: 0 | AB54: 0 | AD54: 0 | AG54: 0 | AI54: 0 | AK54: 0 | AM54: 0 | AO54: No
A55: Milwaukee County Transit System | B55: Milwaukee | C55: WI | D55: 5008 | E55: 50008 | F55: City, County or Local Government Unit or Department of Transportation | G55: Full Reporter | H55: 1376476 | I55: 433 | K55: 0 | M55: 0 | O55: 0 | Q55: 0 | S55: 0 | U55: 0 | W55: 0 | Z55: 0 | AB55: 0 | AD55: 0 | AG55: 0 | AI55: 0 | AK55: 0 | AM55: 0 | AO55: No
A56: Charlotte Area Transit System | B56: Charlotte | C56: NC | D56: 4008 | E56: 40008 | F56: City, County or Local Government Unit or Department of Transportation | G56: Full Reporter | H56: 1249442 | I56: 431 | K56: 6.6 | M56: 0 | O56: 0.9 | Q56: 1.8 | S56: 0 | U56: 0 | W56: 9.3 | Z56: 20 | AB56: 0 | AD56: 20 | AG56: 15.4 | AI56: 28.8 | AK56: 0 | AM56: 44.2 | AO56: No
A57: Regional Public Transportation Authority, dba: Valley Metro | B57: Phoenix | C57: AZ | D57: 9136 | E57: 90136 | F57: Independent Public Agency or Authority of Transit Service | G57: Full Reporter | H57: 3629114 | I57: 403 | K57: 0 | M57: 0 | O57: 0 | Q57: 0 | S57: 0 | U57: 0 | W57: 0 | Z57: 0 | AB57: 0 | AD57: 0 | AG57: 0 | AI57: 0 | AK57: 227.4 | AM57: 227.4 | AO57: No
A58: vRide, Inc. - Valley Metro | B58: Phoenix | C58: AZ | D58: 9169 | E58: 90169 | F58: Private Provider Reporting on Behalf of a Public Entity | G58: Full Reporter | H58: 3629114 | I58: 397 | K58: 0 | M58: 0 | O58: 0 | Q58: 0 | S58: 0 | U58: 0 | W58: 0 | Z58: 0 | AB58: 0 | AD58: 0 | AG58: 0 | AI58: 0 | AK58: 0 | AM58: 0 | AO58: No
A59: City of Los Angeles Department of Transportation | B59: Los Angeles | C59: CA | D59: 9147 | E59: 90147 | F59: City, County or Local Government Unit or Department of Transportation | G59: Full Reporter | H59: 12150996 | I59: 369 | K59: 0 | M59: 0 | O59: 0 | Q59: 0 | S59: 0 | U59: 0 | W59: 0 | Z59: 0 | AB59: 0 | AD59: 0 | AG59: 0 | AI59: 35.1 | AK59: 0 | AM59: 35.1 | AO59: No
A60: Transportation District Commission of Hampton Roads | B60: Hampton | C60: VA | D60: 3083 | E60: 30083 | F60: Independent Public Agency or Authority of Transit Service | G60: Full Reporter | H60: 1439666 | I60: 368 | K60: 4.2 | M60: 1.9 | O60: 1.3 | Q60: 0 | S60: 0 | U60: 0 | W60: 7.4 | Z60: 14 | AB60: 8 | AD60: 22 | AG60: 0 | AI60: 0 | AK60: 72.8 | AM60: 72.8 | AO60: No
A61: San Mateo County Transit District | B61: San Carlos | C61: CA | D61: 9009 | E61: 90009 | F61: Independent Public Agency or Authority of Transit Service | G61: Full Reporter | H61: 3281212 | I61: 363 | K61: 0 | M61: 0 | O61: 0 | Q61: 0 | S61: 0 | U61: 0 | W61: 0 | Z61: 0 | AB61: 0 | AD61: 0 | AG61: 0 | AI61: 0 | AK61: 0 | AM61: 0 | AO61: No
A62: Central Ohio Transit Authority | B62: Columbus | C62: OH | D62: 5016 | E62: 50016 | F62: Independent Public Agency or Authority of Transit Service | G62: Full Reporter | H62: 1368035 | I62: 361 | K62: 0 | M62: 0 | O62: 0 | Q62: 0 | S62: 0 | U62: 0 | W62: 0 | Z62: 0 | AB62: 0 | AD62: 0 | AG62: 0 | AI62: 0 | AK62: 0 | AM62: 0 | AO62: No
A63: Nassau Inter County Express | B63: Garden City | C63: NY | D63: 2206 | E63: 20206 | F63: City, County or Local Government Unit or Department of Transportation | G63: Full Reporter | H63: 18351295 | I63: 353 | K63: 0 | M63: 0 | O63: 0 | Q63: 0 | S63: 0 | U63: 0 | W63: 0 | Z63: 0 | AB63: 0 | AD63: 0 | AG63: 0 | AI63: 0 | AK63: 0 | AM63: 0 | AO63: No
A64: Niagara Frontier Transportation Authority | B64: Buffalo | C64: NY | D64: 2004 | E64: 20004 | F64: Independent Public Agency or Authority of Transit Service | G64: Full Reporter | H64: 935906 | I64: 351 | K64: 3.3 | M64: 0.4 | O64: 0 | Q64: 0 | S64: 0 | U64: 10.4 | W64: 14.1 | Z64: 0 | AB64: 8 | AD64: 8 | AG64: 0 | AI64: 0 | AK64: 0 | AM64: 0 | AO64: No
A65: Southwest Ohio Regional Transit Authority | B65: Cincinnati | C65: OH | D65: 5012 | E65: 50012 | F65: City, County or Local Government Unit or Department of Transportation | G65: Full Reporter | H65: 1624827 | I65: 346 | K65: 0 | M65: 0 | O65: 0 | Q65: 0 | S65: 0 | U65: 0 | W65: 0 | Z65: 0 | AB65: 0 | AD65: 0 | AG65: 0.1 | AI65: 0 | AK65: 0 | AM65: 0.1 | AO65: No
A66: Westchester County Bee-Line System | B66: Mount Vernon | C66: NY | D66: 2076 | E66: 20076 | F66: City, County or Local Government Unit or Department of Transportation | G66: Full Reporter | H66: 18351295 | I66: 343 | K66: 0 | M66: 0 | O66: 0 | Q66: 0 | S66: 0 | U66: 0 | W66: 0 | Z66: 0 | AB66: 0 | AD66: 0 | AG66: 0 | AI66: 0 | AK66: 0 | AM66: 0 | AO66: =IF(OR(L66="Q",N66="Q",P66="Q",R66="Q",T66="Q",V66="Q",X66="Q",AA66="Q",AC66="Q",AE66="Q",AH66="Q",AJ66="Q",AL66="Q",AN66="Q"),"Yes","No") -> No
A67: City of Tucson | B67: Tucson | C67: AZ | D67: 9033 | E67: 90033 | F67: City, County or Local Government Unit or Department of Transportation | G67: Full Reporter | H67: 843168 | I67: 338 | K67: 0.2 | M67: 3.7 | O67: 0 | Q67: 0 | S67: 0 | U67: 0 | W67: 3.9 | Z67: 2 | AB67: 40 | AD67: 42 | AG67: 0 | AI67: 0 | AK67: 0 | AM67: 0 | AO67: No
A68: Central Puget Sound Regional Transit Authority | B68: Seattle | C68: WA | D68: 40 | E68: 40 | F68: Independent Public Agency or Authority of Transit Service | G68: Full Reporter | H68: 3059393 | I68: 336 | K68: 177.6 | M68: 1 | O68: 13.4 | Q68: 0 | S68: 0.6 | U68: 7.5 | W68: 200.1 | Z68: 113 | AB68: 4 | AD68: 117 | AG68: 4.1 | AI68: 181.6 | AK68: 91.3 | AM68: 277 | AO68: No
A69: Cape Cod Regional Transit Authority | B69: Hyannis | C69: MA | D69: 1105 | E69: 10105 | F69: Independent Public Agency or Authority of Transit Service | G69: Full Reporter | H69: 246695 | I69: 335 | K69: 0 | M69: 0 | O69: 0 | Q69: 0 | S69: 0 | U69: 0 | W69: 0 | Z69: 0 | AB69: 0 | AD69: 0 | AG69: 0 | AI69: 0 | AK69: 0 | AM69: 0 | AO69: No
A70: Greater Richmond Transit Company | B70: Richmond | C70: VA | D70: 3006 | E70: 30006 | F70: Other Publicly-Owned or Privately Chartered Corporation | G70: Full Reporter | H70: 953556 | I70: 328 | K70: 0 | M70: 0 | O70: 0 | Q70: 0 | S70: 0 | U70: 0 | W70: 0 | Z70: 0 | AB70: 0 | AD70: 0 | AG70: 0 | AI70: 0 | AK70: 0 | AM70: 0 | AO70: No
A71: Lane Transit District | B71: Eugene | C71: OR | D71: 7 | E71: 7 | F71: Independent Public Agency or Authority of Transit Service | G71: Full Reporter | H71: 247421 | I71: 325 | K71: 0 | M71: 0 | O71: 0 | Q71: 0 | S71: 0 | U71: 0 | W71: 0 | Z71: 0 | AB71: 0 | AD71: 0 | AG71: 10.1 | AI71: 0 | AK71: 0 | AM71: 10.1 | AO71: No
A72: Suburban Mobility Authority for Regional Transportation | B72: Detroit | C72: MI | D72: 5031 | E72: 50031 | F72: Independent Public Agency or Authority of Transit Service | G72: Full Reporter | H72: 3734090 | I72: 317 | K72: 0 | M72: 0 | O72: 0 | Q72: 0 | S72: 0 | U72: 0 | W72: 0 | Z72: 0 | AB72: 0 | AD72: 0 | AG72: 0 | AI72: 0 | AK72: 0 | AM72: 0 | AO72: No
A73: Transit Authority of River City | B73: Louisville | C73: KY | D73: 4018 | E73: 40018 | F73: Independent Public Agency or Authority of Transit Service | G73: Full Reporter | H73: 972546 | I73: 315 | K73: 0 | M73: 0 | O73: 0 | Q73: 0 | S73: 0 | U73: 0 | W73: 0 | Z73: 0 | AB73: 0 | AD73: 0 | AG73: 0 | AI73: 0 | AK73: 0 | AM73: 0 | AO73: No
A74: Spokane Transit Authority | B74: Spokane | C74: WA | D74: 2 | E74: 2 | F74: Independent Public Agency or Authority of Transit Service | G74: Full Reporter | H74: 387847 | I74: 311 | K74: 0 | M74: 0 | O74: 0 | Q74: 0 | S74: 0 | U74: 0 | W74: 0 | Z74: 0 | AB74: 0 | AD74: 0 | AG74: 0 | AI74: 0 | AK74: 0 | AM74: 0 | AO74: No
A75: Intercity Transit | B75: Olympia | C75: WA | D75: 19 | E75: 19 | F75: Independent Public Agency or Authority of Transit Service | G75: Full Reporter | H75: 176617 | I75: 310 | K75: 0 | M75: 0 | O75: 0 | Q75: 0 | S75: 0 | U75: 0 | W75: 0 | Z75: 0 | AB75: 0 | AD75: 0 | AG75: 0 | AI75: 0 | AK75: 0 | AM75: 0 | AO75: No
A76: Pinellas Suncoast Transit Authority | B76: St. Petersburg | C76: FL | D76: 4027 | E76: 40027 | F76: Independent Public Agency or Authority of Transit Service | G76: Full Reporter | H76: 2441770 | I76: 308 | K76: 0 | M76: 0 | O76: 0 | Q76: 0 | S76: 0 | U76: 0 | W76: 0 | Z76: 0 | AB76: 0 | AD76: 0 | AG76: 0 | AI76: 0 | AK76: 1.1 | AM76: 1.1 | AO76: No
A77: Port Authority Trans-Hudson Corporation | B77: Jersey City | C77: NJ | D77: 2098 | E77: 20098 | F77: Independent Public Agency or Authority of Transit Service | G77: Full Reporter | H77: 18351295 | I77: 304 | K77: 12.7 | M77: 0 | O77: 3.3 | Q77: 5 | S77: 5.2 | U77: 16.9 | W77: 43.1 | Z77: 2 | AB77: 0 | AD77: 2 | AG77: 0 | AI77: 0 | AK77: 0 | AM77: 0 | AO77: No
A78: Rhode Island Public Transit Authority | B78: Providence | C78: RI | D78: 1001 | E78: 10001 | F78: Independent Public Agency or Authority of Transit Service | G78: Full Reporter | H78: 1190956 | I78: 304 | K78: 0 | M78: 0 | O78: 0 | Q78: 0 | S78: 0 | U78: 0 | W78: 0 | Z78: 0 | AB78: 0 | AD78: 0 | AG78: 1.6 | AI78: 0 | AK78: 0 | AM78: 1.6 | AO78: No
A79: Capital Area Transit | B79: Raleigh | C79: NC | D79: 4007 | E79: 40007 | F79: City, County or Local Government Unit or Department of Transportation | G79: Full Reporter | H79: 884891 | I79: 298 | K79: 0 | M79: 0 | O79: 0 | Q79: 0 | S79: 0 | U79: 0 | W79: 0 | Z79: 0 | AB79: 0 | AD79: 0 | AG79: 0 | AI79: 0 | AK79: 0 | AM79: 0 | AO79: No
A80: Kansas City Area Transportation Authority | B80: Kansas City | C80: MO | D80: 7005 | E80: 70005 | F80: Independent Public Agency or Authority of Transit Service | G80: Full Reporter | H80: 1519417 | I80: 295 | K80: 0 | M80: 0 | O80: 0 | Q80: 0 | S80: 0 | U80: 0 | W80: 0 | Z80: 0 | AB80: 0 | AD80: 0 | AG80: 1 | AI80: 0 | AK80: 14.1 | AM80: 15.1 | AO80: No
A81: Suffolk County Department of Public Works - Transportation Division | B81: Yaphank | C81: NY | D81: 2072 | E81: 20072 | F81: City, County or Local Government Unit or Department of Transportation | G81: Full Reporter | H81: 18351295 | I81: 291 | K81: 0 | M81: 0 | O81: 0 | Q81: 0 | S81: 0 | U81: 0 | W81: 0 | Z81: 0 | AB81: 0 | AD81: 0 | AG81: 0 | AI81: 0 | AK81: 46.9 | AM81: 46.9 | AO81: No
A82: Ride-On Montgomery County Transit | B82: Rockville | C82: MD | D82: 3051 | E82: 30051 | F82: City, County or Local Government Unit or Department of Transportation | G82: Full Reporter | H82: 4586770 | I82: 282 | K82: 0 | M82: 0 | O82: 0 | Q82: 0 | S82: 0 | U82: 0 | W82: 0 | Z82: 0 | AB82: 0 | AD82: 0 | AG82: 0 | AI82: 0 | AK82: 0 | AM82: 0 | AO82: No
A83: Foothill Transit | B83: West Covina | C83: CA | D83: 9146 | E83: 90146 | F83: Independent Public Agency or Authority of Transit Service | G83: Full Reporter | H83: 12150996 | I83: 278 | K83: 0 | M83: 0 | O83: 0 | Q83: 0 | S83: 0 | U83: 0 | W83: 0 | Z83: 0 | AB83: 0 | AD83: 0 | AG83: 1.5 | AI83: 0 | AK83: 62.3 | AM83: 63.8 | AO83: No
A84: Metropolitan Transit Authority | B84: Nashville | C84: TN | D84: 4004 | E84: 40004 | F84: Independent Public Agency or Authority of Transit Service | G84: Full Reporter | H84: 969587 | I84: 269 | K84: 0 | M84: 0 | O84: 0 | Q84: 0 | S84: 0 | U84: 0 | W84: 0 | Z84: 0 | AB84: 0 | AD84: 0 | AG84: 0 | AI84: 0 | AK84: 0 | AM84: 0 | AO84: No
A85: Salem Area Mass Transit District | B85: Salem | C85: OR | D85: 25 | E85: 25 | F85: Independent Public Agency or Authority of Transit Service | G85: Full Reporter | H85: 236632 | I85: 269 | K85: 0 | M85: 0 | O85: 0 | Q85: 0 | S85: 0 | U85: 0 | W85: 0 | Z85: 0 | AB85: 0 | AD85: 0 | AG85: 0 | AI85: 0 | AK85: 0 | AM85: 0 | AO85: No
A86: vRide, Inc. - Atlanta | B86: Atlanta | C86: GA | D86: 4153 | E86: 40153 | F86: Private Provider Reporting on Behalf of a Public Entity | G86: Full Reporter | H86: 4515419 | I86: 267 | K86: 0 | M86: 0 | O86: 0 | Q86: 0 | S86: 0 | U86: 0 | W86: 0 | Z86: 0 | AB86: 0 | AD86: 0 | AG86: 0 | AI86: 0 | AK86: 0 | AM86: 0 | AO86: No
A87: Kitsap Transit | B87: Bremerton | C87: WA | D87: 20 | E87: 20 | F87: Independent Public Agency or Authority of Transit Service | G87: Full Reporter | H87: 198979 | I87: 266 | K87: 0 | M87: 0 | O87: 0 | Q87: 0 | S87: 0 | U87: 0 | W87: 0 | Z87: 0 | AB87: 0 | AD87: 0 | AG87: 0 | AI87: 0 | AK87: 0 | AM87: 0 | AO87: No
A88: Riverside Transit Agency | B88: Riverside | C88: CA | D88: 9031 | E88: 90031 | F88: Independent Public Agency or Authority of Transit Service | G88: Full Reporter | H88: 1932666 | I88: 260 | K88: 0 | M88: 0 | O88: 0 | Q88: 0 | S88: 0 | U88: 0 | W88: 0 | Z88: 0 | AB88: 0 | AD88: 0 | AG88: 0 | AI88: 0 | AK88: 0 | AM88: 0 | AO88: No
A89: Regional Transit Service, Inc. and Lift Line, Inc. | B89: Rochester | C89: NY | D89: 2113 | E89: 20113 | F89: Independent Public Agency or Authority of Transit Service | G89: Full Reporter | H89: 720572 | I89: 256 | K89: 0 | M89: 0 | O89: 0 | Q89: 0 | S89: 0 | U89: 0 | W89: 0 | Z89: 0 | AB89: 0 | AD89: 0 | AG89: 0 | AI89: 0 | AK89: 0 | AM89: 0 | AO89: No
A90: Pioneer Valley Transit Authority | B90: Springfield | C90: MA | D90: 1008 | E90: 10008 | F90: Independent Public Agency or Authority of Transit Service | G90: Full Reporter | H90: 621300 | I90: 254 | K90: 0 | M90: 0 | O90: 0 | Q90: 0 | S90: 0 | U90: 0 | W90: 0 | Z90: 0 | AB90: 0 | AD90: 0 | AG90: 0 | AI90: 0 | AK90: 0 | AM90: 0 | AO90: No
A91: Metro Transit System | B91: Madison | C91: WI | D91: 5005 | E91: 50005 | F91: City, County or Local Government Unit or Department of Transportation | G91: Full Reporter | H91: 401661 | I91: 254 | K91: 0 | M91: 0 | O91: 0 | Q91: 0 | S91: 0 | U91: 0 | W91: 0 | Z91: 0 | AB91: 0 | AD91: 0 | AG91: 12.5 | AI91: 0 | AK91: 0 | AM91: 12.5 | AO91: No
A92: Omnitrans | B92: San Bernardino | C92: CA | D92: 9029 | E92: 90029 | F92: Independent Public Agency or Authority of Transit Service | G92: Full Reporter | H92: 1932666 | I92: 248 | K92: 0 | M92: 0 | O92: 0 | Q92: 0 | S92: 0 | U92: 0 | W92: 0 | Z92: 0 | AB92: 0 | AD92: 0 | AG92: 5.4 | AI92: 0 | AK92: 0 | AM92: 5.4 | AO92: No
A93: Miami Lakes - vRide, Inc. | B93: Miami Lakes | C93: FL | D93: 4152 | E93: 40152 | F93: Private Provider Reporting on Behalf of a Public Entity | G93: Full Reporter | H93: 5502379 | I93: 246 | K93: 0 | M93: 0 | O93: 0 | Q93: 0 | S93: 0 | U93: 0 | W93: 0 | Z93: 0 | AB93: 0 | AD93: 0 | AG93: 0 | AI93: 0 | AK93: 0 | AM93: 0 | AO93: No
A94: Jacksonville Transportation Authority | B94: Jacksonville | C94: FL | D94: 4040 | E94: 40040 | F94: Independent Public Agency or Authority of Transit Service | G94: Full Reporter | H94: 1065219 | I94: 246 | K94: 0 | M94: 0 | O94: 5.4 | Q94: 0 | S94: 0 | U94: 0 | W94: 5.4 | Z94: 0 | AB94: 0 | AD94: 0 | AG94: 0 | AI94: 0 | AK94: 0 | AM94: 0 | AO94: No
A95: Interurban Transit Partnership | B95: Grand Rapids | C95: MI | D95: 5033 | E95: 50033 | F95: Independent Public Agency or Authority of Transit Service | G95: Full Reporter | H95: 569935 | I95: 246 | K95: 0 | M95: 0 | O95: 0 | Q95: 0 | S95: 0 | U95: 0 | W95: 0 | Z95: 0 | AB95: 0 | AD95: 0 | AG95: 9.5 | AI95: 0 | AK95: 0 | AM95: 9.5 | AO95: No
A96: Victor Valley Transit Authority | B96: Hesperia | C96: CA | D96: 9148 | E96: 90148 | F96: Independent Public Agency or Authority of Transit Service | G96: Full Reporter | H96: 328454 | I96: 245 | K96: 0 | M96: 0 | O96: 0 | Q96: 0 | S96: 0 | U96: 0 | W96: 0 | Z96: 0 | AB96: 0 | AD96: 0 | AG96: 0 | AI96: 0 | AK96: 0 | AM96: 0 | AO96: No
A97: Capital District Transportation Authority | B97: Albany | C97: NY | D97: 2002 | E97: 20002 | F97: Independent Public Agency or Authority of Transit Service | G97: Full Reporter | H97: 594962 | I97: 239 | K97: 0 | M97: 0 | O97: 0 | Q97: 0 | S97: 0 | U97: 0 | W97: 0 | Z97: 0 | AB97: 0 | AD97: 0 | AG97: 0 | AI97: 0 | AK97: 0 | AM97: 0 | AO97: No
A98: Connecticut Department of Transportation - CTTRANSIT - Hartford Division | B98: Hartford | C98: CT | D98: 1048 | E98: 10048 | F98: State Government Unit or Department of Transportation | G98: Full Reporter | H98: 924859 | I98: 233 | K98: 0 | M98: 0 | O98: 0 | Q98: 0 | S98: 0 | U98: 0 | W98: 0 | Z98: 0 | AB98: 0 | AD98: 0 | AG98: 36.4 | AI98: 28.8 | AK98: 0 | AM98: 65.2 | AO98: No
A99: Des Moines Area Regional Transit Authority | B99: Des Moines | C99: IA | D99: 7010 | E99: 70010 | F99: Independent Public Agency or Authority of Transit Service | G99: Full Reporter | H99: 450070 | I99: 231 | K99: 0 | M99: 0 | O99: 0 | Q99: 0 | S99: 0 | U99: 0 | W99: 0 | Z99: 0 | AB99: 0 | AD99: 0 | AG99: 0 | AI99: 0 | AK99: 0 | AM99: 0 | AO99: No
A100: North County Transit District | B100: Oceanside | C100: CA | D100: 9030 | E100: 90030 | F100: Independent Public Agency or Authority of Transit Service | G100: Full Reporter | H100: 2956746 | I100: 230 | K100: 129.3 | M100: 0 | O100: 2.6 | Q100: 0 | S100: 1.6 | U100: 0 | W100: 133.5 | Z100: 78 | AB100: 0 | AD100: 78 | AG100: 0 | AI100: 0 | AK100: 0 | AM100: 0 | AO100: No
A101: Greater Hartford Ridesharing Corporation - The Rideshare Company | B101: Bloomfield | C101: CT | D101: 1108 | E101: 10108 | F101: Independent Public Agency or Authority of Transit Service | G101: Full Reporter | H101: 924859 | I101: 228 | K101: 0 | M101: 0 | O101: 0 | Q101: 0 | S101: 0 | U101: 0 | W101: 0 | Z101: 0 | AB101: 0 | AD101: 0 | AG101: 0 | AI101: 0 | AK101: 0 | AM101: 0 | AO101: No
A102: Academy Lines, Inc. | B102: Hoboken | C102: NJ | D102: 2122 | E102: 20122 | F102: Private-For-Profit Corporation | G102: Full Reporter | H102: 18351295 | I102: 225 | K102: 0 | M102: 0 | O102: 0 | Q102: 0 | S102: 0 | U102: 0 | W102: 0 | Z102: 0 | AB102: 0 | AD102: 0 | AG102: 0 | AI102: 0 | AK102: 2.9 | AM102: 2.9 | AO102: No
A103: Metropolitan Council | B103: St. Paul | C103: MN | D103: 5154 | E103: 50154 | F103: City, County or Local Government Unit or Department of Transportation | G103: Full Reporter | H103: 2650890 | I103: 223 | K103: 0 | M103: 0 | O103: 0 | Q103: 0 | S103: 0 | U103: 0 | W103: 0 | Z103: 0 | AB103: 0 | AD103: 0 | AG103: 1.4 | AI103: 26.5 | AK103: 17.6 | AM103: 45.5 | AO103: No
A104: Sacramento Regional Transit District | B104: Sacramento | C104: CA | D104: 9019 | E104: 90019 | F104: Independent Public Agency or Authority of Transit Service | G104: Full Reporter | H104: 1723634 | I104: 222 | K104: 62.6 | M104: 7.9 | O104: 2.6 | Q104: 2 | S104: 0 | U104: 0 | W104: 75.1 | Z104: 59 | AB104: 74 | AD104: 133 | AG104: 0 | AI104: 0 | AK104: 0 | AM104: 0 | AO104: No
A105: Fairfax Connector Bus System | B105: Fairfax | C105: VA | D105: 3068 | E105: 30068 | F105: City, County or Local Government Unit or Department of Transportation | G105: Full Reporter | H105: 4586770 | I105: 221 | K105: 0 | M105: 0 | O105: 0 | Q105: 0 | S105: 0 | U105: 0 | W105: 0 | Z105: 0 | AB105: 0 | AD105: 0 | AG105: 0 | AI105: 0 | AK105: 69.5 | AM105: 69.5 | AO105: No
A106: Blue Water Area Transportation Commission | B106: Port Huron | C106: MI | D106: 5148 | E106: 50148 | F106: Independent Public Agency or Authority of Transit Service | G106: Full Reporter | H106: 87106 | I106: 209 | K106: 0 | M106: 0 | O106: 0 | Q106: 0 | S106: 0 | U106: 0 | W106: 0 | Z106: 0 | AB106: 0 | AD106: 0 | AG106: 0 | AI106: 0 | AK106: 0 | AM106: 0 | AO106: No
A107: METRO Regional Transit Authority | B107: Akron | C107: OH | D107: 5010 | E107: 50010 | F107: Independent Public Agency or Authority of Transit Service | G107: Full Reporter | H107: 569499 | I107: 209 | K107: 0 | M107: 0 | O107: 0 | Q107: 0 | S107: 0 | U107: 0 | W107: 0 | Z107: 0 | AB107: 0 | AD107: 0 | AG107: 0 | AI107: 0 | AK107: 0 | AM107: 0 | AO107: No
A108: Fort Worth Transportation Authority | B108: Fort Worth | C108: TX | D108: 6007 | E108: 60007 | F108: Independent Public Agency or Authority of Transit Service | G108: Full Reporter | H108: 5121892 | I108: 207 | K108: 0 | M108: 0 | O108: 0 | Q108: 0 | S108: 0 | U108: 0 | W108: 0 | Z108: 0 | AB108: 0 | AD108: 0 | AG108: 0 | AI108: 0 | AK108: 0 | AM108: 0 | AO108: No
A109: Long Beach Transit | B109: Long Beach | C109: CA | D109: 9023 | E109: 90023 | F109: Other Publicly-Owned or Privately Chartered Corporation | G109: Full Reporter | H109: 12150996 | I109: 202 | K109: 0 | M109: 0 | O109: 0 | Q109: 0 | S109: 0 | U109: 0 | W109: 0 | Z109: 0 | AB109: 0 | AD109: 0 | AG109: 0.5 | AI109: 0 | AK109: 0 | AM109: 0.5 | AO109: No
A110: Hillsborough Area Regional Transit Authority | B110: Tampa | C110: FL | D110: 4041 | E110: 40041 | F110: Independent Public Agency or Authority of Transit Service | G110: Full Reporter | H110: 2441770 | I110: 201 | K110: 3.5 | M110: 0 | O110: 0 | Q110: 0 | S110: 0 | U110: 0 | W110: 3.5 | Z110: 23 | AB110: 0 | AD110: 23 | AG110: 0 | AI110: 0 | AK110: 1.1 | AM110: 1.1 | AO110: No
A111: Indianapolis and Marion County Public Transportation | B111: Indianapolis | C111: IN | D111: 5050 | E111: 50050 | F111: Independent Public Agency or Authority of Transit Service | G111: Full Reporter | H111: 1487483 | I111: 194 | K111: 0 | M111: 0 | O111: 0 | Q111: 0 | S111: 0 | U111: 0 | W111: 0 | Z111: 0 | AB111: 0 | AD111: 0 | AG111: 0 | AI111: 0 | AK111: 0 | AM111: 0 | AO111: No
A112: Southern California Regional Rail Authority dba: Metrolink | B112: Los Angeles | C112: CA | D112: 9151 | E112: 90151 | F112: Independent Public Agency or Authority of Transit Service | G112: Full Reporter | H112: 12150996 | I112: 192 | K112: 653.1 | M112: 0 | O112: 2.4 | Q112: 0.3 | S112: 0 | U112: 0 | W112: 655.8 | Z112: 423 | AB112: 0 | AD112: 423 | AG112: 0 | AI112: 0 | AK112: 0 | AM112: 0 | AO112: No
A113: Mass Transit Department - City of El Paso | B113: El Paso | C113: TX | D113: 6006 | E113: 60006 | F113: City, County or Local Government Unit or Department of Transportation | G113: Full Reporter | H113: 803086 | I113: 187 | K113: 0 | M113: 0 | O113: 0 | Q113: 0 | S113: 0 | U113: 0 | W113: 0 | Z113: 0 | AB113: 0 | AD113: 0 | AG113: 0 | AI113: 0 | AK113: 0 | AM113: 0 | AO113: No
A114: City of Albuquerque Transit Department | B114: Albuquerque | C114: NM | D114: 6019 | E114: 60019 | F114: City, County or Local Government Unit or Department of Transportation | G114: Full Reporter | H114: 741318 | I114: 187 | K114: 0 | M114: 0 | O114: 0 | Q114: 0 | S114: 0 | U114: 0 | W114: 0 | Z114: 0 | AB114: 0 | AD114: 0 | AG114: 0 | AI114: 0 | AK114: 0 | AM114: 0 | AO114: No
A115: Mass Transportation Authority | B115: Flint | C115: MI | D115: 5032 | E115: 50032 | F115: Independent Public Agency or Authority of Transit Service | G115: Full Reporter | H115: 356218 | I115: 185 | K115: 0 | M115: 0 | O115: 0 | Q115: 0 | S115: 0 | U115: 0 | W115: 0 | Z115: 0 | AB115: 0 | AD115: 0 | AG115: 0 | AI115: 0 | AK115: 0 | AM115: 0 | AO115: No
A116: Regional Transportation Commission of Washoe County | B116: Reno | C116: NV | D116: 9001 | E116: 90001 | F116: Independent Public Agency or Authority of Transit Service | G116: Full Reporter | H116: 392141 | I116: 181 | K116: 0 | M116: 0 | O116: 0 | Q116: 0 | S116: 0 | U116: 0 | W116: 0 | Z116: 0 | AB116: 0 | AD116: 0 | AG116: 0.5 | AI116: 0 | AK116: 0 | AM116: 0.5 | AO116: No
A117: Greater Dayton Regional Transit Authority | B117: Dayton | C117: OH | D117: 5017 | E117: 50017 | F117: Independent Public Agency or Authority of Transit Service | G117: Full Reporter | H117: 724091 | I117: 178 | K117: 0 | M117: 0 | O117: 0 | Q117: 0 | S117: 0 | U117: 0 | W117: 0 | Z117: 0 | AB117: 0 | AD117: 0 | AG117: 125.7 | AI117: 0 | AK117: 0 | AM117: 125.7 | AO117: No
A118: New Orleans Regional Transit Authority | B118: New Orleans | C118: LA | D118: 6032 | E118: 60032 | F118: Independent Public Agency or Authority of Transit Service | G118: Full Reporter | H118: 899703 | I118: 178 | K118: 18.6 | M118: 0 | O118: 0 | Q118: 0 | S118: 0 | U118: 0 | W118: 18.6 | Z118: 247 | AB118: 0 | AD118: 247 | AG118: 0 | AI118: 7 | AK118: 0 | AM118: 7 | AO118: No
A119: Toledo Area Regional Transit Authority | B119: Toledo | C119: OH | D119: 5022 | E119: 50022 | F119: Independent Public Agency or Authority of Transit Service | G119: Full Reporter | H119: 507643 | I119: 177 | K119: 0 | M119: 0 | O119: 0 | Q119: 0 | S119: 0 | U119: 0 | W119: 0 | Z119: 0 | AB119: 0 | AD119: 0 | AG119: 0 | AI119: 0 | AK119: 1 | AM119: 1 | AO119: No
A120: Capital Area Transportation Authority | B120: Lansing | C120: MI | D120: 5036 | E120: 50036 | F120: Independent Public Agency or Authority of Transit Service | G120: Full Reporter | H120: 313532 | I120: 172 | K120: 0 | M120: 0 | O120: 0 | Q120: 0 | S120: 0 | U120: 0 | W120: 0 | Z120: 0 | AB120: 0 | AD120: 0 | AG120: 0 | AI120: 0 | AK120: 0 | AM120: 0 | AO120: No
A121: Clark County Public Transportation Benefit Area Authority | B121: Vancouver | C121: WA | D121: 24 | E121: 24 | F121: Independent Public Agency or Authority of Transit Service | G121: Full Reporter | H121: 1849898 | I121: 171 | K121: 0 | M121: 0 | O121: 0 | Q121: 0 | S121: 0 | U121: 0 | W121: 0 | Z121: 0 | AB121: 0 | AD121: 0 | AG121: 0 | AI121: 0 | AK121: 3.4 | AM121: 3.4 | AO121: No
A122: Ft.Worth - vRide, Inc. | B122: Arlington | C122: TX | D122: 6084 | E122: 60084 | F122: Private Provider Reporting on Behalf of a Public Entity | G122: Full Reporter | H122: 5121892 | I122: 170 | K122: 0 | M122: 0 | O122: 0 | Q122: 0 | S122: 0 | U122: 0 | W122: 0 | Z122: 0 | AB122: 0 | AD122: 0 | AG122: 0 | AI122: 0 | AK122: 0 | AM122: 0 | AO122: No
A123: Montachusett Regional Transit Authority | B123: Fitchburg | C123: MA | D123: 1061 | E123: 10061 | F123: Independent Public Agency or Authority of Transit Service | G123: Full Reporter | H123: 116960 | I123: 169 | K123: 0 | M123: 0 | O123: 0 | Q123: 0 | S123: 0 | U123: 0 | W123: 0 | Z123: 0 | AB123: 0 | AD123: 0 | AG123: 0 | AI123: 0 | AK123: 0 | AM123: 0 | AO123: No
A124: Lehigh and Northampton Transportation Authority | B124: Allentown | C124: PA | D124: 3010 | E124: 30010 | F124: Independent Public Agency or Authority of Transit Service | G124: Full Reporter | H124: 664651 | I124: 165 | K124: 0 | M124: 0 | O124: 0 | Q124: 0 | S124: 0 | U124: 0 | W124: 0 | Z124: 0 | AB124: 0 | AD124: 0 | AG124: 0 | AI124: 0 | AK124: 0 | AM124: 0 | AO124: No
A125: Research Triangle Regional Public Transportation Authority | B125: Research Triangle Park | C125: NC | D125: 4108 | E125: 40108 | F125: Independent Public Agency or Authority of Transit Service | G125: Full Reporter | H125: 347602 | I125: 164 | K125: 0 | M125: 0 | O125: 0 | Q125: 0 | S125: 0 | U125: 0 | W125: 0 | Z125: 0 | AB125: 0 | AD125: 0 | AG125: 0 | AI125: 0 | AK125: 0 | AM125: 0 | AO125: No
A126: Santa Monica's Big Blue Bus | B126: Santa Monica | C126: CA | D126: 9008 | E126: 90008 | F126: City, County or Local Government Unit or Department of Transportation | G126: Full Reporter | H126: 12150996 | I126: 163 | K126: 0 | M126: 0 | O126: 0 | Q126: 0 | S126: 0 | U126: 0 | W126: 0 | Z126: 0 | AB126: 0 | AD126: 0 | AG126: 0.6 | AI126: 0 | AK126: 0 | AM126: 0.6 | AO126: No
A127: CNY Centro, Inc. | B127: Syracuse | C127: NY | D127: 2018 | E127: 20018 | F127: Subsidiary Unit of a Transit Agency, Reporting Separately | G127: Full Reporter | H127: 412317 | I127: 162 | K127: 0 | M127: 0 | O127: 0 | Q127: 0 | S127: 0 | U127: 0 | W127: 0 | Z127: 0 | AB127: 0 | AD127: 0 | AG127: 0 | AI127: 0 | AK127: 0 | AM127: 0 | AO127: No
A128: Mountain Metropolitan Transit | B128: Colorado Springs | C128: CO | D128: 8005 | E128: 80005 | F128: City, County or Local Government Unit or Department of Transportation | G128: Full Reporter | H128: 559409 | I128: 161 | K128: 0 | M128: 0 | O128: 0 | Q128: 0 | S128: 0 | U128: 0 | W128: 0 | Z128: 0 | AB128: 0 | AD128: 0 | AG128: 0 | AI128: 0 | AK128: 0 | AM128: 0 | AO128: No
A129: Hudson Transit Lines, Inc. | B129: Mahwah | C129: NJ | D129: 2126 | E129: 20126 | F129: Private-For-Profit Corporation | G129: Full Reporter | H129: 18351295 | I129: 161 | K129: 0 | M129: 0 | O129: 0 | Q129: 0 | S129: 0 | U129: 0 | W129: 0 | Z129: 0 | AB129: 0 | AD129: 0 | AG129: 0 | AI129: 0 | AK129: 2.9 | AM129: 2.9 | AO129: No
A130: Madison County Transit District | B130: Granite City | C130: IL | D130: 5146 | E130: 50146 | F130: Independent Public Agency or Authority of Transit Service | G130: Full Reporter | H130: 2150706 | I130: 157 | K130: 0 | M130: 0 | O130: 0 | Q130: 0 | S130: 0 | U130: 0 | W130: 0 | Z130: 0 | AB130: 0 | AD130: 0 | AG130: 0 | AI130: 0 | AK130: 0 | AM130: 0 | AO130: =IF(OR(L130="Q",N130="Q",P130="Q",R130="Q",T130="Q",V130="Q",X130="Q",AA130="Q",AC130="Q",AE130="Q",AH130="Q",AJ130="Q",AL130="Q",AN130="Q"),"Yes","No") -> No
A131: Wichita Transit | B131: Wichita | C131: KS | D131: 7015 | E131: 70015 | F131: City, County or Local Government Unit or Department of Transportation | G131: Full Reporter | H131: 472870 | I131: 156 | K131: 0 | M131: 0 | O131: 0 | Q131: 0 | S131: 0 | U131: 0 | W131: 0 | Z131: 0 | AB131: 0 | AD131: 0 | AG131: 0 | AI131: 0 | AK131: 0 | AM131: 0 | AO131: No
A132: Ann Arbor Area Transportation Authority | B132: Ann Arbor | C132: MI | D132: 5040 | E132: 50040 | F132: Independent Public Agency or Authority of Transit Service | G132: Full Reporter | H132: 306022 | I132: 154 | K132: 0 | M132: 0 | O132: 0 | Q132: 0 | S132: 0 | U132: 0 | W132: 0 | Z132: 0 | AB132: 0 | AD132: 0 | AG132: 0 | AI132: 0 | AK132: 0 | AM132: 0 | AO132: No
A133: Space Coast Area Transit | B133: Cocoa | C133: FL | D133: 4063 | E133: 40063 | F133: City, County or Local Government Unit or Department of Transportation | G133: Full Reporter | H133: 452791 | I133: 154 | K133: 0 | M133: 0 | O133: 0 | Q133: 0 | S133: 0 | U133: 0 | W133: 0 | Z133: 0 | AB133: 0 | AD133: 0 | AG133: 0 | AI133: 0 | AK133: 0 | AM133: 0 | AO133: No
A134: Memphis Area Transit Authority | B134: Memphis | C134: TN | D134: 4003 | E134: 40003 | F134: City, County or Local Government Unit or Department of Transportation | G134: Full Reporter | H134: 1060061 | I134: 150 | K134: 3.2 | M134: 7 | O134: 0.1 | Q134: 0.2 | S134: 0 | U134: 0 | W134: 10.5 | Z134: 0 | AB134: 0 | AD134: 0 | AG134: 0 | AI134: 0 | AK134: 0 | AM134: 0 | AO134: No
A135: Central Contra Costa Transit Authority | B135: Concord | C135: CA | D135: 9078 | E135: 90078 | F135: Independent Public Agency or Authority of Transit Service | G135: Full Reporter | H135: 615968 | I135: 143 | K135: 0 | M135: 0 | O135: 0 | Q135: 0 | S135: 0 | U135: 0 | W135: 0 | Z135: 0 | AB135: 0 | AD135: 0 | AG135: 0 | AI135: 0 | AK135: 0 | AM135: 0 | AO135: No
A136: Gainesville Regional Transit System | B136: Gainesville | C136: FL | D136: 4030 | E136: 40030 | F136: City, County or Local Government Unit or Department of Transportation | G136: Full Reporter | H136: 187781 | I136: 142 | K136: 0 | M136: 0 | O136: 0 | Q136: 0 | S136: 0 | U136: 0 | W136: 0 | Z136: 0 | AB136: 0 | AD136: 0 | AG136: 0 | AI136: 0 | AK136: 0 | AM136: 0 | AO136: No
A137: Paratransit, Inc. | B137: Sacramento | C137: CA | D137: 9223 | E137: 90223 | F137: Private-Non-Profit Corporation | G137: Full Reporter | H137: 1723634 | I137: 142 | K137: 0 | M137: 0 | O137: 0 | Q137: 0 | S137: 0 | U137: 0 | W137: 0 | Z137: 0 | AB137: 0 | AD137: 0 | AG137: 0 | AI137: 0 | AK137: 0 | AM137: 0 | AO137: No
A138: Golden Gate Bridge, Highway and Transportation District | B138: San Francisco | C138: CA | D138: 9016 | E138: 90016 | F138: Independent Public Agency or Authority of Transit Service | G138: Full Reporter | H138: 3281212 | I138: 141 | K138: 0 | M138: 0 | O138: 0 | Q138: 0 | S138: 0 | U138: 0 | W138: 0 | Z138: 0 | AB138: 0 | AD138: 0 | AG138: 0 | AI138: 0 | AK138: 58.1 | AM138: 58.1 | AO138: No
A139: York County Transportation Authority | B139: York | C139: PA | D139: 3027 | E139: 30027 | F139: Independent Public Agency or Authority of Transit Service | G139: Full Reporter | H139: 232045 | I139: 135 | K139: 0 | M139: 0 | O139: 0 | Q139: 0 | S139: 0 | U139: 0 | W139: 0 | Z139: 0 | AB139: 0 | AD139: 0 | AG139: 0 | AI139: 0 | AK139: 0 | AM139: 0 | AO139: No
A140: Peninsula Corridor Joint Powers Board dba: Caltrain | B140: San Carlos | C140: CA | D140: 9134 | E140: 90134 | F140: Independent Public Agency or Authority of Transit Service | G140: Full Reporter | H140: 3281212 | I140: 134 | K140: 127.7 | M140: 0 | O140: 4 | Q140: 4 | S140: 1 | U140: 0 | W140: 136.7 | Z140: 54 | AB140: 0 | AD140: 54 | AG140: 0 | AI140: 0 | AK140: 0 | AM140: 0 | AO140: No
A141: Fresno Area Express | B141: Fresno | C141: CA | D141: 9027 | E141: 90027 | F141: City, County or Local Government Unit or Department of Transportation | G141: Full Reporter | H141: 654628 | I141: 130 | K141: 0 | M141: 0 | O141: 0 | Q141: 0 | S141: 0 | U141: 0 | W141: 0 | Z141: 0 | AB141: 0 | AD141: 0 | AG141: 0 | AI141: 0 | AK141: 0 | AM141: 0 | AO141: No
A142: Minnesota Valley Transit Authority | B142: Burnsville | C142: MN | D142: 5222 | E142: 50519 | F142: Independent Public Agency or Authority of Transit Service | G142: Full Reporter | H142: 2650890 | I142: 127 | K142: 0 | M142: 0 | O142: 0 | Q142: 0 | S142: 0 | U142: 0 | W142: 0 | Z142: 0 | AB142: 0 | AD142: 0 | AG142: 2.5 | AI142: 43 | AK142: 45 | AM142: 90.5 | AO142: No
A143: Transit Authority of Omaha | B143: Omaha | C143: NE | D143: 7002 | E143: 70002 | F143: Independent Public Agency or Authority of Transit Service | G143: Full Reporter | H143: 725008 | I143: 125 | K143: 0 | M143: 0 | O143: 0 | Q143: 0 | S143: 0 | U143: 0 | W143: 0 | Z143: 0 | AB143: 0 | AD143: 0 | AG143: 0 | AI143: 0 | AK143: 0 | AM143: 0 | AO143: No
A144: Metropolitan Bus Authority | B144: San Juan | C144: PR | D144: 4086 | E144: 40086 | F144: Independent Public Agency or Authority of Transit Service | G144: Full Reporter | H144: 2148346 | I144: 125 | K144: 0 | M144: 0 | O144: 0 | Q144: 0 | S144: 0 | U144: 0 | W144: 0 | Z144: 0 | AB144: 0 | AD144: 0 | AG144: 17.1 | AI144: 0 | AK144: 0 | AM144: 17.1 | AO144: No
A145: County of Volusia, dba: VOTRAN | B145: South Daytona | C145: FL | D145: 4032 | E145: 40032 | F145: City, County or Local Government Unit or Department of Transportation | G145: Full Reporter | H145: 349064 | I145: 125 | K145: 0 | M145: 0 | O145: 0 | Q145: 0 | S145: 0 | U145: 0 | W145: 0 | Z145: 0 | AB145: 0 | AD145: 0 | AG145: 0 | AI145: 0 | AK145: 0 | AM145: 0 | AO145: No
A146: vRide, Inc. - Denver | B146: Denver | C146: CO | D146: 8109 | E146: 80109 | F146: Private Provider Reporting on Behalf of a Public Entity | G146: Full Reporter | H146: 2374203 | I146: 120 | K146: 0 | M146: 0 | O146: 0 | Q146: 0 | S146: 0 | U146: 0 | W146: 0 | Z146: 0 | AB146: 0 | AD146: 0 | AG146: 0 | AI146: 0 | AK146: 0 | AM146: 0 | AO146: No
A147: Lexington Transit Authority | B147: Lexington | C147: KY | D147: 4017 | E147: 40017 | F147: Independent Public Agency or Authority of Transit Service | G147: Full Reporter | H147: 290263 | I147: 120 | K147: 0 | M147: 0 | O147: 0 | Q147: 0 | S147: 0 | U147: 0 | W147: 0 | Z147: 0 | AB147: 0 | AD147: 0 | AG147: 0 | AI147: 0 | AK147: 0 | AM147: 0 | AO147: No
A148: Champaign-Urbana Mass Transit District | B148: Urbana | C148: IL | D148: 5060 | E148: 50060 | F148: Independent Public Agency or Authority of Transit Service | G148: Full Reporter | H148: 145361 | I148: 119 | K148: 0 | M148: 0 | O148: 0 | Q148: 0 | S148: 0 | U148: 0 | W148: 0 | Z148: 0 | AB148: 0 | AD148: 0 | AG148: 0 | AI148: 0 | AK148: 0 | AM148: 0 | AO148: No
A149: Santa Cruz Metropolitan Transit District | B149: Santa Cruz | C149: CA | D149: 9006 | E149: 90006 | F149: Independent Public Agency or Authority of Transit Service | G149: Full Reporter | H149: 163703 | I149: 118 | K149: 0 | M149: 0 | O149: 0 | Q149: 0 | S149: 0 | U149: 0 | W149: 0 | Z149: 0 | AB149: 0 | AD149: 0 | AG149: 0 | AI149: 0 | AK149: 0 | AM149: 0 | AO149: No
A150: Cobb County Department of Transportation Authority | B150: Marietta | C150: GA | D150: 4078 | E150: 40078 | F150: City, County or Local Government Unit or Department of Transportation | G150: Full Reporter | H150: 4515419 | I150: 118 | K150: 0 | M150: 0 | O150: 0 | Q150: 0 | S150: 0 | U150: 0 | W150: 0 | Z150: 0 | AB150: 0 | AD150: 0 | AG150: 0 | AI150: 0 | AK150: 19.5 | AM150: 19.5 | AO150: No
A151: Brazos Transit District | B151: Bryan | C151: TX | D151: 6059 | E151: 60059 | F151: Independent Public Agency or Authority of Transit Service | G151: Full Reporter | H151: 171345 | I151: 118 | K151: 0 | M151: 0 | O151: 0 | Q151: 0 | S151: 0 | U151: 0 | W151: 0 | Z151: 0 | AB151: 0 | AD151: 0 | AG151: 0 | AI151: 0 | AK151: 0 | AM151: 0 | AO151: No
A152: Rides Mass Transit District | B152: Harrisburg | C152: IL | D152: 5211 | E152: 50211 | F152: Independent Public Agency or Authority of Transit Service | G152: Full Reporter | H152: 67821 | I152: 117 | K152: 0 | M152: 0 | O152: 0 | Q152: 0 | S152: 0 | U152: 0 | W152: 0 | Z152: 0 | AB152: 0 | AD152: 0 | AG152: 0 | AI152: 0 | AK152: 0 | AM152: 0 | AO152: No
A153: Erie Metropolitan Transit Authority | B153: Erie | C153: PA | D153: 3013 | E153: 30013 | F153: Independent Public Agency or Authority of Transit Service | G153: Full Reporter | H153: 196611 | I153: 116 | K153: 0 | M153: 0 | O153: 0 | Q153: 0 | S153: 0 | U153: 0 | W153: 0 | Z153: 0 | AB153: 0 | AD153: 0 | AG153: 0 | AI153: 0 | AK153: 0 | AM153: 0 | AO153: No
A154: Prince George's County Transit | B154: Largo | C154: MD | D154: 3085 | E154: 30085 | F154: City, County or Local Government Unit or Department of Transportation | G154: Full Reporter | H154: 4586770 | I154: 116 | K154: 0 | M154: 0 | O154: 0 | Q154: 0 | S154: 0 | U154: 0 | W154: 0 | Z154: 0 | AB154: 0 | AD154: 0 | AG154: 0 | AI154: 0 | AK154: 0 | AM154: 0 | AO154: No
A155: Hill Country Transit District | B155: San Saba | C155: TX | D155: 6091 | E155: 60091 | F155: Independent Public Agency or Authority of Transit Service | G155: Full Reporter | H155: 217630 | I155: 115 | K155: 0 | M155: 0 | O155: 0 | Q155: 0 | S155: 0 | U155: 0 | W155: 0 | Z155: 0 | AB155: 0 | AD155: 0 | AG155: 0 | AI155: 0 | AK155: 0 | AM155: 0 | AO155: No
A156: Greater Hartford Transit District | B156: Hartford | C156: CT | D156: 1017 | E156: 10017 | F156: Independent Public Agency or Authority of Transit Service | G156: Full Reporter | H156: 924859 | I156: 114 | K156: 0 | M156: 0 | O156: 0 | Q156: 0 | S156: 0 | U156: 0 | W156: 0 | Z156: 0 | AB156: 0 | AD156: 0 | AG156: 0 | AI156: 0 | AK156: 0 | AM156: 0 | AO156: No
A157: Greater Attleboro-Taunton Regional Transit Authority | B157: Taunton | C157: MA | D157: 1064 | E157: 10064 | F157: Independent Public Agency or Authority of Transit Service | G157: Full Reporter | H157: 1190956 | I157: 113 | K157: 0 | M157: 0 | O157: 0 | Q157: 0 | S157: 0 | U157: 0 | W157: 0 | Z157: 0 | AB157: 0 | AD157: 0 | AG157: 0 | AI157: 0 | AK157: 0 | AM157: 0 | AO157: No
A158: Centre Area Transportation Authority | B158: State College | C158: PA | D158: 3054 | E158: 30054 | F158: Independent Public Agency or Authority of Transit Service | G158: Full Reporter | H158: 87454 | I158: 113 | K158: 0 | M158: 0 | O158: 0 | Q158: 0 | S158: 0 | U158: 0 | W158: 0 | Z158: 0 | AB158: 0 | AD158: 0 | AG158: 0 | AI158: 0 | AK158: 0 | AM158: 0 | AO158: No
A159: Cumberland Dauphin-Harrisburg Transit Authority | B159: Harrisburg | C159: PA | D159: 3014 | E159: 30014 | F159: Independent Public Agency or Authority of Transit Service | G159: Full Reporter | H159: 444474 | I159: 113 | K159: 0 | M159: 0 | O159: 0 | Q159: 0 | S159: 0 | U159: 0 | W159: 0 | Z159: 0 | AB159: 0 | AD159: 0 | AG159: 0 | AI159: 0 | AK159: 0 | AM159: 0 | AO159: No
A160: Transit Authority of Northern Kentucky | B160: Fort Wright | C160: KY | D160: 4019 | E160: 40019 | F160: Independent Public Agency or Authority of Transit Service | G160: Full Reporter | H160: 1624827 | I160: 109 | K160: 0 | M160: 0 | O160: 0 | Q160: 0 | S160: 0 | U160: 0 | W160: 0 | Z160: 0 | AB160: 0 | AD160: 0 | AG160: 0 | AI160: 0 | AK160: 0 | AM160: 0 | AO160: No
A161: Whatcom Transportation Authority | B161: Bellingham | C161: WA | D161: 21 | E161: 21 | F161: Independent Public Agency or Authority of Transit Service | G161: Full Reporter | H161: 114473 | I161: 107 | K161: 0 | M161: 0 | O161: 0 | Q161: 0 | S161: 0 | U161: 0 | W161: 0 | Z161: 0 | AB161: 0 | AD161: 0 | AG161: 0 | AI161: 0 | AK161: 0 | AM161: 0 | AO161: No
A162: Marin County Transit District | B162: San Rafael | C162: CA | D162: 9234 | E162: 90234 | F162: Independent Public Agency or Authority of Transit Service | G162: Full Reporter | H162: 3281212 | I162: 107 | K162: 0 | M162: 0 | O162: 0 | Q162: 0 | S162: 0 | U162: 0 | W162: 0 | Z162: 0 | AB162: 0 | AD162: 0 | AG162: 0 | AI162: 0 | AK162: 0 | AM162: 0 | AO162: No
A163: Montebello Bus Lines | B163: Montebello | C163: CA | D163: 9041 | E163: 90041 | F163: City, County or Local Government Unit or Department of Transportation | G163: Full Reporter | H163: 12150996 | I163: 104 | K163: 0 | M163: 0 | O163: 0 | Q163: 0 | S163: 0 | U163: 0 | W163: 0 | Z163: 0 | AB163: 0 | AD163: 0 | AG163: 0 | AI163: 0 | AK163: 0 | AM163: 0 | AO163: No
A164: Lee County Transit | B164: Fort Myers | C164: FL | D164: 4028 | E164: 40028 | F164: City, County or Local Government Unit or Department of Transportation | G164: Full Reporter | H164: 530290 | I164: 104 | K164: 0 | M164: 0 | O164: 0 | Q164: 0 | S164: 0 | U164: 0 | W164: 0 | Z164: 0 | AB164: 0 | AD164: 0 | AG164: 0 | AI164: 0 | AK164: 0 | AM164: 0 | AO164: No
A165: Monterey-Salinas Transit | B165: Monterey | C165: CA | D165: 9062 | E165: 90062 | F165: Independent Public Agency or Authority of Transit Service | G165: Full Reporter | H165: 114237 | I165: 103 | K165: 0 | M165: 0 | O165: 0 | Q165: 0 | S165: 0 | U165: 0 | W165: 0 | Z165: 0 | AB165: 0 | AD165: 0 | AG165: 0 | AI165: 0 | AK165: 0 | AM165: 0 | AO165: No
A166: Westmoreland County Transit Authority | B166: Greensburg | C166: PA | D166: 3044 | E166: 30044 | F166: City, County or Local Government Unit or Department of Transportation | G166: Full Reporter | H166: 1733853 | I166: 103 | K166: 0 | M166: 0 | O166: 0 | Q166: 0 | S166: 0 | U166: 0 | W166: 0 | Z166: 0 | AB166: 0 | AD166: 0 | AG166: 13.6 | AI166: 0 | AK166: 0 | AM166: 13.6 | AO166: No
A167: San Joaquin Regional Transit District | B167: Stockton | C167: CA | D167: 9012 | E167: 90012 | F167: Independent Public Agency or Authority of Transit Service | G167: Full Reporter | H167: 370583 | I167: 102 | K167: 0 | M167: 0 | O167: 0 | Q167: 0 | S167: 0 | U167: 0 | W167: 0 | Z167: 0 | AB167: 0 | AD167: 0 | AG167: 0 | AI167: 0 | AK167: 0 | AM167: 0 | AO167: No
A168: Corpus Christi Regional Transportation Authority | B168: Corpus Christi | C168: TX | D168: 6051 | E168: 60051 | F168: Independent Public Agency or Authority of Transit Service | G168: Full Reporter | H168: 320069 | I168: 102 | K168: 0 | M168: 0 | O168: 0 | Q168: 0 | S168: 0 | U168: 0 | W168: 0 | Z168: 0 | AB168: 0 | AD168: 0 | AG168: 0 | AI168: 0 | AK168: 0 | AM168: 0 | AO168: No
A169: Georgia Regional Transportation Authority | B169: Atlanta | C169: GA | D169: 4135 | E169: 40135 | F169: State Government Unit or Department of Transportation | G169: Full Reporter | H169: 4515419 | I169: 101 | K169: 0 | M169: 0 | O169: 0 | Q169: 0 | S169: 0 | U169: 0 | W169: 0 | Z169: 0 | AB169: 0 | AD169: 0 | AG169: 0 | AI169: 91.2 | AK169: 0 | AM169: 91.2 | AO169: No
A170: Sarasota County Area Transit | B170: Sarasota | C170: FL | D170: 4046 | E170: 40046 | F170: City, County or Local Government Unit or Department of Transportation | G170: Full Reporter | H170: 643260 | I170: 100 | K170: 0 | M170: 0 | O170: 0 | Q170: 0 | S170: 0 | U170: 0 | W170: 0 | Z170: 0 | AB170: 0 | AD170: 0 | AG170: 0 | AI170: 0 | AK170: 0 | AM170: 0 | AO170: No
A171: Charleston Area Regional Transportation Authority | B171: Charleston | C171: SC | D171: 4110 | E171: 40110 | F171: Independent Public Agency or Authority of Transit Service | G171: Full Reporter | H171: 548404 | I171: 100 | K171: 0 | M171: 0 | O171: 0 | Q171: 0 | S171: 0 | U171: 0 | W171: 0 | Z171: 0 | AB171: 0 | AD171: 0 | AG171: 0 | AI171: 0 | AK171: 0 | AM171: 0 | AO171: No
A172: Berks Area Regional Transportation Authority | B172: Reading | C172: PA | D172: 3024 | E172: 30024 | F172: Independent Public Agency or Authority of Transit Service | G172: Full Reporter | H172: 266254 | I172: 99 | K172: 0 | M172: 0 | O172: 0 | Q172: 0 | S172: 0 | U172: 0 | W172: 0 | Z172: 0 | AB172: 0 | AD172: 0 | AG172: 0 | AI172: 0 | AK172: 0 | AM172: 0 | AO172: No
A173: Suburban Transit Corporation | B173: New Brunswick | C173: NJ | D173: 2128 | E173: 20128 | F173: Private-For-Profit Corporation | G173: Full Reporter | H173: 18351295 | I173: 98 | K173: 0 | M173: 0 | O173: 0 | Q173: 0 | S173: 0 | U173: 0 | W173: 0 | Z173: 0 | AB173: 0 | AD173: 0 | AG173: 0 | AI173: 0 | AK173: 2.9 | AM173: 2.9 | AO173: No
A174: Tampa Bay Area Regional Transportation Authority | B174: Tampa | C174: FL | D174: 4200 | E174: 40200 | F174: Independent Public Agency or Authority of Transit Service | G174: Full Reporter | H174: 2441770 | I174: 98 | K174: 0 | M174: 0 | O174: 0 | Q174: 0 | S174: 0 | U174: 0 | W174: 0 | Z174: 0 | AB174: 0 | AD174: 0 | AG174: 0 | AI174: 0 | AK174: 0 | AM174: 0 | AO174: No
A175: Connecticut Department of Transportation - CTTRANSIT New Haven Division | B175: Hartford | C175: CT | D175: 1055 | E175: 10055 | F175: State Government Unit or Department of Transportation | G175: Full Reporter | H175: 562839 | I175: 97 | K175: 0 | M175: 0 | O175: 0 | Q175: 0 | S175: 0 | U175: 0 | W175: 0 | Z175: 0 | AB175: 0 | AD175: 0 | AG175: 0 | AI175: 0 | AK175: 0 | AM175: 0 | AO175: No
A176: City of Alexandria | B176: Alexandria | C176: VA | D176: 3071 | E176: 30071 | F176: City, County or Local Government Unit or Department of Transportation | G176: Full Reporter | H176: 4586770 | I176: 97 | K176: 0 | M176: 0 | O176: 0 | Q176: 0 | S176: 0 | U176: 0 | W176: 0 | Z176: 0 | AB176: 0 | AD176: 0 | AG176: 0 | AI176: 0 | AK176: 3.7 | AM176: 3.7 | AO176: No
A177: Metropolitan Tulsa Transit Authority | B177: Tulsa | C177: OK | D177: 6018 | E177: 60018 | F177: City, County or Local Government Unit or Department of Transportation | G177: Full Reporter | H177: 655479 | I177: 96 | K177: 0 | M177: 0 | O177: 0 | Q177: 0 | S177: 0 | U177: 0 | W177: 0 | Z177: 0 | AB177: 0 | AD177: 0 | AG177: 0 | AI177: 0 | AK177: 0 | AM177: 0 | AO177: No
A178: Red Rose Transit Authority | B178: Lancaster | C178: PA | D178: 3018 | E178: 30018 | F178: Independent Public Agency or Authority of Transit Service | G178: Full Reporter | H178: 402004 | I178: 95 | K178: 0 | M178: 0 | O178: 0 | Q178: 0 | S178: 0 | U178: 0 | W178: 0 | Z178: 0 | AB178: 0 | AD178: 0 | AG178: 0 | AI178: 0 | AK178: 0 | AM178: 0 | AO178: No
A179: Denton County Transportation Authority | B179: Lewisville | C179: TX | D179: 6101 | E179: 60101 | F179: Independent Public Agency or Authority of Transit Service | G179: Full Reporter | H179: 366174 | I179: 94 | K179: 27.9 | M179: 0 | O179: 0.8 | Q179: 0 | S179: 0 | U179: 0 | W179: 28.7 | Z179: 43 | AB179: 0 | AD179: 43 | AG179: 0 | AI179: 0 | AK179: 0 | AM179: 0 | AO179: No
A180: MetroWest Regional Transit Authority | B180: Framingham | C180: MA | D180: 1118 | E180: 10118 | F180: Independent Public Agency or Authority of Transit Service | G180: Full Reporter | H180: 4181019 | I180: 93 | K180: 0 | M180: 0 | O180: 0 | Q180: 0 | S180: 0 | U180: 0 | W180: 0 | Z180: 0 | AB180: 0 | AD180: 0 | AG180: 0 | AI180: 0 | AK180: 0 | AM180: 0 | AO180: No
A181: Birmingham-Jefferson County Transit Authority | B181: Birmingham | C181: AL | D181: 4042 | E181: 40042 | F181: Independent Public Agency or Authority of Transit Service | G181: Full Reporter | H181: 749495 | I181: 93 | K181: 0 | M181: 0 | O181: 0 | Q181: 0 | S181: 0 | U181: 0 | W181: 0 | Z181: 0 | AB181: 0 | AD181: 0 | AG181: 0 | AI181: 0 | AK181: 0 | AM181: 0 | AO181: No
A182: Norwalk Transit District | B182: Norwalk | C182: CT | D182: 1057 | E182: 10057 | F182: Independent Public Agency or Authority of Transit Service | G182: Full Reporter | H182: 923311 | I182: 92 | K182: 0 | M182: 0 | O182: 0 | Q182: 0 | S182: 0 | U182: 0 | W182: 0 | Z182: 0 | AB182: 0 | AD182: 0 | AG182: 0 | AI182: 0 | AK182: 0 | AM182: 0 | AO182: No
A183: Chapel Hill Transit | B183: Chapel Hill | C183: NC | D183: 4051 | E183: 40051 | F183: City, County or Local Government Unit or Department of Transportation | G183: Full Reporter | H183: 347602 | I183: 92 | K183: 0 | M183: 0 | O183: 0 | Q183: 0 | S183: 0 | U183: 0 | W183: 0 | Z183: 0 | AB183: 0 | AD183: 0 | AG183: 0 | AI183: 0 | AK183: 0 | AM183: 0 | AO183: No
A184: Santa Barbara Metropolitan Transit District | B184: Santa Barbara | C184: CA | D184: 9020 | E184: 90020 | F184: Independent Public Agency or Authority of Transit Service | G184: Full Reporter | H184: 195861 | I184: 91 | K184: 0 | M184: 0 | O184: 0 | Q184: 0 | S184: 0 | U184: 0 | W184: 0 | Z184: 0 | AB184: 0 | AD184: 0 | AG184: 0 | AI184: 0 | AK184: 0 | AM184: 0 | AO184: No
A185: County of Maui - Dept. of Transportation | B185: Wailuku | C185: HI | D185: 9241 | E185: 90241 | F185: City, County or Local Government Unit or Department of Transportation | G185: Full Reporter | H185: 55934 | I185: 91 | K185: 0 | M185: 0 | O185: 0 | Q185: 0 | S185: 0 | U185: 0 | W185: 0 | Z185: 0 | AB185: 0 | AD185: 0 | AG185: 0 | AI185: 0 | AK185: 0 | AM185: 0 | AO185: No
A186: Virginia Railway Express | B186: Alexandria | C186: VA | D186: 3073 | E186: 30073 | F186: Independent Public Agency or Authority of Transit Service | G186: Full Reporter | H186: 4586770 | I186: 90 | K186: 171.4 | M186: 0 | O186: 2.2 | Q186: 0 | S186: 0 | U186: 0.9 | W186: 174.5 | Z186: 20 | AB186: 0 | AD186: 20 | AG186: 0 | AI186: 0 | AK186: 0 | AM186: 0 | AO186: No
A187: Municipality of Anchorage - Public Transportation Department | B187: Anchorage | C187: AK | D187: 12 | E187: 12 | F187: City, County or Local Government Unit or Department of Transportation | G187: Full Reporter | H187: 251243 | I187: 89 | K187: 0 | M187: 0 | O187: 0 | Q187: 0 | S187: 0 | U187: 0 | W187: 0 | Z187: 0 | AB187: 0 | AD187: 0 | AG187: 0 | AI187: 0 | AK187: 0 | AM187: 0 | AO187: No
A188: City Transit Management Company, Inc. | B188: Lubbock | C188: TX | D188: 6010 | E188: 60010 | F188: City, County or Local Government Unit or Department of Transportation | G188: Full Reporter | H188: 237356 | I188: 89 | K188: 0 | M188: 0 | O188: 0 | Q188: 0 | S188: 0 | U188: 0 | W188: 0 | Z188: 0 | AB188: 0 | AD188: 0 | AG188: 0 | AI188: 0 | AK188: 0 | AM188: 0 | AO188: No
A189: Santa Clarita Transit | B189: Santa Clarita | C189: CA | D189: 9171 | E189: 90171 | F189: City, County or Local Government Unit or Department of Transportation | G189: Full Reporter | H189: 258653 | I189: 89 | K189: 0 | M189: 0 | O189: 0 | Q189: 0 | S189: 0 | U189: 0 | W189: 0 | Z189: 0 | AB189: 0 | AD189: 0 | AG189: 0 | AI189: 0 | AK189: 0 | AM189: 0 | AO189: No
A190: Worcester Regional Transit Authority | B190: Worcester | C190: MA | D190: 1014 | E190: 10014 | F190: Independent Public Agency or Authority of Transit Service | G190: Full Reporter | H190: 486514 | I190: 88 | K190: 0 | M190: 0 | O190: 0 | Q190: 0 | S190: 0 | U190: 0 | W190: 0 | Z190: 0 | AB190: 0 | AD190: 0 | AG190: 0 | AI190: 0 | AK190: 0 | AM190: 0 | AO190: No
A191: Durham Area Transit Authority | B191: Durham | C191: NC | D191: 4087 | E191: 40087 | F191: City, County or Local Government Unit or Department of Transportation | G191: Full Reporter | H191: 347602 | I191: 88 | K191: 0 | M191: 0 | O191: 0 | Q191: 0 | S191: 0 | U191: 0 | W191: 0 | Z191: 0 | AB191: 0 | AD191: 0 | AG191: 0 | AI191: 0 | AK191: 0 | AM191: 0 | AO191: No
A192: Rio Metro Regional Transit District | B192: Albuquerque | C192: NM | D192: 6111 | E192: 60111 | F192: Independent Public Agency or Authority of Transit Service | G192: Full Reporter | H192: 741318 | I192: 88 | K192: 103 | M192: 0 | O192: 0.8 | Q192: 7.1 | S192: 0.2 | U192: 0 | W192: 111.1 | Z192: 86 | AB192: 0 | AD192: 86 | AG192: 0 | AI192: 0 | AK192: 0 | AM192: 0 | AO192: No
A193: Middlesex County Area Transit | B193: New Brunswick | C193: NJ | D193: 2196 | E193: 20196 | F193: City, County or Local Government Unit or Department of Transportation | G193: Full Reporter | H193: 18351295 | I193: 88 | K193: 0 | M193: 0 | O193: 0 | Q193: 0 | S193: 0 | U193: 0 | W193: 0 | Z193: 0 | AB193: 0 | AD193: 0 | AG193: 0 | AI193: 0 | AK193: 0 | AM193: 0 | AO193: No
A194: Johnson County Kansas, aka: Johnson County Transit | B194: Olathe | C194: KS | D194: 7035 | E194: 70035 | F194: City, County or Local Government Unit or Department of Transportation | G194: Full Reporter | H194: 1519417 | I194: 87 | K194: 0 | M194: 0 | O194: 0 | Q194: 0 | S194: 0 | U194: 0 | W194: 0 | Z194: 0 | AB194: 0 | AD194: 0 | AG194: 0 | AI194: 0 | AK194: 0 | AM194: 0 | AO194: =IF(OR(L194="Q",N194="Q",P194="Q",R194="Q",T194="Q",V194="Q",X194="Q",AA194="Q",AC194="Q",AE194="Q",AH194="Q",AJ194="Q",AL194="Q",AN194="Q"),"Yes","No") -> No
A195: Laketran | B195: Grand River | C195: OH | D195: 5117 | E195: 50117 | F195: Independent Public Agency or Authority of Transit Service | G195: Full Reporter | H195: 1780673 | I195: 87 | K195: 0 | M195: 0 | O195: 0 | Q195: 0 | S195: 0 | U195: 0 | W195: 0 | Z195: 0 | AB195: 0 | AD195: 0 | AG195: 0 | AI195: 0 | AK195: 0 | AM195: 0 | AO195: No
A196: Brockton Area Transit Authority | B196: Brockton | C196: MA | D196: 1004 | E196: 10004 | F196: Independent Public Agency or Authority of Transit Service | G196: Full Reporter | H196: 4181019 | I196: 86 | K196: 0 | M196: 0 | O196: 0 | Q196: 0 | S196: 0 | U196: 0 | W196: 0 | Z196: 0 | AB196: 0 | AD196: 0 | AG196: 0 | AI196: 0 | AK196: 0 | AM196: 0 | AO196: No
A197: Skagit Transit | B197: Burlington | C197: WA | D197: 44 | E197: 44 | F197: Independent Public Agency or Authority of Transit Service | G197: Full Reporter | H197: 62966 | I197: 86 | K197: 0 | M197: 0 | O197: 0 | Q197: 0 | S197: 0 | U197: 0 | W197: 0 | Z197: 0 | AB197: 0 | AD197: 0 | AG197: 0 | AI197: 0 | AK197: 0 | AM197: 0 | AO197: No
A198: Greater Peoria Mass Transit District | B198: Peoria | C198: IL | D198: 5056 | E198: 50056 | F198: Independent Public Agency or Authority of Transit Service | G198: Full Reporter | H198: 266921 | I198: 85 | K198: 0 | M198: 0 | O198: 0 | Q198: 0 | S198: 0 | U198: 0 | W198: 0 | Z198: 0 | AB198: 0 | AD198: 0 | AG198: 0 | AI198: 0 | AK198: 0 | AM198: 0 | AO198: No
A199: City of Appleton - Valley Transit | B199: Appleton | C199: WI | D199: 5001 | E199: 50001 | F199: City, County or Local Government Unit or Department of Transportation | G199: Full Reporter | H199: 216154 | I199: 85 | K199: 0 | M199: 0 | O199: 0 | Q199: 0 | S199: 0 | U199: 0 | W199: 0 | Z199: 0 | AB199: 0 | AD199: 0 | AG199: 0 | AI199: 0 | AK199: 0 | AM199: 0 | AO199: No
A200: Torrance Transit System | B200: Torrance | C200: CA | D200: 9010 | E200: 90010 | F200: City, County or Local Government Unit or Department of Transportation | G200: Full Reporter | H200: 12150996 | I200: 84 | K200: 0 | M200: 0 | O200: 0 | Q200: 0 | S200: 0 | U200: 0 | W200: 0 | Z200: 0 | AB200: 0 | AD200: 0 | AG200: 0 | AI200: 4.8 | AK200: 0 | AM200: 4.8 | AO200: No
... 334 more rows

Sheet Summary Tables
A1: To bring up the accessible control panel, press ctrl + a. Some screen reading functionality will not work while the sheet is protected. To unprotect the sheet press alt h o p and enter the password ntd. | F1: National Totals | G1: At Grade: Restricted Right-of-Way | H1: Street Running | I1: Elevated on Structure | J1: Elevated on Fill | K1: Open Cut | L1: Subway | M1: Total Track Miles | N1: At Grade: Restricted Right-of-Way | O1: Street Running | P1: Total Crossings | Q1: Permanent Busway | R1: Permanent HOV | S1: Part-Time Busway or HOV | T1: Total Roadway Miles
G2: Miles of Track | N2: Number of Crossings | Q2: Miles of Roadway | X2: =IF(X5=1,0,1) -> 0
F3: VOMS | G3: At Grade: Restricted Right-of-Way Track Miles | H3: Street Running Track Miles | I3: Elevated on Structure Track Miles | J3: Elevated on Fill Track Miles | K3: Open Cut Track Miles | L3: Subway Track Miles | M3: Total Track Miles | N3: At Grade: Restricted Right-of-Way Crossings | O3: Street Running Crossings | P3: Total Crossings | Q3: Permanent Busway Roadway Miles | R3: Permanent HOV Roadway Miles | S3: Part-Time Busway or HOV Roadway Miles | T3: Total Roadway Miles | X3: Include questionable data
F4: =IF($X$2,SUMIFS('Track by Mode'!L:L,'Track by Mode'!AI:AI,"=No")+SUMIFS('Roadway by Mode'!L:L,'Roadway by Mode'!V:V,"=No"),SUM('Track by Mode'!L:L)+SUM('Roadway by Mode'!L:L)) -> 68532 | G4: =IF($X$2,SUMIFS('Track by Mode'!N:N,'Track by Mode'!$AI:$AI,"=No"),SUM('Track by Mode'!N:N)) -> 9948.2 | H4: =IF($X$2,SUMIFS('Track by Mode'!P:P,'Track by Mode'!$AI:$AI,"=No"),SUM('Track by Mode'!P:P)) -> 331.6 | I4: =IF($X$2,SUMIFS('Track by Mode'!R:R,'Track by Mode'!$AI:$AI,"=No"),SUM('Track by Mode'!R:R)) -> 800.6 | J4: =IF($X$2,SUMIFS('Track by Mode'!T:T,'Track by Mode'!$AI:$AI,"=No"),SUM('Track by Mode'!T:T)) -> 662.5 | K4: =IF($X$2,SUMIFS('Track by Mode'!V:V,'Track by Mode'!$AI:$AI,"=No"),SUM('Track by Mode'!V:V)) -> 198.9 | L4: =IF($X$2,SUMIFS('Track by Mode'!X:X,'Track by Mode'!$AI:$AI,"=No"),SUM('Track by Mode'!X:X)) -> 935.9 | M4: =IF($X$2,SUMIFS('Track by Mode'!Z:Z,'Track by Mode'!$AI:$AI,"=No"),SUM('Track by Mode'!Z:Z)) -> 12877.7 | N4: =IF($X$2,SUMIFS('Track by Mode'!AC:AC,'Track by Mode'!$AI:$AI,"=No"),SUM('Track by Mode'!AC:AC)) -> 5696 | O4: =IF($X$2,SUMIFS('Track by Mode'!AE:AE,'Track by Mode'!$AI:$AI,"=No"),SUM('Track by Mode'!AE:AE)) -> 1780 | P4: =IF($X$2,SUMIFS('Track by Mode'!AG:AG,'Track by Mode'!$AI:$AI,"=No"),SUM('Track by Mode'!AG:AG)) -> 7476 | Q4: =IF($X$2,SUMIFS('Roadway by Mode'!N:N,'Roadway by Mode'!$V:$V,"=No"),SUM('Roadway by Mode'!N:N)) -> 1009.9 | R4: =IF($X$2,SUMIFS('Roadway by Mode'!P:P,'Roadway by Mode'!$V:$V,"=No"),SUM('Roadway by Mode'!P:P)) -> 1446.4 | S4: =IF($X$2,SUMIFS('Roadway by Mode'!R:R,'Roadway by Mode'!$V:$V,"=No"),SUM('Roadway by Mode'!R:R)) -> 2057.8 | T4: =IF($X$2,SUMIFS('Roadway by Mode'!T:T,'Roadway by Mode'!$V:$V,"=No"),SUM('Roadway by Mode'!T:T)) -> 4514.1 | X4: Exclude questionable data
F5: =IFERROR(G5&CHAR(10)&H5&CHAR(10)&I5&CHAR(10)&J5&CHAR(10)&K5&CHAR(10)&L5,"") -> At Grade: Restricted Right-of-Way: 77% Street Running: 3% Elevated on Structure: 6% Elevated on Fill: 5% Open Cut: 2% Subway: 7% | G5: =G1&": "&FIXED(100*G4/SUM($G$4:$L$4),0,0)&"%" -> At Grade: Restricted Right-of-Way: 77% | H5: =H1&": "&FIXED(100*H4/SUM($G$4:$L$4),0,0)&"%" -> Street Running: 3% | I5: Elevated on Structure: 6% | J5: Elevated on Fill: 5% | K5: Open Cut: 2% | L5: Subway: 7% | X5: 1
A6: By Urbanized Area Size
G7: Miles of Track | N7: Number of Crossings | Q7: Miles of Roadway
D8: enter bins below | E8: click to graph | F8: VOMS | G8: At Grade: Restricted Right-of-Way Track Miles | H8: Street Running Track Miles | I8: Elevated on Structure Track Miles | J8: Elevated on Fill Track Miles | K8: Open Cut Track Miles | L8: Subway Track Miles | M8: Total Track Miles | N8: At Grade: Restricted Right-of-Way Crossings | O8: Street Running Crossings | P8: Total Crossings | Q8: Permanent Busway Roadway Miles | R8: Permanent HOV Roadway Miles | S8: Part-Time Busway or HOV Roadway Miles | T8: Total Roadway Miles
A9: under | B9: =D9 -> 200000 | D9: 200000 | E9: =IFERROR(IF(A9="between",A9&" "&FIXED(B9,0,0)&" "&C9&" "&FIXED(D9,0,0),A9&" "&FIXED(B9,0,0)),"invalid bin") -> under 200,000 | F9: =IF($X$2,SUMIFS('Track by Mode'!L:L,'Track by Mode'!$H:$H,"<"&$D9,'Track by Mode'!$AI:$AI,"=No"),SUMIFS('Track by Mode'!L:L,'Track by Mode'!$H:$H,"<"&$D9))+IF($X$2,SUMIFS('Roadway by Mode'!L:L,'Roadway by Mode'!$H:$H,"<"&$D9,'Roadway by Mode'!$V:$V,"=No"),SUMIFS('Roadway by Mode'!L:L,'Roadway by Mode'!$H:$H,"<"&$D9)) -> 3516 | G9: =IF($X$2,SUMIFS('Track by Mode'!N:N,'Track by Mode'!$H:$H,"<"&$D9,'Track by Mode'!$AI:$AI,"=No"),SUMIFS('Track by Mode'!N:N,'Track by Mode'!$H:$H,"<"&$D9)) -> 6.3 | H9: =IF($X$2,SUMIFS('Track by Mode'!P:P,'Track by Mode'!$H:$H,"<"&$D9,'Track by Mode'!$AI:$AI,"=No"),SUMIFS('Track by Mode'!P:P,'Track by Mode'!$H:$H,"<"&$D9)) -> 0 | I9: =IF($X$2,SUMIFS('Track by Mode'!R:R,'Track by Mode'!$H:$H,"<"&$D9,'Track by Mode'!$AI:$AI,"=No"),SUMIFS('Track by Mode'!R:R,'Track by Mode'!$H:$H,"<"&$D9)) -> 4.7 | J9: =IF($X$2,SUMIFS('Track by Mode'!T:T,'Track by Mode'!$H:$H,"<"&$D9,'Track by Mode'!$AI:$AI,"=No"),SUMIFS('Track by Mode'!T:T,'Track by Mode'!$H:$H,"<"&$D9)) -> 0 | K9: =IF($X$2,SUMIFS('Track by Mode'!V:V,'Track by Mode'!$H:$H,"<"&$D9,'Track by Mode'!$AI:$AI,"=No"),SUMIFS('Track by Mode'!V:V,'Track by Mode'!$H:$H,"<"&$D9)) -> 0 | L9: =IF($X$2,SUMIFS('Track by Mode'!X:X,'Track by Mode'!$H:$H,"<"&$D9,'Track by Mode'!$AI:$AI,"=No"),SUMIFS('Track by Mode'!X:X,'Track by Mode'!$H:$H,"<"&$D9)) -> 0 | M9: =IF($X$2,SUMIFS('Track by Mode'!Z:Z,'Track by Mode'!$H:$H,"<"&$D9,'Track by Mode'!$AI:$AI,"=No"),SUMIFS('Track by Mode'!Z:Z,'Track by Mode'!$H:$H,"<"&$D9)) -> 11 | N9: =IF($X$2,SUMIFS('Track by Mode'!AC:AC,'Track by Mode'!$H:$H,"<"&$D9,'Track by Mode'!$AI:$AI,"=No"),SUMIFS('Track by Mode'!AC:AC,'Track by Mode'!$H:$H,"<"&$D9)) -> 14 | O9: =IF($X$2,SUMIFS('Track by Mode'!AE:AE,'Track by Mode'!$H:$H,"<"&$D9,'Track by Mode'!$AI:$AI,"=No"),SUMIFS('Track by Mode'!AE:AE,'Track by Mode'!$H:$H,"<"&$D9)) -> 0 | P9: =IF($X$2,SUMIFS('Track by Mode'!AG:AG,'Track by Mode'!$H:$H,"<"&$D9,'Track by Mode'!$AI:$AI,"=No"),SUMIFS('Track by Mode'!AG:AG,'Track by Mode'!$H:$H,"<"&$D9)) -> 14 | Q9: =IF($X$2,SUMIFS('Roadway by Mode'!N:N,'Roadway by Mode'!$H:$H,"<"&$D9,'Roadway by Mode'!$V:$V,"=No"),SUMIFS('Roadway by Mode'!N:N,'Roadway by Mode'!$H:$H,"<"&$D9)) -> 7.8 | R9: =IF($X$2,SUMIFS('Roadway by Mode'!P:P,'Roadway by Mode'!$H:$H,"<"&$D9,'Roadway by Mode'!$V:$V,"=No"),SUMIFS('Roadway by Mode'!P:P,'Roadway by Mode'!$H:$H,"<"&$D9)) -> 2 | S9: =IF($X$2,SUMIFS('Roadway by Mode'!R:R,'Roadway by Mode'!$H:$H,"<"&$D9,'Roadway by Mode'!$V:$V,"=No"),SUMIFS('Roadway by Mode'!R:R,'Roadway by Mode'!$H:$H,"<"&$D9)) -> 0 | T9: =IF($X$2,SUMIFS('Roadway by Mode'!T:T,'Roadway by Mode'!$H:$H,"<"&$D9,'Roadway by Mode'!$V:$V,"=No"),SUMIFS('Roadway by Mode'!T:T,'Roadway by Mode'!$H:$H,"<"&$D9)) -> 9.8
A10: =IF(D10<>"","between","over") -> between | B10: =D9 -> 200000 | C10: =IF(D10<>"","and","") -> and | D10: 1000000 | E10: =IFERROR(IF(A10="between",A10&" "&FIXED(B10,0,0)&" "&C10&" "&FIXED(D10,0,0),A10&" "&FIXED(B10,0,0)),"invalid bin") -> between 200,000 and 1,000,000 | F10: =IF($X$2,IF($A10="between",SUMIFS('Track by Mode'!L:L,'Track by Mode'!$H:$H,">="&$B10,'Track by Mode'!$H:$H,"<"&$D10,'Track by Mode'!$AI:$AI,"=No"),SUMIFS('Track by Mode'!L:L,'Track by Mode'!$H:$H,">="&$B10,'Track by Mode'!$AI:$AI,"=No")),IF($A10="between",SUMIFS('Track by Mode'!L:L,'Track by Mode'!$H:$H,">="&$B10,'Track by Mode'!$H:$H,"<"&$D10),SUMIFS('Track by Mode'!L:L,'Track by Mode'!$H:$H,">="&$B10)))+IF($X$2,IF($A10="between",SUMIFS('Roadway by Mode'!L:L,'Roadway by Mode'!$H:$H,">="&$B10,'Roadway by Mode'!$H:$H,"<"&$D10,'Roadway by Mode'!$V:$V,"=No"),SUMIFS('Roadway by Mode'!L:L,'Roadway by Mode'!$H:$H,">="&$B10,'Roadway by Mode'!$V:$V,"=No")),IF($A10="between",SUMIFS('Roadway by Mode'!L:L,'Roadway by Mode'!$H:$H,">="&$B10,'Roadway by Mode'!$H:$H,"<"&$D10),SUMIFS('Roadway by Mode'!L:L,'Roadway by Mode'!$H:$H,">="&$B10))) -> 8869 | G10: =IF($X$2,IF($A10="between",SUMIFS('Track by Mode'!N:N,'Track by Mode'!$H:$H,">="&$B10,'Track by Mode'!$H:$H,"<"&$D10,'Track by Mode'!$AI:$AI,"=No"),SUMIFS('Track by Mode'!N:N,'Track by Mode'!$H:$H,">="&$B10,'Track by Mode'!$AI:$AI,"=No")),IF($A10="between",SUMIFS('Track by Mode'!N:N,'Track by Mode'!$H:$H,">="&$B10,'Track by Mode'!$H:$H,"<"&$D10),SUMIFS('Track by Mode'!N:N,'Track by Mode'!$H:$H,">="&$B10))) -> 1133.9 | H10: =IF($X$2,IF($A10="between",SUMIFS('Track by Mode'!P:P,'Track by Mode'!$H:$H,">="&$B10,'Track by Mode'!$H:$H,"<"&$D10,'Track by Mode'!$AI:$AI,"=No"),SUMIFS('Track by Mode'!P:P,'Track by Mode'!$H:$H,">="&$B10,'Track by Mode'!$AI:$AI,"=No")),IF($A10="between",SUMIFS('Track by Mode'!P:P,'Track by Mode'!$H:$H,">="&$B10,'Track by Mode'!$H:$H,"<"&$D10),SUMIFS('Track by Mode'!P:P,'Track by Mode'!$H:$H,">="&$B10))) -> 9.7 | I10: =IF($X$2,IF($A10="between",SUMIFS('Track by Mode'!R:R,'Track by Mode'!$H:$H,">="&$B10,'Track by Mode'!$H:$H,"<"&$D10,'Track by Mode'!$AI:$AI,"=No"),SUMIFS('Track by Mode'!R:R,'Track by Mode'!$H:$H,">="&$B10,'Track by Mode'!$AI:$AI,"=No")),IF($A10="between",SUMIFS('Track by Mode'!R:R,'Track by Mode'!$H:$H,">="&$B10,'Track by Mode'!$H:$H,"<"&$D10),SUMIFS('Track by Mode'!R:R,'Track by Mode'!$H:$H,">="&$B10))) -> 5.8 | J10: =IF($X$2,IF($A10="between",SUMIFS('Track by Mode'!T:T,'Track by Mode'!$H:$H,">="&$B10,'Track by Mode'!$H:$H,"<"&$D10,'Track by Mode'!$AI:$AI,"=No"),SUMIFS('Track by Mode'!T:T,'Track by Mode'!$H:$H,">="&$B10,'Track by Mode'!$AI:$AI,"=No")),IF($A10="between",SUMIFS('Track by Mode'!T:T,'Track by Mode'!$H:$H,">="&$B10,'Track by Mode'!$H:$H,"<"&$D10),SUMIFS('Track by Mode'!T:T,'Track by Mode'!$H:$H,">="&$B10))) -> 59.7 | K10: =IF($X$2,IF($A10="between",SUMIFS('Track by Mode'!V:V,'Track by Mode'!$H:$H,">="&$B10,'Track by Mode'!$H:$H,"<"&$D10,'Track by Mode'!$AI:$AI,"=No"),SUMIFS('Track by Mode'!V:V,'Track by Mode'!$H:$H,">="&$B10,'Track by Mode'!$AI:$AI,"=No")),IF($A10="between",SUMIFS('Track by Mode'!V:V,'Track by Mode'!$H:$H,">="&$B10,'Track by Mode'!$H:$H,"<"&$D10),SUMIFS('Track by Mode'!V:V,'Track by Mode'!$H:$H,">="&$B10))) -> 13.3 | L10: =IF($X$2,IF($A10="between",SUMIFS('Track by Mode'!X:X,'Track by Mode'!$H:$H,">="&$B10,'Track by Mode'!$H:$H,"<"&$D10,'Track by Mode'!$AI:$AI,"=No"),SUMIFS('Track by Mode'!X:X,'Track by Mode'!$H:$H,">="&$B10,'Track by Mode'!$AI:$AI,"=No")),IF($A10="between",SUMIFS('Track by Mode'!X:X,'Track by Mode'!$H:$H,">="&$B10,'Track by Mode'!$H:$H,"<"&$D10),SUMIFS('Track by Mode'!X:X,'Track by Mode'!$H:$H,">="&$B10))) -> 16 | M10: =IF($X$2,IF($A10="between",SUMIFS('Track by Mode'!Z:Z,'Track by Mode'!$H:$H,">="&$B10,'Track by Mode'!$H:$H,"<"&$D10,'Track by Mode'!$AI:$AI,"=No"),SUMIFS('Track by Mode'!Z:Z,'Track by Mode'!$H:$H,">="&$B10,'Track by Mode'!$AI:$AI,"=No")),IF($A10="between",SUMIFS('Track by Mode'!Z:Z,'Track by Mode'!$H:$H,">="&$B10,'Track by Mode'!$H:$H,"<"&$D10),SUMIFS('Track by Mode'!Z:Z,'Track by Mode'!$H:$H,">="&$B10))) -> 1238.4 | N10: =IF($X$2,IF($A10="between",SUMIFS('Track by Mode'!AC:AC,'Track by Mode'!$H:$H,">="&$B10,'Track by Mode'!$H:$H,"<"&$D10,'Track by Mode'!$AI:$AI,"=No"),SUMIFS('Track by Mode'!AC:AC,'Track by Mode'!$H:$H,">="&$B10,'Track by Mode'!$AI:$AI,"=No")),IF($A10="between",SUMIFS('Track by Mode'!AC:AC,'Track by Mode'!$H:$H,">="&$B10,'Track by Mode'!$H:$H,"<"&$D10),SUMIFS('Track by Mode'!AC:AC,'Track by Mode'!$H:$H,">="&$B10))) -> 775 | O10: =IF($X$2,IF($A10="between",SUMIFS('Track by Mode'!AE:AE,'Track by Mode'!$H:$H,">="&$B10,'Track by Mode'!$H:$H,"<"&$D10,'Track by Mode'!$AI:$AI,"=No"),SUMIFS('Track by Mode'!AE:AE,'Track by Mode'!$H:$H,">="&$B10,'Track by Mode'!$AI:$AI,"=No")),IF($A10="between",SUMIFS('Track by Mode'!AE:AE,'Track by Mode'!$H:$H,">="&$B10,'Track by Mode'!$H:$H,"<"&$D10),SUMIFS('Track by Mode'!AE:AE,'Track by Mode'!$H:$H,">="&$B10))) -> 73 | P10: =IF($X$2,IF($A10="between",SUMIFS('Track by Mode'!AG:AG,'Track by Mode'!$H:$H,">="&$B10,'Track by Mode'!$H:$H,"<"&$D10,'Track by Mode'!$AI:$AI,"=No"),SUMIFS('Track by Mode'!AG:AG,'Track by Mode'!$H:$H,">="&$B10,'Track by Mode'!$AI:$AI,"=No")),IF($A10="between",SUMIFS('Track by Mode'!AG:AG,'Track by Mode'!$H:$H,">="&$B10,'Track by Mode'!$H:$H,"<"&$D10),SUMIFS('Track by Mode'!AG:AG,'Track by Mode'!$H:$H,">="&$B10))) -> 848 | Q10: =IF($O$2,IF($A10="between",SUMIFS('Roadway by Mode'!N:N,'Roadway by Mode'!$H:$H,">="&$B10,'Roadway by Mode'!$H:$H,"<"&$D10,'Roadway by Mode'!$V:$V,"=No"),SUMIFS('Roadway by Mode'!N:N,'Roadway by Mode'!$H:$H,">="&$B10,'Roadway by Mode'!$V:$V,"=No")),IF($A10="between",SUMIFS('Roadway by Mode'!N:N,'Roadway by Mode'!$H:$H,">="&$B10,'Roadway by Mode'!$H:$H,"<"&$D10),SUMIFS('Roadway by Mode'!N:N,'Roadway by Mode'!$H:$H,">="&$B10))) -> 220 | R10: =IF($O$2,IF($A10="between",SUMIFS('Roadway by Mode'!P:P,'Roadway by Mode'!$H:$H,">="&$B10,'Roadway by Mode'!$H:$H,"<"&$D10,'Roadway by Mode'!$V:$V,"=No"),SUMIFS('Roadway by Mode'!P:P,'Roadway by Mode'!$H:$H,">="&$B10,'Roadway by Mode'!$V:$V,"=No")),IF($A10="between",SUMIFS('Roadway by Mode'!P:P,'Roadway by Mode'!$H:$H,">="&$B10,'Roadway by Mode'!$H:$H,"<"&$D10),SUMIFS('Roadway by Mode'!P:P,'Roadway by Mode'!$H:$H,">="&$B10))) -> 59.4 | S10: =IF($O$2,IF($A10="between",SUMIFS('Roadway by Mode'!R:R,'Roadway by Mode'!$H:$H,">="&$B10,'Roadway by Mode'!$H:$H,"<"&$D10,'Roadway by Mode'!$V:$V,"=No"),SUMIFS('Roadway by Mode'!R:R,'Roadway by Mode'!$H:$H,">="&$B10,'Roadway by Mode'!$V:$V,"=No")),IF($A10="between",SUMIFS('Roadway by Mode'!R:R,'Roadway by Mode'!$H:$H,">="&$B10,'Roadway by Mode'!$H:$H,"<"&$D10),SUMIFS('Roadway by Mode'!R:R,'Roadway by Mode'!$H:$H,">="&$B10))) -> 154.6 | T10: =IF($O$2,IF($A10="between",SUMIFS('Roadway by Mode'!T:T,'Roadway by Mode'!$H:$H,">="&$B10,'Roadway by Mode'!$H:$H,"<"&$D10,'Roadway by Mode'!$V:$V,"=No"),SUMIFS('Roadway by Mode'!T:T,'Roadway by Mode'!$H:$H,">="&$B10,'Roadway by Mode'!$V:$V,"=No")),IF($A10="between",SUMIFS('Roadway by Mode'!T:T,'Roadway by Mode'!$H:$H,">="&$B10,'Roadway by Mode'!$H:$H,"<"&$D10),SUMIFS('Roadway by Mode'!T:T,'Roadway by Mode'!$H:$H,">="&$B10))) -> 434
A11: =IF(OR(A10="over",A10=""),"",IF(D11="","over","between")) -> over | B11: =IF(D10="","",D10) -> 1000000 | C11: =IF(D11<>"","and","") ->  | E11: over 1,000,000 | F11: =IFERROR(IF($X$2,IF($A11="","",IF($A11="between",SUMIFS('Track by Mode'!L:L,'Track by Mode'!$H:$H,">="&$B11,'Track by Mode'!$H:$H,"<"&$D11,'Track by Mode'!$AI:$AI,"=No"),SUMIFS('Track by Mode'!L:L,'Track by Mode'!$H:$H,">="&$B11,'Track by Mode'!$AI:$AI,"=No"))),IF($A11="","",IF($A11="between",SUMIFS('Track by Mode'!L:L,'Track by Mode'!$H:$H,">="&$B11,'Track by Mode'!$H:$H,"<"&$D11),SUMIFS('Track by Mode'!L:L,'Track by Mode'!$H:$H,">="&$B11))))+IF($X$2,IF($A11="","",IF($A11="between",SUMIFS('Roadway by Mode'!L:L,'Roadway by Mode'!$H:$H,">="&$B11,'Roadway by Mode'!$H:$H,"<"&$D11,'Roadway by Mode'!$V:$V,"=No"),SUMIFS('Roadway by Mode'!L:L,'Roadway by Mode'!$H:$H,">="&$B11,'Roadway by Mode'!$V:$V,"=No"))),IF($A11="","",IF($A11="between",SUMIFS('Roadway by Mode'!L:L,'Roadway by Mode'!$H:$H,">="&$B11,'Roadway by Mode'!$H:$H,"<"&$D11),SUMIFS('Roadway by Mode'!L:L,'Roadway by Mode'!$H:$H,">="&$B11)))),"") -> 56147 | G11: =IFERROR(IF($X$2,IF($A11="","",IF($A11="between",SUMIFS('Track by Mode'!N:N,'Track by Mode'!$H:$H,">="&$B11,'Track by Mode'!$H:$H,"<"&$D11,'Track by Mode'!$AI:$AI,"=No"),SUMIFS('Track by Mode'!N:N,'Track by Mode'!$H:$H,">="&$B11,'Track by Mode'!$AI:$AI,"=No"))),IF($A11="","",IF($A11="between",SUMIFS('Track by Mode'!N:N,'Track by Mode'!$H:$H,">="&$B11,'Track by Mode'!$H:$H,"<"&$D11),SUMIFS('Track by Mode'!N:N,'Track by Mode'!$H:$H,">="&$B11)))),"") -> 8808 | H11: =IFERROR(IF($X$2,IF($A11="","",IF($A11="between",SUMIFS('Track by Mode'!P:P,'Track by Mode'!$H:$H,">="&$B11,'Track by Mode'!$H:$H,"<"&$D11,'Track by Mode'!$AI:$AI,"=No"),SUMIFS('Track by Mode'!P:P,'Track by Mode'!$H:$H,">="&$B11,'Track by Mode'!$AI:$AI,"=No"))),IF($A11="","",IF($A11="between",SUMIFS('Track by Mode'!P:P,'Track by Mode'!$H:$H,">="&$B11,'Track by Mode'!$H:$H,"<"&$D11),SUMIFS('Track by Mode'!P:P,'Track by Mode'!$H:$H,">="&$B11)))),"") -> 321.9 | I11: =IFERROR(IF($X$2,IF($A11="","",IF($A11="between",SUMIFS('Track by Mode'!R:R,'Track by Mode'!$H:$H,">="&$B11,'Track by Mode'!$H:$H,"<"&$D11,'Track by Mode'!$AI:$AI,"=No"),SUMIFS('Track by Mode'!R:R,'Track by Mode'!$H:$H,">="&$B11,'Track by Mode'!$AI:$AI,"=No"))),IF($A11="","",IF($A11="between",SUMIFS('Track by Mode'!R:R,'Track by Mode'!$H:$H,">="&$B11,'Track by Mode'!$H:$H,"<"&$D11),SUMIFS('Track by Mode'!R:R,'Track by Mode'!$H:$H,">="&$B11)))),"") -> 790.1 | J11: =IFERROR(IF($X$2,IF($A11="","",IF($A11="between",SUMIFS('Track by Mode'!T:T,'Track by Mode'!$H:$H,">="&$B11,'Track by Mode'!$H:$H,"<"&$D11,'Track by Mode'!$AI:$AI,"=No"),SUMIFS('Track by Mode'!T:T,'Track by Mode'!$H:$H,">="&$B11,'Track by Mode'!$AI:$AI,"=No"))),IF($A11="","",IF($A11="between",SUMIFS('Track by Mode'!T:T,'Track by Mode'!$H:$H,">="&$B11,'Track by Mode'!$H:$H,"<"&$D11),SUMIFS('Track by Mode'!T:T,'Track by Mode'!$H:$H,">="&$B11)))),"") -> 602.8 | K11: =IFERROR(IF($X$2,IF($A11="","",IF($A11="between",SUMIFS('Track by Mode'!V:V,'Track by Mode'!$H:$H,">="&$B11,'Track by Mode'!$H:$H,"<"&$D11,'Track by Mode'!$AI:$AI,"=No"),SUMIFS('Track by Mode'!V:V,'Track by Mode'!$H:$H,">="&$B11,'Track by Mode'!$AI:$AI,"=No"))),IF($A11="","",IF($A11="between",SUMIFS('Track by Mode'!V:V,'Track by Mode'!$H:$H,">="&$B11,'Track by Mode'!$H:$H,"<"&$D11),SUMIFS('Track by Mode'!V:V,'Track by Mode'!$H:$H,">="&$B11)))),"") -> 185.6 | L11: =IFERROR(IF($X$2,IF($A11="","",IF($A11="between",SUMIFS('Track by Mode'!X:X,'Track by Mode'!$H:$H,">="&$B11,'Track by Mode'!$H:$H,"<"&$D11,'Track by Mode'!$AI:$AI,"=No"),SUMIFS('Track by Mode'!X:X,'Track by Mode'!$H:$H,">="&$B11,'Track by Mode'!$AI:$AI,"=No"))),IF($A11="","",IF($A11="between",SUMIFS('Track by Mode'!X:X,'Track by Mode'!$H:$H,">="&$B11,'Track by Mode'!$H:$H,"<"&$D11),SUMIFS('Track by Mode'!X:X,'Track by Mode'!$H:$H,">="&$B11)))),"") -> 919.9 | M11: =IFERROR(IF($X$2,IF($A11="","",IF($A11="between",SUMIFS('Track by Mode'!Z:Z,'Track by Mode'!$H:$H,">="&$B11,'Track by Mode'!$H:$H,"<"&$D11,'Track by Mode'!$AI:$AI,"=No"),SUMIFS('Track by Mode'!Z:Z,'Track by Mode'!$H:$H,">="&$B11,'Track by Mode'!$AI:$AI,"=No"))),IF($A11="","",IF($A11="between",SUMIFS('Track by Mode'!Z:Z,'Track by Mode'!$H:$H,">="&$B11,'Track by Mode'!$H:$H,"<"&$D11),SUMIFS('Track by Mode'!Z:Z,'Track by Mode'!$H:$H,">="&$B11)))),"") -> 11628.3 | N11: =IFERROR(IF($X$2,IF($A11="","",IF($A11="between",SUMIFS('Track by Mode'!AC:AC,'Track by Mode'!$H:$H,">="&$B11,'Track by Mode'!$H:$H,"<"&$D11,'Track by Mode'!$AI:$AI,"=No"),SUMIFS('Track by Mode'!AC:AC,'Track by Mode'!$H:$H,">="&$B11,'Track by Mode'!$AI:$AI,"=No"))),IF($A11="","",IF($A11="between",SUMIFS('Track by Mode'!AC:AC,'Track by Mode'!$H:$H,">="&$B11,'Track by Mode'!$H:$H,"<"&$D11),SUMIFS('Track by Mode'!AC:AC,'Track by Mode'!$H:$H,">="&$B11)))),"") -> 4907 | O11: =IFERROR(IF($X$2,IF($A11="","",IF($A11="between",SUMIFS('Track by Mode'!AE:AE,'Track by Mode'!$H:$H,">="&$B11,'Track by Mode'!$H:$H,"<"&$D11,'Track by Mode'!$AI:$AI,"=No"),SUMIFS('Track by Mode'!AE:AE,'Track by Mode'!$H:$H,">="&$B11,'Track by Mode'!$AI:$AI,"=No"))),IF($A11="","",IF($A11="between",SUMIFS('Track by Mode'!AE:AE,'Track by Mode'!$H:$H,">="&$B11,'Track by Mode'!$H:$H,"<"&$D11),SUMIFS('Track by Mode'!AE:AE,'Track by Mode'!$H:$H,">="&$B11)))),"") -> 1707 | P11: =IFERROR(IF($X$2,IF($A11="","",IF($A11="between",SUMIFS('Track by Mode'!AG:AG,'Track by Mode'!$H:$H,">="&$B11,'Track by Mode'!$H:$H,"<"&$D11,'Track by Mode'!$AI:$AI,"=No"),SUMIFS('Track by Mode'!AG:AG,'Track by Mode'!$H:$H,">="&$B11,'Track by Mode'!$AI:$AI,"=No"))),IF($A11="","",IF($A11="between",SUMIFS('Track by Mode'!AG:AG,'Track by Mode'!$H:$H,">="&$B11,'Track by Mode'!$H:$H,"<"&$D11),SUMIFS('Track by Mode'!AG:AG,'Track by Mode'!$H:$H,">="&$B11)))),"") -> 6614 | Q11: =IFERROR(IF($O$2,IF($A11="","",IF($A11="between",SUMIFS('Roadway by Mode'!N:N,'Roadway by Mode'!$H:$H,">="&$B11,'Roadway by Mode'!$H:$H,"<"&$D11,'Roadway by Mode'!$V:$V,"=No"),SUMIFS('Roadway by Mode'!N:N,'Roadway by Mode'!$H:$H,">="&$B11,'Roadway by Mode'!$V:$V,"=No"))),IF($A11="","",IF($A11="between",SUMIFS('Roadway by Mode'!N:N,'Roadway by Mode'!$H:$H,">="&$B11,'Roadway by Mode'!$H:$H,"<"&$D11),SUMIFS('Roadway by Mode'!N:N,'Roadway by Mode'!$H:$H,">="&$B11)))),"") -> 782.1 | R11: =IFERROR(IF($O$2,IF($A11="","",IF($A11="between",SUMIFS('Roadway by Mode'!P:P,'Roadway by Mode'!$H:$H,">="&$B11,'Roadway by Mode'!$H:$H,"<"&$D11,'Roadway by Mode'!$V:$V,"=No"),SUMIFS('Roadway by Mode'!P:P,'Roadway by Mode'!$H:$H,">="&$B11,'Roadway by Mode'!$V:$V,"=No"))),IF($A11="","",IF($A11="between",SUMIFS('Roadway by Mode'!P:P,'Roadway by Mode'!$H:$H,">="&$B11,'Roadway by Mode'!$H:$H,"<"&$D11),SUMIFS('Roadway by Mode'!P:P,'Roadway by Mode'!$H:$H,">="&$B11)))),"") -> 1385 | S11: =IFERROR(IF($O$2,IF($A11="","",IF($A11="between",SUMIFS('Roadway by Mode'!R:R,'Roadway by Mode'!$H:$H,">="&$B11,'Roadway by Mode'!$H:$H,"<"&$D11,'Roadway by Mode'!$V:$V,"=No"),SUMIFS('Roadway by Mode'!R:R,'Roadway by Mode'!$H:$H,">="&$B11,'Roadway by Mode'!$V:$V,"=No"))),IF($A11="","",IF($A11="between",SUMIFS('Roadway by Mode'!R:R,'Roadway by Mode'!$H:$H,">="&$B11,'Roadway by Mode'!$H:$H,"<"&$D11),SUMIFS('Roadway by Mode'!R:R,'Roadway by Mode'!$H:$H,">="&$B11)))),"") -> 1903.2 | T11: =IFERROR(IF($O$2,IF($A11="","",IF($A11="between",SUMIFS('Roadway by Mode'!T:T,'Roadway by Mode'!$H:$H,">="&$B11,'Roadway by Mode'!$H:$H,"<"&$D11,'Roadway by Mode'!$V:$V,"=No"),SUMIFS('Roadway by Mode'!T:T,'Roadway by Mode'!$H:$H,">="&$B11,'Roadway by Mode'!$V:$V,"=No"))),IF($A11="","",IF($A11="between",SUMIFS('Roadway by Mode'!T:T,'Roadway by Mode'!$H:$H,">="&$B11,'Roadway by Mode'!$H:$H,"<"&$D11),SUMIFS('Roadway by Mode'!T:T,'Roadway by Mode'!$H:$H,">="&$B11)))),"") -> 4070.3
C12: =IF(D12<>"","and","") ->  | E12: invalid bin | F12: =IFERROR(IF($X$2,IF($A12="","",IF($A12="between",SUMIFS('Track by Mode'!L:L,'Track by Mode'!$H:$H,">="&$B12,'Track by Mode'!$H:$H,"<"&$D12,'Track by Mode'!$AI:$AI,"=No"),SUMIFS('Track by Mode'!L:L,'Track by Mode'!$H:$H,">="&$B12,'Track by Mode'!$AI:$AI,"=No"))),IF($A12="","",IF($A12="between",SUMIFS('Track by Mode'!L:L,'Track by Mode'!$H:$H,">="&$B12,'Track by Mode'!$H:$H,"<"&$D12),SUMIFS('Track by Mode'!L:L,'Track by Mode'!$H:$H,">="&$B12))))+IF($X$2,IF($A12="","",IF($A12="between",SUMIFS('Roadway by Mode'!L:L,'Roadway by Mode'!$H:$H,">="&$B12,'Roadway by Mode'!$H:$H,"<"&$D12,'Roadway by Mode'!$V:$V,"=No"),SUMIFS('Roadway by Mode'!L:L,'Roadway by Mode'!$H:$H,">="&$B12,'Roadway by Mode'!$V:$V,"=No"))),IF($A12="","",IF($A12="between",SUMIFS('Roadway by Mode'!L:L,'Roadway by Mode'!$H:$H,">="&$B12,'Roadway by Mode'!$H:$H,"<"&$D12),SUMIFS('Roadway by Mode'!L:L,'Roadway by Mode'!$H:$H,">="&$B12)))),"") ->  | G12: =IFERROR(IF($X$2,IF($A12="","",IF($A12="between",SUMIFS('Track by Mode'!N:N,'Track by Mode'!$H:$H,">="&$B12,'Track by Mode'!$H:$H,"<"&$D12,'Track by Mode'!$AI:$AI,"=No"),SUMIFS('Track by Mode'!N:N,'Track by Mode'!$H:$H,">="&$B12,'Track by Mode'!$AI:$AI,"=No"))),IF($A12="","",IF($A12="between",SUMIFS('Track by Mode'!N:N,'Track by Mode'!$H:$H,">="&$B12,'Track by Mode'!$H:$H,"<"&$D12),SUMIFS('Track by Mode'!N:N,'Track by Mode'!$H:$H,">="&$B12)))),"") ->  | H12: =IFERROR(IF($X$2,IF($A12="","",IF($A12="between",SUMIFS('Track by Mode'!P:P,'Track by Mode'!$H:$H,">="&$B12,'Track by Mode'!$H:$H,"<"&$D12,'Track by Mode'!$AI:$AI,"=No"),SUMIFS('Track by Mode'!P:P,'Track by Mode'!$H:$H,">="&$B12,'Track by Mode'!$AI:$AI,"=No"))),IF($A12="","",IF($A12="between",SUMIFS('Track by Mode'!P:P,'Track by Mode'!$H:$H,">="&$B12,'Track by Mode'!$H:$H,"<"&$D12),SUMIFS('Track by Mode'!P:P,'Track by Mode'!$H:$H,">="&$B12)))),"") ->  | I12: =IFERROR(IF($X$2,IF($A12="","",IF($A12="between",SUMIFS('Track by Mode'!R:R,'Track by Mode'!$H:$H,">="&$B12,'Track by Mode'!$H:$H,"<"&$D12,'Track by Mode'!$AI:$AI,"=No"),SUMIFS('Track by Mode'!R:R,'Track by Mode'!$H:$H,">="&$B12,'Track by Mode'!$AI:$AI,"=No"))),IF($A12="","",IF($A12="between",SUMIFS('Track by Mode'!R:R,'Track by Mode'!$H:$H,">="&$B12,'Track by Mode'!$H:$H,"<"&$D12),SUMIFS('Track by Mode'!R:R,'Track by Mode'!$H:$H,">="&$B12)))),"") ->  | J12: =IFERROR(IF($X$2,IF($A12="","",IF($A12="between",SUMIFS('Track by Mode'!T:T,'Track by Mode'!$H:$H,">="&$B12,'Track by Mode'!$H:$H,"<"&$D12,'Track by Mode'!$AI:$AI,"=No"),SUMIFS('Track by Mode'!T:T,'Track by Mode'!$H:$H,">="&$B12,'Track by Mode'!$AI:$AI,"=No"))),IF($A12="","",IF($A12="between",SUMIFS('Track by Mode'!T:T,'Track by Mode'!$H:$H,">="&$B12,'Track by Mode'!$H:$H,"<"&$D12),SUMIFS('Track by Mode'!T:T,'Track by Mode'!$H:$H,">="&$B12)))),"") ->  | K12: =IFERROR(IF($X$2,IF($A12="","",IF($A12="between",SUMIFS('Track by Mode'!V:V,'Track by Mode'!$H:$H,">="&$B12,'Track by Mode'!$H:$H,"<"&$D12,'Track by Mode'!$AI:$AI,"=No"),SUMIFS('Track by Mode'!V:V,'Track by Mode'!$H:$H,">="&$B12,'Track by Mode'!$AI:$AI,"=No"))),IF($A12="","",IF($A12="between",SUMIFS('Track by Mode'!V:V,'Track by Mode'!$H:$H,">="&$B12,'Track by Mode'!$H:$H,"<"&$D12),SUMIFS('Track by Mode'!V:V,'Track by Mode'!$H:$H,">="&$B12)))),"") ->  | L12: =IFERROR(IF($X$2,IF($A12="","",IF($A12="between",SUMIFS('Track by Mode'!X:X,'Track by Mode'!$H:$H,">="&$B12,'Track by Mode'!$H:$H,"<"&$D12,'Track by Mode'!$AI:$AI,"=No"),SUMIFS('Track by Mode'!X:X,'Track by Mode'!$H:$H,">="&$B12,'Track by Mode'!$AI:$AI,"=No"))),IF($A12="","",IF($A12="between",SUMIFS('Track by Mode'!X:X,'Track by Mode'!$H:$H,">="&$B12,'Track by Mode'!$H:$H,"<"&$D12),SUMIFS('Track by Mode'!X:X,'Track by Mode'!$H:$H,">="&$B12)))),"") ->  | M12: =IFERROR(IF($X$2,IF($A12="","",IF($A12="between",SUMIFS('Track by Mode'!Z:Z,'Track by Mode'!$H:$H,">="&$B12,'Track by Mode'!$H:$H,"<"&$D12,'Track by Mode'!$AI:$AI,"=No"),SUMIFS('Track by Mode'!Z:Z,'Track by Mode'!$H:$H,">="&$B12,'Track by Mode'!$AI:$AI,"=No"))),IF($A12="","",IF($A12="between",SUMIFS('Track by Mode'!Z:Z,'Track by Mode'!$H:$H,">="&$B12,'Track by Mode'!$H:$H,"<"&$D12),SUMIFS('Track by Mode'!Z:Z,'Track by Mode'!$H:$H,">="&$B12)))),"") ->  | N12: =IFERROR(IF($X$2,IF($A12="","",IF($A12="between",SUMIFS('Track by Mode'!AC:AC,'Track by Mode'!$H:$H,">="&$B12,'Track by Mode'!$H:$H,"<"&$D12,'Track by Mode'!$AI:$AI,"=No"),SUMIFS('Track by Mode'!AC:AC,'Track by Mode'!$H:$H,">="&$B12,'Track by Mode'!$AI:$AI,"=No"))),IF($A12="","",IF($A12="between",SUMIFS('Track by Mode'!AC:AC,'Track by Mode'!$H:$H,">="&$B12,'Track by Mode'!$H:$H,"<"&$D12),SUMIFS('Track by Mode'!AC:AC,'Track by Mode'!$H:$H,">="&$B12)))),"") ->  | O12: =IFERROR(IF($X$2,IF($A12="","",IF($A12="between",SUMIFS('Track by Mode'!AE:AE,'Track by Mode'!$H:$H,">="&$B12,'Track by Mode'!$H:$H,"<"&$D12,'Track by Mode'!$AI:$AI,"=No"),SUMIFS('Track by Mode'!AE:AE,'Track by Mode'!$H:$H,">="&$B12,'Track by Mode'!$AI:$AI,"=No"))),IF($A12="","",IF($A12="between",SUMIFS('Track by Mode'!AE:AE,'Track by Mode'!$H:$H,">="&$B12,'Track by Mode'!$H:$H,"<"&$D12),SUMIFS('Track by Mode'!AE:AE,'Track by Mode'!$H:$H,">="&$B12)))),"") ->  | P12: =IFERROR(IF($X$2,IF($A12="","",IF($A12="between",SUMIFS('Track by Mode'!AG:AG,'Track by Mode'!$H:$H,">="&$B12,'Track by Mode'!$H:$H,"<"&$D12,'Track by Mode'!$AI:$AI,"=No"),SUMIFS('Track by Mode'!AG:AG,'Track by Mode'!$H:$H,">="&$B12,'Track by Mode'!$AI:$AI,"=No"))),IF($A12="","",IF($A12="between",SUMIFS('Track by Mode'!AG:AG,'Track by Mode'!$H:$H,">="&$B12,'Track by Mode'!$H:$H,"<"&$D12),SUMIFS('Track by Mode'!AG:AG,'Track by Mode'!$H:$H,">="&$B12)))),"") ->  | Q12: =IFERROR(IF($O$2,IF($A12="","",IF($A12="between",SUMIFS('Roadway by Mode'!N:N,'Roadway by Mode'!$H:$H,">="&$B12,'Roadway by Mode'!$H:$H,"<"&$D12,'Roadway by Mode'!$V:$V,"=No"),SUMIFS('Roadway by Mode'!N:N,'Roadway by Mode'!$H:$H,">="&$B12,'Roadway by Mode'!$V:$V,"=No"))),IF($A12="","",IF($A12="between",SUMIFS('Roadway by Mode'!N:N,'Roadway by Mode'!$H:$H,">="&$B12,'Roadway by Mode'!$H:$H,"<"&$D12),SUMIFS('Roadway by Mode'!N:N,'Roadway by Mode'!$H:$H,">="&$B12)))),"") ->  | R12: =IFERROR(IF($O$2,IF($A12="","",IF($A12="between",SUMIFS('Roadway by Mode'!P:P,'Roadway by Mode'!$H:$H,">="&$B12,'Roadway by Mode'!$H:$H,"<"&$D12,'Roadway by Mode'!$V:$V,"=No"),SUMIFS('Roadway by Mode'!P:P,'Roadway by Mode'!$H:$H,">="&$B12,'Roadway by Mode'!$V:$V,"=No"))),IF($A12="","",IF($A12="between",SUMIFS('Roadway by Mode'!P:P,'Roadway by Mode'!$H:$H,">="&$B12,'Roadway by Mode'!$H:$H,"<"&$D12),SUMIFS('Roadway by Mode'!P:P,'Roadway by Mode'!$H:$H,">="&$B12)))),"") ->  | S12: =IFERROR(IF($O$2,IF($A12="","",IF($A12="between",SUMIFS('Roadway by Mode'!R:R,'Roadway by Mode'!$H:$H,">="&$B12,'Roadway by Mode'!$H:$H,"<"&$D12,'Roadway by Mode'!$V:$V,"=No"),SUMIFS('Roadway by Mode'!R:R,'Roadway by Mode'!$H:$H,">="&$B12,'Roadway by Mode'!$V:$V,"=No"))),IF($A12="","",IF($A12="between",SUMIFS('Roadway by Mode'!R:R,'Roadway by Mode'!$H:$H,">="&$B12,'Roadway by Mode'!$H:$H,"<"&$D12),SUMIFS('Roadway by Mode'!R:R,'Roadway by Mode'!$H:$H,">="&$B12)))),"") ->  | T12: =IFERROR(IF($O$2,IF($A12="","",IF($A12="between",SUMIFS('Roadway by Mode'!T:T,'Roadway by Mode'!$H:$H,">="&$B12,'Roadway by Mode'!$H:$H,"<"&$D12,'Roadway by Mode'!$V:$V,"=No"),SUMIFS('Roadway by Mode'!T:T,'Roadway by Mode'!$H:$H,">="&$B12,'Roadway by Mode'!$V:$V,"=No"))),IF($A12="","",IF($A12="between",SUMIFS('Roadway by Mode'!T:T,'Roadway by Mode'!$H:$H,">="&$B12,'Roadway by Mode'!$H:$H,"<"&$D12),SUMIFS('Roadway by Mode'!T:T,'Roadway by Mode'!$H:$H,">="&$B12)))),"") -> 
E13: invalid bin | F13: =IFERROR(IF($X$2,IF($A13="","",IF($A13="between",SUMIFS('Track by Mode'!L:L,'Track by Mode'!$H:$H,">="&$B13,'Track by Mode'!$H:$H,"<"&$D13,'Track by Mode'!$AI:$AI,"=No"),SUMIFS('Track by Mode'!L:L,'Track by Mode'!$H:$H,">="&$B13,'Track by Mode'!$AI:$AI,"=No"))),IF($A13="","",IF($A13="between",SUMIFS('Track by Mode'!L:L,'Track by Mode'!$H:$H,">="&$B13,'Track by Mode'!$H:$H,"<"&$D13),SUMIFS('Track by Mode'!L:L,'Track by Mode'!$H:$H,">="&$B13))))+IF($X$2,IF($A13="","",IF($A13="between",SUMIFS('Roadway by Mode'!L:L,'Roadway by Mode'!$H:$H,">="&$B13,'Roadway by Mode'!$H:$H,"<"&$D13,'Roadway by Mode'!$V:$V,"=No"),SUMIFS('Roadway by Mode'!L:L,'Roadway by Mode'!$H:$H,">="&$B13,'Roadway by Mode'!$V:$V,"=No"))),IF($A13="","",IF($A13="between",SUMIFS('Roadway by Mode'!L:L,'Roadway by Mode'!$H:$H,">="&$B13,'Roadway by Mode'!$H:$H,"<"&$D13),SUMIFS('Roadway by Mode'!L:L,'Roadway by Mode'!$H:$H,">="&$B13)))),"") ->  | G13: =IFERROR(IF($X$2,IF($A13="","",IF($A13="between",SUMIFS('Track by Mode'!N:N,'Track by Mode'!$H:$H,">="&$B13,'Track by Mode'!$H:$H,"<"&$D13,'Track by Mode'!$AI:$AI,"=No"),SUMIFS('Track by Mode'!N:N,'Track by Mode'!$H:$H,">="&$B13,'Track by Mode'!$AI:$AI,"=No"))),IF($A13="","",IF($A13="between",SUMIFS('Track by Mode'!N:N,'Track by Mode'!$H:$H,">="&$B13,'Track by Mode'!$H:$H,"<"&$D13),SUMIFS('Track by Mode'!N:N,'Track by Mode'!$H:$H,">="&$B13)))),"") ->  | H13: =IFERROR(IF($X$2,IF($A13="","",IF($A13="between",SUMIFS('Track by Mode'!P:P,'Track by Mode'!$H:$H,">="&$B13,'Track by Mode'!$H:$H,"<"&$D13,'Track by Mode'!$AI:$AI,"=No"),SUMIFS('Track by Mode'!P:P,'Track by Mode'!$H:$H,">="&$B13,'Track by Mode'!$AI:$AI,"=No"))),IF($A13="","",IF($A13="between",SUMIFS('Track by Mode'!P:P,'Track by Mode'!$H:$H,">="&$B13,'Track by Mode'!$H:$H,"<"&$D13),SUMIFS('Track by Mode'!P:P,'Track by Mode'!$H:$H,">="&$B13)))),"") ->  | I13: =IFERROR(IF($X$2,IF($A13="","",IF($A13="between",SUMIFS('Track by Mode'!R:R,'Track by Mode'!$H:$H,">="&$B13,'Track by Mode'!$H:$H,"<"&$D13,'Track by Mode'!$AI:$AI,"=No"),SUMIFS('Track by Mode'!R:R,'Track by Mode'!$H:$H,">="&$B13,'Track by Mode'!$AI:$AI,"=No"))),IF($A13="","",IF($A13="between",SUMIFS('Track by Mode'!R:R,'Track by Mode'!$H:$H,">="&$B13,'Track by Mode'!$H:$H,"<"&$D13),SUMIFS('Track by Mode'!R:R,'Track by Mode'!$H:$H,">="&$B13)))),"") ->  | J13: =IFERROR(IF($X$2,IF($A13="","",IF($A13="between",SUMIFS('Track by Mode'!T:T,'Track by Mode'!$H:$H,">="&$B13,'Track by Mode'!$H:$H,"<"&$D13,'Track by Mode'!$AI:$AI,"=No"),SUMIFS('Track by Mode'!T:T,'Track by Mode'!$H:$H,">="&$B13,'Track by Mode'!$AI:$AI,"=No"))),IF($A13="","",IF($A13="between",SUMIFS('Track by Mode'!T:T,'Track by Mode'!$H:$H,">="&$B13,'Track by Mode'!$H:$H,"<"&$D13),SUMIFS('Track by Mode'!T:T,'Track by Mode'!$H:$H,">="&$B13)))),"") ->  | K13: =IFERROR(IF($X$2,IF($A13="","",IF($A13="between",SUMIFS('Track by Mode'!V:V,'Track by Mode'!$H:$H,">="&$B13,'Track by Mode'!$H:$H,"<"&$D13,'Track by Mode'!$AI:$AI,"=No"),SUMIFS('Track by Mode'!V:V,'Track by Mode'!$H:$H,">="&$B13,'Track by Mode'!$AI:$AI,"=No"))),IF($A13="","",IF($A13="between",SUMIFS('Track by Mode'!V:V,'Track by Mode'!$H:$H,">="&$B13,'Track by Mode'!$H:$H,"<"&$D13),SUMIFS('Track by Mode'!V:V,'Track by Mode'!$H:$H,">="&$B13)))),"") ->  | L13: =IFERROR(IF($X$2,IF($A13="","",IF($A13="between",SUMIFS('Track by Mode'!X:X,'Track by Mode'!$H:$H,">="&$B13,'Track by Mode'!$H:$H,"<"&$D13,'Track by Mode'!$AI:$AI,"=No"),SUMIFS('Track by Mode'!X:X,'Track by Mode'!$H:$H,">="&$B13,'Track by Mode'!$AI:$AI,"=No"))),IF($A13="","",IF($A13="between",SUMIFS('Track by Mode'!X:X,'Track by Mode'!$H:$H,">="&$B13,'Track by Mode'!$H:$H,"<"&$D13),SUMIFS('Track by Mode'!X:X,'Track by Mode'!$H:$H,">="&$B13)))),"") ->  | M13: =IFERROR(IF($X$2,IF($A13="","",IF($A13="between",SUMIFS('Track by Mode'!Z:Z,'Track by Mode'!$H:$H,">="&$B13,'Track by Mode'!$H:$H,"<"&$D13,'Track by Mode'!$AI:$AI,"=No"),SUMIFS('Track by Mode'!Z:Z,'Track by Mode'!$H:$H,">="&$B13,'Track by Mode'!$AI:$AI,"=No"))),IF($A13="","",IF($A13="between",SUMIFS('Track by Mode'!Z:Z,'Track by Mode'!$H:$H,">="&$B13,'Track by Mode'!$H:$H,"<"&$D13),SUMIFS('Track by Mode'!Z:Z,'Track by Mode'!$H:$H,">="&$B13)))),"") ->  | N13: =IFERROR(IF($X$2,IF($A13="","",IF($A13="between",SUMIFS('Track by Mode'!AC:AC,'Track by Mode'!$H:$H,">="&$B13,'Track by Mode'!$H:$H,"<"&$D13,'Track by Mode'!$AI:$AI,"=No"),SUMIFS('Track by Mode'!AC:AC,'Track by Mode'!$H:$H,">="&$B13,'Track by Mode'!$AI:$AI,"=No"))),IF($A13="","",IF($A13="between",SUMIFS('Track by Mode'!AC:AC,'Track by Mode'!$H:$H,">="&$B13,'Track by Mode'!$H:$H,"<"&$D13),SUMIFS('Track by Mode'!AC:AC,'Track by Mode'!$H:$H,">="&$B13)))),"") ->  | O13: =IFERROR(IF($X$2,IF($A13="","",IF($A13="between",SUMIFS('Track by Mode'!AE:AE,'Track by Mode'!$H:$H,">="&$B13,'Track by Mode'!$H:$H,"<"&$D13,'Track by Mode'!$AI:$AI,"=No"),SUMIFS('Track by Mode'!AE:AE,'Track by Mode'!$H:$H,">="&$B13,'Track by Mode'!$AI:$AI,"=No"))),IF($A13="","",IF($A13="between",SUMIFS('Track by Mode'!AE:AE,'Track by Mode'!$H:$H,">="&$B13,'Track by Mode'!$H:$H,"<"&$D13),SUMIFS('Track by Mode'!AE:AE,'Track by Mode'!$H:$H,">="&$B13)))),"") ->  | P13: =IFERROR(IF($X$2,IF($A13="","",IF($A13="between",SUMIFS('Track by Mode'!AG:AG,'Track by Mode'!$H:$H,">="&$B13,'Track by Mode'!$H:$H,"<"&$D13,'Track by Mode'!$AI:$AI,"=No"),SUMIFS('Track by Mode'!AG:AG,'Track by Mode'!$H:$H,">="&$B13,'Track by Mode'!$AI:$AI,"=No"))),IF($A13="","",IF($A13="between",SUMIFS('Track by Mode'!AG:AG,'Track by Mode'!$H:$H,">="&$B13,'Track by Mode'!$H:$H,"<"&$D13),SUMIFS('Track by Mode'!AG:AG,'Track by Mode'!$H:$H,">="&$B13)))),"") ->  | Q13: =IFERROR(IF($O$2,IF($A13="","",IF($A13="between",SUMIFS('Roadway by Mode'!N:N,'Roadway by Mode'!$H:$H,">="&$B13,'Roadway by Mode'!$H:$H,"<"&$D13,'Roadway by Mode'!$V:$V,"=No"),SUMIFS('Roadway by Mode'!N:N,'Roadway by Mode'!$H:$H,">="&$B13,'Roadway by Mode'!$V:$V,"=No"))),IF($A13="","",IF($A13="between",SUMIFS('Roadway by Mode'!N:N,'Roadway by Mode'!$H:$H,">="&$B13,'Roadway by Mode'!$H:$H,"<"&$D13),SUMIFS('Roadway by Mode'!N:N,'Roadway by Mode'!$H:$H,">="&$B13)))),"") ->  | R13: =IFERROR(IF($O$2,IF($A13="","",IF($A13="between",SUMIFS('Roadway by Mode'!P:P,'Roadway by Mode'!$H:$H,">="&$B13,'Roadway by Mode'!$H:$H,"<"&$D13,'Roadway by Mode'!$V:$V,"=No"),SUMIFS('Roadway by Mode'!P:P,'Roadway by Mode'!$H:$H,">="&$B13,'Roadway by Mode'!$V:$V,"=No"))),IF($A13="","",IF($A13="between",SUMIFS('Roadway by Mode'!P:P,'Roadway by Mode'!$H:$H,">="&$B13,'Roadway by Mode'!$H:$H,"<"&$D13),SUMIFS('Roadway by Mode'!P:P,'Roadway by Mode'!$H:$H,">="&$B13)))),"") ->  | S13: =IFERROR(IF($O$2,IF($A13="","",IF($A13="between",SUMIFS('Roadway by Mode'!R:R,'Roadway by Mode'!$H:$H,">="&$B13,'Roadway by Mode'!$H:$H,"<"&$D13,'Roadway by Mode'!$V:$V,"=No"),SUMIFS('Roadway by Mode'!R:R,'Roadway by Mode'!$H:$H,">="&$B13,'Roadway by Mode'!$V:$V,"=No"))),IF($A13="","",IF($A13="between",SUMIFS('Roadway by Mode'!R:R,'Roadway by Mode'!$H:$H,">="&$B13,'Roadway by Mode'!$H:$H,"<"&$D13),SUMIFS('Roadway by Mode'!R:R,'Roadway by Mode'!$H:$H,">="&$B13)))),"") ->  | T13: =IFERROR(IF($O$2,IF($A13="","",IF($A13="between",SUMIFS('Roadway by Mode'!T:T,'Roadway by Mode'!$H:$H,">="&$B13,'Roadway by Mode'!$H:$H,"<"&$D13,'Roadway by Mode'!$V:$V,"=No"),SUMIFS('Roadway by Mode'!T:T,'Roadway by Mode'!$H:$H,">="&$B13,'Roadway by Mode'!$V:$V,"=No"))),IF($A13="","",IF($A13="between",SUMIFS('Roadway by Mode'!T:T,'Roadway by Mode'!$H:$H,">="&$B13,'Roadway by Mode'!$H:$H,"<"&$D13),SUMIFS('Roadway by Mode'!T:T,'Roadway by Mode'!$H:$H,">="&$B13)))),"") -> 
E14: invalid bin | F14: =IFERROR(IF($X$2,IF($A14="","",IF($A14="between",SUMIFS('Track by Mode'!L:L,'Track by Mode'!$H:$H,">="&$B14,'Track by Mode'!$H:$H,"<"&$D14,'Track by Mode'!$AI:$AI,"=No"),SUMIFS('Track by Mode'!L:L,'Track by Mode'!$H:$H,">="&$B14,'Track by Mode'!$AI:$AI,"=No"))),IF($A14="","",IF($A14="between",SUMIFS('Track by Mode'!L:L,'Track by Mode'!$H:$H,">="&$B14,'Track by Mode'!$H:$H,"<"&$D14),SUMIFS('Track by Mode'!L:L,'Track by Mode'!$H:$H,">="&$B14))))+IF($X$2,IF($A14="","",IF($A14="between",SUMIFS('Roadway by Mode'!L:L,'Roadway by Mode'!$H:$H,">="&$B14,'Roadway by Mode'!$H:$H,"<"&$D14,'Roadway by Mode'!$V:$V,"=No"),SUMIFS('Roadway by Mode'!L:L,'Roadway by Mode'!$H:$H,">="&$B14,'Roadway by Mode'!$V:$V,"=No"))),IF($A14="","",IF($A14="between",SUMIFS('Roadway by Mode'!L:L,'Roadway by Mode'!$H:$H,">="&$B14,'Roadway by Mode'!$H:$H,"<"&$D14),SUMIFS('Roadway by Mode'!L:L,'Roadway by Mode'!$H:$H,">="&$B14)))),"") ->  | G14: =IFERROR(IF($X$2,IF($A14="","",IF($A14="between",SUMIFS('Track by Mode'!N:N,'Track by Mode'!$H:$H,">="&$B14,'Track by Mode'!$H:$H,"<"&$D14,'Track by Mode'!$AI:$AI,"=No"),SUMIFS('Track by Mode'!N:N,'Track by Mode'!$H:$H,">="&$B14,'Track by Mode'!$AI:$AI,"=No"))),IF($A14="","",IF($A14="between",SUMIFS('Track by Mode'!N:N,'Track by Mode'!$H:$H,">="&$B14,'Track by Mode'!$H:$H,"<"&$D14),SUMIFS('Track by Mode'!N:N,'Track by Mode'!$H:$H,">="&$B14)))),"") ->  | H14: =IFERROR(IF($X$2,IF($A14="","",IF($A14="between",SUMIFS('Track by Mode'!P:P,'Track by Mode'!$H:$H,">="&$B14,'Track by Mode'!$H:$H,"<"&$D14,'Track by Mode'!$AI:$AI,"=No"),SUMIFS('Track by Mode'!P:P,'Track by Mode'!$H:$H,">="&$B14,'Track by Mode'!$AI:$AI,"=No"))),IF($A14="","",IF($A14="between",SUMIFS('Track by Mode'!P:P,'Track by Mode'!$H:$H,">="&$B14,'Track by Mode'!$H:$H,"<"&$D14),SUMIFS('Track by Mode'!P:P,'Track by Mode'!$H:$H,">="&$B14)))),"") ->  | I14: =IFERROR(IF($X$2,IF($A14="","",IF($A14="between",SUMIFS('Track by Mode'!R:R,'Track by Mode'!$H:$H,">="&$B14,'Track by Mode'!$H:$H,"<"&$D14,'Track by Mode'!$AI:$AI,"=No"),SUMIFS('Track by Mode'!R:R,'Track by Mode'!$H:$H,">="&$B14,'Track by Mode'!$AI:$AI,"=No"))),IF($A14="","",IF($A14="between",SUMIFS('Track by Mode'!R:R,'Track by Mode'!$H:$H,">="&$B14,'Track by Mode'!$H:$H,"<"&$D14),SUMIFS('Track by Mode'!R:R,'Track by Mode'!$H:$H,">="&$B14)))),"") ->  | J14: =IFERROR(IF($X$2,IF($A14="","",IF($A14="between",SUMIFS('Track by Mode'!T:T,'Track by Mode'!$H:$H,">="&$B14,'Track by Mode'!$H:$H,"<"&$D14,'Track by Mode'!$AI:$AI,"=No"),SUMIFS('Track by Mode'!T:T,'Track by Mode'!$H:$H,">="&$B14,'Track by Mode'!$AI:$AI,"=No"))),IF($A14="","",IF($A14="between",SUMIFS('Track by Mode'!T:T,'Track by Mode'!$H:$H,">="&$B14,'Track by Mode'!$H:$H,"<"&$D14),SUMIFS('Track by Mode'!T:T,'Track by Mode'!$H:$H,">="&$B14)))),"") ->  | K14: =IFERROR(IF($X$2,IF($A14="","",IF($A14="between",SUMIFS('Track by Mode'!V:V,'Track by Mode'!$H:$H,">="&$B14,'Track by Mode'!$H:$H,"<"&$D14,'Track by Mode'!$AI:$AI,"=No"),SUMIFS('Track by Mode'!V:V,'Track by Mode'!$H:$H,">="&$B14,'Track by Mode'!$AI:$AI,"=No"))),IF($A14="","",IF($A14="between",SUMIFS('Track by Mode'!V:V,'Track by Mode'!$H:$H,">="&$B14,'Track by Mode'!$H:$H,"<"&$D14),SUMIFS('Track by Mode'!V:V,'Track by Mode'!$H:$H,">="&$B14)))),"") ->  | L14: =IFERROR(IF($X$2,IF($A14="","",IF($A14="between",SUMIFS('Track by Mode'!X:X,'Track by Mode'!$H:$H,">="&$B14,'Track by Mode'!$H:$H,"<"&$D14,'Track by Mode'!$AI:$AI,"=No"),SUMIFS('Track by Mode'!X:X,'Track by Mode'!$H:$H,">="&$B14,'Track by Mode'!$AI:$AI,"=No"))),IF($A14="","",IF($A14="between",SUMIFS('Track by Mode'!X:X,'Track by Mode'!$H:$H,">="&$B14,'Track by Mode'!$H:$H,"<"&$D14),SUMIFS('Track by Mode'!X:X,'Track by Mode'!$H:$H,">="&$B14)))),"") ->  | M14: =IFERROR(IF($X$2,IF($A14="","",IF($A14="between",SUMIFS('Track by Mode'!Z:Z,'Track by Mode'!$H:$H,">="&$B14,'Track by Mode'!$H:$H,"<"&$D14,'Track by Mode'!$AI:$AI,"=No"),SUMIFS('Track by Mode'!Z:Z,'Track by Mode'!$H:$H,">="&$B14,'Track by Mode'!$AI:$AI,"=No"))),IF($A14="","",IF($A14="between",SUMIFS('Track by Mode'!Z:Z,'Track by Mode'!$H:$H,">="&$B14,'Track by Mode'!$H:$H,"<"&$D14),SUMIFS('Track by Mode'!Z:Z,'Track by Mode'!$H:$H,">="&$B14)))),"") ->  | N14: =IFERROR(IF($X$2,IF($A14="","",IF($A14="between",SUMIFS('Track by Mode'!AC:AC,'Track by Mode'!$H:$H,">="&$B14,'Track by Mode'!$H:$H,"<"&$D14,'Track by Mode'!$AI:$AI,"=No"),SUMIFS('Track by Mode'!AC:AC,'Track by Mode'!$H:$H,">="&$B14,'Track by Mode'!$AI:$AI,"=No"))),IF($A14="","",IF($A14="between",SUMIFS('Track by Mode'!AC:AC,'Track by Mode'!$H:$H,">="&$B14,'Track by Mode'!$H:$H,"<"&$D14),SUMIFS('Track by Mode'!AC:AC,'Track by Mode'!$H:$H,">="&$B14)))),"") ->  | O14: =IFERROR(IF($X$2,IF($A14="","",IF($A14="between",SUMIFS('Track by Mode'!AE:AE,'Track by Mode'!$H:$H,">="&$B14,'Track by Mode'!$H:$H,"<"&$D14,'Track by Mode'!$AI:$AI,"=No"),SUMIFS('Track by Mode'!AE:AE,'Track by Mode'!$H:$H,">="&$B14,'Track by Mode'!$AI:$AI,"=No"))),IF($A14="","",IF($A14="between",SUMIFS('Track by Mode'!AE:AE,'Track by Mode'!$H:$H,">="&$B14,'Track by Mode'!$H:$H,"<"&$D14),SUMIFS('Track by Mode'!AE:AE,'Track by Mode'!$H:$H,">="&$B14)))),"") ->  | P14: =IFERROR(IF($X$2,IF($A14="","",IF($A14="between",SUMIFS('Track by Mode'!AG:AG,'Track by Mode'!$H:$H,">="&$B14,'Track by Mode'!$H:$H,"<"&$D14,'Track by Mode'!$AI:$AI,"=No"),SUMIFS('Track by Mode'!AG:AG,'Track by Mode'!$H:$H,">="&$B14,'Track by Mode'!$AI:$AI,"=No"))),IF($A14="","",IF($A14="between",SUMIFS('Track by Mode'!AG:AG,'Track by Mode'!$H:$H,">="&$B14,'Track by Mode'!$H:$H,"<"&$D14),SUMIFS('Track by Mode'!AG:AG,'Track by Mode'!$H:$H,">="&$B14)))),"") ->  | Q14: =IFERROR(IF($O$2,IF($A14="","",IF($A14="between",SUMIFS('Roadway by Mode'!N:N,'Roadway by Mode'!$H:$H,">="&$B14,'Roadway by Mode'!$H:$H,"<"&$D14,'Roadway by Mode'!$V:$V,"=No"),SUMIFS('Roadway by Mode'!N:N,'Roadway by Mode'!$H:$H,">="&$B14,'Roadway by Mode'!$V:$V,"=No"))),IF($A14="","",IF($A14="between",SUMIFS('Roadway by Mode'!N:N,'Roadway by Mode'!$H:$H,">="&$B14,'Roadway by Mode'!$H:$H,"<"&$D14),SUMIFS('Roadway by Mode'!N:N,'Roadway by Mode'!$H:$H,">="&$B14)))),"") ->  | R14: =IFERROR(IF($O$2,IF($A14="","",IF($A14="between",SUMIFS('Roadway by Mode'!P:P,'Roadway by Mode'!$H:$H,">="&$B14,'Roadway by Mode'!$H:$H,"<"&$D14,'Roadway by Mode'!$V:$V,"=No"),SUMIFS('Roadway by Mode'!P:P,'Roadway by Mode'!$H:$H,">="&$B14,'Roadway by Mode'!$V:$V,"=No"))),IF($A14="","",IF($A14="between",SUMIFS('Roadway by Mode'!P:P,'Roadway by Mode'!$H:$H,">="&$B14,'Roadway by Mode'!$H:$H,"<"&$D14),SUMIFS('Roadway by Mode'!P:P,'Roadway by Mode'!$H:$H,">="&$B14)))),"") ->  | S14: =IFERROR(IF($O$2,IF($A14="","",IF($A14="between",SUMIFS('Roadway by Mode'!R:R,'Roadway by Mode'!$H:$H,">="&$B14,'Roadway by Mode'!$H:$H,"<"&$D14,'Roadway by Mode'!$V:$V,"=No"),SUMIFS('Roadway by Mode'!R:R,'Roadway by Mode'!$H:$H,">="&$B14,'Roadway by Mode'!$V:$V,"=No"))),IF($A14="","",IF($A14="between",SUMIFS('Roadway by Mode'!R:R,'Roadway by Mode'!$H:$H,">="&$B14,'Roadway by Mode'!$H:$H,"<"&$D14),SUMIFS('Roadway by Mode'!R:R,'Roadway by Mode'!$H:$H,">="&$B14)))),"") ->  | T14: =IFERROR(IF($O$2,IF($A14="","",IF($A14="between",SUMIFS('Roadway by Mode'!T:T,'Roadway by Mode'!$H:$H,">="&$B14,'Roadway by Mode'!$H:$H,"<"&$D14,'Roadway by Mode'!$V:$V,"=No"),SUMIFS('Roadway by Mode'!T:T,'Roadway by Mode'!$H:$H,">="&$B14,'Roadway by Mode'!$V:$V,"=No"))),IF($A14="","",IF($A14="between",SUMIFS('Roadway by Mode'!T:T,'Roadway by Mode'!$H:$H,">="&$B14,'Roadway by Mode'!$H:$H,"<"&$D14),SUMIFS('Roadway by Mode'!T:T,'Roadway by Mode'!$H:$H,">="&$B14)))),"") -> 
E15: invalid bin | F15: =IFERROR(IF($X$2,IF($A15="","",IF($A15="between",SUMIFS('Track by Mode'!L:L,'Track by Mode'!$H:$H,">="&$B15,'Track by Mode'!$H:$H,"<"&$D15,'Track by Mode'!$AI:$AI,"=No"),SUMIFS('Track by Mode'!L:L,'Track by Mode'!$H:$H,">="&$B15,'Track by Mode'!$AI:$AI,"=No"))),IF($A15="","",IF($A15="between",SUMIFS('Track by Mode'!L:L,'Track by Mode'!$H:$H,">="&$B15,'Track by Mode'!$H:$H,"<"&$D15),SUMIFS('Track by Mode'!L:L,'Track by Mode'!$H:$H,">="&$B15))))+IF($X$2,IF($A15="","",IF($A15="between",SUMIFS('Roadway by Mode'!L:L,'Roadway by Mode'!$H:$H,">="&$B15,'Roadway by Mode'!$H:$H,"<"&$D15,'Roadway by Mode'!$V:$V,"=No"),SUMIFS('Roadway by Mode'!L:L,'Roadway by Mode'!$H:$H,">="&$B15,'Roadway by Mode'!$V:$V,"=No"))),IF($A15="","",IF($A15="between",SUMIFS('Roadway by Mode'!L:L,'Roadway by Mode'!$H:$H,">="&$B15,'Roadway by Mode'!$H:$H,"<"&$D15),SUMIFS('Roadway by Mode'!L:L,'Roadway by Mode'!$H:$H,">="&$B15)))),"") ->  | G15: =IFERROR(IF($X$2,IF($A15="","",IF($A15="between",SUMIFS('Track by Mode'!N:N,'Track by Mode'!$H:$H,">="&$B15,'Track by Mode'!$H:$H,"<"&$D15,'Track by Mode'!$AI:$AI,"=No"),SUMIFS('Track by Mode'!N:N,'Track by Mode'!$H:$H,">="&$B15,'Track by Mode'!$AI:$AI,"=No"))),IF($A15="","",IF($A15="between",SUMIFS('Track by Mode'!N:N,'Track by Mode'!$H:$H,">="&$B15,'Track by Mode'!$H:$H,"<"&$D15),SUMIFS('Track by Mode'!N:N,'Track by Mode'!$H:$H,">="&$B15)))),"") ->  | H15: =IFERROR(IF($X$2,IF($A15="","",IF($A15="between",SUMIFS('Track by Mode'!P:P,'Track by Mode'!$H:$H,">="&$B15,'Track by Mode'!$H:$H,"<"&$D15,'Track by Mode'!$AI:$AI,"=No"),SUMIFS('Track by Mode'!P:P,'Track by Mode'!$H:$H,">="&$B15,'Track by Mode'!$AI:$AI,"=No"))),IF($A15="","",IF($A15="between",SUMIFS('Track by Mode'!P:P,'Track by Mode'!$H:$H,">="&$B15,'Track by Mode'!$H:$H,"<"&$D15),SUMIFS('Track by Mode'!P:P,'Track by Mode'!$H:$H,">="&$B15)))),"") ->  | I15: =IFERROR(IF($X$2,IF($A15="","",IF($A15="between",SUMIFS('Track by Mode'!R:R,'Track by Mode'!$H:$H,">="&$B15,'Track by Mode'!$H:$H,"<"&$D15,'Track by Mode'!$AI:$AI,"=No"),SUMIFS('Track by Mode'!R:R,'Track by Mode'!$H:$H,">="&$B15,'Track by Mode'!$AI:$AI,"=No"))),IF($A15="","",IF($A15="between",SUMIFS('Track by Mode'!R:R,'Track by Mode'!$H:$H,">="&$B15,'Track by Mode'!$H:$H,"<"&$D15),SUMIFS('Track by Mode'!R:R,'Track by Mode'!$H:$H,">="&$B15)))),"") ->  | J15: =IFERROR(IF($X$2,IF($A15="","",IF($A15="between",SUMIFS('Track by Mode'!T:T,'Track by Mode'!$H:$H,">="&$B15,'Track by Mode'!$H:$H,"<"&$D15,'Track by Mode'!$AI:$AI,"=No"),SUMIFS('Track by Mode'!T:T,'Track by Mode'!$H:$H,">="&$B15,'Track by Mode'!$AI:$AI,"=No"))),IF($A15="","",IF($A15="between",SUMIFS('Track by Mode'!T:T,'Track by Mode'!$H:$H,">="&$B15,'Track by Mode'!$H:$H,"<"&$D15),SUMIFS('Track by Mode'!T:T,'Track by Mode'!$H:$H,">="&$B15)))),"") ->  | K15: =IFERROR(IF($X$2,IF($A15="","",IF($A15="between",SUMIFS('Track by Mode'!V:V,'Track by Mode'!$H:$H,">="&$B15,'Track by Mode'!$H:$H,"<"&$D15,'Track by Mode'!$AI:$AI,"=No"),SUMIFS('Track by Mode'!V:V,'Track by Mode'!$H:$H,">="&$B15,'Track by Mode'!$AI:$AI,"=No"))),IF($A15="","",IF($A15="between",SUMIFS('Track by Mode'!V:V,'Track by Mode'!$H:$H,">="&$B15,'Track by Mode'!$H:$H,"<"&$D15),SUMIFS('Track by Mode'!V:V,'Track by Mode'!$H:$H,">="&$B15)))),"") ->  | L15: =IFERROR(IF($X$2,IF($A15="","",IF($A15="between",SUMIFS('Track by Mode'!X:X,'Track by Mode'!$H:$H,">="&$B15,'Track by Mode'!$H:$H,"<"&$D15,'Track by Mode'!$AI:$AI,"=No"),SUMIFS('Track by Mode'!X:X,'Track by Mode'!$H:$H,">="&$B15,'Track by Mode'!$AI:$AI,"=No"))),IF($A15="","",IF($A15="between",SUMIFS('Track by Mode'!X:X,'Track by Mode'!$H:$H,">="&$B15,'Track by Mode'!$H:$H,"<"&$D15),SUMIFS('Track by Mode'!X:X,'Track by Mode'!$H:$H,">="&$B15)))),"") ->  | M15: =IFERROR(IF($X$2,IF($A15="","",IF($A15="between",SUMIFS('Track by Mode'!Z:Z,'Track by Mode'!$H:$H,">="&$B15,'Track by Mode'!$H:$H,"<"&$D15,'Track by Mode'!$AI:$AI,"=No"),SUMIFS('Track by Mode'!Z:Z,'Track by Mode'!$H:$H,">="&$B15,'Track by Mode'!$AI:$AI,"=No"))),IF($A15="","",IF($A15="between",SUMIFS('Track by Mode'!Z:Z,'Track by Mode'!$H:$H,">="&$B15,'Track by Mode'!$H:$H,"<"&$D15),SUMIFS('Track by Mode'!Z:Z,'Track by Mode'!$H:$H,">="&$B15)))),"") ->  | N15: =IFERROR(IF($X$2,IF($A15="","",IF($A15="between",SUMIFS('Track by Mode'!AC:AC,'Track by Mode'!$H:$H,">="&$B15,'Track by Mode'!$H:$H,"<"&$D15,'Track by Mode'!$AI:$AI,"=No"),SUMIFS('Track by Mode'!AC:AC,'Track by Mode'!$H:$H,">="&$B15,'Track by Mode'!$AI:$AI,"=No"))),IF($A15="","",IF($A15="between",SUMIFS('Track by Mode'!AC:AC,'Track by Mode'!$H:$H,">="&$B15,'Track by Mode'!$H:$H,"<"&$D15),SUMIFS('Track by Mode'!AC:AC,'Track by Mode'!$H:$H,">="&$B15)))),"") ->  | O15: =IFERROR(IF($X$2,IF($A15="","",IF($A15="between",SUMIFS('Track by Mode'!AE:AE,'Track by Mode'!$H:$H,">="&$B15,'Track by Mode'!$H:$H,"<"&$D15,'Track by Mode'!$AI:$AI,"=No"),SUMIFS('Track by Mode'!AE:AE,'Track by Mode'!$H:$H,">="&$B15,'Track by Mode'!$AI:$AI,"=No"))),IF($A15="","",IF($A15="between",SUMIFS('Track by Mode'!AE:AE,'Track by Mode'!$H:$H,">="&$B15,'Track by Mode'!$H:$H,"<"&$D15),SUMIFS('Track by Mode'!AE:AE,'Track by Mode'!$H:$H,">="&$B15)))),"") ->  | P15: =IFERROR(IF($X$2,IF($A15="","",IF($A15="between",SUMIFS('Track by Mode'!AG:AG,'Track by Mode'!$H:$H,">="&$B15,'Track by Mode'!$H:$H,"<"&$D15,'Track by Mode'!$AI:$AI,"=No"),SUMIFS('Track by Mode'!AG:AG,'Track by Mode'!$H:$H,">="&$B15,'Track by Mode'!$AI:$AI,"=No"))),IF($A15="","",IF($A15="between",SUMIFS('Track by Mode'!AG:AG,'Track by Mode'!$H:$H,">="&$B15,'Track by Mode'!$H:$H,"<"&$D15),SUMIFS('Track by Mode'!AG:AG,'Track by Mode'!$H:$H,">="&$B15)))),"") ->  | Q15: =IFERROR(IF($O$2,IF($A15="","",IF($A15="between",SUMIFS('Roadway by Mode'!N:N,'Roadway by Mode'!$H:$H,">="&$B15,'Roadway by Mode'!$H:$H,"<"&$D15,'Roadway by Mode'!$V:$V,"=No"),SUMIFS('Roadway by Mode'!N:N,'Roadway by Mode'!$H:$H,">="&$B15,'Roadway by Mode'!$V:$V,"=No"))),IF($A15="","",IF($A15="between",SUMIFS('Roadway by Mode'!N:N,'Roadway by Mode'!$H:$H,">="&$B15,'Roadway by Mode'!$H:$H,"<"&$D15),SUMIFS('Roadway by Mode'!N:N,'Roadway by Mode'!$H:$H,">="&$B15)))),"") ->  | R15: =IFERROR(IF($O$2,IF($A15="","",IF($A15="between",SUMIFS('Roadway by Mode'!P:P,'Roadway by Mode'!$H:$H,">="&$B15,'Roadway by Mode'!$H:$H,"<"&$D15,'Roadway by Mode'!$V:$V,"=No"),SUMIFS('Roadway by Mode'!P:P,'Roadway by Mode'!$H:$H,">="&$B15,'Roadway by Mode'!$V:$V,"=No"))),IF($A15="","",IF($A15="between",SUMIFS('Roadway by Mode'!P:P,'Roadway by Mode'!$H:$H,">="&$B15,'Roadway by Mode'!$H:$H,"<"&$D15),SUMIFS('Roadway by Mode'!P:P,'Roadway by Mode'!$H:$H,">="&$B15)))),"") ->  | S15: =IFERROR(IF($O$2,IF($A15="","",IF($A15="between",SUMIFS('Roadway by Mode'!R:R,'Roadway by Mode'!$H:$H,">="&$B15,'Roadway by Mode'!$H:$H,"<"&$D15,'Roadway by Mode'!$V:$V,"=No"),SUMIFS('Roadway by Mode'!R:R,'Roadway by Mode'!$H:$H,">="&$B15,'Roadway by Mode'!$V:$V,"=No"))),IF($A15="","",IF($A15="between",SUMIFS('Roadway by Mode'!R:R,'Roadway by Mode'!$H:$H,">="&$B15,'Roadway by Mode'!$H:$H,"<"&$D15),SUMIFS('Roadway by Mode'!R:R,'Roadway by Mode'!$H:$H,">="&$B15)))),"") ->  | T15: =IFERROR(IF($O$2,IF($A15="","",IF($A15="between",SUMIFS('Roadway by Mode'!T:T,'Roadway by Mode'!$H:$H,">="&$B15,'Roadway by Mode'!$H:$H,"<"&$D15,'Roadway by Mode'!$V:$V,"=No"),SUMIFS('Roadway by Mode'!T:T,'Roadway by Mode'!$H:$H,">="&$B15,'Roadway by Mode'!$V:$V,"=No"))),IF($A15="","",IF($A15="between",SUMIFS('Roadway by Mode'!T:T,'Roadway by Mode'!$H:$H,">="&$B15,'Roadway by Mode'!$H:$H,"<"&$D15),SUMIFS('Roadway by Mode'!T:T,'Roadway by Mode'!$H:$H,">="&$B15)))),"") -> 
E16: invalid bin | F16: =IFERROR(IF($X$2,IF($A16="","",IF($A16="between",SUMIFS('Track by Mode'!L:L,'Track by Mode'!$H:$H,">="&$B16,'Track by Mode'!$H:$H,"<"&$D16,'Track by Mode'!$AI:$AI,"=No"),SUMIFS('Track by Mode'!L:L,'Track by Mode'!$H:$H,">="&$B16,'Track by Mode'!$AI:$AI,"=No"))),IF($A16="","",IF($A16="between",SUMIFS('Track by Mode'!L:L,'Track by Mode'!$H:$H,">="&$B16,'Track by Mode'!$H:$H,"<"&$D16),SUMIFS('Track by Mode'!L:L,'Track by Mode'!$H:$H,">="&$B16))))+IF($X$2,IF($A16="","",IF($A16="between",SUMIFS('Roadway by Mode'!L:L,'Roadway by Mode'!$H:$H,">="&$B16,'Roadway by Mode'!$H:$H,"<"&$D16,'Roadway by Mode'!$V:$V,"=No"),SUMIFS('Roadway by Mode'!L:L,'Roadway by Mode'!$H:$H,">="&$B16,'Roadway by Mode'!$V:$V,"=No"))),IF($A16="","",IF($A16="between",SUMIFS('Roadway by Mode'!L:L,'Roadway by Mode'!$H:$H,">="&$B16,'Roadway by Mode'!$H:$H,"<"&$D16),SUMIFS('Roadway by Mode'!L:L,'Roadway by Mode'!$H:$H,">="&$B16)))),"") ->  | G16: =IFERROR(IF($X$2,IF($A16="","",IF($A16="between",SUMIFS('Track by Mode'!N:N,'Track by Mode'!$H:$H,">="&$B16,'Track by Mode'!$H:$H,"<"&$D16,'Track by Mode'!$AI:$AI,"=No"),SUMIFS('Track by Mode'!N:N,'Track by Mode'!$H:$H,">="&$B16,'Track by Mode'!$AI:$AI,"=No"))),IF($A16="","",IF($A16="between",SUMIFS('Track by Mode'!N:N,'Track by Mode'!$H:$H,">="&$B16,'Track by Mode'!$H:$H,"<"&$D16),SUMIFS('Track by Mode'!N:N,'Track by Mode'!$H:$H,">="&$B16)))),"") ->  | H16: =IFERROR(IF($X$2,IF($A16="","",IF($A16="between",SUMIFS('Track by Mode'!P:P,'Track by Mode'!$H:$H,">="&$B16,'Track by Mode'!$H:$H,"<"&$D16,'Track by Mode'!$AI:$AI,"=No"),SUMIFS('Track by Mode'!P:P,'Track by Mode'!$H:$H,">="&$B16,'Track by Mode'!$AI:$AI,"=No"))),IF($A16="","",IF($A16="between",SUMIFS('Track by Mode'!P:P,'Track by Mode'!$H:$H,">="&$B16,'Track by Mode'!$H:$H,"<"&$D16),SUMIFS('Track by Mode'!P:P,'Track by Mode'!$H:$H,">="&$B16)))),"") ->  | I16: =IFERROR(IF($X$2,IF($A16="","",IF($A16="between",SUMIFS('Track by Mode'!R:R,'Track by Mode'!$H:$H,">="&$B16,'Track by Mode'!$H:$H,"<"&$D16,'Track by Mode'!$AI:$AI,"=No"),SUMIFS('Track by Mode'!R:R,'Track by Mode'!$H:$H,">="&$B16,'Track by Mode'!$AI:$AI,"=No"))),IF($A16="","",IF($A16="between",SUMIFS('Track by Mode'!R:R,'Track by Mode'!$H:$H,">="&$B16,'Track by Mode'!$H:$H,"<"&$D16),SUMIFS('Track by Mode'!R:R,'Track by Mode'!$H:$H,">="&$B16)))),"") ->  | J16: =IFERROR(IF($X$2,IF($A16="","",IF($A16="between",SUMIFS('Track by Mode'!T:T,'Track by Mode'!$H:$H,">="&$B16,'Track by Mode'!$H:$H,"<"&$D16,'Track by Mode'!$AI:$AI,"=No"),SUMIFS('Track by Mode'!T:T,'Track by Mode'!$H:$H,">="&$B16,'Track by Mode'!$AI:$AI,"=No"))),IF($A16="","",IF($A16="between",SUMIFS('Track by Mode'!T:T,'Track by Mode'!$H:$H,">="&$B16,'Track by Mode'!$H:$H,"<"&$D16),SUMIFS('Track by Mode'!T:T,'Track by Mode'!$H:$H,">="&$B16)))),"") ->  | K16: =IFERROR(IF($X$2,IF($A16="","",IF($A16="between",SUMIFS('Track by Mode'!V:V,'Track by Mode'!$H:$H,">="&$B16,'Track by Mode'!$H:$H,"<"&$D16,'Track by Mode'!$AI:$AI,"=No"),SUMIFS('Track by Mode'!V:V,'Track by Mode'!$H:$H,">="&$B16,'Track by Mode'!$AI:$AI,"=No"))),IF($A16="","",IF($A16="between",SUMIFS('Track by Mode'!V:V,'Track by Mode'!$H:$H,">="&$B16,'Track by Mode'!$H:$H,"<"&$D16),SUMIFS('Track by Mode'!V:V,'Track by Mode'!$H:$H,">="&$B16)))),"") ->  | L16: =IFERROR(IF($X$2,IF($A16="","",IF($A16="between",SUMIFS('Track by Mode'!X:X,'Track by Mode'!$H:$H,">="&$B16,'Track by Mode'!$H:$H,"<"&$D16,'Track by Mode'!$AI:$AI,"=No"),SUMIFS('Track by Mode'!X:X,'Track by Mode'!$H:$H,">="&$B16,'Track by Mode'!$AI:$AI,"=No"))),IF($A16="","",IF($A16="between",SUMIFS('Track by Mode'!X:X,'Track by Mode'!$H:$H,">="&$B16,'Track by Mode'!$H:$H,"<"&$D16),SUMIFS('Track by Mode'!X:X,'Track by Mode'!$H:$H,">="&$B16)))),"") ->  | M16: =IFERROR(IF($X$2,IF($A16="","",IF($A16="between",SUMIFS('Track by Mode'!Z:Z,'Track by Mode'!$H:$H,">="&$B16,'Track by Mode'!$H:$H,"<"&$D16,'Track by Mode'!$AI:$AI,"=No"),SUMIFS('Track by Mode'!Z:Z,'Track by Mode'!$H:$H,">="&$B16,'Track by Mode'!$AI:$AI,"=No"))),IF($A16="","",IF($A16="between",SUMIFS('Track by Mode'!Z:Z,'Track by Mode'!$H:$H,">="&$B16,'Track by Mode'!$H:$H,"<"&$D16),SUMIFS('Track by Mode'!Z:Z,'Track by Mode'!$H:$H,">="&$B16)))),"") ->  | N16: =IFERROR(IF($X$2,IF($A16="","",IF($A16="between",SUMIFS('Track by Mode'!AC:AC,'Track by Mode'!$H:$H,">="&$B16,'Track by Mode'!$H:$H,"<"&$D16,'Track by Mode'!$AI:$AI,"=No"),SUMIFS('Track by Mode'!AC:AC,'Track by Mode'!$H:$H,">="&$B16,'Track by Mode'!$AI:$AI,"=No"))),IF($A16="","",IF($A16="between",SUMIFS('Track by Mode'!AC:AC,'Track by Mode'!$H:$H,">="&$B16,'Track by Mode'!$H:$H,"<"&$D16),SUMIFS('Track by Mode'!AC:AC,'Track by Mode'!$H:$H,">="&$B16)))),"") ->  | O16: =IFERROR(IF($X$2,IF($A16="","",IF($A16="between",SUMIFS('Track by Mode'!AE:AE,'Track by Mode'!$H:$H,">="&$B16,'Track by Mode'!$H:$H,"<"&$D16,'Track by Mode'!$AI:$AI,"=No"),SUMIFS('Track by Mode'!AE:AE,'Track by Mode'!$H:$H,">="&$B16,'Track by Mode'!$AI:$AI,"=No"))),IF($A16="","",IF($A16="between",SUMIFS('Track by Mode'!AE:AE,'Track by Mode'!$H:$H,">="&$B16,'Track by Mode'!$H:$H,"<"&$D16),SUMIFS('Track by Mode'!AE:AE,'Track by Mode'!$H:$H,">="&$B16)))),"") ->  | P16: =IFERROR(IF($X$2,IF($A16="","",IF($A16="between",SUMIFS('Track by Mode'!AG:AG,'Track by Mode'!$H:$H,">="&$B16,'Track by Mode'!$H:$H,"<"&$D16,'Track by Mode'!$AI:$AI,"=No"),SUMIFS('Track by Mode'!AG:AG,'Track by Mode'!$H:$H,">="&$B16,'Track by Mode'!$AI:$AI,"=No"))),IF($A16="","",IF($A16="between",SUMIFS('Track by Mode'!AG:AG,'Track by Mode'!$H:$H,">="&$B16,'Track by Mode'!$H:$H,"<"&$D16),SUMIFS('Track by Mode'!AG:AG,'Track by Mode'!$H:$H,">="&$B16)))),"") ->  | Q16: =IFERROR(IF($O$2,IF($A16="","",IF($A16="between",SUMIFS('Roadway by Mode'!N:N,'Roadway by Mode'!$H:$H,">="&$B16,'Roadway by Mode'!$H:$H,"<"&$D16,'Roadway by Mode'!$V:$V,"=No"),SUMIFS('Roadway by Mode'!N:N,'Roadway by Mode'!$H:$H,">="&$B16,'Roadway by Mode'!$V:$V,"=No"))),IF($A16="","",IF($A16="between",SUMIFS('Roadway by Mode'!N:N,'Roadway by Mode'!$H:$H,">="&$B16,'Roadway by Mode'!$H:$H,"<"&$D16),SUMIFS('Roadway by Mode'!N:N,'Roadway by Mode'!$H:$H,">="&$B16)))),"") ->  | R16: =IFERROR(IF($O$2,IF($A16="","",IF($A16="between",SUMIFS('Roadway by Mode'!P:P,'Roadway by Mode'!$H:$H,">="&$B16,'Roadway by Mode'!$H:$H,"<"&$D16,'Roadway by Mode'!$V:$V,"=No"),SUMIFS('Roadway by Mode'!P:P,'Roadway by Mode'!$H:$H,">="&$B16,'Roadway by Mode'!$V:$V,"=No"))),IF($A16="","",IF($A16="between",SUMIFS('Roadway by Mode'!P:P,'Roadway by Mode'!$H:$H,">="&$B16,'Roadway by Mode'!$H:$H,"<"&$D16),SUMIFS('Roadway by Mode'!P:P,'Roadway by Mode'!$H:$H,">="&$B16)))),"") ->  | S16: =IFERROR(IF($O$2,IF($A16="","",IF($A16="between",SUMIFS('Roadway by Mode'!R:R,'Roadway by Mode'!$H:$H,">="&$B16,'Roadway by Mode'!$H:$H,"<"&$D16,'Roadway by Mode'!$V:$V,"=No"),SUMIFS('Roadway by Mode'!R:R,'Roadway by Mode'!$H:$H,">="&$B16,'Roadway by Mode'!$V:$V,"=No"))),IF($A16="","",IF($A16="between",SUMIFS('Roadway by Mode'!R:R,'Roadway by Mode'!$H:$H,">="&$B16,'Roadway by Mode'!$H:$H,"<"&$D16),SUMIFS('Roadway by Mode'!R:R,'Roadway by Mode'!$H:$H,">="&$B16)))),"") ->  | T16: =IFERROR(IF($O$2,IF($A16="","",IF($A16="between",SUMIFS('Roadway by Mode'!T:T,'Roadway by Mode'!$H:$H,">="&$B16,'Roadway by Mode'!$H:$H,"<"&$D16,'Roadway by Mode'!$V:$V,"=No"),SUMIFS('Roadway by Mode'!T:T,'Roadway by Mode'!$H:$H,">="&$B16,'Roadway by Mode'!$V:$V,"=No"))),IF($A16="","",IF($A16="between",SUMIFS('Roadway by Mode'!T:T,'Roadway by Mode'!$H:$H,">="&$B16,'Roadway by Mode'!$H:$H,"<"&$D16),SUMIFS('Roadway by Mode'!T:T,'Roadway by Mode'!$H:$H,">="&$B16)))),"") -> 
E17: invalid bin | F17: =IFERROR(IF($X$2,IF($A17="","",IF($A17="between",SUMIFS('Track by Mode'!L:L,'Track by Mode'!$H:$H,">="&$B17,'Track by Mode'!$H:$H,"<"&$D17,'Track by Mode'!$AI:$AI,"=No"),SUMIFS('Track by Mode'!L:L,'Track by Mode'!$H:$H,">="&$B17,'Track by Mode'!$AI:$AI,"=No"))),IF($A17="","",IF($A17="between",SUMIFS('Track by Mode'!L:L,'Track by Mode'!$H:$H,">="&$B17,'Track by Mode'!$H:$H,"<"&$D17),SUMIFS('Track by Mode'!L:L,'Track by Mode'!$H:$H,">="&$B17))))+IF($X$2,IF($A17="","",IF($A17="between",SUMIFS('Roadway by Mode'!L:L,'Roadway by Mode'!$H:$H,">="&$B17,'Roadway by Mode'!$H:$H,"<"&$D17,'Roadway by Mode'!$V:$V,"=No"),SUMIFS('Roadway by Mode'!L:L,'Roadway by Mode'!$H:$H,">="&$B17,'Roadway by Mode'!$V:$V,"=No"))),IF($A17="","",IF($A17="between",SUMIFS('Roadway by Mode'!L:L,'Roadway by Mode'!$H:$H,">="&$B17,'Roadway by Mode'!$H:$H,"<"&$D17),SUMIFS('Roadway by Mode'!L:L,'Roadway by Mode'!$H:$H,">="&$B17)))),"") ->  | G17: =IFERROR(IF($X$2,IF($A17="","",IF($A17="between",SUMIFS('Track by Mode'!N:N,'Track by Mode'!$H:$H,">="&$B17,'Track by Mode'!$H:$H,"<"&$D17,'Track by Mode'!$AI:$AI,"=No"),SUMIFS('Track by Mode'!N:N,'Track by Mode'!$H:$H,">="&$B17,'Track by Mode'!$AI:$AI,"=No"))),IF($A17="","",IF($A17="between",SUMIFS('Track by Mode'!N:N,'Track by Mode'!$H:$H,">="&$B17,'Track by Mode'!$H:$H,"<"&$D17),SUMIFS('Track by Mode'!N:N,'Track by Mode'!$H:$H,">="&$B17)))),"") ->  | H17: =IFERROR(IF($X$2,IF($A17="","",IF($A17="between",SUMIFS('Track by Mode'!P:P,'Track by Mode'!$H:$H,">="&$B17,'Track by Mode'!$H:$H,"<"&$D17,'Track by Mode'!$AI:$AI,"=No"),SUMIFS('Track by Mode'!P:P,'Track by Mode'!$H:$H,">="&$B17,'Track by Mode'!$AI:$AI,"=No"))),IF($A17="","",IF($A17="between",SUMIFS('Track by Mode'!P:P,'Track by Mode'!$H:$H,">="&$B17,'Track by Mode'!$H:$H,"<"&$D17),SUMIFS('Track by Mode'!P:P,'Track by Mode'!$H:$H,">="&$B17)))),"") ->  | I17: =IFERROR(IF($X$2,IF($A17="","",IF($A17="between",SUMIFS('Track by Mode'!R:R,'Track by Mode'!$H:$H,">="&$B17,'Track by Mode'!$H:$H,"<"&$D17,'Track by Mode'!$AI:$AI,"=No"),SUMIFS('Track by Mode'!R:R,'Track by Mode'!$H:$H,">="&$B17,'Track by Mode'!$AI:$AI,"=No"))),IF($A17="","",IF($A17="between",SUMIFS('Track by Mode'!R:R,'Track by Mode'!$H:$H,">="&$B17,'Track by Mode'!$H:$H,"<"&$D17),SUMIFS('Track by Mode'!R:R,'Track by Mode'!$H:$H,">="&$B17)))),"") ->  | J17: =IFERROR(IF($X$2,IF($A17="","",IF($A17="between",SUMIFS('Track by Mode'!T:T,'Track by Mode'!$H:$H,">="&$B17,'Track by Mode'!$H:$H,"<"&$D17,'Track by Mode'!$AI:$AI,"=No"),SUMIFS('Track by Mode'!T:T,'Track by Mode'!$H:$H,">="&$B17,'Track by Mode'!$AI:$AI,"=No"))),IF($A17="","",IF($A17="between",SUMIFS('Track by Mode'!T:T,'Track by Mode'!$H:$H,">="&$B17,'Track by Mode'!$H:$H,"<"&$D17),SUMIFS('Track by Mode'!T:T,'Track by Mode'!$H:$H,">="&$B17)))),"") ->  | K17: =IFERROR(IF($X$2,IF($A17="","",IF($A17="between",SUMIFS('Track by Mode'!V:V,'Track by Mode'!$H:$H,">="&$B17,'Track by Mode'!$H:$H,"<"&$D17,'Track by Mode'!$AI:$AI,"=No"),SUMIFS('Track by Mode'!V:V,'Track by Mode'!$H:$H,">="&$B17,'Track by Mode'!$AI:$AI,"=No"))),IF($A17="","",IF($A17="between",SUMIFS('Track by Mode'!V:V,'Track by Mode'!$H:$H,">="&$B17,'Track by Mode'!$H:$H,"<"&$D17),SUMIFS('Track by Mode'!V:V,'Track by Mode'!$H:$H,">="&$B17)))),"") ->  | L17: =IFERROR(IF($X$2,IF($A17="","",IF($A17="between",SUMIFS('Track by Mode'!X:X,'Track by Mode'!$H:$H,">="&$B17,'Track by Mode'!$H:$H,"<"&$D17,'Track by Mode'!$AI:$AI,"=No"),SUMIFS('Track by Mode'!X:X,'Track by Mode'!$H:$H,">="&$B17,'Track by Mode'!$AI:$AI,"=No"))),IF($A17="","",IF($A17="between",SUMIFS('Track by Mode'!X:X,'Track by Mode'!$H:$H,">="&$B17,'Track by Mode'!$H:$H,"<"&$D17),SUMIFS('Track by Mode'!X:X,'Track by Mode'!$H:$H,">="&$B17)))),"") ->  | M17: =IFERROR(IF($X$2,IF($A17="","",IF($A17="between",SUMIFS('Track by Mode'!Z:Z,'Track by Mode'!$H:$H,">="&$B17,'Track by Mode'!$H:$H,"<"&$D17,'Track by Mode'!$AI:$AI,"=No"),SUMIFS('Track by Mode'!Z:Z,'Track by Mode'!$H:$H,">="&$B17,'Track by Mode'!$AI:$AI,"=No"))),IF($A17="","",IF($A17="between",SUMIFS('Track by Mode'!Z:Z,'Track by Mode'!$H:$H,">="&$B17,'Track by Mode'!$H:$H,"<"&$D17),SUMIFS('Track by Mode'!Z:Z,'Track by Mode'!$H:$H,">="&$B17)))),"") ->  | N17: =IFERROR(IF($X$2,IF($A17="","",IF($A17="between",SUMIFS('Track by Mode'!AC:AC,'Track by Mode'!$H:$H,">="&$B17,'Track by Mode'!$H:$H,"<"&$D17,'Track by Mode'!$AI:$AI,"=No"),SUMIFS('Track by Mode'!AC:AC,'Track by Mode'!$H:$H,">="&$B17,'Track by Mode'!$AI:$AI,"=No"))),IF($A17="","",IF($A17="between",SUMIFS('Track by Mode'!AC:AC,'Track by Mode'!$H:$H,">="&$B17,'Track by Mode'!$H:$H,"<"&$D17),SUMIFS('Track by Mode'!AC:AC,'Track by Mode'!$H:$H,">="&$B17)))),"") ->  | O17: =IFERROR(IF($X$2,IF($A17="","",IF($A17="between",SUMIFS('Track by Mode'!AE:AE,'Track by Mode'!$H:$H,">="&$B17,'Track by Mode'!$H:$H,"<"&$D17,'Track by Mode'!$AI:$AI,"=No"),SUMIFS('Track by Mode'!AE:AE,'Track by Mode'!$H:$H,">="&$B17,'Track by Mode'!$AI:$AI,"=No"))),IF($A17="","",IF($A17="between",SUMIFS('Track by Mode'!AE:AE,'Track by Mode'!$H:$H,">="&$B17,'Track by Mode'!$H:$H,"<"&$D17),SUMIFS('Track by Mode'!AE:AE,'Track by Mode'!$H:$H,">="&$B17)))),"") ->  | P17: =IFERROR(IF($X$2,IF($A17="","",IF($A17="between",SUMIFS('Track by Mode'!AG:AG,'Track by Mode'!$H:$H,">="&$B17,'Track by Mode'!$H:$H,"<"&$D17,'Track by Mode'!$AI:$AI,"=No"),SUMIFS('Track by Mode'!AG:AG,'Track by Mode'!$H:$H,">="&$B17,'Track by Mode'!$AI:$AI,"=No"))),IF($A17="","",IF($A17="between",SUMIFS('Track by Mode'!AG:AG,'Track by Mode'!$H:$H,">="&$B17,'Track by Mode'!$H:$H,"<"&$D17),SUMIFS('Track by Mode'!AG:AG,'Track by Mode'!$H:$H,">="&$B17)))),"") ->  | Q17: =IFERROR(IF($O$2,IF($A17="","",IF($A17="between",SUMIFS('Roadway by Mode'!N:N,'Roadway by Mode'!$H:$H,">="&$B17,'Roadway by Mode'!$H:$H,"<"&$D17,'Roadway by Mode'!$V:$V,"=No"),SUMIFS('Roadway by Mode'!N:N,'Roadway by Mode'!$H:$H,">="&$B17,'Roadway by Mode'!$V:$V,"=No"))),IF($A17="","",IF($A17="between",SUMIFS('Roadway by Mode'!N:N,'Roadway by Mode'!$H:$H,">="&$B17,'Roadway by Mode'!$H:$H,"<"&$D17),SUMIFS('Roadway by Mode'!N:N,'Roadway by Mode'!$H:$H,">="&$B17)))),"") ->  | R17: =IFERROR(IF($O$2,IF($A17="","",IF($A17="between",SUMIFS('Roadway by Mode'!P:P,'Roadway by Mode'!$H:$H,">="&$B17,'Roadway by Mode'!$H:$H,"<"&$D17,'Roadway by Mode'!$V:$V,"=No"),SUMIFS('Roadway by Mode'!P:P,'Roadway by Mode'!$H:$H,">="&$B17,'Roadway by Mode'!$V:$V,"=No"))),IF($A17="","",IF($A17="between",SUMIFS('Roadway by Mode'!P:P,'Roadway by Mode'!$H:$H,">="&$B17,'Roadway by Mode'!$H:$H,"<"&$D17),SUMIFS('Roadway by Mode'!P:P,'Roadway by Mode'!$H:$H,">="&$B17)))),"") ->  | S17: =IFERROR(IF($O$2,IF($A17="","",IF($A17="between",SUMIFS('Roadway by Mode'!R:R,'Roadway by Mode'!$H:$H,">="&$B17,'Roadway by Mode'!$H:$H,"<"&$D17,'Roadway by Mode'!$V:$V,"=No"),SUMIFS('Roadway by Mode'!R:R,'Roadway by Mode'!$H:$H,">="&$B17,'Roadway by Mode'!$V:$V,"=No"))),IF($A17="","",IF($A17="between",SUMIFS('Roadway by Mode'!R:R,'Roadway by Mode'!$H:$H,">="&$B17,'Roadway by Mode'!$H:$H,"<"&$D17),SUMIFS('Roadway by Mode'!R:R,'Roadway by Mode'!$H:$H,">="&$B17)))),"") ->  | T17: =IFERROR(IF($O$2,IF($A17="","",IF($A17="between",SUMIFS('Roadway by Mode'!T:T,'Roadway by Mode'!$H:$H,">="&$B17,'Roadway by Mode'!$H:$H,"<"&$D17,'Roadway by Mode'!$V:$V,"=No"),SUMIFS('Roadway by Mode'!T:T,'Roadway by Mode'!$H:$H,">="&$B17,'Roadway by Mode'!$V:$V,"=No"))),IF($A17="","",IF($A17="between",SUMIFS('Roadway by Mode'!T:T,'Roadway by Mode'!$H:$H,">="&$B17,'Roadway by Mode'!$H:$H,"<"&$D17),SUMIFS('Roadway by Mode'!T:T,'Roadway by Mode'!$H:$H,">="&$B17)))),"") -> 
F18: =IFERROR(G20&":"&CHAR(10)&G18&CHAR(10)&H18&CHAR(10)&I18&CHAR(10)&J18&CHAR(10)&K18&CHAR(10)&L18,"") -> under 200,000 population: At Grade: Restricted Right-of-Way: 57% Street Running: 0% Elevated on Structure: 43% Elevated on Fill: 0% Open Cut: 0% Subway: 0% | G18: =G1&": "&ROUND(100*G19/$M$19,0)&"%" -> At Grade: Restricted Right-of-Way: 57% | H18: =H1&": "&ROUND(100*H19/$M$19,0)&"%" -> Street Running: 0% | I18: Elevated on Structure: 43% | J18: Elevated on Fill: 0% | K18: Open Cut: 0% | L18: Subway: 0%
G19: =INDIRECT("G"&(8+$F$20)) -> 6.3 | H19: =INDIRECT("H"&(8+$F$20)) -> 0 | I19: =INDIRECT("I"&(8+$F$20)) -> 4.7 | J19: =INDIRECT("J"&(8+$F$20)) -> 0 | K19: =INDIRECT("K"&(8+$F$20)) -> 0 | L19: =INDIRECT("L"&(8+$F$20)) -> 0 | M19: =INDIRECT("M"&(8+$F$20)) -> 11
F20: 1 | G20: =IF(INDIRECT("A"&(8+F20))="","Please select a valid bin to graph.",IF(OR(INDIRECT("A"&(8+F20))="under",INDIRECT("A"&(8+F20))="over"),INDIRECT("A"&(8+F20))&" "&FIXED(INDIRECT("B"&(8+F20)),0,0)&" population","between "&FIXED(INDIRECT("B"&(8+F20)),0,0)&" and "&FIXED(INDIRECT("D"&(8+F20)),0,0)&" population")) -> under 200,000 population
A22: By Mode/Type of Service
G23: Miles of Track | N23: Number of Crossings | Q23: Miles of Roadway
A24: Mode | B24: Type | C24: Description | F24: VOMS | G24: At Grade: Restricted Right-of-Way Track Miles | H24: Street Running Track Miles | I24: Elevated on Structure Track Miles | J24: Elevated on Fill Track Miles | K24: Open Cut Track Miles | L24: Subway Track Miles | M24: Total Track Miles | N24: At Grade: Restricted Right-of-Way Crossings | O24: Street Running Crossings | P24: Total Crossings | Q24: Permanent Busway Roadway Miles | R24: Permanent HOV Roadway Miles | S24: Part-Time Busway or HOV Roadway Miles | T24: Total Roadway Miles
A25: AR | B25: DO | C25: Alaska Railroad - Directly Operated | F25: =IF($X$2,SUMIFS('Track by Mode'!L:L,'Track by Mode'!$J:$J,"="&$A25,'Track by Mode'!$K:$K,"="&$B25,'Track by Mode'!$AI:$AI,"=No"),SUMIFS('Track by Mode'!L:L,'Track by Mode'!$J:$J,"="&$A25,'Track by Mode'!$K:$K,"="&$B25)) -> 39 | G25: =IF($X$2,SUMIFS('Track by Mode'!N:N,'Track by Mode'!$J:$J,"="&$A25,'Track by Mode'!$K:$K,"="&$B25,'Track by Mode'!$AI:$AI,"=No"),SUMIFS('Track by Mode'!N:N,'Track by Mode'!$J:$J,"="&$A25,'Track by Mode'!$K:$K,"="&$B25)) -> 676.1 | H25: =IF($X$2,SUMIFS('Track by Mode'!P:P,'Track by Mode'!$J:$J,"="&$A25,'Track by Mode'!$K:$K,"="&$B25,'Track by Mode'!$AI:$AI,"=No"),SUMIFS('Track by Mode'!P:P,'Track by Mode'!$J:$J,"="&$A25,'Track by Mode'!$K:$K,"="&$B25)) -> 2.6 | I25: =IF($X$2,SUMIFS('Track by Mode'!R:R,'Track by Mode'!$J:$J,"="&$A25,'Track by Mode'!$K:$K,"="&$B25,'Track by Mode'!$AI:$AI,"=No"),SUMIFS('Track by Mode'!R:R,'Track by Mode'!$J:$J,"="&$A25,'Track by Mode'!$K:$K,"="&$B25)) -> 0 | J25: =IF($X$2,SUMIFS('Track by Mode'!T:T,'Track by Mode'!$J:$J,"="&$A25,'Track by Mode'!$K:$K,"="&$B25,'Track by Mode'!$AI:$AI,"=No"),SUMIFS('Track by Mode'!T:T,'Track by Mode'!$J:$J,"="&$A25,'Track by Mode'!$K:$K,"="&$B25)) -> 0 | K25: =IF($X$2,SUMIFS('Track by Mode'!V:V,'Track by Mode'!$J:$J,"="&$A25,'Track by Mode'!$K:$K,"="&$B25,'Track by Mode'!$AI:$AI,"=No"),SUMIFS('Track by Mode'!V:V,'Track by Mode'!$J:$J,"="&$A25,'Track by Mode'!$K:$K,"="&$B25)) -> 0 | L25: =IF($X$2,SUMIFS('Track by Mode'!X:X,'Track by Mode'!$J:$J,"="&$A25,'Track by Mode'!$K:$K,"="&$B25,'Track by Mode'!$AI:$AI,"=No"),SUMIFS('Track by Mode'!X:X,'Track by Mode'!$J:$J,"="&$A25,'Track by Mode'!$K:$K,"="&$B25)) -> 4.1 | M25: =IF($X$2,SUMIFS('Track by Mode'!Z:Z,'Track by Mode'!$J:$J,"="&$A25,'Track by Mode'!$K:$K,"="&$B25,'Track by Mode'!$AI:$AI,"=No"),SUMIFS('Track by Mode'!Z:Z,'Track by Mode'!$J:$J,"="&$A25,'Track by Mode'!$K:$K,"="&$B25)) -> 682.8 | N25: =IF($X$2,SUMIFS('Track by Mode'!AC:AC,'Track by Mode'!$J:$J,"="&$A25,'Track by Mode'!$K:$K,"="&$B25,'Track by Mode'!$AI:$AI,"=No"),SUMIFS('Track by Mode'!AC:AC,'Track by Mode'!$J:$J,"="&$A25,'Track by Mode'!$K:$K,"="&$B25)) -> 132 | O25: =IF($X$2,SUMIFS('Track by Mode'!AE:AE,'Track by Mode'!$J:$J,"="&$A25,'Track by Mode'!$K:$K,"="&$B25,'Track by Mode'!$AI:$AI,"=No"),SUMIFS('Track by Mode'!AE:AE,'Track by Mode'!$J:$J,"="&$A25,'Track by Mode'!$K:$K,"="&$B25)) -> 1 | P25: =IF($X$2,SUMIFS('Track by Mode'!AG:AG,'Track by Mode'!$J:$J,"="&$A25,'Track by Mode'!$K:$K,"="&$B25,'Track by Mode'!$AI:$AI,"=No"),SUMIFS('Track by Mode'!AG:AG,'Track by Mode'!$J:$J,"="&$A25,'Track by Mode'!$K:$K,"="&$B25)) -> 133 | Q25: - | R25: - | S25: - | T25: -
A26: CC | B26: DO | C26: Cable Car - Directly Operated | F26: =IF($X$2,SUMIFS('Track by Mode'!L:L,'Track by Mode'!$J:$J,"="&$A26,'Track by Mode'!$K:$K,"="&$B26,'Track by Mode'!$AI:$AI,"=No"),SUMIFS('Track by Mode'!L:L,'Track by Mode'!$J:$J,"="&$A26,'Track by Mode'!$K:$K,"="&$B26)) -> 27 | G26: =IF($X$2,SUMIFS('Track by Mode'!N:N,'Track by Mode'!$J:$J,"="&$A26,'Track by Mode'!$K:$K,"="&$B26,'Track by Mode'!$AI:$AI,"=No"),SUMIFS('Track by Mode'!N:N,'Track by Mode'!$J:$J,"="&$A26,'Track by Mode'!$K:$K,"="&$B26)) -> 0 | H26: =IF($X$2,SUMIFS('Track by Mode'!P:P,'Track by Mode'!$J:$J,"="&$A26,'Track by Mode'!$K:$K,"="&$B26,'Track by Mode'!$AI:$AI,"=No"),SUMIFS('Track by Mode'!P:P,'Track by Mode'!$J:$J,"="&$A26,'Track by Mode'!$K:$K,"="&$B26)) -> 8.8 | I26: =IF($X$2,SUMIFS('Track by Mode'!R:R,'Track by Mode'!$J:$J,"="&$A26,'Track by Mode'!$K:$K,"="&$B26,'Track by Mode'!$AI:$AI,"=No"),SUMIFS('Track by Mode'!R:R,'Track by Mode'!$J:$J,"="&$A26,'Track by Mode'!$K:$K,"="&$B26)) -> 0 | J26: =IF($X$2,SUMIFS('Track by Mode'!T:T,'Track by Mode'!$J:$J,"="&$A26,'Track by Mode'!$K:$K,"="&$B26,'Track by Mode'!$AI:$AI,"=No"),SUMIFS('Track by Mode'!T:T,'Track by Mode'!$J:$J,"="&$A26,'Track by Mode'!$K:$K,"="&$B26)) -> 0 | K26: =IF($X$2,SUMIFS('Track by Mode'!V:V,'Track by Mode'!$J:$J,"="&$A26,'Track by Mode'!$K:$K,"="&$B26,'Track by Mode'!$AI:$AI,"=No"),SUMIFS('Track by Mode'!V:V,'Track by Mode'!$J:$J,"="&$A26,'Track by Mode'!$K:$K,"="&$B26)) -> 0 | L26: =IF($X$2,SUMIFS('Track by Mode'!X:X,'Track by Mode'!$J:$J,"="&$A26,'Track by Mode'!$K:$K,"="&$B26,'Track by Mode'!$AI:$AI,"=No"),SUMIFS('Track by Mode'!X:X,'Track by Mode'!$J:$J,"="&$A26,'Track by Mode'!$K:$K,"="&$B26)) -> 0 | M26: =IF($X$2,SUMIFS('Track by Mode'!Z:Z,'Track by Mode'!$J:$J,"="&$A26,'Track by Mode'!$K:$K,"="&$B26,'Track by Mode'!$AI:$AI,"=No"),SUMIFS('Track by Mode'!Z:Z,'Track by Mode'!$J:$J,"="&$A26,'Track by Mode'!$K:$K,"="&$B26)) -> 8.8 | N26: =IF($X$2,SUMIFS('Track by Mode'!AC:AC,'Track by Mode'!$J:$J,"="&$A26,'Track by Mode'!$K:$K,"="&$B26,'Track by Mode'!$AI:$AI,"=No"),SUMIFS('Track by Mode'!AC:AC,'Track by Mode'!$J:$J,"="&$A26,'Track by Mode'!$K:$K,"="&$B26)) -> 0 | O26: =IF($X$2,SUMIFS('Track by Mode'!AE:AE,'Track by Mode'!$J:$J,"="&$A26,'Track by Mode'!$K:$K,"="&$B26,'Track by Mode'!$AI:$AI,"=No"),SUMIFS('Track by Mode'!AE:AE,'Track by Mode'!$J:$J,"="&$A26,'Track by Mode'!$K:$K,"="&$B26)) -> 77 | P26: =IF($X$2,SUMIFS('Track by Mode'!AG:AG,'Track by Mode'!$J:$J,"="&$A26,'Track by Mode'!$K:$K,"="&$B26,'Track by Mode'!$AI:$AI,"=No"),SUMIFS('Track by Mode'!AG:AG,'Track by Mode'!$J:$J,"="&$A26,'Track by Mode'!$K:$K,"="&$B26)) -> 77 | Q26: - | R26: - | S26: - | T26: -
A27: CR | B27: DO | C27: Commuter Rail - Directly Operated | F27: =IF($X$2,SUMIFS('Track by Mode'!L:L,'Track by Mode'!$J:$J,"="&$A27,'Track by Mode'!$K:$K,"="&$B27,'Track by Mode'!$AI:$AI,"=No"),SUMIFS('Track by Mode'!L:L,'Track by Mode'!$J:$J,"="&$A27,'Track by Mode'!$K:$K,"="&$B27)) -> 4981 | G27: =IF($X$2,SUMIFS('Track by Mode'!N:N,'Track by Mode'!$J:$J,"="&$A27,'Track by Mode'!$K:$K,"="&$B27,'Track by Mode'!$AI:$AI,"=No"),SUMIFS('Track by Mode'!N:N,'Track by Mode'!$J:$J,"="&$A27,'Track by Mode'!$K:$K,"="&$B27)) -> 3868.1 | H27: =IF($X$2,SUMIFS('Track by Mode'!P:P,'Track by Mode'!$J:$J,"="&$A27,'Track by Mode'!$K:$K,"="&$B27,'Track by Mode'!$AI:$AI,"=No"),SUMIFS('Track by Mode'!P:P,'Track by Mode'!$J:$J,"="&$A27,'Track by Mode'!$K:$K,"="&$B27)) -> 2 | I27: =IF($X$2,SUMIFS('Track by Mode'!R:R,'Track by Mode'!$J:$J,"="&$A27,'Track by Mode'!$K:$K,"="&$B27,'Track by Mode'!$AI:$AI,"=No"),SUMIFS('Track by Mode'!R:R,'Track by Mode'!$J:$J,"="&$A27,'Track by Mode'!$K:$K,"="&$B27)) -> 54 | J27: =IF($X$2,SUMIFS('Track by Mode'!T:T,'Track by Mode'!$J:$J,"="&$A27,'Track by Mode'!$K:$K,"="&$B27,'Track by Mode'!$AI:$AI,"=No"),SUMIFS('Track by Mode'!T:T,'Track by Mode'!$J:$J,"="&$A27,'Track by Mode'!$K:$K,"="&$B27)) -> 402.9 | K27: =IF($X$2,SUMIFS('Track by Mode'!V:V,'Track by Mode'!$J:$J,"="&$A27,'Track by Mode'!$K:$K,"="&$B27,'Track by Mode'!$AI:$AI,"=No"),SUMIFS('Track by Mode'!V:V,'Track by Mode'!$J:$J,"="&$A27,'Track by Mode'!$K:$K,"="&$B27)) -> 59.4 | L27: =IF($X$2,SUMIFS('Track by Mode'!X:X,'Track by Mode'!$J:$J,"="&$A27,'Track by Mode'!$K:$K,"="&$B27,'Track by Mode'!$AI:$AI,"=No"),SUMIFS('Track by Mode'!X:X,'Track by Mode'!$J:$J,"="&$A27,'Track by Mode'!$K:$K,"="&$B27)) -> 31.5 | M27: =IF($X$2,SUMIFS('Track by Mode'!Z:Z,'Track by Mode'!$J:$J,"="&$A27,'Track by Mode'!$K:$K,"="&$B27,'Track by Mode'!$AI:$AI,"=No"),SUMIFS('Track by Mode'!Z:Z,'Track by Mode'!$J:$J,"="&$A27,'Track by Mode'!$K:$K,"="&$B27)) -> 4417.9 | N27: =IF($X$2,SUMIFS('Track by Mode'!AC:AC,'Track by Mode'!$J:$J,"="&$A27,'Track by Mode'!$K:$K,"="&$B27,'Track by Mode'!$AI:$AI,"=No"),SUMIFS('Track by Mode'!AC:AC,'Track by Mode'!$J:$J,"="&$A27,'Track by Mode'!$K:$K,"="&$B27)) -> 1824 | O27: =IF($X$2,SUMIFS('Track by Mode'!AE:AE,'Track by Mode'!$J:$J,"="&$A27,'Track by Mode'!$K:$K,"="&$B27,'Track by Mode'!$AI:$AI,"=No"),SUMIFS('Track by Mode'!AE:AE,'Track by Mode'!$J:$J,"="&$A27,'Track by Mode'!$K:$K,"="&$B27)) -> 32 | P27: =IF($X$2,SUMIFS('Track by Mode'!AG:AG,'Track by Mode'!$J:$J,"="&$A27,'Track by Mode'!$K:$K,"="&$B27,'Track by Mode'!$AI:$AI,"=No"),SUMIFS('Track by Mode'!AG:AG,'Track by Mode'!$J:$J,"="&$A27,'Track by Mode'!$K:$K,"="&$B27)) -> 1856 | Q27: - | R27: - | S27: - | T27: -
A28: CR | B28: PT | C28: Commuter Rail - Purchased Transportation | F28: =IF($X$2,SUMIFS('Track by Mode'!L:L,'Track by Mode'!$J:$J,"="&$A28,'Track by Mode'!$K:$K,"="&$B28,'Track by Mode'!$AI:$AI,"=No"),SUMIFS('Track by Mode'!L:L,'Track by Mode'!$J:$J,"="&$A28,'Track by Mode'!$K:$K,"="&$B28)) -> 1297 | G28: =IF($X$2,SUMIFS('Track by Mode'!N:N,'Track by Mode'!$J:$J,"="&$A28,'Track by Mode'!$K:$K,"="&$B28,'Track by Mode'!$AI:$AI,"=No"),SUMIFS('Track by Mode'!N:N,'Track by Mode'!$J:$J,"="&$A28,'Track by Mode'!$K:$K,"="&$B28)) -> 3233.5 | H28: =IF($X$2,SUMIFS('Track by Mode'!P:P,'Track by Mode'!$J:$J,"="&$A28,'Track by Mode'!$K:$K,"="&$B28,'Track by Mode'!$AI:$AI,"=No"),SUMIFS('Track by Mode'!P:P,'Track by Mode'!$J:$J,"="&$A28,'Track by Mode'!$K:$K,"="&$B28)) -> 0 | I28: =IF($X$2,SUMIFS('Track by Mode'!R:R,'Track by Mode'!$J:$J,"="&$A28,'Track by Mode'!$K:$K,"="&$B28,'Track by Mode'!$AI:$AI,"=No"),SUMIFS('Track by Mode'!R:R,'Track by Mode'!$J:$J,"="&$A28,'Track by Mode'!$K:$K,"="&$B28)) -> 28.6 | J28: =IF($X$2,SUMIFS('Track by Mode'!T:T,'Track by Mode'!$J:$J,"="&$A28,'Track by Mode'!$K:$K,"="&$B28,'Track by Mode'!$AI:$AI,"=No"),SUMIFS('Track by Mode'!T:T,'Track by Mode'!$J:$J,"="&$A28,'Track by Mode'!$K:$K,"="&$B28)) -> 64 | K28: =IF($X$2,SUMIFS('Track by Mode'!V:V,'Track by Mode'!$J:$J,"="&$A28,'Track by Mode'!$K:$K,"="&$B28,'Track by Mode'!$AI:$AI,"=No"),SUMIFS('Track by Mode'!V:V,'Track by Mode'!$J:$J,"="&$A28,'Track by Mode'!$K:$K,"="&$B28)) -> 16.5 | L28: =IF($X$2,SUMIFS('Track by Mode'!X:X,'Track by Mode'!$J:$J,"="&$A28,'Track by Mode'!$K:$K,"="&$B28,'Track by Mode'!$AI:$AI,"=No"),SUMIFS('Track by Mode'!X:X,'Track by Mode'!$J:$J,"="&$A28,'Track by Mode'!$K:$K,"="&$B28)) -> 7.3 | M28: =IF($X$2,SUMIFS('Track by Mode'!Z:Z,'Track by Mode'!$J:$J,"="&$A28,'Track by Mode'!$K:$K,"="&$B28,'Track by Mode'!$AI:$AI,"=No"),SUMIFS('Track by Mode'!Z:Z,'Track by Mode'!$J:$J,"="&$A28,'Track by Mode'!$K:$K,"="&$B28)) -> 3349.9 | N28: =IF($X$2,SUMIFS('Track by Mode'!AC:AC,'Track by Mode'!$J:$J,"="&$A28,'Track by Mode'!$K:$K,"="&$B28,'Track by Mode'!$AI:$AI,"=No"),SUMIFS('Track by Mode'!AC:AC,'Track by Mode'!$J:$J,"="&$A28,'Track by Mode'!$K:$K,"="&$B28)) -> 1488 | O28: =IF($X$2,SUMIFS('Track by Mode'!AE:AE,'Track by Mode'!$J:$J,"="&$A28,'Track by Mode'!$K:$K,"="&$B28,'Track by Mode'!$AI:$AI,"=No"),SUMIFS('Track by Mode'!AE:AE,'Track by Mode'!$J:$J,"="&$A28,'Track by Mode'!$K:$K,"="&$B28)) -> 0 | P28: =IF($X$2,SUMIFS('Track by Mode'!AG:AG,'Track by Mode'!$J:$J,"="&$A28,'Track by Mode'!$K:$K,"="&$B28,'Track by Mode'!$AI:$AI,"=No"),SUMIFS('Track by Mode'!AG:AG,'Track by Mode'!$J:$J,"="&$A28,'Track by Mode'!$K:$K,"="&$B28)) -> 1488 | Q28: - | R28: - | S28: - | T28: -
A29: HR | B29: DO | C29: Heavy Rail - Directly Operated | F29: =IF($X$2,SUMIFS('Track by Mode'!L:L,'Track by Mode'!$J:$J,"="&$A29,'Track by Mode'!$K:$K,"="&$B29,'Track by Mode'!$AI:$AI,"=No"),SUMIFS('Track by Mode'!L:L,'Track by Mode'!$J:$J,"="&$A29,'Track by Mode'!$K:$K,"="&$B29)) -> 9396 | G29: =IF($X$2,SUMIFS('Track by Mode'!N:N,'Track by Mode'!$J:$J,"="&$A29,'Track by Mode'!$K:$K,"="&$B29,'Track by Mode'!$AI:$AI,"=No"),SUMIFS('Track by Mode'!N:N,'Track by Mode'!$J:$J,"="&$A29,'Track by Mode'!$K:$K,"="&$B29)) -> 787.4 | H29: =IF($X$2,SUMIFS('Track by Mode'!P:P,'Track by Mode'!$J:$J,"="&$A29,'Track by Mode'!$K:$K,"="&$B29,'Track by Mode'!$AI:$AI,"=No"),SUMIFS('Track by Mode'!P:P,'Track by Mode'!$J:$J,"="&$A29,'Track by Mode'!$K:$K,"="&$B29)) -> 0 | I29: =IF($X$2,SUMIFS('Track by Mode'!R:R,'Track by Mode'!$J:$J,"="&$A29,'Track by Mode'!$K:$K,"="&$B29,'Track by Mode'!$AI:$AI,"=No"),SUMIFS('Track by Mode'!R:R,'Track by Mode'!$J:$J,"="&$A29,'Track by Mode'!$K:$K,"="&$B29)) -> 502.6 | J29: =IF($X$2,SUMIFS('Track by Mode'!T:T,'Track by Mode'!$J:$J,"="&$A29,'Track by Mode'!$K:$K,"="&$B29,'Track by Mode'!$AI:$AI,"=No"),SUMIFS('Track by Mode'!T:T,'Track by Mode'!$J:$J,"="&$A29,'Track by Mode'!$K:$K,"="&$B29)) -> 113.4 | K29: =IF($X$2,SUMIFS('Track by Mode'!V:V,'Track by Mode'!$J:$J,"="&$A29,'Track by Mode'!$K:$K,"="&$B29,'Track by Mode'!$AI:$AI,"=No"),SUMIFS('Track by Mode'!V:V,'Track by Mode'!$J:$J,"="&$A29,'Track by Mode'!$K:$K,"="&$B29)) -> 67.5 | L29: =IF($X$2,SUMIFS('Track by Mode'!X:X,'Track by Mode'!$J:$J,"="&$A29,'Track by Mode'!$K:$K,"="&$B29,'Track by Mode'!$AI:$AI,"=No"),SUMIFS('Track by Mode'!X:X,'Track by Mode'!$J:$J,"="&$A29,'Track by Mode'!$K:$K,"="&$B29)) -> 802.3 | M29: =IF($X$2,SUMIFS('Track by Mode'!Z:Z,'Track by Mode'!$J:$J,"="&$A29,'Track by Mode'!$K:$K,"="&$B29,'Track by Mode'!$AI:$AI,"=No"),SUMIFS('Track by Mode'!Z:Z,'Track by Mode'!$J:$J,"="&$A29,'Track by Mode'!$K:$K,"="&$B29)) -> 2273.2 | N29: =IF($X$2,SUMIFS('Track by Mode'!AC:AC,'Track by Mode'!$J:$J,"="&$A29,'Track by Mode'!$K:$K,"="&$B29,'Track by Mode'!$AI:$AI,"=No"),SUMIFS('Track by Mode'!AC:AC,'Track by Mode'!$J:$J,"="&$A29,'Track by Mode'!$K:$K,"="&$B29)) -> 27 | O29: =IF($X$2,SUMIFS('Track by Mode'!AE:AE,'Track by Mode'!$J:$J,"="&$A29,'Track by Mode'!$K:$K,"="&$B29,'Track by Mode'!$AI:$AI,"=No"),SUMIFS('Track by Mode'!AE:AE,'Track by Mode'!$J:$J,"="&$A29,'Track by Mode'!$K:$K,"="&$B29)) -> 0 | P29: =IF($X$2,SUMIFS('Track by Mode'!AG:AG,'Track by Mode'!$J:$J,"="&$A29,'Track by Mode'!$K:$K,"="&$B29,'Track by Mode'!$AI:$AI,"=No"),SUMIFS('Track by Mode'!AG:AG,'Track by Mode'!$J:$J,"="&$A29,'Track by Mode'!$K:$K,"="&$B29)) -> 27 | Q29: - | R29: - | S29: - | T29: -
A30: HR | B30: PT | C30: Heavy Rail - Purchased Transportation | F30: =IF($X$2,SUMIFS('Track by Mode'!L:L,'Track by Mode'!$J:$J,"="&$A30,'Track by Mode'!$K:$K,"="&$B30,'Track by Mode'!$AI:$AI,"=No"),SUMIFS('Track by Mode'!L:L,'Track by Mode'!$J:$J,"="&$A30,'Track by Mode'!$K:$K,"="&$B30)) -> 32 | G30: =IF($X$2,SUMIFS('Track by Mode'!N:N,'Track by Mode'!$J:$J,"="&$A30,'Track by Mode'!$K:$K,"="&$B30,'Track by Mode'!$AI:$AI,"=No"),SUMIFS('Track by Mode'!N:N,'Track by Mode'!$J:$J,"="&$A30,'Track by Mode'!$K:$K,"="&$B30)) -> 10.2 | H30: =IF($X$2,SUMIFS('Track by Mode'!P:P,'Track by Mode'!$J:$J,"="&$A30,'Track by Mode'!$K:$K,"="&$B30,'Track by Mode'!$AI:$AI,"=No"),SUMIFS('Track by Mode'!P:P,'Track by Mode'!$J:$J,"="&$A30,'Track by Mode'!$K:$K,"="&$B30)) -> 0 | I30: =IF($X$2,SUMIFS('Track by Mode'!R:R,'Track by Mode'!$J:$J,"="&$A30,'Track by Mode'!$K:$K,"="&$B30,'Track by Mode'!$AI:$AI,"=No"),SUMIFS('Track by Mode'!R:R,'Track by Mode'!$J:$J,"="&$A30,'Track by Mode'!$K:$K,"="&$B30)) -> 12.2 | J30: =IF($X$2,SUMIFS('Track by Mode'!T:T,'Track by Mode'!$J:$J,"="&$A30,'Track by Mode'!$K:$K,"="&$B30,'Track by Mode'!$AI:$AI,"=No"),SUMIFS('Track by Mode'!T:T,'Track by Mode'!$J:$J,"="&$A30,'Track by Mode'!$K:$K,"="&$B30)) -> 0 | K30: =IF($X$2,SUMIFS('Track by Mode'!V:V,'Track by Mode'!$J:$J,"="&$A30,'Track by Mode'!$K:$K,"="&$B30,'Track by Mode'!$AI:$AI,"=No"),SUMIFS('Track by Mode'!V:V,'Track by Mode'!$J:$J,"="&$A30,'Track by Mode'!$K:$K,"="&$B30)) -> 1.4 | L30: =IF($X$2,SUMIFS('Track by Mode'!X:X,'Track by Mode'!$J:$J,"="&$A30,'Track by Mode'!$K:$K,"="&$B30,'Track by Mode'!$AI:$AI,"=No"),SUMIFS('Track by Mode'!X:X,'Track by Mode'!$J:$J,"="&$A30,'Track by Mode'!$K:$K,"="&$B30)) -> 1.7 | M30: =IF($X$2,SUMIFS('Track by Mode'!Z:Z,'Track by Mode'!$J:$J,"="&$A30,'Track by Mode'!$K:$K,"="&$B30,'Track by Mode'!$AI:$AI,"=No"),SUMIFS('Track by Mode'!Z:Z,'Track by Mode'!$J:$J,"="&$A30,'Track by Mode'!$K:$K,"="&$B30)) -> 25.5 | N30: =IF($X$2,SUMIFS('Track by Mode'!AC:AC,'Track by Mode'!$J:$J,"="&$A30,'Track by Mode'!$K:$K,"="&$B30,'Track by Mode'!$AI:$AI,"=No"),SUMIFS('Track by Mode'!AC:AC,'Track by Mode'!$J:$J,"="&$A30,'Track by Mode'!$K:$K,"="&$B30)) -> 0 | O30: =IF($X$2,SUMIFS('Track by Mode'!AE:AE,'Track by Mode'!$J:$J,"="&$A30,'Track by Mode'!$K:$K,"="&$B30,'Track by Mode'!$AI:$AI,"=No"),SUMIFS('Track by Mode'!AE:AE,'Track by Mode'!$J:$J,"="&$A30,'Track by Mode'!$K:$K,"="&$B30)) -> 0 | P30: =IF($X$2,SUMIFS('Track by Mode'!AG:AG,'Track by Mode'!$J:$J,"="&$A30,'Track by Mode'!$K:$K,"="&$B30,'Track by Mode'!$AI:$AI,"=No"),SUMIFS('Track by Mode'!AG:AG,'Track by Mode'!$J:$J,"="&$A30,'Track by Mode'!$K:$K,"="&$B30)) -> 0 | Q30: - | R30: - | S30: - | T30: -
A31: YR | B31: PT | C31: Hybrid Rail - Purchased Transportation | F31: =IF($X$2,SUMIFS('Track by Mode'!L:L,'Track by Mode'!$J:$J,"="&$A31,'Track by Mode'!$K:$K,"="&$B31,'Track by Mode'!$AI:$AI,"=No"),SUMIFS('Track by Mode'!L:L,'Track by Mode'!$J:$J,"="&$A31,'Track by Mode'!$K:$K,"="&$B31)) -> 40 | G31: =IF($X$2,SUMIFS('Track by Mode'!N:N,'Track by Mode'!$J:$J,"="&$A31,'Track by Mode'!$K:$K,"="&$B31,'Track by Mode'!$AI:$AI,"=No"),SUMIFS('Track by Mode'!N:N,'Track by Mode'!$J:$J,"="&$A31,'Track by Mode'!$K:$K,"="&$B31)) -> 194.8 | H31: =IF($X$2,SUMIFS('Track by Mode'!P:P,'Track by Mode'!$J:$J,"="&$A31,'Track by Mode'!$K:$K,"="&$B31,'Track by Mode'!$AI:$AI,"=No"),SUMIFS('Track by Mode'!P:P,'Track by Mode'!$J:$J,"="&$A31,'Track by Mode'!$K:$K,"="&$B31)) -> 3.8 | I31: =IF($X$2,SUMIFS('Track by Mode'!R:R,'Track by Mode'!$J:$J,"="&$A31,'Track by Mode'!$K:$K,"="&$B31,'Track by Mode'!$AI:$AI,"=No"),SUMIFS('Track by Mode'!R:R,'Track by Mode'!$J:$J,"="&$A31,'Track by Mode'!$K:$K,"="&$B31)) -> 3.1 | J31: =IF($X$2,SUMIFS('Track by Mode'!T:T,'Track by Mode'!$J:$J,"="&$A31,'Track by Mode'!$K:$K,"="&$B31,'Track by Mode'!$AI:$AI,"=No"),SUMIFS('Track by Mode'!T:T,'Track by Mode'!$J:$J,"="&$A31,'Track by Mode'!$K:$K,"="&$B31)) -> 0 | K31: =IF($X$2,SUMIFS('Track by Mode'!V:V,'Track by Mode'!$J:$J,"="&$A31,'Track by Mode'!$K:$K,"="&$B31,'Track by Mode'!$AI:$AI,"=No"),SUMIFS('Track by Mode'!V:V,'Track by Mode'!$J:$J,"="&$A31,'Track by Mode'!$K:$K,"="&$B31)) -> 0 | L31: =IF($X$2,SUMIFS('Track by Mode'!X:X,'Track by Mode'!$J:$J,"="&$A31,'Track by Mode'!$K:$K,"="&$B31,'Track by Mode'!$AI:$AI,"=No"),SUMIFS('Track by Mode'!X:X,'Track by Mode'!$J:$J,"="&$A31,'Track by Mode'!$K:$K,"="&$B31)) -> 0 | M31: =IF($X$2,SUMIFS('Track by Mode'!Z:Z,'Track by Mode'!$J:$J,"="&$A31,'Track by Mode'!$K:$K,"="&$B31,'Track by Mode'!$AI:$AI,"=No"),SUMIFS('Track by Mode'!Z:Z,'Track by Mode'!$J:$J,"="&$A31,'Track by Mode'!$K:$K,"="&$B31)) -> 201.7 | N31: =IF($X$2,SUMIFS('Track by Mode'!AC:AC,'Track by Mode'!$J:$J,"="&$A31,'Track by Mode'!$K:$K,"="&$B31,'Track by Mode'!$AI:$AI,"=No"),SUMIFS('Track by Mode'!AC:AC,'Track by Mode'!$J:$J,"="&$A31,'Track by Mode'!$K:$K,"="&$B31)) -> 255 | O31: =IF($X$2,SUMIFS('Track by Mode'!AE:AE,'Track by Mode'!$J:$J,"="&$A31,'Track by Mode'!$K:$K,"="&$B31,'Track by Mode'!$AI:$AI,"=No"),SUMIFS('Track by Mode'!AE:AE,'Track by Mode'!$J:$J,"="&$A31,'Track by Mode'!$K:$K,"="&$B31)) -> 13 | P31: =IF($X$2,SUMIFS('Track by Mode'!AG:AG,'Track by Mode'!$J:$J,"="&$A31,'Track by Mode'!$K:$K,"="&$B31,'Track by Mode'!$AI:$AI,"=No"),SUMIFS('Track by Mode'!AG:AG,'Track by Mode'!$J:$J,"="&$A31,'Track by Mode'!$K:$K,"="&$B31)) -> 268 | Q31: - | R31: - | S31: - | T31: -
A32: IP | B32: DO | C32: Inclined Plane - Directly Operated | F32: =IF($X$2,SUMIFS('Track by Mode'!L:L,'Track by Mode'!$J:$J,"="&$A32,'Track by Mode'!$K:$K,"="&$B32,'Track by Mode'!$AI:$AI,"=No"),SUMIFS('Track by Mode'!L:L,'Track by Mode'!$J:$J,"="&$A32,'Track by Mode'!$K:$K,"="&$B32)) -> 6 | G32: =IF($X$2,SUMIFS('Track by Mode'!N:N,'Track by Mode'!$J:$J,"="&$A32,'Track by Mode'!$K:$K,"="&$B32,'Track by Mode'!$AI:$AI,"=No"),SUMIFS('Track by Mode'!N:N,'Track by Mode'!$J:$J,"="&$A32,'Track by Mode'!$K:$K,"="&$B32)) -> 1.5 | H32: =IF($X$2,SUMIFS('Track by Mode'!P:P,'Track by Mode'!$J:$J,"="&$A32,'Track by Mode'!$K:$K,"="&$B32,'Track by Mode'!$AI:$AI,"=No"),SUMIFS('Track by Mode'!P:P,'Track by Mode'!$J:$J,"="&$A32,'Track by Mode'!$K:$K,"="&$B32)) -> 0 | I32: =IF($X$2,SUMIFS('Track by Mode'!R:R,'Track by Mode'!$J:$J,"="&$A32,'Track by Mode'!$K:$K,"="&$B32,'Track by Mode'!$AI:$AI,"=No"),SUMIFS('Track by Mode'!R:R,'Track by Mode'!$J:$J,"="&$A32,'Track by Mode'!$K:$K,"="&$B32)) -> 0 | J32: =IF($X$2,SUMIFS('Track by Mode'!T:T,'Track by Mode'!$J:$J,"="&$A32,'Track by Mode'!$K:$K,"="&$B32,'Track by Mode'!$AI:$AI,"=No"),SUMIFS('Track by Mode'!T:T,'Track by Mode'!$J:$J,"="&$A32,'Track by Mode'!$K:$K,"="&$B32)) -> 0 | K32: =IF($X$2,SUMIFS('Track by Mode'!V:V,'Track by Mode'!$J:$J,"="&$A32,'Track by Mode'!$K:$K,"="&$B32,'Track by Mode'!$AI:$AI,"=No"),SUMIFS('Track by Mode'!V:V,'Track by Mode'!$J:$J,"="&$A32,'Track by Mode'!$K:$K,"="&$B32)) -> 0 | L32: =IF($X$2,SUMIFS('Track by Mode'!X:X,'Track by Mode'!$J:$J,"="&$A32,'Track by Mode'!$K:$K,"="&$B32,'Track by Mode'!$AI:$AI,"=No"),SUMIFS('Track by Mode'!X:X,'Track by Mode'!$J:$J,"="&$A32,'Track by Mode'!$K:$K,"="&$B32)) -> 0 | M32: =IF($X$2,SUMIFS('Track by Mode'!Z:Z,'Track by Mode'!$J:$J,"="&$A32,'Track by Mode'!$K:$K,"="&$B32,'Track by Mode'!$AI:$AI,"=No"),SUMIFS('Track by Mode'!Z:Z,'Track by Mode'!$J:$J,"="&$A32,'Track by Mode'!$K:$K,"="&$B32)) -> 1.5 | N32: =IF($X$2,SUMIFS('Track by Mode'!AC:AC,'Track by Mode'!$J:$J,"="&$A32,'Track by Mode'!$K:$K,"="&$B32,'Track by Mode'!$AI:$AI,"=No"),SUMIFS('Track by Mode'!AC:AC,'Track by Mode'!$J:$J,"="&$A32,'Track by Mode'!$K:$K,"="&$B32)) -> 0 | O32: =IF($X$2,SUMIFS('Track by Mode'!AE:AE,'Track by Mode'!$J:$J,"="&$A32,'Track by Mode'!$K:$K,"="&$B32,'Track by Mode'!$AI:$AI,"=No"),SUMIFS('Track by Mode'!AE:AE,'Track by Mode'!$J:$J,"="&$A32,'Track by Mode'!$K:$K,"="&$B32)) -> 0 | P32: =IF($X$2,SUMIFS('Track by Mode'!AG:AG,'Track by Mode'!$J:$J,"="&$A32,'Track by Mode'!$K:$K,"="&$B32,'Track by Mode'!$AI:$AI,"=No"),SUMIFS('Track by Mode'!AG:AG,'Track by Mode'!$J:$J,"="&$A32,'Track by Mode'!$K:$K,"="&$B32)) -> 0 | Q32: - | R32: - | S32: - | T32: -
A33: LR | B33: DO | C33: Light Rail - Directly Operated | F33: =IF($X$2,SUMIFS('Track by Mode'!L:L,'Track by Mode'!$J:$J,"="&$A33,'Track by Mode'!$K:$K,"="&$B33,'Track by Mode'!$AI:$AI,"=No"),SUMIFS('Track by Mode'!L:L,'Track by Mode'!$J:$J,"="&$A33,'Track by Mode'!$K:$K,"="&$B33)) -> 1460 | G33: =IF($X$2,SUMIFS('Track by Mode'!N:N,'Track by Mode'!$J:$J,"="&$A33,'Track by Mode'!$K:$K,"="&$B33,'Track by Mode'!$AI:$AI,"=No"),SUMIFS('Track by Mode'!N:N,'Track by Mode'!$J:$J,"="&$A33,'Track by Mode'!$K:$K,"="&$B33)) -> 1043.9 | H33: =IF($X$2,SUMIFS('Track by Mode'!P:P,'Track by Mode'!$J:$J,"="&$A33,'Track by Mode'!$K:$K,"="&$B33,'Track by Mode'!$AI:$AI,"=No"),SUMIFS('Track by Mode'!P:P,'Track by Mode'!$J:$J,"="&$A33,'Track by Mode'!$K:$K,"="&$B33)) -> 62.7 | I33: =IF($X$2,SUMIFS('Track by Mode'!R:R,'Track by Mode'!$J:$J,"="&$A33,'Track by Mode'!$K:$K,"="&$B33,'Track by Mode'!$AI:$AI,"=No"),SUMIFS('Track by Mode'!R:R,'Track by Mode'!$J:$J,"="&$A33,'Track by Mode'!$K:$K,"="&$B33)) -> 154 | J33: =IF($X$2,SUMIFS('Track by Mode'!T:T,'Track by Mode'!$J:$J,"="&$A33,'Track by Mode'!$K:$K,"="&$B33,'Track by Mode'!$AI:$AI,"=No"),SUMIFS('Track by Mode'!T:T,'Track by Mode'!$J:$J,"="&$A33,'Track by Mode'!$K:$K,"="&$B33)) -> 81.1 | K33: =IF($X$2,SUMIFS('Track by Mode'!V:V,'Track by Mode'!$J:$J,"="&$A33,'Track by Mode'!$K:$K,"="&$B33,'Track by Mode'!$AI:$AI,"=No"),SUMIFS('Track by Mode'!V:V,'Track by Mode'!$J:$J,"="&$A33,'Track by Mode'!$K:$K,"="&$B33)) -> 53.8 | L33: =IF($X$2,SUMIFS('Track by Mode'!X:X,'Track by Mode'!$J:$J,"="&$A33,'Track by Mode'!$K:$K,"="&$B33,'Track by Mode'!$AI:$AI,"=No"),SUMIFS('Track by Mode'!X:X,'Track by Mode'!$J:$J,"="&$A33,'Track by Mode'!$K:$K,"="&$B33)) -> 84 | M33: =IF($X$2,SUMIFS('Track by Mode'!Z:Z,'Track by Mode'!$J:$J,"="&$A33,'Track by Mode'!$K:$K,"="&$B33,'Track by Mode'!$AI:$AI,"=No"),SUMIFS('Track by Mode'!Z:Z,'Track by Mode'!$J:$J,"="&$A33,'Track by Mode'!$K:$K,"="&$B33)) -> 1479.5 | N33: =IF($X$2,SUMIFS('Track by Mode'!AC:AC,'Track by Mode'!$J:$J,"="&$A33,'Track by Mode'!$K:$K,"="&$B33,'Track by Mode'!$AI:$AI,"=No"),SUMIFS('Track by Mode'!AC:AC,'Track by Mode'!$J:$J,"="&$A33,'Track by Mode'!$K:$K,"="&$B33)) -> 1462 | O33: =IF($X$2,SUMIFS('Track by Mode'!AE:AE,'Track by Mode'!$J:$J,"="&$A33,'Track by Mode'!$K:$K,"="&$B33,'Track by Mode'!$AI:$AI,"=No"),SUMIFS('Track by Mode'!AE:AE,'Track by Mode'!$J:$J,"="&$A33,'Track by Mode'!$K:$K,"="&$B33)) -> 554 | P33: =IF($X$2,SUMIFS('Track by Mode'!AG:AG,'Track by Mode'!$J:$J,"="&$A33,'Track by Mode'!$K:$K,"="&$B33,'Track by Mode'!$AI:$AI,"=No"),SUMIFS('Track by Mode'!AG:AG,'Track by Mode'!$J:$J,"="&$A33,'Track by Mode'!$K:$K,"="&$B33)) -> 2016 | Q33: - | R33: - | S33: - | T33: -
A34: LR | B34: PT | C34: Light Rail - Purchased Transportation | F34: =IF($X$2,SUMIFS('Track by Mode'!L:L,'Track by Mode'!$J:$J,"="&$A34,'Track by Mode'!$K:$K,"="&$B34,'Track by Mode'!$AI:$AI,"=No"),SUMIFS('Track by Mode'!L:L,'Track by Mode'!$J:$J,"="&$A34,'Track by Mode'!$K:$K,"="&$B34)) -> 70 | G34: =IF($X$2,SUMIFS('Track by Mode'!N:N,'Track by Mode'!$J:$J,"="&$A34,'Track by Mode'!$K:$K,"="&$B34,'Track by Mode'!$AI:$AI,"=No"),SUMIFS('Track by Mode'!N:N,'Track by Mode'!$J:$J,"="&$A34,'Track by Mode'!$K:$K,"="&$B34)) -> 73.5 | H34: =IF($X$2,SUMIFS('Track by Mode'!P:P,'Track by Mode'!$J:$J,"="&$A34,'Track by Mode'!$K:$K,"="&$B34,'Track by Mode'!$AI:$AI,"=No"),SUMIFS('Track by Mode'!P:P,'Track by Mode'!$J:$J,"="&$A34,'Track by Mode'!$K:$K,"="&$B34)) -> 1.7 | I34: =IF($X$2,SUMIFS('Track by Mode'!R:R,'Track by Mode'!$J:$J,"="&$A34,'Track by Mode'!$K:$K,"="&$B34,'Track by Mode'!$AI:$AI,"=No"),SUMIFS('Track by Mode'!R:R,'Track by Mode'!$J:$J,"="&$A34,'Track by Mode'!$K:$K,"="&$B34)) -> 3.4 | J34: =IF($X$2,SUMIFS('Track by Mode'!T:T,'Track by Mode'!$J:$J,"="&$A34,'Track by Mode'!$K:$K,"="&$B34,'Track by Mode'!$AI:$AI,"=No"),SUMIFS('Track by Mode'!T:T,'Track by Mode'!$J:$J,"="&$A34,'Track by Mode'!$K:$K,"="&$B34)) -> 0.9 | K34: =IF($X$2,SUMIFS('Track by Mode'!V:V,'Track by Mode'!$J:$J,"="&$A34,'Track by Mode'!$K:$K,"="&$B34,'Track by Mode'!$AI:$AI,"=No"),SUMIFS('Track by Mode'!V:V,'Track by Mode'!$J:$J,"="&$A34,'Track by Mode'!$K:$K,"="&$B34)) -> 0 | L34: =IF($X$2,SUMIFS('Track by Mode'!X:X,'Track by Mode'!$J:$J,"="&$A34,'Track by Mode'!$K:$K,"="&$B34,'Track by Mode'!$AI:$AI,"=No"),SUMIFS('Track by Mode'!X:X,'Track by Mode'!$J:$J,"="&$A34,'Track by Mode'!$K:$K,"="&$B34)) -> 0 | M34: =IF($X$2,SUMIFS('Track by Mode'!Z:Z,'Track by Mode'!$J:$J,"="&$A34,'Track by Mode'!$K:$K,"="&$B34,'Track by Mode'!$AI:$AI,"=No"),SUMIFS('Track by Mode'!Z:Z,'Track by Mode'!$J:$J,"="&$A34,'Track by Mode'!$K:$K,"="&$B34)) -> 79.5 | N34: =IF($X$2,SUMIFS('Track by Mode'!AC:AC,'Track by Mode'!$J:$J,"="&$A34,'Track by Mode'!$K:$K,"="&$B34,'Track by Mode'!$AI:$AI,"=No"),SUMIFS('Track by Mode'!AC:AC,'Track by Mode'!$J:$J,"="&$A34,'Track by Mode'!$K:$K,"="&$B34)) -> 163 | O34: =IF($X$2,SUMIFS('Track by Mode'!AE:AE,'Track by Mode'!$J:$J,"="&$A34,'Track by Mode'!$K:$K,"="&$B34,'Track by Mode'!$AI:$AI,"=No"),SUMIFS('Track by Mode'!AE:AE,'Track by Mode'!$J:$J,"="&$A34,'Track by Mode'!$K:$K,"="&$B34)) -> 10 | P34: =IF($X$2,SUMIFS('Track by Mode'!AG:AG,'Track by Mode'!$J:$J,"="&$A34,'Track by Mode'!$K:$K,"="&$B34,'Track by Mode'!$AI:$AI,"=No"),SUMIFS('Track by Mode'!AG:AG,'Track by Mode'!$J:$J,"="&$A34,'Track by Mode'!$K:$K,"="&$B34)) -> 173 | Q34: - | R34: - | S34: - | T34: -
A35: MG | B35: DO | C35: Monorail/Automated Guideway - Directly Operated | F35: =IF($X$2,SUMIFS('Track by Mode'!L:L,'Track by Mode'!$J:$J,"="&$A35,'Track by Mode'!$K:$K,"="&$B35,'Track by Mode'!$AI:$AI,"=No"),SUMIFS('Track by Mode'!L:L,'Track by Mode'!$J:$J,"="&$A35,'Track by Mode'!$K:$K,"="&$B35)) -> 126 | G35: =IF($X$2,SUMIFS('Track by Mode'!N:N,'Track by Mode'!$J:$J,"="&$A35,'Track by Mode'!$K:$K,"="&$B35,'Track by Mode'!$AI:$AI,"=No"),SUMIFS('Track by Mode'!N:N,'Track by Mode'!$J:$J,"="&$A35,'Track by Mode'!$K:$K,"="&$B35)) -> 4 | H35: =IF($X$2,SUMIFS('Track by Mode'!P:P,'Track by Mode'!$J:$J,"="&$A35,'Track by Mode'!$K:$K,"="&$B35,'Track by Mode'!$AI:$AI,"=No"),SUMIFS('Track by Mode'!P:P,'Track by Mode'!$J:$J,"="&$A35,'Track by Mode'!$K:$K,"="&$B35)) -> 0 | I35: =IF($X$2,SUMIFS('Track by Mode'!R:R,'Track by Mode'!$J:$J,"="&$A35,'Track by Mode'!$K:$K,"="&$B35,'Track by Mode'!$AI:$AI,"=No"),SUMIFS('Track by Mode'!R:R,'Track by Mode'!$J:$J,"="&$A35,'Track by Mode'!$K:$K,"="&$B35)) -> 30.1 | J35: =IF($X$2,SUMIFS('Track by Mode'!T:T,'Track by Mode'!$J:$J,"="&$A35,'Track by Mode'!$K:$K,"="&$B35,'Track by Mode'!$AI:$AI,"=No"),SUMIFS('Track by Mode'!T:T,'Track by Mode'!$J:$J,"="&$A35,'Track by Mode'!$K:$K,"="&$B35)) -> 0 | K35: =IF($X$2,SUMIFS('Track by Mode'!V:V,'Track by Mode'!$J:$J,"="&$A35,'Track by Mode'!$K:$K,"="&$B35,'Track by Mode'!$AI:$AI,"=No"),SUMIFS('Track by Mode'!V:V,'Track by Mode'!$J:$J,"="&$A35,'Track by Mode'!$K:$K,"="&$B35)) -> 0 | L35: =IF($X$2,SUMIFS('Track by Mode'!X:X,'Track by Mode'!$J:$J,"="&$A35,'Track by Mode'!$K:$K,"="&$B35,'Track by Mode'!$AI:$AI,"=No"),SUMIFS('Track by Mode'!X:X,'Track by Mode'!$J:$J,"="&$A35,'Track by Mode'!$K:$K,"="&$B35)) -> 0 | M35: =IF($X$2,SUMIFS('Track by Mode'!Z:Z,'Track by Mode'!$J:$J,"="&$A35,'Track by Mode'!$K:$K,"="&$B35,'Track by Mode'!$AI:$AI,"=No"),SUMIFS('Track by Mode'!Z:Z,'Track by Mode'!$J:$J,"="&$A35,'Track by Mode'!$K:$K,"="&$B35)) -> 34.1 | N35: =IF($X$2,SUMIFS('Track by Mode'!AC:AC,'Track by Mode'!$J:$J,"="&$A35,'Track by Mode'!$K:$K,"="&$B35,'Track by Mode'!$AI:$AI,"=No"),SUMIFS('Track by Mode'!AC:AC,'Track by Mode'!$J:$J,"="&$A35,'Track by Mode'!$K:$K,"="&$B35)) -> 0 | O35: =IF($X$2,SUMIFS('Track by Mode'!AE:AE,'Track by Mode'!$J:$J,"="&$A35,'Track by Mode'!$K:$K,"="&$B35,'Track by Mode'!$AI:$AI,"=No"),SUMIFS('Track by Mode'!AE:AE,'Track by Mode'!$J:$J,"="&$A35,'Track by Mode'!$K:$K,"="&$B35)) -> 0 | P35: =IF($X$2,SUMIFS('Track by Mode'!AG:AG,'Track by Mode'!$J:$J,"="&$A35,'Track by Mode'!$K:$K,"="&$B35,'Track by Mode'!$AI:$AI,"=No"),SUMIFS('Track by Mode'!AG:AG,'Track by Mode'!$J:$J,"="&$A35,'Track by Mode'!$K:$K,"="&$B35)) -> 0 | Q35: - | R35: - | S35: - | T35: -
A36: MG | B36: PT | C36: Monorail/Automated Guideway - Purchased Transportation | F36: =IF($X$2,SUMIFS('Track by Mode'!L:L,'Track by Mode'!$J:$J,"="&$A36,'Track by Mode'!$K:$K,"="&$B36,'Track by Mode'!$AI:$AI,"=No"),SUMIFS('Track by Mode'!L:L,'Track by Mode'!$J:$J,"="&$A36,'Track by Mode'!$K:$K,"="&$B36)) -> 36 | G36: =IF($X$2,SUMIFS('Track by Mode'!N:N,'Track by Mode'!$J:$J,"="&$A36,'Track by Mode'!$K:$K,"="&$B36,'Track by Mode'!$AI:$AI,"=No"),SUMIFS('Track by Mode'!N:N,'Track by Mode'!$J:$J,"="&$A36,'Track by Mode'!$K:$K,"="&$B36)) -> 0.3 | H36: =IF($X$2,SUMIFS('Track by Mode'!P:P,'Track by Mode'!$J:$J,"="&$A36,'Track by Mode'!$K:$K,"="&$B36,'Track by Mode'!$AI:$AI,"=No"),SUMIFS('Track by Mode'!P:P,'Track by Mode'!$J:$J,"="&$A36,'Track by Mode'!$K:$K,"="&$B36)) -> 0 | I36: =IF($X$2,SUMIFS('Track by Mode'!R:R,'Track by Mode'!$J:$J,"="&$A36,'Track by Mode'!$K:$K,"="&$B36,'Track by Mode'!$AI:$AI,"=No"),SUMIFS('Track by Mode'!R:R,'Track by Mode'!$J:$J,"="&$A36,'Track by Mode'!$K:$K,"="&$B36)) -> 12 | J36: =IF($X$2,SUMIFS('Track by Mode'!T:T,'Track by Mode'!$J:$J,"="&$A36,'Track by Mode'!$K:$K,"="&$B36,'Track by Mode'!$AI:$AI,"=No"),SUMIFS('Track by Mode'!T:T,'Track by Mode'!$J:$J,"="&$A36,'Track by Mode'!$K:$K,"="&$B36)) -> 0 | K36: =IF($X$2,SUMIFS('Track by Mode'!V:V,'Track by Mode'!$J:$J,"="&$A36,'Track by Mode'!$K:$K,"="&$B36,'Track by Mode'!$AI:$AI,"=No"),SUMIFS('Track by Mode'!V:V,'Track by Mode'!$J:$J,"="&$A36,'Track by Mode'!$K:$K,"="&$B36)) -> 0.3 | L36: =IF($X$2,SUMIFS('Track by Mode'!X:X,'Track by Mode'!$J:$J,"="&$A36,'Track by Mode'!$K:$K,"="&$B36,'Track by Mode'!$AI:$AI,"=No"),SUMIFS('Track by Mode'!X:X,'Track by Mode'!$J:$J,"="&$A36,'Track by Mode'!$K:$K,"="&$B36)) -> 0 | M36: =IF($X$2,SUMIFS('Track by Mode'!Z:Z,'Track by Mode'!$J:$J,"="&$A36,'Track by Mode'!$K:$K,"="&$B36,'Track by Mode'!$AI:$AI,"=No"),SUMIFS('Track by Mode'!Z:Z,'Track by Mode'!$J:$J,"="&$A36,'Track by Mode'!$K:$K,"="&$B36)) -> 12.6 | N36: =IF($X$2,SUMIFS('Track by Mode'!AC:AC,'Track by Mode'!$J:$J,"="&$A36,'Track by Mode'!$K:$K,"="&$B36,'Track by Mode'!$AI:$AI,"=No"),SUMIFS('Track by Mode'!AC:AC,'Track by Mode'!$J:$J,"="&$A36,'Track by Mode'!$K:$K,"="&$B36)) -> 0 | O36: =IF($X$2,SUMIFS('Track by Mode'!AE:AE,'Track by Mode'!$J:$J,"="&$A36,'Track by Mode'!$K:$K,"="&$B36,'Track by Mode'!$AI:$AI,"=No"),SUMIFS('Track by Mode'!AE:AE,'Track by Mode'!$J:$J,"="&$A36,'Track by Mode'!$K:$K,"="&$B36)) -> 0 | P36: =IF($X$2,SUMIFS('Track by Mode'!AG:AG,'Track by Mode'!$J:$J,"="&$A36,'Track by Mode'!$K:$K,"="&$B36,'Track by Mode'!$AI:$AI,"=No"),SUMIFS('Track by Mode'!AG:AG,'Track by Mode'!$J:$J,"="&$A36,'Track by Mode'!$K:$K,"="&$B36)) -> 0 | Q36: - | R36: - | S36: - | T36: -
A37: SR | B37: DO | C37: Street Car Rail - Directly Operated | F37: =IF($X$2,SUMIFS('Track by Mode'!L:L,'Track by Mode'!$J:$J,"="&$A37,'Track by Mode'!$K:$K,"="&$B37,'Track by Mode'!$AI:$AI,"=No"),SUMIFS('Track by Mode'!L:L,'Track by Mode'!$J:$J,"="&$A37,'Track by Mode'!$K:$K,"="&$B37)) -> 173 | G37: =IF($X$2,SUMIFS('Track by Mode'!N:N,'Track by Mode'!$J:$J,"="&$A37,'Track by Mode'!$K:$K,"="&$B37,'Track by Mode'!$AI:$AI,"=No"),SUMIFS('Track by Mode'!N:N,'Track by Mode'!$J:$J,"="&$A37,'Track by Mode'!$K:$K,"="&$B37)) -> 36.3 | H37: =IF($X$2,SUMIFS('Track by Mode'!P:P,'Track by Mode'!$J:$J,"="&$A37,'Track by Mode'!$K:$K,"="&$B37,'Track by Mode'!$AI:$AI,"=No"),SUMIFS('Track by Mode'!P:P,'Track by Mode'!$J:$J,"="&$A37,'Track by Mode'!$K:$K,"="&$B37)) -> 235.2 | I37: =IF($X$2,SUMIFS('Track by Mode'!R:R,'Track by Mode'!$J:$J,"="&$A37,'Track by Mode'!$K:$K,"="&$B37,'Track by Mode'!$AI:$AI,"=No"),SUMIFS('Track by Mode'!R:R,'Track by Mode'!$J:$J,"="&$A37,'Track by Mode'!$K:$K,"="&$B37)) -> 0.6 | J37: =IF($X$2,SUMIFS('Track by Mode'!T:T,'Track by Mode'!$J:$J,"="&$A37,'Track by Mode'!$K:$K,"="&$B37,'Track by Mode'!$AI:$AI,"=No"),SUMIFS('Track by Mode'!T:T,'Track by Mode'!$J:$J,"="&$A37,'Track by Mode'!$K:$K,"="&$B37)) -> 0.2 | K37: =IF($X$2,SUMIFS('Track by Mode'!V:V,'Track by Mode'!$J:$J,"="&$A37,'Track by Mode'!$K:$K,"="&$B37,'Track by Mode'!$AI:$AI,"=No"),SUMIFS('Track by Mode'!V:V,'Track by Mode'!$J:$J,"="&$A37,'Track by Mode'!$K:$K,"="&$B37)) -> 0 | L37: =IF($X$2,SUMIFS('Track by Mode'!X:X,'Track by Mode'!$J:$J,"="&$A37,'Track by Mode'!$K:$K,"="&$B37,'Track by Mode'!$AI:$AI,"=No"),SUMIFS('Track by Mode'!X:X,'Track by Mode'!$J:$J,"="&$A37,'Track by Mode'!$K:$K,"="&$B37)) -> 5 | M37: =IF($X$2,SUMIFS('Track by Mode'!Z:Z,'Track by Mode'!$J:$J,"="&$A37,'Track by Mode'!$K:$K,"="&$B37,'Track by Mode'!$AI:$AI,"=No"),SUMIFS('Track by Mode'!Z:Z,'Track by Mode'!$J:$J,"="&$A37,'Track by Mode'!$K:$K,"="&$B37)) -> 277.3 | N37: =IF($X$2,SUMIFS('Track by Mode'!AC:AC,'Track by Mode'!$J:$J,"="&$A37,'Track by Mode'!$K:$K,"="&$B37,'Track by Mode'!$AI:$AI,"=No"),SUMIFS('Track by Mode'!AC:AC,'Track by Mode'!$J:$J,"="&$A37,'Track by Mode'!$K:$K,"="&$B37)) -> 98 | O37: =IF($X$2,SUMIFS('Track by Mode'!AE:AE,'Track by Mode'!$J:$J,"="&$A37,'Track by Mode'!$K:$K,"="&$B37,'Track by Mode'!$AI:$AI,"=No"),SUMIFS('Track by Mode'!AE:AE,'Track by Mode'!$J:$J,"="&$A37,'Track by Mode'!$K:$K,"="&$B37)) -> 902 | P37: =IF($X$2,SUMIFS('Track by Mode'!AG:AG,'Track by Mode'!$J:$J,"="&$A37,'Track by Mode'!$K:$K,"="&$B37,'Track by Mode'!$AI:$AI,"=No"),SUMIFS('Track by Mode'!AG:AG,'Track by Mode'!$J:$J,"="&$A37,'Track by Mode'!$K:$K,"="&$B37)) -> 1000 | Q37: - | R37: - | S37: - | T37: -
A38: SR | B38: PT | C38: Street Car Rail - Purchased Transportation | F38: =IF($X$2,SUMIFS('Track by Mode'!L:L,'Track by Mode'!$J:$J,"="&$A38,'Track by Mode'!$K:$K,"="&$B38,'Track by Mode'!$AI:$AI,"=No"),SUMIFS('Track by Mode'!L:L,'Track by Mode'!$J:$J,"="&$A38,'Track by Mode'!$K:$K,"="&$B38)) -> 39 | G38: =IF($X$2,SUMIFS('Track by Mode'!N:N,'Track by Mode'!$J:$J,"="&$A38,'Track by Mode'!$K:$K,"="&$B38,'Track by Mode'!$AI:$AI,"=No"),SUMIFS('Track by Mode'!N:N,'Track by Mode'!$J:$J,"="&$A38,'Track by Mode'!$K:$K,"="&$B38)) -> 18.6 | H38: =IF($X$2,SUMIFS('Track by Mode'!P:P,'Track by Mode'!$J:$J,"="&$A38,'Track by Mode'!$K:$K,"="&$B38,'Track by Mode'!$AI:$AI,"=No"),SUMIFS('Track by Mode'!P:P,'Track by Mode'!$J:$J,"="&$A38,'Track by Mode'!$K:$K,"="&$B38)) -> 14.8 | I38: =IF($X$2,SUMIFS('Track by Mode'!R:R,'Track by Mode'!$J:$J,"="&$A38,'Track by Mode'!$K:$K,"="&$B38,'Track by Mode'!$AI:$AI,"=No"),SUMIFS('Track by Mode'!R:R,'Track by Mode'!$J:$J,"="&$A38,'Track by Mode'!$K:$K,"="&$B38)) -> 0 | J38: =IF($X$2,SUMIFS('Track by Mode'!T:T,'Track by Mode'!$J:$J,"="&$A38,'Track by Mode'!$K:$K,"="&$B38,'Track by Mode'!$AI:$AI,"=No"),SUMIFS('Track by Mode'!T:T,'Track by Mode'!$J:$J,"="&$A38,'Track by Mode'!$K:$K,"="&$B38)) -> 0 | K38: =IF($X$2,SUMIFS('Track by Mode'!V:V,'Track by Mode'!$J:$J,"="&$A38,'Track by Mode'!$K:$K,"="&$B38,'Track by Mode'!$AI:$AI,"=No"),SUMIFS('Track by Mode'!V:V,'Track by Mode'!$J:$J,"="&$A38,'Track by Mode'!$K:$K,"="&$B38)) -> 0 | L38: =IF($X$2,SUMIFS('Track by Mode'!X:X,'Track by Mode'!$J:$J,"="&$A38,'Track by Mode'!$K:$K,"="&$B38,'Track by Mode'!$AI:$AI,"=No"),SUMIFS('Track by Mode'!X:X,'Track by Mode'!$J:$J,"="&$A38,'Track by Mode'!$K:$K,"="&$B38)) -> 0 | M38: =IF($X$2,SUMIFS('Track by Mode'!Z:Z,'Track by Mode'!$J:$J,"="&$A38,'Track by Mode'!$K:$K,"="&$B38,'Track by Mode'!$AI:$AI,"=No"),SUMIFS('Track by Mode'!Z:Z,'Track by Mode'!$J:$J,"="&$A38,'Track by Mode'!$K:$K,"="&$B38)) -> 33.4 | N38: =IF($X$2,SUMIFS('Track by Mode'!AC:AC,'Track by Mode'!$J:$J,"="&$A38,'Track by Mode'!$K:$K,"="&$B38,'Track by Mode'!$AI:$AI,"=No"),SUMIFS('Track by Mode'!AC:AC,'Track by Mode'!$J:$J,"="&$A38,'Track by Mode'!$K:$K,"="&$B38)) -> 247 | O38: =IF($X$2,SUMIFS('Track by Mode'!AE:AE,'Track by Mode'!$J:$J,"="&$A38,'Track by Mode'!$K:$K,"="&$B38,'Track by Mode'!$AI:$AI,"=No"),SUMIFS('Track by Mode'!AE:AE,'Track by Mode'!$J:$J,"="&$A38,'Track by Mode'!$K:$K,"="&$B38)) -> 191 | P38: =IF($X$2,SUMIFS('Track by Mode'!AG:AG,'Track by Mode'!$J:$J,"="&$A38,'Track by Mode'!$K:$K,"="&$B38,'Track by Mode'!$AI:$AI,"=No"),SUMIFS('Track by Mode'!AG:AG,'Track by Mode'!$J:$J,"="&$A38,'Track by Mode'!$K:$K,"="&$B38)) -> 438 | Q38: - | R38: - | S38: - | T38: -
A39: CB | B39: DO | C39: Commuter Bus - Directly Operated | F39: =IF($X$2,SUMIFS('Roadway by Mode'!L:L,'Roadway by Mode'!$J:$J,"="&$A39,'Roadway by Mode'!$K:$K,"="&$B39,'Roadway by Mode'!$V:$V,"=No"),SUMIFS('Roadway by Mode'!L:L,'Roadway by Mode'!$J:$J,"="&$A39,'Roadway by Mode'!$K:$K,"="&$B39)) -> 2286 | G39: - | H39: - | I39: - | J39: - | K39: - | L39: - | M39: - | N39: - | O39: - | P39: - | Q39: =IF($X$2,SUMIFS('Roadway by Mode'!N:N,'Roadway by Mode'!$J:$J,"="&$A39,'Roadway by Mode'!$K:$K,"="&$B39,'Roadway by Mode'!$V:$V,"=No"),SUMIFS('Roadway by Mode'!N:N,'Roadway by Mode'!$J:$J,"="&$A39,'Roadway by Mode'!$K:$K,"="&$B39)) -> 20.2 | R39: =IF($X$2,SUMIFS('Roadway by Mode'!P:P,'Roadway by Mode'!$J:$J,"="&$A39,'Roadway by Mode'!$K:$K,"="&$B39,'Roadway by Mode'!$V:$V,"=No"),SUMIFS('Roadway by Mode'!P:P,'Roadway by Mode'!$J:$J,"="&$A39,'Roadway by Mode'!$K:$K,"="&$B39)) -> 313.4 | S39: =IF($X$2,SUMIFS('Roadway by Mode'!R:R,'Roadway by Mode'!$J:$J,"="&$A39,'Roadway by Mode'!$K:$K,"="&$B39,'Roadway by Mode'!$V:$V,"=No"),SUMIFS('Roadway by Mode'!R:R,'Roadway by Mode'!$J:$J,"="&$A39,'Roadway by Mode'!$K:$K,"="&$B39)) -> 209.2 | T39: =IF($X$2,SUMIFS('Roadway by Mode'!T:T,'Roadway by Mode'!$J:$J,"="&$A39,'Roadway by Mode'!$K:$K,"="&$B39,'Roadway by Mode'!$V:$V,"=No"),SUMIFS('Roadway by Mode'!T:T,'Roadway by Mode'!$J:$J,"="&$A39,'Roadway by Mode'!$K:$K,"="&$B39)) -> 542.8
A40: CB | B40: PT | C40: Commuter Bus - Purchased Transportation | F40: =IF($X$2,SUMIFS('Roadway by Mode'!L:L,'Roadway by Mode'!$J:$J,"="&$A40,'Roadway by Mode'!$K:$K,"="&$B40,'Roadway by Mode'!$V:$V,"=No"),SUMIFS('Roadway by Mode'!L:L,'Roadway by Mode'!$J:$J,"="&$A40,'Roadway by Mode'!$K:$K,"="&$B40)) -> 1305 | G40: - | H40: - | I40: - | J40: - | K40: - | L40: - | M40: - | N40: - | O40: - | P40: - | Q40: =IF($X$2,SUMIFS('Roadway by Mode'!N:N,'Roadway by Mode'!$J:$J,"="&$A40,'Roadway by Mode'!$K:$K,"="&$B40,'Roadway by Mode'!$V:$V,"=No"),SUMIFS('Roadway by Mode'!N:N,'Roadway by Mode'!$J:$J,"="&$A40,'Roadway by Mode'!$K:$K,"="&$B40)) -> 35.5 | R40: =IF($X$2,SUMIFS('Roadway by Mode'!P:P,'Roadway by Mode'!$J:$J,"="&$A40,'Roadway by Mode'!$K:$K,"="&$B40,'Roadway by Mode'!$V:$V,"=No"),SUMIFS('Roadway by Mode'!P:P,'Roadway by Mode'!$J:$J,"="&$A40,'Roadway by Mode'!$K:$K,"="&$B40)) -> 350.8 | S40: =IF($X$2,SUMIFS('Roadway by Mode'!R:R,'Roadway by Mode'!$J:$J,"="&$A40,'Roadway by Mode'!$K:$K,"="&$B40,'Roadway by Mode'!$V:$V,"=No"),SUMIFS('Roadway by Mode'!R:R,'Roadway by Mode'!$J:$J,"="&$A40,'Roadway by Mode'!$K:$K,"="&$B40)) -> 377.1 | T40: =IF($X$2,SUMIFS('Roadway by Mode'!T:T,'Roadway by Mode'!$J:$J,"="&$A40,'Roadway by Mode'!$K:$K,"="&$B40,'Roadway by Mode'!$V:$V,"=No"),SUMIFS('Roadway by Mode'!T:T,'Roadway by Mode'!$J:$J,"="&$A40,'Roadway by Mode'!$K:$K,"="&$B40)) -> 763.4
A41: MB | B41: DO | C41: Bus - Directly Operated | F41: =IF($X$2,SUMIFS('Roadway by Mode'!L:L,'Roadway by Mode'!$J:$J,"="&$A41,'Roadway by Mode'!$K:$K,"="&$B41,'Roadway by Mode'!$V:$V,"=No"),SUMIFS('Roadway by Mode'!L:L,'Roadway by Mode'!$J:$J,"="&$A41,'Roadway by Mode'!$K:$K,"="&$B41)) -> 38052 | G41: - | H41: - | I41: - | J41: - | K41: - | L41: - | M41: - | N41: - | O41: - | P41: - | Q41: =IF($X$2,SUMIFS('Roadway by Mode'!N:N,'Roadway by Mode'!$J:$J,"="&$A41,'Roadway by Mode'!$K:$K,"="&$B41,'Roadway by Mode'!$V:$V,"=No"),SUMIFS('Roadway by Mode'!N:N,'Roadway by Mode'!$J:$J,"="&$A41,'Roadway by Mode'!$K:$K,"="&$B41)) -> 248.8 | R41: =IF($X$2,SUMIFS('Roadway by Mode'!P:P,'Roadway by Mode'!$J:$J,"="&$A41,'Roadway by Mode'!$K:$K,"="&$B41,'Roadway by Mode'!$V:$V,"=No"),SUMIFS('Roadway by Mode'!P:P,'Roadway by Mode'!$J:$J,"="&$A41,'Roadway by Mode'!$K:$K,"="&$B41)) -> 629.6 | S41: =IF($X$2,SUMIFS('Roadway by Mode'!R:R,'Roadway by Mode'!$J:$J,"="&$A41,'Roadway by Mode'!$K:$K,"="&$B41,'Roadway by Mode'!$V:$V,"=No"),SUMIFS('Roadway by Mode'!R:R,'Roadway by Mode'!$J:$J,"="&$A41,'Roadway by Mode'!$K:$K,"="&$B41)) -> 629 | T41: =IF($X$2,SUMIFS('Roadway by Mode'!T:T,'Roadway by Mode'!$J:$J,"="&$A41,'Roadway by Mode'!$K:$K,"="&$B41,'Roadway by Mode'!$V:$V,"=No"),SUMIFS('Roadway by Mode'!T:T,'Roadway by Mode'!$J:$J,"="&$A41,'Roadway by Mode'!$K:$K,"="&$B41)) -> 1507.4
A42: MB | B42: PT | C42: Bus - Purchased Transportation | F42: =IF($X$2,SUMIFS('Roadway by Mode'!L:L,'Roadway by Mode'!$J:$J,"="&$A42,'Roadway by Mode'!$K:$K,"="&$B42,'Roadway by Mode'!$V:$V,"=No"),SUMIFS('Roadway by Mode'!L:L,'Roadway by Mode'!$J:$J,"="&$A42,'Roadway by Mode'!$K:$K,"="&$B42)) -> 8502 | G42: - | H42: - | I42: - | J42: - | K42: - | L42: - | M42: - | N42: - | O42: - | P42: - | Q42: =IF($X$2,SUMIFS('Roadway by Mode'!N:N,'Roadway by Mode'!$J:$J,"="&$A42,'Roadway by Mode'!$K:$K,"="&$B42,'Roadway by Mode'!$V:$V,"=No"),SUMIFS('Roadway by Mode'!N:N,'Roadway by Mode'!$J:$J,"="&$A42,'Roadway by Mode'!$K:$K,"="&$B42)) -> 72.5 | R42: =IF($X$2,SUMIFS('Roadway by Mode'!P:P,'Roadway by Mode'!$J:$J,"="&$A42,'Roadway by Mode'!$K:$K,"="&$B42,'Roadway by Mode'!$V:$V,"=No"),SUMIFS('Roadway by Mode'!P:P,'Roadway by Mode'!$J:$J,"="&$A42,'Roadway by Mode'!$K:$K,"="&$B42)) -> 152.6 | S42: =IF($X$2,SUMIFS('Roadway by Mode'!R:R,'Roadway by Mode'!$J:$J,"="&$A42,'Roadway by Mode'!$K:$K,"="&$B42,'Roadway by Mode'!$V:$V,"=No"),SUMIFS('Roadway by Mode'!R:R,'Roadway by Mode'!$J:$J,"="&$A42,'Roadway by Mode'!$K:$K,"="&$B42)) -> 826 | T42: =IF($X$2,SUMIFS('Roadway by Mode'!T:T,'Roadway by Mode'!$J:$J,"="&$A42,'Roadway by Mode'!$K:$K,"="&$B42,'Roadway by Mode'!$V:$V,"=No"),SUMIFS('Roadway by Mode'!T:T,'Roadway by Mode'!$J:$J,"="&$A42,'Roadway by Mode'!$K:$K,"="&$B42)) -> 1051.1
A43: RB | B43: DO | C43: Bus Rapid Transit - Directly Operated | F43: =IF($X$2,SUMIFS('Roadway by Mode'!L:L,'Roadway by Mode'!$J:$J,"="&$A43,'Roadway by Mode'!$K:$K,"="&$B43,'Roadway by Mode'!$V:$V,"=No"),SUMIFS('Roadway by Mode'!L:L,'Roadway by Mode'!$J:$J,"="&$A43,'Roadway by Mode'!$K:$K,"="&$B43)) -> 241 | G43: - | H43: - | I43: - | J43: - | K43: - | L43: - | M43: - | N43: - | O43: - | P43: - | Q43: =IF($X$2,SUMIFS('Roadway by Mode'!N:N,'Roadway by Mode'!$J:$J,"="&$A43,'Roadway by Mode'!$K:$K,"="&$B43,'Roadway by Mode'!$V:$V,"=No"),SUMIFS('Roadway by Mode'!N:N,'Roadway by Mode'!$J:$J,"="&$A43,'Roadway by Mode'!$K:$K,"="&$B43)) -> 154.2 | R43: =IF($X$2,SUMIFS('Roadway by Mode'!P:P,'Roadway by Mode'!$J:$J,"="&$A43,'Roadway by Mode'!$K:$K,"="&$B43,'Roadway by Mode'!$V:$V,"=No"),SUMIFS('Roadway by Mode'!P:P,'Roadway by Mode'!$J:$J,"="&$A43,'Roadway by Mode'!$K:$K,"="&$B43)) -> 0 | S43: =IF($X$2,SUMIFS('Roadway by Mode'!R:R,'Roadway by Mode'!$J:$J,"="&$A43,'Roadway by Mode'!$K:$K,"="&$B43,'Roadway by Mode'!$V:$V,"=No"),SUMIFS('Roadway by Mode'!R:R,'Roadway by Mode'!$J:$J,"="&$A43,'Roadway by Mode'!$K:$K,"="&$B43)) -> 16.5 | T43: =IF($X$2,SUMIFS('Roadway by Mode'!T:T,'Roadway by Mode'!$J:$J,"="&$A43,'Roadway by Mode'!$K:$K,"="&$B43,'Roadway by Mode'!$V:$V,"=No"),SUMIFS('Roadway by Mode'!T:T,'Roadway by Mode'!$J:$J,"="&$A43,'Roadway by Mode'!$K:$K,"="&$B43)) -> 170.7
A44: RB | B44: PT | C44: Bus Rapid Transit - Purchased Transportation | F44: =IF($X$2,SUMIFS('Roadway by Mode'!L:L,'Roadway by Mode'!$J:$J,"="&$A44,'Roadway by Mode'!$K:$K,"="&$B44,'Roadway by Mode'!$V:$V,"=No"),SUMIFS('Roadway by Mode'!L:L,'Roadway by Mode'!$J:$J,"="&$A44,'Roadway by Mode'!$K:$K,"="&$B44)) -> 33 | G44: - | H44: - | I44: - | J44: - | K44: - | L44: - | M44: - | N44: - | O44: - | P44: - | Q44: =IF($X$2,SUMIFS('Roadway by Mode'!N:N,'Roadway by Mode'!$J:$J,"="&$A44,'Roadway by Mode'!$K:$K,"="&$B44,'Roadway by Mode'!$V:$V,"=No"),SUMIFS('Roadway by Mode'!N:N,'Roadway by Mode'!$J:$J,"="&$A44,'Roadway by Mode'!$K:$K,"="&$B44)) -> 41.6 | R44: =IF($X$2,SUMIFS('Roadway by Mode'!P:P,'Roadway by Mode'!$J:$J,"="&$A44,'Roadway by Mode'!$K:$K,"="&$B44,'Roadway by Mode'!$V:$V,"=No"),SUMIFS('Roadway by Mode'!P:P,'Roadway by Mode'!$J:$J,"="&$A44,'Roadway by Mode'!$K:$K,"="&$B44)) -> 0 | S44: =IF($X$2,SUMIFS('Roadway by Mode'!R:R,'Roadway by Mode'!$J:$J,"="&$A44,'Roadway by Mode'!$K:$K,"="&$B44,'Roadway by Mode'!$V:$V,"=No"),SUMIFS('Roadway by Mode'!R:R,'Roadway by Mode'!$J:$J,"="&$A44,'Roadway by Mode'!$K:$K,"="&$B44)) -> 0 | T44: =IF($X$2,SUMIFS('Roadway by Mode'!T:T,'Roadway by Mode'!$J:$J,"="&$A44,'Roadway by Mode'!$K:$K,"="&$B44,'Roadway by Mode'!$V:$V,"=No"),SUMIFS('Roadway by Mode'!T:T,'Roadway by Mode'!$J:$J,"="&$A44,'Roadway by Mode'!$K:$K,"="&$B44)) -> 41.6
A45: TB | B45: DO | C45: Trolleybus - Directly Operated | F45: =IF($X$2,SUMIFS('Roadway by Mode'!L:L,'Roadway by Mode'!$J:$J,"="&$A45,'Roadway by Mode'!$K:$K,"="&$B45,'Roadway by Mode'!$V:$V,"=No"),SUMIFS('Roadway by Mode'!L:L,'Roadway by Mode'!$J:$J,"="&$A45,'Roadway by Mode'!$K:$K,"="&$B45)) -> 391 | G45: - | H45: - | I45: - | J45: - | K45: - | L45: - | M45: - | N45: - | O45: - | P45: - | Q45: =IF($X$2,SUMIFS('Roadway by Mode'!N:N,'Roadway by Mode'!$J:$J,"="&$A45,'Roadway by Mode'!$K:$K,"="&$B45,'Roadway by Mode'!$V:$V,"=No"),SUMIFS('Roadway by Mode'!N:N,'Roadway by Mode'!$J:$J,"="&$A45,'Roadway by Mode'!$K:$K,"="&$B45)) -> 437.1 | R45: =IF($X$2,SUMIFS('Roadway by Mode'!P:P,'Roadway by Mode'!$J:$J,"="&$A45,'Roadway by Mode'!$K:$K,"="&$B45,'Roadway by Mode'!$V:$V,"=No"),SUMIFS('Roadway by Mode'!P:P,'Roadway by Mode'!$J:$J,"="&$A45,'Roadway by Mode'!$K:$K,"="&$B45)) -> 0 | S45: =IF($X$2,SUMIFS('Roadway by Mode'!R:R,'Roadway by Mode'!$J:$J,"="&$A45,'Roadway by Mode'!$K:$K,"="&$B45,'Roadway by Mode'!$V:$V,"=No"),SUMIFS('Roadway by Mode'!R:R,'Roadway by Mode'!$J:$J,"="&$A45,'Roadway by Mode'!$K:$K,"="&$B45)) -> 0 | T45: =IF($X$2,SUMIFS('Roadway by Mode'!T:T,'Roadway by Mode'!$J:$J,"="&$A45,'Roadway by Mode'!$K:$K,"="&$B45,'Roadway by Mode'!$V:$V,"=No"),SUMIFS('Roadway by Mode'!T:T,'Roadway by Mode'!$J:$J,"="&$A45,'Roadway by Mode'!$K:$K,"="&$B45)) -> 437.1
A47: By Agency Size (Vehicles)
G48: Miles of Track | N48: Number of Crossings | Q48: Miles of Roadway
D49: enter bins below | E49: click to graph | F49: VOMS | G49: At Grade: Restricted Right-of-Way Track Miles | H49: Street Running Track Miles | I49: Elevated on Structure Track Miles | J49: Elevated on Fill Track Miles | K49: Open Cut Track Miles | L49: Subway Track Miles | M49: Total Track Miles | N49: At Grade: Restricted Right-of-Way Crossings | O49: Street Running Crossings | P49: Total Crossings | Q49: Permanent Busway Roadway Miles | R49: Permanent HOV Roadway Miles | S49: Part-Time Busway or HOV Roadway Miles | T49: Total Roadway Miles
